Workbook

Sheet OHLCV
A1: n | B1: data | C1: czas unix | D1: symbol | E1: cena otwarcia | F1: cena najwyższa | G1: cena najniższa | H1: cena zamknięcia | I1: obrót | J1: poprzednia cena | K1: dniowa stopa zwrotu | L1: rodzaj
A2: =1 -> 1 | B2: =(C2/86400)+DATE(1970,1,1) -> 2022-01-01 | C2: 1640995200 | D2: SOLUSD | E2: $170.09 | F2: $180.97 | G2: $169.08 | H2: $179.21 | I2: 1.45E+05 | J2: =IFERROR(LOOKUP(2,1/((D$2:D22023=D2)*(A$2:A22023<A2)),H$2:H22023),"") ->  | K2: =IF(J2 = "", 0, (H2/J2) - 1) -> 0.00% | L2: =VLOOKUP(D2, symbole!$A$2:$D$15, 4, FALSE) -> kryptowaluty
A3: =A2+1 -> 2 | B3: =(C3/86400)+DATE(1970,1,1) -> 2022-01-01 | C3: 1640995200 | D3: BTCUSD | E3: $46,230.00 | F3: $47,960.98 | G3: $46,199.90 | H3: $47,777.42 | I3: 7.42E+02 | J3: =IFERROR(LOOKUP(2,1/((D$2:D22023=D3)*(A$2:A22023<A3)),H$2:H22023),"") ->  | K3: =IF(J3 = "", 0, (H3/J3) - 1) -> 0.00% | L3: =VLOOKUP(D3, symbole!$A$2:$D$15, 4, FALSE) -> kryptowaluty
A4: =A3+1 -> 3 | B4: =(C4/86400)+DATE(1970,1,1) -> 2022-01-01 | C4: 1640995200 | D4: DOGEUSDT | E4: $0.17 | F4: $0.17 | G4: $0.17 | H4: $0.17 | I4: 2.98E+08 | J4: =IFERROR(LOOKUP(2,1/((D$2:D22023=D4)*(A$2:A22023<A4)),H$2:H22023),"") ->  | K4: =IF(J4 = "", 0, (H4/J4) - 1) -> 0.00% | L4: =VLOOKUP(D4, symbole!$A$2:$D$15, 4, FALSE) -> kryptowaluty
A5: =A4+1 -> 4 | B5: =(C5/86400)+DATE(1970,1,1) -> 2022-01-01 | C5: 1640995200 | D5: ETHUSD | E5: $3,678.39 | F5: $3,777.73 | G5: $3,676.50 | H5: $3,768.13 | I5: 5.98E+03 | J5: =IFERROR(LOOKUP(2,1/((D$2:D22023=D5)*(A$2:A22023<A5)),H$2:H22023),"") ->  | K5: =IF(J5 = "", 0, (H5/J5) - 1) -> 0.00% | L5: =VLOOKUP(D5, symbole!$A$2:$D$15, 4, FALSE) -> kryptowaluty
A6: =A5+1 -> 5 | B6: =(C6/86400)+DATE(1970,1,1) -> 2022-01-02 | C6: 1641081600 | D6: ETHUSD | E6: $3,769.81 | F6: $3,858.28 | G6: $3,718.86 | H6: $3,830.84 | I6: 9.69E+03 | J6: =IFERROR(LOOKUP(2,1/((D$2:D22023=D6)*(A$2:A22023<A6)),H$2:H22023),"") -> 3768.13 | K6: =IF(J6 = "", 0, (H6/J6) - 1) -> 1.66% | L6: =VLOOKUP(D6, symbole!$A$2:$D$15, 4, FALSE) -> kryptowaluty
A7: =A6+1 -> 6 | B7: =(C7/86400)+DATE(1970,1,1) -> 2022-01-02 | C7: 1641081600 | D7: SOLUSD | E7: $179.03 | F7: $181.03 | G7: $172.81 | H7: $176.48 | I7: 1.09E+05 | J7: =IFERROR(LOOKUP(2,1/((D$2:D22023=D7)*(A$2:A22023<A7)),H$2:H22023),"") -> 179.21 | K7: =IF(J7 = "", 0, (H7/J7) - 1) -> -1.52% | L7: =VLOOKUP(D7, symbole!$A$2:$D$15, 4, FALSE) -> kryptowaluty
A8: =A7+1 -> 7 | B8: =(C8/86400)+DATE(1970,1,1) -> 2022-01-02 | C8: 1641081600 | D8: BTCUSD | E8: $47,745.25 | F8: $47,989.00 | G8: $46,660.00 | H8: $47,350.22 | I8: 7.02E+02 | J8: =IFERROR(LOOKUP(2,1/((D$2:D22023=D8)*(A$2:A22023<A8)),H$2:H22023),"") -> 47777.42 | K8: =IF(J8 = "", 0, (H8/J8) - 1) -> -0.89% | L8: =VLOOKUP(D8, symbole!$A$2:$D$15, 4, FALSE) -> kryptowaluty
A9: =A8+1 -> 8 | B9: =(C9/86400)+DATE(1970,1,1) -> 2022-01-02 | C9: 1641081600 | D9: DOGEUSDT | E9: $0.17 | F9: $0.18 | G9: $0.17 | H9: $0.17 | I9: 3.13E+08 | J9: =IFERROR(LOOKUP(2,1/((D$2:D22023=D9)*(A$2:A22023<A9)),H$2:H22023),"") -> 0.1732 | K9: =IF(J9 = "", 0, (H9/J9) - 1) -> 0.75% | L9: =VLOOKUP(D9, symbole!$A$2:$D$15, 4, FALSE) -> kryptowaluty | T9: =IFERROR(LOOKUP(2,1/((D$2:D22023=$Q$6)*(A$2:A22023<P9)),G$2:G22023),"") ->  | U9: =IFERROR(LOOKUP(2,1/((D$2:D22023=$Q$6)*(A$2:A22023<P9)),H$2:H22023),"") -> 
A10: =A9+1 -> 9 | B10: =(C10/86400)+DATE(1970,1,1) -> 2022-01-03 | C10: 1641168000 | D10: SOLUSD | E10: $176.30 | F10: $177.61 | G10: $166.47 | H10: $170.02 | I10: 1.71E+05 | J10: =IFERROR(LOOKUP(2,1/((D$2:D22023=D10)*(A$2:A22023<A10)),H$2:H22023),"") -> 176.48 | K10: =IF(J10 = "", 0, (H10/J10) - 1) -> -3.66% | L10: =VLOOKUP(D10, symbole!$A$2:$D$15, 4, FALSE) -> kryptowaluty
A11: =A10+1 -> 10 | B11: =(C11/86400)+DATE(1970,1,1) -> 2022-01-03 | C11: 1641168000 | D11: DOGEUSDT | E11: $0.17 | F11: $0.17 | G11: $0.17 | H11: $0.17 | I11: 4.61E+08 | J11: =IFERROR(LOOKUP(2,1/((D$2:D22023=D11)*(A$2:A22023<A11)),H$2:H22023),"") -> 0.1745 | K11: =IF(J11 = "", 0, (H11/J11) - 1) -> -2.41% | L11: =VLOOKUP(D11, symbole!$A$2:$D$15, 4, FALSE) -> kryptowaluty
A12: =A11+1 -> 11 | B12: =(C12/86400)+DATE(1970,1,1) -> 2022-01-03 | C12: 1641168000 | D12: ETHUSD | E12: $3,827.03 | F12: $3,853.67 | G12: $3,681.14 | H12: $3,764.90 | I12: 1.16E+04 | J12: =IFERROR(LOOKUP(2,1/((D$2:D22023=D12)*(A$2:A22023<A12)),H$2:H22023),"") -> 3830.84 | K12: =IF(J12 = "", 0, (H12/J12) - 1) -> -1.72% | L12: =VLOOKUP(D12, symbole!$A$2:$D$15, 4, FALSE) -> kryptowaluty
A13: =A12+1 -> 12 | B13: =(C13/86400)+DATE(1970,1,1) -> 2022-01-03 | C13: 1641168000 | D13: BTCUSD | E13: $47,290.55 | F13: $47,586.58 | G13: $45,692.13 | H13: $46,439.89 | I13: 1.14E+03 | J13: =IFERROR(LOOKUP(2,1/((D$2:D22023=D13)*(A$2:A22023<A13)),H$2:H22023),"") -> 47350.22 | K13: =IF(J13 = "", 0, (H13/J13) - 1) -> -1.92% | L13: =VLOOKUP(D13, symbole!$A$2:$D$15, 4, FALSE) -> kryptowaluty
A14: =A13+1 -> 13 | B14: =(C14/86400)+DATE(1970,1,1) -> 2022-01-03T14:30:00 | C14: 1641220200 | D14: META | E14: $338.30 | F14: $341.08 | G14: $337.19 | H14: $338.54 | I14: 1.46E+07 | J14: =IFERROR(LOOKUP(2,1/((D$2:D22023=D14)*(A$2:A22023<A14)),H$2:H22023),"") ->  | K14: =IF(J14 = "", 0, (H14/J14) - 1) -> 0.00% | L14: =VLOOKUP(D14, symbole!$A$2:$D$15, 4, FALSE) -> akcje
A15: =A14+1 -> 14 | B15: =(C15/86400)+DATE(1970,1,1) -> 2022-01-03T14:30:00 | C15: 1641220200 | D15: NVDA | E15: $29.82 | F15: $30.71 | G15: $29.79 | H15: $30.12 | I15: 3.92E+08 | J15: =IFERROR(LOOKUP(2,1/((D$2:D22023=D15)*(A$2:A22023<A15)),H$2:H22023),"") ->  | K15: =IF(J15 = "", 0, (H15/J15) - 1) -> 0.00% | L15: =VLOOKUP(D15, symbole!$A$2:$D$15, 4, FALSE) -> akcje
A16: =A15+1 -> 15 | B16: =(C16/86400)+DATE(1970,1,1) -> 2022-01-03T14:30:00 | C16: 1641220200 | D16: GOOGL | E16: $145.06 | F16: $145.85 | G16: $143.71 | H16: $144.99 | I16: 2.87E+07 | J16: =IFERROR(LOOKUP(2,1/((D$2:D22023=D16)*(A$2:A22023<A16)),H$2:H22023),"") ->  | K16: =IF(J16 = "", 0, (H16/J16) - 1) -> 0.00% | L16: =VLOOKUP(D16, symbole!$A$2:$D$15, 4, FALSE) -> akcje
A17: =A16+1 -> 16 | B17: =(C17/86400)+DATE(1970,1,1) -> 2022-01-03T14:30:00 | C17: 1641220200 | D17: MSFT | E17: $335.35 | F17: $338.00 | G17: $329.78 | H17: $334.75 | I17: 2.89E+07 | J17: =IFERROR(LOOKUP(2,1/((D$2:D22023=D17)*(A$2:A22023<A17)),H$2:H22023),"") ->  | K17: =IF(J17 = "", 0, (H17/J17) - 1) -> 0.00% | L17: =VLOOKUP(D17, symbole!$A$2:$D$15, 4, FALSE) -> akcje
A18: =A17+1 -> 17 | B18: =(C18/86400)+DATE(1970,1,1) -> 2022-01-04 | C18: 1641254400 | D18: BTCUSD | E18: $46,464.01 | F18: $47,526.00 | G18: $45,539.05 | H18: $45,820.00 | I18: 1.83E+03 | J18: =IFERROR(LOOKUP(2,1/((D$2:D22023=D18)*(A$2:A22023<A18)),H$2:H22023),"") -> 46439.89 | K18: =IF(J18 = "", 0, (H18/J18) - 1) -> -1.33% | L18: =VLOOKUP(D18, symbole!$A$2:$D$15, 4, FALSE) -> kryptowaluty
A19: =A18+1 -> 18 | B19: =(C19/86400)+DATE(1970,1,1) -> 2022-01-04 | C19: 1641254400 | D19: SOLUSD | E19: $169.92 | F19: $175.46 | G19: $164.05 | H19: $167.73 | I19: 2.29E+05 | J19: =IFERROR(LOOKUP(2,1/((D$2:D22023=D19)*(A$2:A22023<A19)),H$2:H22023),"") -> 170.02 | K19: =IF(J19 = "", 0, (H19/J19) - 1) -> -1.35% | L19: =VLOOKUP(D19, symbole!$A$2:$D$15, 4, FALSE) -> kryptowaluty
A20: =A19+1 -> 19 | B20: =(C20/86400)+DATE(1970,1,1) -> 2022-01-04 | C20: 1641254400 | D20: ETHUSD | E20: $3,770.63 | F20: $3,892.36 | G20: $3,715.02 | H20: $3,786.64 | I20: 1.15E+04 | J20: =IFERROR(LOOKUP(2,1/((D$2:D22023=D20)*(A$2:A22023<A20)),H$2:H22023),"") -> 3764.9 | K20: =IF(J20 = "", 0, (H20/J20) - 1) -> 0.58% | L20: =VLOOKUP(D20, symbole!$A$2:$D$15, 4, FALSE) -> kryptowaluty
A21: =A20+1 -> 20 | B21: =(C21/86400)+DATE(1970,1,1) -> 2022-01-04 | C21: 1641254400 | D21: DOGEUSDT | E21: $0.17 | F21: $0.17 | G21: $0.17 | H21: $0.17 | I21: 4.96E+08 | J21: =IFERROR(LOOKUP(2,1/((D$2:D22023=D21)*(A$2:A22023<A21)),H$2:H22023),"") -> 0.1703 | K21: =IF(J21 = "", 0, (H21/J21) - 1) -> -1.12% | L21: =VLOOKUP(D21, symbole!$A$2:$D$15, 4, FALSE) -> kryptowaluty
A22: =A21+1 -> 21 | B22: =(C22/86400)+DATE(1970,1,1) -> 2022-01-04T14:30:00 | C22: 1641306600 | D22: NVDA | E22: $30.28 | F22: $30.47 | G22: $28.35 | H22: $29.29 | I22: 5.27E+08 | J22: =IFERROR(LOOKUP(2,1/((D$2:D22023=D22)*(A$2:A22023<A22)),H$2:H22023),"") -> 30.121 | K22: =IF(J22 = "", 0, (H22/J22) - 1) -> -2.76% | L22: =VLOOKUP(D22, symbole!$A$2:$D$15, 4, FALSE) -> akcje
A23: =A22+1 -> 22 | B23: =(C23/86400)+DATE(1970,1,1) -> 2022-01-04T14:30:00 | C23: 1641306600 | D23: MSFT | E23: $334.83 | F23: $335.20 | G23: $326.12 | H23: $329.01 | I23: 3.27E+07 | J23: =IFERROR(LOOKUP(2,1/((D$2:D22023=D23)*(A$2:A22023<A23)),H$2:H22023),"") -> 334.75 | K23: =IF(J23 = "", 0, (H23/J23) - 1) -> -1.71% | L23: =VLOOKUP(D23, symbole!$A$2:$D$15, 4, FALSE) -> akcje
A24: =A23+1 -> 23 | B24: =(C24/86400)+DATE(1970,1,1) -> 2022-01-04T14:30:00 | C24: 1641306600 | D24: GOOGL | E24: $145.40 | F24: $146.48 | G24: $143.72 | H24: $144.40 | I24: 2.84E+07 | J24: =IFERROR(LOOKUP(2,1/((D$2:D22023=D24)*(A$2:A22023<A24)),H$2:H22023),"") -> 144.9915 | K24: =IF(J24 = "", 0, (H24/J24) - 1) -> -0.41% | L24: =VLOOKUP(D24, symbole!$A$2:$D$15, 4, FALSE) -> akcje
A25: =A24+1 -> 24 | B25: =(C25/86400)+DATE(1970,1,1) -> 2022-01-04T14:30:00 | C25: 1641306600 | D25: META | E25: $339.95 | F25: $343.09 | G25: $331.87 | H25: $336.53 | I25: 1.60E+07 | J25: =IFERROR(LOOKUP(2,1/((D$2:D22023=D25)*(A$2:A22023<A25)),H$2:H22023),"") -> 338.54 | K25: =IF(J25 = "", 0, (H25/J25) - 1) -> -0.59% | L25: =VLOOKUP(D25, symbole!$A$2:$D$15, 4, FALSE) -> akcje
A26: =A25+1 -> 25 | B26: =(C26/86400)+DATE(1970,1,1) -> 2022-01-05 | C26: 1641340800 | D26: SOLUSD | E26: $167.97 | F26: $172.50 | G26: $145.13 | H26: $154.52 | I26: 2.81E+05 | J26: =IFERROR(LOOKUP(2,1/((D$2:D22023=D26)*(A$2:A22023<A26)),H$2:H22023),"") -> 167.73 | K26: =IF(J26 = "", 0, (H26/J26) - 1) -> -7.88% | L26: =VLOOKUP(D26, symbole!$A$2:$D$15, 4, FALSE) -> kryptowaluty
A27: =A26+1 -> 26 | B27: =(C27/86400)+DATE(1970,1,1) -> 2022-01-05 | C27: 1641340800 | D27: DOGEUSDT | E27: $0.17 | F27: $0.17 | G27: $0.15 | H27: $0.16 | I27: 1.08E+09 | J27: =IFERROR(LOOKUP(2,1/((D$2:D22023=D27)*(A$2:A22023<A27)),H$2:H22023),"") -> 0.1684 | K27: =IF(J27 = "", 0, (H27/J27) - 1) -> -5.58% | L27: =VLOOKUP(D27, symbole!$A$2:$D$15, 4, FALSE) -> kryptowaluty
A28: =A27+1 -> 27 | B28: =(C28/86400)+DATE(1970,1,1) -> 2022-01-05 | C28: 1641340800 | D28: BTCUSD | E28: $45,828.77 | F28: $46,855.06 | G28: $42,413.59 | H28: $43,435.80 | I28: 3.40E+03 | J28: =IFERROR(LOOKUP(2,1/((D$2:D22023=D28)*(A$2:A22023<A28)),H$2:H22023),"") -> 45820 | K28: =IF(J28 = "", 0, (H28/J28) - 1) -> -5.20% | L28: =VLOOKUP(D28, symbole!$A$2:$D$15, 4, FALSE) -> kryptowaluty
A29: =A28+1 -> 28 | B29: =(C29/86400)+DATE(1970,1,1) -> 2022-01-05 | C29: 1641340800 | D29: ETHUSD | E29: $3,786.66 | F29: $3,837.01 | G29: $3,410.22 | H29: $3,538.66 | I29: 2.50E+04 | J29: =IFERROR(LOOKUP(2,1/((D$2:D22023=D29)*(A$2:A22023<A29)),H$2:H22023),"") -> 3786.64 | K29: =IF(J29 = "", 0, (H29/J29) - 1) -> -6.55% | L29: =VLOOKUP(D29, symbole!$A$2:$D$15, 4, FALSE) -> kryptowaluty
A30: =A29+1 -> 29 | B30: =(C30/86400)+DATE(1970,1,1) -> 2022-01-05T14:30:00 | C30: 1641393000 | D30: GOOGL | E30: $144.42 | F30: $144.50 | G30: $137.69 | H30: $137.78 | I30: 5.46E+07 | J30: =IFERROR(LOOKUP(2,1/((D$2:D22023=D30)*(A$2:A22023<A30)),H$2:H22023),"") -> 144.3995 | K30: =IF(J30 = "", 0, (H30/J30) - 1) -> -4.59% | L30: =VLOOKUP(D30, symbole!$A$2:$D$15, 4, FALSE) -> akcje
A31: =A30+1 -> 30 | B31: =(C31/86400)+DATE(1970,1,1) -> 2022-01-05T14:30:00 | C31: 1641393000 | D31: META | E31: $333.02 | F31: $335.76 | G31: $323.84 | H31: $324.17 | I31: 2.06E+07 | J31: =IFERROR(LOOKUP(2,1/((D$2:D22023=D31)*(A$2:A22023<A31)),H$2:H22023),"") -> 336.53 | K31: =IF(J31 = "", 0, (H31/J31) - 1) -> -3.67% | L31: =VLOOKUP(D31, symbole!$A$2:$D$15, 4, FALSE) -> akcje
A32: =A31+1 -> 31 | B32: =(C32/86400)+DATE(1970,1,1) -> 2022-01-05T14:30:00 | C32: 1641393000 | D32: MSFT | E32: $325.86 | F32: $326.07 | G32: $315.98 | H32: $316.38 | I32: 4.01E+07 | J32: =IFERROR(LOOKUP(2,1/((D$2:D22023=D32)*(A$2:A22023<A32)),H$2:H22023),"") -> 329.01 | K32: =IF(J32 = "", 0, (H32/J32) - 1) -> -3.84% | L32: =VLOOKUP(D32, symbole!$A$2:$D$15, 4, FALSE) -> akcje
A33: =A32+1 -> 32 | B33: =(C33/86400)+DATE(1970,1,1) -> 2022-01-05T14:30:00 | C33: 1641393000 | D33: NVDA | E33: $28.95 | F33: $29.42 | G33: $27.53 | H33: $27.60 | I33: 4.98E+08 | J33: =IFERROR(LOOKUP(2,1/((D$2:D22023=D33)*(A$2:A22023<A33)),H$2:H22023),"") -> 29.29 | K33: =IF(J33 = "", 0, (H33/J33) - 1) -> -5.76% | L33: =VLOOKUP(D33, symbole!$A$2:$D$15, 4, FALSE) -> akcje
A34: =A33+1 -> 33 | B34: =(C34/86400)+DATE(1970,1,1) -> 2022-01-06 | C34: 1641427200 | D34: DOGEUSDT | E34: $0.16 | F34: $0.16 | G34: $0.15 | H34: $0.16 | I34: 7.06E+08 | J34: =IFERROR(LOOKUP(2,1/((D$2:D22023=D34)*(A$2:A22023<A34)),H$2:H22023),"") -> 0.159 | K34: =IF(J34 = "", 0, (H34/J34) - 1) -> 0.57% | L34: =VLOOKUP(D34, symbole!$A$2:$D$15, 4, FALSE) -> kryptowaluty
A35: =A34+1 -> 34 | B35: =(C35/86400)+DATE(1970,1,1) -> 2022-01-06 | C35: 1641427200 | D35: BTCUSD | E35: $43,417.31 | F35: $43,782.86 | G35: $42,414.00 | H35: $43,097.60 | I35: 2.45E+03 | J35: =IFERROR(LOOKUP(2,1/((D$2:D22023=D35)*(A$2:A22023<A35)),H$2:H22023),"") -> 43435.8 | K35: =IF(J35 = "", 0, (H35/J35) - 1) -> -0.78% | L35: =VLOOKUP(D35, symbole!$A$2:$D$15, 4, FALSE) -> kryptowaluty
A36: =A35+1 -> 35 | B36: =(C36/86400)+DATE(1970,1,1) -> 2022-01-06 | C36: 1641427200 | D36: SOLUSD | E36: $154.63 | F36: $156.08 | G36: $145.69 | H36: $150.32 | I36: 2.31E+05 | J36: =IFERROR(LOOKUP(2,1/((D$2:D22023=D36)*(A$2:A22023<A36)),H$2:H22023),"") -> 154.52 | K36: =IF(J36 = "", 0, (H36/J36) - 1) -> -2.72% | L36: =VLOOKUP(D36, symbole!$A$2:$D$15, 4, FALSE) -> kryptowaluty
A37: =A36+1 -> 36 | B37: =(C37/86400)+DATE(1970,1,1) -> 2022-01-06 | C37: 1641427200 | D37: ETHUSD | E37: $3,537.82 | F37: $3,549.04 | G37: $3,299.00 | H37: $3,408.35 | I37: 2.82E+04 | J37: =IFERROR(LOOKUP(2,1/((D$2:D22023=D37)*(A$2:A22023<A37)),H$2:H22023),"") -> 3538.66 | K37: =IF(J37 = "", 0, (H37/J37) - 1) -> -3.68% | L37: =VLOOKUP(D37, symbole!$A$2:$D$15, 4, FALSE) -> kryptowaluty
A38: =A37+1 -> 37 | B38: =(C38/86400)+DATE(1970,1,1) -> 2022-01-06T14:30:00 | C38: 1641479400 | D38: GOOGL | E38: $137.00 | F38: $139.94 | G38: $136.56 | H38: $137.75 | I38: 3.73E+07 | J38: =IFERROR(LOOKUP(2,1/((D$2:D22023=D38)*(A$2:A22023<A38)),H$2:H22023),"") -> 137.775 | K38: =IF(J38 = "", 0, (H38/J38) - 1) -> -0.02% | L38: =VLOOKUP(D38, symbole!$A$2:$D$15, 4, FALSE) -> akcje
A39: =A38+1 -> 38 | B39: =(C39/86400)+DATE(1970,1,1) -> 2022-01-06T14:30:00 | C39: 1641479400 | D39: NVDA | E39: $27.64 | F39: $28.44 | G39: $27.07 | H39: $28.18 | I39: 4.54E+08 | J39: =IFERROR(LOOKUP(2,1/((D$2:D22023=D39)*(A$2:A22023<A39)),H$2:H22023),"") -> 27.604 | K39: =IF(J39 = "", 0, (H39/J39) - 1) -> 2.08% | L39: =VLOOKUP(D39, symbole!$A$2:$D$15, 4, FALSE) -> akcje
A40: =A39+1 -> 39 | B40: =(C40/86400)+DATE(1970,1,1) -> 2022-01-06T14:30:00 | C40: 1641479400 | D40: META | E40: $322.82 | F40: $339.17 | G40: $322.72 | H40: $332.46 | I40: 2.80E+07 | J40: =IFERROR(LOOKUP(2,1/((D$2:D22023=D40)*(A$2:A22023<A40)),H$2:H22023),"") -> 324.17 | K40: =IF(J40 = "", 0, (H40/J40) - 1) -> 2.56% | L40: =VLOOKUP(D40, symbole!$A$2:$D$15, 4, FALSE) -> akcje
A41: =A40+1 -> 40 | B41: =(C41/86400)+DATE(1970,1,1) -> 2022-01-06T14:30:00 | C41: 1641479400 | D41: MSFT | E41: $313.15 | F41: $318.70 | G41: $311.49 | H41: $313.88 | I41: 3.96E+07 | J41: =IFERROR(LOOKUP(2,1/((D$2:D22023=D41)*(A$2:A22023<A41)),H$2:H22023),"") -> 316.38 | K41: =IF(J41 = "", 0, (H41/J41) - 1) -> -0.79% | L41: =VLOOKUP(D41, symbole!$A$2:$D$15, 4, FALSE) -> akcje
A42: =A41+1 -> 41 | B42: =(C42/86400)+DATE(1970,1,1) -> 2022-01-07 | C42: 1641513600 | D42: ETHUSD | E42: $3,407.72 | F42: $3,415.27 | G42: $3,060.93 | H42: $3,196.03 | I42: 2.21E+04 | J42: =IFERROR(LOOKUP(2,1/((D$2:D22023=D42)*(A$2:A22023<A42)),H$2:H22023),"") -> 3408.35 | K42: =IF(J42 = "", 0, (H42/J42) - 1) -> -6.23% | L42: =VLOOKUP(D42, symbole!$A$2:$D$15, 4, FALSE) -> kryptowaluty
A43: =A42+1 -> 42 | B43: =(C43/86400)+DATE(1970,1,1) -> 2022-01-07 | C43: 1641513600 | D43: SOLUSD | E43: $150.10 | F43: $150.67 | G43: $132.86 | H43: $136.40 | I43: 3.61E+05 | J43: =IFERROR(LOOKUP(2,1/((D$2:D22023=D43)*(A$2:A22023<A43)),H$2:H22023),"") -> 150.32 | K43: =IF(J43 = "", 0, (H43/J43) - 1) -> -9.26% | L43: =VLOOKUP(D43, symbole!$A$2:$D$15, 4, FALSE) -> kryptowaluty
A44: =A43+1 -> 43 | B44: =(C44/86400)+DATE(1970,1,1) -> 2022-01-07 | C44: 1641513600 | D44: BTCUSD | E44: $43,093.40 | F44: $43,135.35 | G44: $40,600.00 | H44: $41,535.66 | I44: 2.98E+03 | J44: =IFERROR(LOOKUP(2,1/((D$2:D22023=D44)*(A$2:A22023<A44)),H$2:H22023),"") -> 43097.6 | K44: =IF(J44 = "", 0, (H44/J44) - 1) -> -3.62% | L44: =VLOOKUP(D44, symbole!$A$2:$D$15, 4, FALSE) -> kryptowaluty
A45: =A44+1 -> 44 | B45: =(C45/86400)+DATE(1970,1,1) -> 2022-01-07 | C45: 1641513600 | D45: DOGEUSDT | E45: $0.16 | F45: $0.16 | G45: $0.15 | H45: $0.16 | I45: 1.08E+09 | J45: =IFERROR(LOOKUP(2,1/((D$2:D22023=D45)*(A$2:A22023<A45)),H$2:H22023),"") -> 0.1599 | K45: =IF(J45 = "", 0, (H45/J45) - 1) -> -3.06% | L45: =VLOOKUP(D45, symbole!$A$2:$D$15, 4, FALSE) -> kryptowaluty
A46: =A45+1 -> 45 | B46: 2022-01-07T14:30:00 | C46: 1641565800 | D46: META | E46: $332.74 | F46: $337.00 | G46: $328.88 | H46: $331.79 | I46: 1.47E+07 | J46: =IFERROR(LOOKUP(2,1/((D$2:D22023=D46)*(A$2:A22023<A46)),H$2:H22023),"") -> 332.46 | K46: -0.20% | L46: =VLOOKUP(D46, symbole!$A$2:$D$15, 4, FALSE) -> akcje
A47: =A46+1 -> 46 | B47: 2022-01-07T14:30:00 | C47: 1641565800 | D47: NVDA | E47: $28.14 | F47: $28.42 | G47: $27.06 | H47: $27.25 | I47: 4.10E+08 | J47: =IFERROR(LOOKUP(2,1/((D$2:D22023=D47)*(A$2:A22023<A47)),H$2:H22023),"") -> 28.178 | K47: -3.30% | L47: =VLOOKUP(D47, symbole!$A$2:$D$15, 4, FALSE) -> akcje
A48: =A47+1 -> 47 | B48: 2022-01-07T14:30:00 | C48: 1641565800 | D48: GOOGL | E48: $138.15 | F48: $138.45 | G48: $135.77 | H48: $137.02 | I48: 2.98E+07 | J48: =IFERROR(LOOKUP(2,1/((D$2:D22023=D48)*(A$2:A22023<A48)),H$2:H22023),"") -> 137.7475 | K48: -0.53% | L48: =VLOOKUP(D48, symbole!$A$2:$D$15, 4, FALSE) -> akcje
A49: =A48+1 -> 48 | B49: 2022-01-07T14:30:00 | C49: 1641565800 | D49: MSFT | E49: $314.15 | F49: $316.50 | G49: $310.09 | H49: $314.04 | I49: 3.27E+07 | J49: =IFERROR(LOOKUP(2,1/((D$2:D22023=D49)*(A$2:A22023<A49)),H$2:H22023),"") -> 313.88 | K49: 0.05% | L49: =VLOOKUP(D49, symbole!$A$2:$D$15, 4, FALSE) -> akcje
A50: =A49+1 -> 49 | B50: 2022-01-08 | C50: 1641600000 | D50: DOGEUSDT | E50: $0.16 | F50: $0.16 | G50: $0.15 | H50: $0.15 | I50: 5.82E+08 | J50: =IFERROR(LOOKUP(2,1/((D$2:D22023=D50)*(A$2:A22023<A50)),H$2:H22023),"") -> 0.155 | K50: -2.65% | L50: =VLOOKUP(D50, symbole!$A$2:$D$15, 4, FALSE) -> kryptowaluty
A51: =A50+1 -> 50 | B51: 2022-01-08 | C51: 1641600000 | D51: SOLUSD | E51: $136.61 | F51: $148.76 | G51: $132.53 | H51: $142.19 | I51: 3.83E+05 | J51: =IFERROR(LOOKUP(2,1/((D$2:D22023=D51)*(A$2:A22023<A51)),H$2:H22023),"") -> 136.4 | K51: 4.24% | L51: =VLOOKUP(D51, symbole!$A$2:$D$15, 4, FALSE) -> kryptowaluty
A52: =A51+1 -> 51 | B52: 2022-01-08 | C52: 1641600000 | D52: ETHUSD | E52: $3,205.63 | F52: $3,247.97 | G52: $2,987.60 | H52: $3,081.09 | I52: 1.39E+04 | J52: =IFERROR(LOOKUP(2,1/((D$2:D22023=D52)*(A$2:A22023<A52)),H$2:H22023),"") -> 3196.03 | K52: -3.60% | L52: =VLOOKUP(D52, symbole!$A$2:$D$15, 4, FALSE) -> kryptowaluty
A53: 52 | B53: 2022-01-08 | C53: 1641600000 | D53: BTCUSD | E53: $41,576.73 | F53: $42,315.31 | G53: $40,517.05 | H53: $41,690.77 | I53: 1.58E+03 | J53: =IFERROR(LOOKUP(2,1/((D$2:D22023=D53)*(A$2:A22023<A53)),H$2:H22023),"") -> 41535.66 | K53: 0.37% | L53: =VLOOKUP(D53, symbole!$A$2:$D$15, 4, FALSE) -> kryptowaluty
A54: 53 | B54: 2022-01-09 | C54: 1641686400 | D54: SOLUSD | E54: $142.13 | F54: $148.78 | G54: $137.38 | H54: $140.85 | I54: 2.39E+05 | J54: =IFERROR(LOOKUP(2,1/((D$2:D22023=D54)*(A$2:A22023<A54)),H$2:H22023),"") -> 142.19 | K54: -0.94% | L54: =VLOOKUP(D54, symbole!$A$2:$D$15, 4, FALSE) -> kryptowaluty
A55: 54 | B55: 2022-01-09 | C55: 1641686400 | D55: BTCUSD | E55: $41,697.32 | F55: $42,796.49 | G55: $41,200.00 | H55: $41,875.81 | I55: 1.53E+03 | J55: =IFERROR(LOOKUP(2,1/((D$2:D22023=D55)*(A$2:A22023<A55)),H$2:H22023),"") -> 41690.77 | K55: 0.44% | L55: =VLOOKUP(D55, symbole!$A$2:$D$15, 4, FALSE) -> kryptowaluty
A56: 55 | B56: 2022-01-09 | C56: 1641686400 | D56: ETHUSD | E56: $3,081.16 | F56: $3,212.50 | G56: $3,058.76 | H56: $3,151.58 | I56: 8.93E+03 | J56: =IFERROR(LOOKUP(2,1/((D$2:D22023=D56)*(A$2:A22023<A56)),H$2:H22023),"") -> 3081.09 | K56: 2.29% | L56: =VLOOKUP(D56, symbole!$A$2:$D$15, 4, FALSE) -> kryptowaluty
A57: 56 | B57: 2022-01-09 | C57: 1641686400 | D57: DOGEUSDT | E57: $0.15 | F57: $0.15 | G57: $0.15 | H57: $0.15 | I57: 3.81E+08 | J57: =IFERROR(LOOKUP(2,1/((D$2:D22023=D57)*(A$2:A22023<A57)),H$2:H22023),"") -> 0.1509 | K57: -0.27% | L57: =VLOOKUP(D57, symbole!$A$2:$D$15, 4, FALSE) -> kryptowaluty
A58: 57 | B58: 2022-01-10 | C58: 1641772800 | D58: BTCUSD | E58: $41,853.98 | F58: $42,256.55 | G58: $39,558.70 | H58: $41,845.42 | I58: 3.49E+03 | J58: =IFERROR(LOOKUP(2,1/((D$2:D22023=D58)*(A$2:A22023<A58)),H$2:H22023),"") -> 41875.81 | K58: -0.07% | L58: =VLOOKUP(D58, symbole!$A$2:$D$15, 4, FALSE) -> kryptowaluty
A59: 58 | B59: 2022-01-10 | C59: 1641772800 | D59: DOGEUSDT | E59: $0.15 | F59: $0.15 | G59: $0.14 | H59: $0.14 | I59: 8.45E+08 | J59: =IFERROR(LOOKUP(2,1/((D$2:D22023=D59)*(A$2:A22023<A59)),H$2:H22023),"") -> 0.1505 | K59: -4.92% | L59: =VLOOKUP(D59, symbole!$A$2:$D$15, 4, FALSE) -> kryptowaluty
A60: 59 | B60: 2022-01-10 | C60: 1641772800 | D60: SOLUSD | E60: $140.91 | F60: $144.23 | G60: $127.79 | H60: $136.00 | I60: 2.82E+05 | J60: =IFERROR(LOOKUP(2,1/((D$2:D22023=D60)*(A$2:A22023<A60)),H$2:H22023),"") -> 140.85 | K60: -3.44% | L60: =VLOOKUP(D60, symbole!$A$2:$D$15, 4, FALSE) -> kryptowaluty
A61: 60 | B61: 2022-01-10 | C61: 1641772800 | D61: ETHUSD | E61: $3,151.66 | F61: $3,180.69 | G61: $2,926.00 | H61: $3,083.16 | I61: 1.93E+04 | J61: =IFERROR(LOOKUP(2,1/((D$2:D22023=D61)*(A$2:A22023<A61)),H$2:H22023),"") -> 3151.58 | K61: -2.17% | L61: =VLOOKUP(D61, symbole!$A$2:$D$15, 4, FALSE) -> kryptowaluty
A62: 61 | B62: 2022-01-10T14:30:00 | C62: 1641825000 | D62: NVDA | E62: $26.58 | F62: $27.47 | G62: $25.64 | H62: $27.40 | I62: 5.95E+08 | J62: =IFERROR(LOOKUP(2,1/((D$2:D22023=D62)*(A$2:A22023<A62)),H$2:H22023),"") -> 27.247 | K62: 0.56% | L62: =VLOOKUP(D62, symbole!$A$2:$D$15, 4, FALSE) -> akcje
A63: 62 | B63: 2022-01-10T14:30:00 | C63: 1641825000 | D63: GOOGL | E63: $135.08 | F63: $138.82 | G63: $133.16 | H63: $138.67 | I63: 4.44E+07 | J63: =IFERROR(LOOKUP(2,1/((D$2:D22023=D63)*(A$2:A22023<A63)),H$2:H22023),"") -> 137.017 | K63: 1.21% | L63: =VLOOKUP(D63, symbole!$A$2:$D$15, 4, FALSE) -> akcje
A64: 63 | B64: 2022-01-10T14:30:00 | C64: 1641825000 | D64: META | E64: $325.31 | F64: $328.34 | G64: $315.43 | H64: $328.07 | I64: 2.49E+07 | J64: =IFERROR(LOOKUP(2,1/((D$2:D22023=D64)*(A$2:A22023<A64)),H$2:H22023),"") -> 331.79 | K64: -1.12% | L64: =VLOOKUP(D64, symbole!$A$2:$D$15, 4, FALSE) -> akcje
A65: 64 | B65: 2022-01-10T14:30:00 | C65: 1641825000 | D65: MSFT | E65: $309.49 | F65: $314.72 | G65: $304.69 | H65: $314.27 | I65: 4.43E+07 | J65: =IFERROR(LOOKUP(2,1/((D$2:D22023=D65)*(A$2:A22023<A65)),H$2:H22023),"") -> 314.04 | K65: 0.07% | L65: =VLOOKUP(D65, symbole!$A$2:$D$15, 4, FALSE) -> akcje
A66: 65 | B66: 2022-01-11 | C66: 1641859200 | D66: ETHUSD | E66: $3,084.94 | F66: $3,267.67 | G66: $3,052.28 | H66: $3,242.74 | I66: 1.70E+04 | J66: =IFERROR(LOOKUP(2,1/((D$2:D22023=D66)*(A$2:A22023<A66)),H$2:H22023),"") -> 3083.16 | K66: 5.18% | L66: =VLOOKUP(D66, symbole!$A$2:$D$15, 4, FALSE) -> kryptowaluty
A67: 66 | B67: 2022-01-11 | C67: 1641859200 | D67: DOGEUSDT | E67: $0.14 | F67: $0.17 | G67: $0.14 | H67: $0.15 | I67: 1.69E+09 | J67: =IFERROR(LOOKUP(2,1/((D$2:D22023=D67)*(A$2:A22023<A67)),H$2:H22023),"") -> 0.1431 | K67: 7.48% | L67: =VLOOKUP(D67, symbole!$A$2:$D$15, 4, FALSE) -> kryptowaluty
A68: 67 | B68: 2022-01-11 | C68: 1641859200 | D68: BTCUSD | E68: $41,842.22 | F68: $43,144.74 | G68: $41,284.11 | H68: $42,736.00 | I68: 2.44E+03 | J68: =IFERROR(LOOKUP(2,1/((D$2:D22023=D68)*(A$2:A22023<A68)),H$2:H22023),"") -> 41845.42 | K68: 2.13% | L68: =VLOOKUP(D68, symbole!$A$2:$D$15, 4, FALSE) -> kryptowaluty
A69: 68 | B69: 2022-01-11 | C69: 1641859200 | D69: SOLUSD | E69: $135.89 | F69: $144.52 | G69: $132.45 | H69: $140.22 | I69: 2.06E+05 | J69: =IFERROR(LOOKUP(2,1/((D$2:D22023=D69)*(A$2:A22023<A69)),H$2:H22023),"") -> 136 | K69: 3.10% | L69: =VLOOKUP(D69, symbole!$A$2:$D$15, 4, FALSE) -> kryptowaluty
A70: 69 | B70: 2022-01-11T14:30:00 | C70: 1641911400 | D70: MSFT | E70: $313.38 | F70: $316.61 | G70: $309.89 | H70: $314.98 | I70: 2.94E+07 | J70: =IFERROR(LOOKUP(2,1/((D$2:D22023=D70)*(A$2:A22023<A70)),H$2:H22023),"") -> 314.27 | K70: 0.23% | L70: =VLOOKUP(D70, symbole!$A$2:$D$15, 4, FALSE) -> akcje
A71: 70 | B71: 2022-01-11T14:30:00 | C71: 1641911400 | D71: GOOGL | E71: $138.01 | F71: $140.22 | G71: $136.69 | H71: $139.74 | I71: 2.87E+07 | J71: =IFERROR(LOOKUP(2,1/((D$2:D22023=D71)*(A$2:A22023<A71)),H$2:H22023),"") -> 138.6695 | K71: 0.77% | L71: =VLOOKUP(D71, symbole!$A$2:$D$15, 4, FALSE) -> akcje
A72: 71 | B72: 2022-01-11T14:30:00 | C72: 1641911400 | D72: NVDA | E72: $27.32 | F72: $28.07 | G72: $26.84 | H72: $27.82 | I72: 4.04E+08 | J72: =IFERROR(LOOKUP(2,1/((D$2:D22023=D72)*(A$2:A22023<A72)),H$2:H22023),"") -> 27.4 | K72: 1.52% | L72: =VLOOKUP(D72, symbole!$A$2:$D$15, 4, FALSE) -> akcje
A73: 72 | B73: 2022-01-11T14:30:00 | C73: 1641911400 | D73: META | E73: $326.78 | F73: $334.63 | G73: $325.28 | H73: $334.37 | I73: 1.62E+07 | J73: =IFERROR(LOOKUP(2,1/((D$2:D22023=D73)*(A$2:A22023<A73)),H$2:H22023),"") -> 328.07 | K73: 1.92% | L73: =VLOOKUP(D73, symbole!$A$2:$D$15, 4, FALSE) -> akcje
A74: 73 | B74: 2022-01-12 | C74: 1641945600 | D74: ETHUSD | E74: $3,241.32 | F74: $3,413.09 | G74: $3,208.02 | H74: $3,374.65 | I74: 2.02E+04 | J74: =IFERROR(LOOKUP(2,1/((D$2:D22023=D74)*(A$2:A22023<A74)),H$2:H22023),"") -> 3242.74 | K74: 4.07% | L74: =VLOOKUP(D74, symbole!$A$2:$D$15, 4, FALSE) -> kryptowaluty
A75: 74 | B75: 2022-01-12 | C75: 1641945600 | D75: BTCUSD | E75: $42,754.44 | F75: $44,337.26 | G75: $42,471.17 | H75: $43,933.50 | I75: 2.50E+03 | J75: =IFERROR(LOOKUP(2,1/((D$2:D22023=D75)*(A$2:A22023<A75)),H$2:H22023),"") -> 42736 | K75: 2.80% | L75: =VLOOKUP(D75, symbole!$A$2:$D$15, 4, FALSE) -> kryptowaluty
A76: 75 | B76: 2022-01-12 | C76: 1641945600 | D76: SOLUSD | E76: $140.40 | F76: $155.44 | G76: $138.18 | H76: $151.60 | I76: 3.65E+05 | J76: =IFERROR(LOOKUP(2,1/((D$2:D22023=D76)*(A$2:A22023<A76)),H$2:H22023),"") -> 140.22 | K76: 8.12% | L76: =VLOOKUP(D76, symbole!$A$2:$D$15, 4, FALSE) -> kryptowaluty
A77: 76 | B77: 2022-01-12 | C77: 1641945600 | D77: DOGEUSDT | E77: $0.15 | F77: $0.16 | G77: $0.15 | H77: $0.16 | I77: 9.11E+08 | J77: =IFERROR(LOOKUP(2,1/((D$2:D22023=D77)*(A$2:A22023<A77)),H$2:H22023),"") -> 0.1538 | K77: 5.85% | L77: =VLOOKUP(D77, symbole!$A$2:$D$15, 4, FALSE) -> kryptowaluty
A78: 77 | B78: 2022-01-12T14:30:00 | C78: 1641997800 | D78: GOOGL | E78: $141.15 | F78: $142.61 | G78: $140.69 | H78: $141.43 | I78: 2.61E+07 | J78: =IFERROR(LOOKUP(2,1/((D$2:D22023=D78)*(A$2:A22023<A78)),H$2:H22023),"") -> 139.736 | K78: 1.21% | L78: =VLOOKUP(D78, symbole!$A$2:$D$15, 4, FALSE) -> akcje
A79: 78 | B79: 2022-01-12T14:30:00 | C79: 1641997800 | D79: NVDA | E79: $28.07 | F79: $28.60 | G79: $27.61 | H79: $28.00 | I79: 3.83E+08 | J79: =IFERROR(LOOKUP(2,1/((D$2:D22023=D79)*(A$2:A22023<A79)),H$2:H22023),"") -> 27.817 | K79: 0.65% | L79: =VLOOKUP(D79, symbole!$A$2:$D$15, 4, FALSE) -> akcje
A80: 79 | B80: 2022-01-12T14:30:00 | C80: 1641997800 | D80: MSFT | E80: $319.67 | F80: $323.41 | G80: $317.08 | H80: $318.27 | I80: 3.44E+07 | J80: =IFERROR(LOOKUP(2,1/((D$2:D22023=D80)*(A$2:A22023<A80)),H$2:H22023),"") -> 314.98 | K80: 1.04% | L80: =VLOOKUP(D80, symbole!$A$2:$D$15, 4, FALSE) -> akcje
A81: 80 | B81: 2022-01-12T14:30:00 | C81: 1641997800 | D81: META | E81: $335.18 | F81: $336.37 | G81: $330.03 | H81: $333.26 | I81: 1.41E+07 | J81: =IFERROR(LOOKUP(2,1/((D$2:D22023=D81)*(A$2:A22023<A81)),H$2:H22023),"") -> 334.37 | K81: -0.33% | L81: =VLOOKUP(D81, symbole!$A$2:$D$15, 4, FALSE) -> akcje
A82: 81 | B82: 2022-01-13 | C82: 1642032000 | D82: ETHUSD | E82: $3,372.33 | F82: $3,412.76 | G82: $3,230.70 | H82: $3,241.82 | I82: 2.17E+04 | J82: =IFERROR(LOOKUP(2,1/((D$2:D22023=D82)*(A$2:A22023<A82)),H$2:H22023),"") -> 3374.65 | K82: -3.94% | L82: =VLOOKUP(D82, symbole!$A$2:$D$15, 4, FALSE) -> kryptowaluty
A83: 82 | B83: 2022-01-13 | C83: 1642032000 | D83: DOGEUSDT | E83: $0.16 | F83: $0.18 | G83: $0.16 | H83: $0.17 | I83: 2.12E+09 | J83: =IFERROR(LOOKUP(2,1/((D$2:D22023=D83)*(A$2:A22023<A83)),H$2:H22023),"") -> 0.1628 | K83: 5.47% | L83: =VLOOKUP(D83, symbole!$A$2:$D$15, 4, FALSE) -> kryptowaluty
A84: 83 | B84: 2022-01-13 | C84: 1642032000 | D84: BTCUSD | E84: $43,935.01 | F84: $44,456.34 | G84: $42,321.00 | H84: $42,571.94 | I84: 2.00E+03 | J84: =IFERROR(LOOKUP(2,1/((D$2:D22023=D84)*(A$2:A22023<A84)),H$2:H22023),"") -> 43933.5 | K84: -3.10% | L84: =VLOOKUP(D84, symbole!$A$2:$D$15, 4, FALSE) -> kryptowaluty
A85: 84 | B85: 2022-01-13 | C85: 1642032000 | D85: SOLUSD | E85: $151.55 | F85: $159.73 | G85: $144.40 | H85: $146.13 | I85: 2.88E+05 | J85: =IFERROR(LOOKUP(2,1/((D$2:D22023=D85)*(A$2:A22023<A85)),H$2:H22023),"") -> 151.6 | K85: -3.61% | L85: =VLOOKUP(D85, symbole!$A$2:$D$15, 4, FALSE) -> kryptowaluty
A86: 85 | B86: 2022-01-13T14:30:00 | C86: 1642084200 | D86: GOOGL | E86: $141.54 | F86: $142.85 | G86: $138.41 | H86: $138.59 | I86: 3.14E+07 | J86: =IFERROR(LOOKUP(2,1/((D$2:D22023=D86)*(A$2:A22023<A86)),H$2:H22023),"") -> 141.4305 | K86: -2.01% | L86: =VLOOKUP(D86, symbole!$A$2:$D$15, 4, FALSE) -> akcje
A87: 86 | B87: 2022-01-13T14:30:00 | C87: 1642084200 | D87: META | E87: $334.98 | F87: $335.63 | G87: $325.76 | H87: $326.48 | I87: 1.48E+07 | J87: =IFERROR(LOOKUP(2,1/((D$2:D22023=D87)*(A$2:A22023<A87)),H$2:H22023),"") -> 333.26 | K87: -2.03% | L87: =VLOOKUP(D87, symbole!$A$2:$D$15, 4, FALSE) -> akcje
A88: 87 | B88: 2022-01-13T14:30:00 | C88: 1642084200 | D88: NVDA | E88: $28.38 | F88: $28.48 | G88: $26.50 | H88: $26.58 | I88: 5.39E+08 | J88: =IFERROR(LOOKUP(2,1/((D$2:D22023=D88)*(A$2:A22023<A88)),H$2:H22023),"") -> 27.999 | K88: -5.09% | L88: =VLOOKUP(D88, symbole!$A$2:$D$15, 4, FALSE) -> akcje
A89: 88 | B89: 2022-01-13T14:30:00 | C89: 1642084200 | D89: MSFT | E89: $320.47 | F89: $320.88 | G89: $304.00 | H89: $304.80 | I89: 4.54E+07 | J89: =IFERROR(LOOKUP(2,1/((D$2:D22023=D89)*(A$2:A22023<A89)),H$2:H22023),"") -> 318.27 | K89: -4.23% | L89: =VLOOKUP(D89, symbole!$A$2:$D$15, 4, FALSE) -> akcje
A90: 89 | B90: 2022-01-14 | C90: 1642118400 | D90: BTCUSD | E90: $42,579.44 | F90: $43,468.95 | G90: $41,782.21 | H90: $43,102.35 | I90: 1.39E+03 | J90: =IFERROR(LOOKUP(2,1/((D$2:D22023=D90)*(A$2:A22023<A90)),H$2:H22023),"") -> 42571.94 | K90: 1.25% | L90: =VLOOKUP(D90, symbole!$A$2:$D$15, 4, FALSE) -> kryptowaluty
A91: 90 | B91: 2022-01-14 | C91: 1642118400 | D91: DOGEUSDT | E91: $0.17 | F91: $0.21 | G91: $0.17 | H91: $0.18 | I91: 5.41E+09 | J91: =IFERROR(LOOKUP(2,1/((D$2:D22023=D91)*(A$2:A22023<A91)),H$2:H22023),"") -> 0.1717 | K91: 6.70% | L91: =VLOOKUP(D91, symbole!$A$2:$D$15, 4, FALSE) -> kryptowaluty
A92: 91 | B92: 2022-01-14 | C92: 1642118400 | D92: SOLUSD | E92: $146.18 | F92: $150.80 | G92: $144.62 | H92: $145.88 | I92: 8.26E+04 | J92: =IFERROR(LOOKUP(2,1/((D$2:D22023=D92)*(A$2:A22023<A92)),H$2:H22023),"") -> 146.13 | K92: -0.17% | L92: =VLOOKUP(D92, symbole!$A$2:$D$15, 4, FALSE) -> kryptowaluty
A93: 92 | B93: 2022-01-14 | C93: 1642118400 | D93: ETHUSD | E93: $3,241.82 | F93: $3,344.31 | G93: $3,188.89 | H93: $3,308.82 | I93: 1.36E+04 | J93: =IFERROR(LOOKUP(2,1/((D$2:D22023=D93)*(A$2:A22023<A93)),H$2:H22023),"") -> 3241.82 | K93: 2.07% | L93: =VLOOKUP(D93, symbole!$A$2:$D$15, 4, FALSE) -> kryptowaluty
A94: 93 | B94: 2022-01-14T14:30:00 | C94: 1642170600 | D94: META | E94: $321.79 | F94: $332.73 | G94: $321.21 | H94: $331.90 | I94: 1.69E+07 | J94: =IFERROR(LOOKUP(2,1/((D$2:D22023=D94)*(A$2:A22023<A94)),H$2:H22023),"") -> 326.48 | K94: 1.66% | L94: =VLOOKUP(D94, symbole!$A$2:$D$15, 4, FALSE) -> akcje
A95: 94 | B95: 2022-01-14T14:30:00 | C95: 1642170600 | D95: GOOGL | E95: $137.08 | F95: $140.74 | G95: $137.00 | H95: $139.48 | I95: 2.97E+07 | J95: =IFERROR(LOOKUP(2,1/((D$2:D22023=D95)*(A$2:A22023<A95)),H$2:H22023),"") -> 138.587 | K95: 0.64% | L95: =VLOOKUP(D95, symbole!$A$2:$D$15, 4, FALSE) -> akcje
A96: 95 | B96: 2022-01-14T14:30:00 | C96: 1642170600 | D96: NVDA | E96: $26.30 | F96: $27.20 | G96: $26.21 | H96: $26.94 | I96: 3.96E+08 | J96: =IFERROR(LOOKUP(2,1/((D$2:D22023=D96)*(A$2:A22023<A96)),H$2:H22023),"") -> 26.575 | K96: 1.38% | L96: =VLOOKUP(D96, symbole!$A$2:$D$15, 4, FALSE) -> akcje
A97: 96 | B97: 2022-01-14T14:30:00 | C97: 1642170600 | D97: MSFT | E97: $304.25 | F97: $310.82 | G97: $303.75 | H97: $310.20 | I97: 3.98E+07 | J97: =IFERROR(LOOKUP(2,1/((D$2:D22023=D97)*(A$2:A22023<A97)),H$2:H22023),"") -> 304.8 | K97: 1.77% | L97: =VLOOKUP(D97, symbole!$A$2:$D$15, 4, FALSE) -> akcje
A98: 97 | B98: 2022-01-15 | C98: 1642204800 | D98: SOLUSD | E98: $146.28 | F98: $149.41 | G98: $144.07 | H98: $147.71 | I98: 1.69E+05 | J98: =IFERROR(LOOKUP(2,1/((D$2:D22023=D98)*(A$2:A22023<A98)),H$2:H22023),"") -> 145.88 | K98: 1.25% | L98: =VLOOKUP(D98, symbole!$A$2:$D$15, 4, FALSE) -> kryptowaluty
A99: 98 | B99: 2022-01-15 | C99: 1642204800 | D99: ETHUSD | E99: $3,311.54 | F99: $3,374.83 | G99: $3,262.94 | H99: $3,329.71 | I99: 7.40E+03 | J99: =IFERROR(LOOKUP(2,1/((D$2:D22023=D99)*(A$2:A22023<A99)),H$2:H22023),"") -> 3308.82 | K99: 0.63% | L99: =VLOOKUP(D99, symbole!$A$2:$D$15, 4, FALSE) -> kryptowaluty
A100: 99 | B100: 2022-01-15 | C100: 1642204800 | D100: BTCUSD | E100: $43,085.76 | F100: $43,826.80 | G100: $42,387.86 | H100: $43,102.01 | I100: 7.08E+02 | J100: =IFERROR(LOOKUP(2,1/((D$2:D22023=D100)*(A$2:A22023<A100)),H$2:H22023),"") -> 43102.35 | K100: -0.00% | L100: =VLOOKUP(D100, symbole!$A$2:$D$15, 4, FALSE) -> kryptowaluty
A101: 100 | B101: 2022-01-15 | C101: 1642204800 | D101: DOGEUSDT | E101: $0.18 | F101: $0.19 | G101: $0.18 | H101: $0.18 | I101: 1.63E+09 | J101: =IFERROR(LOOKUP(2,1/((D$2:D22023=D101)*(A$2:A22023<A101)),H$2:H22023),"") -> 0.1832 | K101: 0.71% | L101: =VLOOKUP(D101, symbole!$A$2:$D$15, 4, FALSE) -> kryptowaluty
A102: 101 | B102: 2022-01-16 | C102: 1642291200 | D102: ETHUSD | E102: $3,328.95 | F102: $3,393.66 | G102: $3,274.92 | H102: $3,350.15 | I102: 8.99E+03 | J102: =IFERROR(LOOKUP(2,1/((D$2:D22023=D102)*(A$2:A22023<A102)),H$2:H22023),"") -> 3329.71 | K102: 0.61% | L102: =VLOOKUP(D102, symbole!$A$2:$D$15, 4, FALSE) -> kryptowaluty
A103: 102 | B103: 2022-01-16 | C103: 1642291200 | D103: DOGEUSDT | E103: $0.18 | F103: $0.18 | G103: $0.17 | H103: $0.18 | I103: 1.07E+09 | J103: =IFERROR(LOOKUP(2,1/((D$2:D22023=D103)*(A$2:A22023<A103)),H$2:H22023),"") -> 0.1845 | K103: -4.28% | L103: =VLOOKUP(D103, symbole!$A$2:$D$15, 4, FALSE) -> kryptowaluty
A104: 103 | B104: 2022-01-16 | C104: 1642291200 | D104: SOLUSD | E104: $147.70 | F104: $152.03 | G104: $146.21 | H104: $148.08 | I104: 1.39E+05 | J104: =IFERROR(LOOKUP(2,1/((D$2:D22023=D104)*(A$2:A22023<A104)),H$2:H22023),"") -> 147.71 | K104: 0.25% | L104: =VLOOKUP(D104, symbole!$A$2:$D$15, 4, FALSE) -> kryptowaluty
A105: 104 | B105: 2022-01-16 | C105: 1642291200 | D105: BTCUSD | E105: $43,084.77 | F105: $43,495.59 | G105: $42,615.00 | H105: $43,107.70 | I105: 6.22E+02 | J105: =IFERROR(LOOKUP(2,1/((D$2:D22023=D105)*(A$2:A22023<A105)),H$2:H22023),"") -> 43102.01 | K105: 0.01% | L105: =VLOOKUP(D105, symbole!$A$2:$D$15, 4, FALSE) -> kryptowaluty
A106: 105 | B106: 2022-01-17 | C106: 1642377600 | D106: ETHUSD | E106: $3,350.15 | F106: $3,360.29 | G106: $3,142.68 | H106: $3,211.22 | I106: 2.38E+04 | J106: =IFERROR(LOOKUP(2,1/((D$2:D22023=D106)*(A$2:A22023<A106)),H$2:H22023),"") -> 3350.15 | K106: -4.15% | L106: =VLOOKUP(D106, symbole!$A$2:$D$15, 4, FALSE) -> kryptowaluty
A107: 106 | B107: 2022-01-17 | C107: 1642377600 | D107: DOGEUSDT | E107: $0.18 | F107: $0.18 | G107: $0.17 | H107: $0.17 | I107: 1.09E+09 | J107: =IFERROR(LOOKUP(2,1/((D$2:D22023=D107)*(A$2:A22023<A107)),H$2:H22023),"") -> 0.1766 | K107: -3.28% | L107: =VLOOKUP(D107, symbole!$A$2:$D$15, 4, FALSE) -> kryptowaluty
A108: 107 | B108: 2022-01-17 | C108: 1642377600 | D108: SOLUSD | E108: $148.17 | F108: $148.37 | G108: $137.23 | H108: $139.92 | I108: 1.74E+05 | J108: =IFERROR(LOOKUP(2,1/((D$2:D22023=D108)*(A$2:A22023<A108)),H$2:H22023),"") -> 148.08 | K108: -5.51% | L108: =VLOOKUP(D108, symbole!$A$2:$D$15, 4, FALSE) -> kryptowaluty
A109: 108 | B109: =(C109/86400)+DATE(1970,1,1) -> 2022-01-17 | C109: 1642377600 | D109: BTCUSD | E109: $43,099.08 | F109: $43,209.47 | G109: $41,581.00 | H109: $42,255.07 | I109: 1.06E+03 | J109: =IFERROR(LOOKUP(2,1/((D$2:D22023=D109)*(A$2:A22023<A109)),H$2:H22023),"") -> 43107.7 | K109: =IF(J109 = "", 0, (H109/J109) - 1) -> -1.98% | L109: =VLOOKUP(D109, symbole!$A$2:$D$15, 4, FALSE) -> kryptowaluty
A110: 109 | B110: 2022-01-18 | C110: 1642464000 | D110: ETHUSD | E110: $3,214.30 | F110: $3,244.27 | G110: $3,083.63 | H110: $3,163.04 | I110: 2.02E+04 | J110: =IFERROR(LOOKUP(2,1/((D$2:D22023=D110)*(A$2:A22023<A110)),H$2:H22023),"") -> 3211.22 | K110: -1.50% | L110: =VLOOKUP(D110, symbole!$A$2:$D$15, 4, FALSE) -> kryptowaluty
A111: 110 | B111: 2022-01-18 | C111: 1642464000 | D111: SOLUSD | E111: $140.05 | F111: $142.81 | G111: $134.75 | H111: $141.29 | I111: 1.56E+05 | J111: =IFERROR(LOOKUP(2,1/((D$2:D22023=D111)*(A$2:A22023<A111)),H$2:H22023),"") -> 139.92 | K111: 0.98% | L111: =VLOOKUP(D111, symbole!$A$2:$D$15, 4, FALSE) -> kryptowaluty
A112: 111 | B112: 2022-01-18 | C112: 1642464000 | D112: DOGEUSDT | E112: $0.17 | F112: $0.17 | G112: $0.16 | H112: $0.17 | I112: 9.45E+08 | J112: =IFERROR(LOOKUP(2,1/((D$2:D22023=D112)*(A$2:A22023<A112)),H$2:H22023),"") -> 0.1708 | K112: -3.34% | L112: =VLOOKUP(D112, symbole!$A$2:$D$15, 4, FALSE) -> kryptowaluty
A113: 112 | B113: 2022-01-18 | C113: 1642464000 | D113: BTCUSD | E113: $42,230.09 | F113: $42,685.25 | G113: $41,290.06 | H113: $42,377.40 | I113: 1.64E+03 | J113: =IFERROR(LOOKUP(2,1/((D$2:D22023=D113)*(A$2:A22023<A113)),H$2:H22023),"") -> 42255.07 | K113: 0.29% | L113: =VLOOKUP(D113, symbole!$A$2:$D$15, 4, FALSE) -> kryptowaluty
A114: 113 | B114: 2022-01-18T14:30:00 | C114: 1642516200 | D114: GOOGL | E114: $136.18 | F114: $137.13 | G114: $135.44 | H114: $136.00 | I114: 3.49E+07 | J114: =IFERROR(LOOKUP(2,1/((D$2:D22023=D114)*(A$2:A22023<A114)),H$2:H22023),"") -> 139.4805 | K114: -2.50% | L114: =VLOOKUP(D114, symbole!$A$2:$D$15, 4, FALSE) -> akcje
A115: 114 | B115: 2022-01-18T14:30:00 | C115: 1642516200 | D115: MSFT | E115: $304.07 | F115: $309.80 | G115: $301.74 | H115: $302.65 | I115: 4.24E+07 | J115: =IFERROR(LOOKUP(2,1/((D$2:D22023=D115)*(A$2:A22023<A115)),H$2:H22023),"") -> 310.2 | K115: -2.43% | L115: =VLOOKUP(D115, symbole!$A$2:$D$15, 4, FALSE) -> akcje
A116: =A115+1 -> 115 | B116: 2022-01-18T14:30:00 | C116: 1642516200 | D116: NVDA | E116: $26.26 | F116: $26.64 | G116: $25.77 | H116: $25.90 | I116: 4.25E+08 | J116: =IFERROR(LOOKUP(2,1/((D$2:D22023=D116)*(A$2:A22023<A116)),H$2:H22023),"") -> 26.942 | K116: -3.86% | L116: =VLOOKUP(D116, symbole!$A$2:$D$15, 4, FALSE) -> akcje
A117: 116 | B117: 2022-01-18T14:30:00 | C117: 1642516200 | D117: META | E117: $323.29 | F117: $324.21 | G117: $317.64 | H117: $318.15 | I117: 2.27E+07 | J117: =IFERROR(LOOKUP(2,1/((D$2:D22023=D117)*(A$2:A22023<A117)),H$2:H22023),"") -> 331.9 | K117: -4.14% | L117: =VLOOKUP(D117, symbole!$A$2:$D$15, 4, FALSE) -> akcje
A118: 117 | B118: 2022-01-19 | C118: 1642550400 | D118: SOLUSD | E118: $141.48 | F118: $142.72 | G118: $132.92 | H118: $135.26 | I118: 1.78E+05 | J118: =IFERROR(LOOKUP(2,1/((D$2:D22023=D118)*(A$2:A22023<A118)),H$2:H22023),"") -> 141.29 | K118: -4.27% | L118: =VLOOKUP(D118, symbole!$A$2:$D$15, 4, FALSE) -> kryptowaluty
A119: 118 | B119: 2022-01-19 | C119: 1642550400 | D119: BTCUSD | E119: $42,378.23 | F119: $42,589.90 | G119: $41,145.23 | H119: $41,683.21 | I119: 1.66E+03 | J119: =IFERROR(LOOKUP(2,1/((D$2:D22023=D119)*(A$2:A22023<A119)),H$2:H22023),"") -> 42377.4 | K119: -1.64% | L119: =VLOOKUP(D119, symbole!$A$2:$D$15, 4, FALSE) -> kryptowaluty
A120: 119 | B120: 2022-01-19 | C120: 1642550400 | D120: ETHUSD | E120: $3,163.04 | F120: $3,173.91 | G120: $3,046.75 | H120: $3,083.12 | I120: 1.29E+04 | J120: =IFERROR(LOOKUP(2,1/((D$2:D22023=D120)*(A$2:A22023<A120)),H$2:H22023),"") -> 3163.04 | K120: -2.53% | L120: =VLOOKUP(D120, symbole!$A$2:$D$15, 4, FALSE) -> kryptowaluty
A121: 120 | B121: 2022-01-19 | C121: 1642550400 | D121: DOGEUSDT | E121: $0.17 | F121: $0.17 | G121: $0.16 | H121: $0.16 | I121: 8.67E+08 | J121: =IFERROR(LOOKUP(2,1/((D$2:D22023=D121)*(A$2:A22023<A121)),H$2:H22023),"") -> 0.1651 | K121: -2.18% | L121: =VLOOKUP(D121, symbole!$A$2:$D$15, 4, FALSE) -> kryptowaluty
A122: 121 | B122: 2022-01-19T14:30:00 | C122: 1642602600 | D122: META | E122: $319.58 | F122: $327.10 | G122: $319.33 | H122: $319.59 | I122: 2.08E+07 | J122: =IFERROR(LOOKUP(2,1/((D$2:D22023=D122)*(A$2:A22023<A122)),H$2:H22023),"") -> 318.15 | K122: 0.45% | L122: =VLOOKUP(D122, symbole!$A$2:$D$15, 4, FALSE) -> akcje
A123: 122 | B123: 2022-01-19T14:30:00 | C123: 1642602600 | D123: MSFT | E123: $306.29 | F123: $313.91 | G123: $302.70 | H123: $303.33 | I123: 4.59E+07 | J123: =IFERROR(LOOKUP(2,1/((D$2:D22023=D123)*(A$2:A22023<A123)),H$2:H22023),"") -> 302.65 | K123: 0.22% | L123: =VLOOKUP(D123, symbole!$A$2:$D$15, 4, FALSE) -> akcje
A124: 123 | B124: 2022-01-19T14:30:00 | C124: 1642602600 | D124: NVDA | E124: $26.08 | F124: $26.54 | G124: $25.05 | H124: $25.07 | I124: 4.88E+08 | J124: =IFERROR(LOOKUP(2,1/((D$2:D22023=D124)*(A$2:A22023<A124)),H$2:H22023),"") -> 25.903 | K124: -3.23% | L124: =VLOOKUP(D124, symbole!$A$2:$D$15, 4, FALSE) -> akcje
A125: 124 | B125: 2022-01-19T14:30:00 | C125: 1642602600 | D125: GOOGL | E125: $136.52 | F125: $137.96 | G125: $135.02 | H125: $135.12 | I125: 2.86E+07 | J125: =IFERROR(LOOKUP(2,1/((D$2:D22023=D125)*(A$2:A22023<A125)),H$2:H22023),"") -> 135.998 | K125: -0.65% | L125: =VLOOKUP(D125, symbole!$A$2:$D$15, 4, FALSE) -> akcje
A126: 125 | B126: 2022-01-20 | C126: 1642636800 | D126: BTCUSD | E126: $41,733.21 | F126: $43,518.69 | G126: $40,554.14 | H126: $40,736.05 | I126: 2.43E+03 | J126: =IFERROR(LOOKUP(2,1/((D$2:D22023=D126)*(A$2:A22023<A126)),H$2:H22023),"") -> 41683.21 | K126: -2.27% | L126: =VLOOKUP(D126, symbole!$A$2:$D$15, 4, FALSE) -> kryptowaluty
A127: 126 | B127: 2022-01-20 | C127: 1642636800 | D127: DOGEUSDT | E127: $0.16 | F127: $0.17 | G127: $0.15 | H127: $0.16 | I127: 7.64E+08 | J127: =IFERROR(LOOKUP(2,1/((D$2:D22023=D127)*(A$2:A22023<A127)),H$2:H22023),"") -> 0.1615 | K127: -3.84% | L127: =VLOOKUP(D127, symbole!$A$2:$D$15, 4, FALSE) -> kryptowaluty
A128: 127 | B128: 2022-01-20 | C128: 1642636800 | D128: SOLUSD | E128: $135.47 | F128: $143.67 | G128: $126.44 | H128: $127.59 | I128: 1.73E+05 | J128: =IFERROR(LOOKUP(2,1/((D$2:D22023=D128)*(A$2:A22023<A128)),H$2:H22023),"") -> 135.26 | K128: -5.67% | L128: =VLOOKUP(D128, symbole!$A$2:$D$15, 4, FALSE) -> kryptowaluty
A129: 128 | B129: 2022-01-20 | C129: 1642636800 | D129: ETHUSD | E129: $3,092.76 | F129: $3,272.37 | G129: $2,974.09 | H129: $2,999.53 | I129: 2.90E+04 | J129: =IFERROR(LOOKUP(2,1/((D$2:D22023=D129)*(A$2:A22023<A129)),H$2:H22023),"") -> 3083.12 | K129: -2.71% | L129: =VLOOKUP(D129, symbole!$A$2:$D$15, 4, FALSE) -> kryptowaluty
A130: 129 | B130: 2022-01-20T14:30:00 | C130: 1642689000 | D130: META | E130: $323.90 | F130: $327.82 | G130: $315.98 | H130: $316.56 | I130: 1.69E+07 | J130: =IFERROR(LOOKUP(2,1/((D$2:D22023=D130)*(A$2:A22023<A130)),H$2:H22023),"") -> 319.59 | K130: -0.95% | L130: =VLOOKUP(D130, symbole!$A$2:$D$15, 4, FALSE) -> akcje
A131: 130 | B131: 2022-01-20T14:30:00 | C131: 1642689000 | D131: NVDA | E131: $25.30 | F131: $25.58 | G131: $24.08 | H131: $24.15 | I131: 4.35E+08 | J131: =IFERROR(LOOKUP(2,1/((D$2:D22023=D131)*(A$2:A22023<A131)),H$2:H22023),"") -> 25.067 | K131: -3.66% | L131: =VLOOKUP(D131, symbole!$A$2:$D$15, 4, FALSE) -> akcje
A132: 131 | B132: 2022-01-20T14:30:00 | C132: 1642689000 | D132: GOOGL | E132: $136.25 | F132: $137.63 | G132: $132.96 | H132: $133.31 | I132: 2.99E+07 | J132: =IFERROR(LOOKUP(2,1/((D$2:D22023=D132)*(A$2:A22023<A132)),H$2:H22023),"") -> 135.1165 | K132: -1.34% | L132: =VLOOKUP(D132, symbole!$A$2:$D$15, 4, FALSE) -> akcje
A133: 132 | B133: 2022-01-20T14:30:00 | C133: 1642689000 | D133: MSFT | E133: $309.07 | F133: $311.65 | G133: $301.14 | H133: $301.60 | I133: 3.54E+07 | J133: =IFERROR(LOOKUP(2,1/((D$2:D22023=D133)*(A$2:A22023<A133)),H$2:H22023),"") -> 303.33 | K133: -0.57% | L133: =VLOOKUP(D133, symbole!$A$2:$D$15, 4, FALSE) -> akcje
A134: 133 | B134: 2022-01-21 | C134: 1642723200 | D134: SOLUSD | E134: $127.61 | F134: $128.73 | G134: $106.05 | H134: $112.35 | I134: 6.06E+05 | J134: =IFERROR(LOOKUP(2,1/((D$2:D22023=D134)*(A$2:A22023<A134)),H$2:H22023),"") -> 127.59 | K134: -11.94% | L134: =VLOOKUP(D134, symbole!$A$2:$D$15, 4, FALSE) -> kryptowaluty
A135: 134 | B135: 2022-01-21 | C135: 1642723200 | D135: BTCUSD | E135: $40,654.72 | F135: $41,115.58 | G135: $35,423.00 | H135: $36,495.46 | I135: 6.20E+03 | J135: =IFERROR(LOOKUP(2,1/((D$2:D22023=D135)*(A$2:A22023<A135)),H$2:H22023),"") -> 40736.05 | K135: -10.41% | L135: =VLOOKUP(D135, symbole!$A$2:$D$15, 4, FALSE) -> kryptowaluty
A136: 135 | B136: 2022-01-21 | C136: 1642723200 | D136: DOGEUSDT | E136: $0.16 | F136: $0.16 | G136: $0.14 | H136: $0.14 | I136: 1.50E+09 | J136: =IFERROR(LOOKUP(2,1/((D$2:D22023=D136)*(A$2:A22023<A136)),H$2:H22023),"") -> 0.1553 | K136: -8.63% | L136: =VLOOKUP(D136, symbole!$A$2:$D$15, 4, FALSE) -> kryptowaluty
A137: 136 | B137: 2022-01-21 | C137: 1642723200 | D137: ETHUSD | E137: $2,999.53 | F137: $3,034.02 | G137: $2,466.15 | H137: $2,568.58 | I137: 4.97E+04 | J137: =IFERROR(LOOKUP(2,1/((D$2:D22023=D137)*(A$2:A22023<A137)),H$2:H22023),"") -> 2999.53 | K137: -14.37% | L137: =VLOOKUP(D137, symbole!$A$2:$D$15, 4, FALSE) -> kryptowaluty
A138: 137 | B138: 2022-01-21T14:30:00 | C138: 1642775400 | D138: META | E138: $314.81 | F138: $318.31 | G138: $303.04 | H138: $303.17 | I138: 2.87E+07 | J138: =IFERROR(LOOKUP(2,1/((D$2:D22023=D138)*(A$2:A22023<A138)),H$2:H22023),"") -> 316.56 | K138: -4.23% | L138: =VLOOKUP(D138, symbole!$A$2:$D$15, 4, FALSE) -> akcje
A139: 138 | B139: 2022-01-21T14:30:00 | C139: 1642775400 | D139: NVDA | E139: $23.51 | F139: $24.82 | G139: $23.26 | H139: $23.37 | I139: 7.19E+08 | J139: =IFERROR(LOOKUP(2,1/((D$2:D22023=D139)*(A$2:A22023<A139)),H$2:H22023),"") -> 24.15 | K139: -3.21% | L139: =VLOOKUP(D139, symbole!$A$2:$D$15, 4, FALSE) -> akcje
A140: 139 | B140: 2022-01-21T14:30:00 | C140: 1642775400 | D140: GOOGL | E140: $132.59 | F140: $134.87 | G140: $130.09 | H140: $130.35 | I140: 5.57E+07 | J140: =IFERROR(LOOKUP(2,1/((D$2:D22023=D140)*(A$2:A22023<A140)),H$2:H22023),"") -> 133.3075 | K140: -2.22% | L140: =VLOOKUP(D140, symbole!$A$2:$D$15, 4, FALSE) -> akcje
A141: 140 | B141: 2022-01-21T14:30:00 | C141: 1642775400 | D141: MSFT | E141: $302.69 | F141: $304.11 | G141: $295.61 | H141: $296.03 | I141: 5.80E+07 | J141: =IFERROR(LOOKUP(2,1/((D$2:D22023=D141)*(A$2:A22023<A141)),H$2:H22023),"") -> 301.6 | K141: -1.85% | L141: =VLOOKUP(D141, symbole!$A$2:$D$15, 4, FALSE) -> akcje
A142: 141 | B142: 2022-01-22 | C142: 1642809600 | D142: DOGEUSDT | E142: $0.14 | F142: $0.15 | G142: $0.12 | H142: $0.13 | I142: 2.24E+09 | J142: =IFERROR(LOOKUP(2,1/((D$2:D22023=D142)*(A$2:A22023<A142)),H$2:H22023),"") -> 0.1419 | K142: -6.13% | L142: =VLOOKUP(D142, symbole!$A$2:$D$15, 4, FALSE) -> kryptowaluty
A143: 142 | B143: 2022-01-22 | C143: 1642809600 | D143: ETHUSD | E143: $2,567.51 | F143: $2,626.00 | G143: $2,300.00 | H143: $2,412.04 | I143: 3.54E+04 | J143: =IFERROR(LOOKUP(2,1/((D$2:D22023=D143)*(A$2:A22023<A143)),H$2:H22023),"") -> 2568.58 | K143: -6.09% | L143: =VLOOKUP(D143, symbole!$A$2:$D$15, 4, FALSE) -> kryptowaluty
A144: 143 | B144: 2022-01-22 | C144: 1642809600 | D144: BTCUSD | E144: $36,447.37 | F144: $36,825.98 | G144: $34,000.00 | H144: $35,091.11 | I144: 4.51E+03 | J144: =IFERROR(LOOKUP(2,1/((D$2:D22023=D144)*(A$2:A22023<A144)),H$2:H22023),"") -> 36495.46 | K144: -3.85% | L144: =VLOOKUP(D144, symbole!$A$2:$D$15, 4, FALSE) -> kryptowaluty
A145: 144 | B145: 2022-01-22 | C145: 1642809600 | D145: SOLUSD | E145: $112.46 | F145: $113.90 | G145: $87.86 | H145: $94.60 | I145: 7.12E+05 | J145: =IFERROR(LOOKUP(2,1/((D$2:D22023=D145)*(A$2:A22023<A145)),H$2:H22023),"") -> 112.35 | K145: -15.80% | L145: =VLOOKUP(D145, symbole!$A$2:$D$15, 4, FALSE) -> kryptowaluty
A146: 145 | B146: 2022-01-23 | C146: 1642896000 | D146: SOLUSD | E146: $94.62 | F146: $104.79 | G146: $93.29 | H146: $99.85 | I146: 3.79E+05 | J146: =IFERROR(LOOKUP(2,1/((D$2:D22023=D146)*(A$2:A22023<A146)),H$2:H22023),"") -> 94.6 | K146: 5.55% | L146: =VLOOKUP(D146, symbole!$A$2:$D$15, 4, FALSE) -> kryptowaluty
A147: 146 | B147: 2022-01-23 | C147: 1642896000 | D147: DOGEUSDT | E147: $0.13 | F147: $0.14 | G147: $0.13 | H147: $0.14 | I147: 1.20E+09 | J147: =IFERROR(LOOKUP(2,1/((D$2:D22023=D147)*(A$2:A22023<A147)),H$2:H22023),"") -> 0.1332 | K147: 6.46% | L147: =VLOOKUP(D147, symbole!$A$2:$D$15, 4, FALSE) -> kryptowaluty
A148: 147 | B148: 2022-01-23 | C148: 1642896000 | D148: BTCUSD | E148: $35,084.79 | F148: $36,574.47 | G148: $34,624.59 | H148: $36,293.62 | I148: 2.53E+03 | J148: =IFERROR(LOOKUP(2,1/((D$2:D22023=D148)*(A$2:A22023<A148)),H$2:H22023),"") -> 35091.11 | K148: 3.43% | L148: =VLOOKUP(D148, symbole!$A$2:$D$15, 4, FALSE) -> kryptowaluty
A149: 148 | B149: 2022-01-23 | C149: 1642896000 | D149: ETHUSD | E149: $2,413.97 | F149: $2,550.00 | G149: $2,371.79 | H149: $2,543.27 | I149: 1.50E+04 | J149: =IFERROR(LOOKUP(2,1/((D$2:D22023=D149)*(A$2:A22023<A149)),H$2:H22023),"") -> 2412.04 | K149: 5.44% | L149: =VLOOKUP(D149, symbole!$A$2:$D$15, 4, FALSE) -> kryptowaluty
A150: 149 | B150: 2022-01-24 | C150: 1642982400 | D150: DOGEUSDT | E150: $0.14 | F150: $0.14 | G150: $0.13 | H150: $0.14 | I150: 1.61E+09 | J150: =IFERROR(LOOKUP(2,1/((D$2:D22023=D150)*(A$2:A22023<A150)),H$2:H22023),"") -> 0.1418 | K150: -3.17% | L150: =VLOOKUP(D150, symbole!$A$2:$D$15, 4, FALSE) -> kryptowaluty
A151: 150 | B151: 2022-01-24 | C151: 1642982400 | D151: ETHUSD | E151: $2,543.10 | F151: $2,543.10 | G151: $2,160.00 | H151: $2,443.43 | I151: 4.87E+04 | J151: =IFERROR(LOOKUP(2,1/((D$2:D22023=D151)*(A$2:A22023<A151)),H$2:H22023),"") -> 2543.27 | K151: -3.93% | L151: =VLOOKUP(D151, symbole!$A$2:$D$15, 4, FALSE) -> kryptowaluty
A152: 151 | B152: 2022-01-24 | C152: 1642982400 | D152: BTCUSD | E152: $36,262.21 | F152: $38,050.00 | G152: $32,950.72 | H152: $36,724.99 | I152: 6.34E+03 | J152: =IFERROR(LOOKUP(2,1/((D$2:D22023=D152)*(A$2:A22023<A152)),H$2:H22023),"") -> 36293.62 | K152: 1.19% | L152: =VLOOKUP(D152, symbole!$A$2:$D$15, 4, FALSE) -> kryptowaluty
A153: 152 | B153: 2022-01-24 | C153: 1642982400 | D153: SOLUSD | E153: $99.85 | F153: $100.00 | G153: $81.03 | H153: $92.08 | I153: 8.28E+05 | J153: =IFERROR(LOOKUP(2,1/((D$2:D22023=D153)*(A$2:A22023<A153)),H$2:H22023),"") -> 99.85 | K153: -7.78% | L153: =VLOOKUP(D153, symbole!$A$2:$D$15, 4, FALSE) -> kryptowaluty
A154: 153 | B154: 2022-01-24T14:30:00 | C154: 1643034600 | D154: META | E154: $297.84 | F154: $309.53 | G154: $289.01 | H154: $308.71 | I154: 3.89E+07 | J154: =IFERROR(LOOKUP(2,1/((D$2:D22023=D154)*(A$2:A22023<A154)),H$2:H22023),"") -> 303.17 | K154: 1.83% | L154: =VLOOKUP(D154, symbole!$A$2:$D$15, 4, FALSE) -> akcje
A155: 154 | B155: 2022-01-24T14:30:00 | C155: 1643034600 | D155: NVDA | E155: $22.33 | F155: $23.38 | G155: $20.89 | H155: $23.37 | I155: 9.16E+08 | J155: =IFERROR(LOOKUP(2,1/((D$2:D22023=D155)*(A$2:A22023<A155)),H$2:H22023),"") -> 23.374 | K155: -0.01% | L155: =VLOOKUP(D155, symbole!$A$2:$D$15, 4, FALSE) -> akcje
A156: 155 | B156: 2022-01-24T14:30:00 | C156: 1643034600 | D156: GOOGL | E156: $125.98 | F156: $131.20 | G156: $124.50 | H156: $130.80 | I156: 7.67E+07 | J156: =IFERROR(LOOKUP(2,1/((D$2:D22023=D156)*(A$2:A22023<A156)),H$2:H22023),"") -> 130.3515 | K156: 0.35% | L156: =VLOOKUP(D156, symbole!$A$2:$D$15, 4, FALSE) -> akcje
A157: 156 | B157: 2022-01-24T14:30:00 | C157: 1643034600 | D157: MSFT | E157: $292.20 | F157: $297.11 | G157: $276.05 | H157: $296.37 | I157: 8.60E+07 | J157: =IFERROR(LOOKUP(2,1/((D$2:D22023=D157)*(A$2:A22023<A157)),H$2:H22023),"") -> 296.03 | K157: 0.11% | L157: =VLOOKUP(D157, symbole!$A$2:$D$15, 4, FALSE) -> akcje
A158: 157 | B158: 2022-01-25 | C158: 1643068800 | D158: DOGEUSDT | E158: $0.14 | F158: $0.15 | G158: $0.13 | H158: $0.14 | I158: 1.32E+09 | J158: =IFERROR(LOOKUP(2,1/((D$2:D22023=D158)*(A$2:A22023<A158)),H$2:H22023),"") -> 0.1373 | K158: 3.93% | L158: =VLOOKUP(D158, symbole!$A$2:$D$15, 4, FALSE) -> kryptowaluty
A159: 158 | B159: 2022-01-25 | C159: 1643068800 | D159: BTCUSD | E159: $36,721.59 | F159: $37,552.30 | G159: $35,722.43 | H159: $36,975.91 | I159: 2.79E+03 | J159: =IFERROR(LOOKUP(2,1/((D$2:D22023=D159)*(A$2:A22023<A159)),H$2:H22023),"") -> 36724.99 | K159: 0.68% | L159: =VLOOKUP(D159, symbole!$A$2:$D$15, 4, FALSE) -> kryptowaluty
A160: 159 | B160: 2022-01-25 | C160: 1643068800 | D160: SOLUSD | E160: $91.86 | F160: $100.02 | G160: $87.57 | H160: $94.75 | I160: 3.44E+05 | J160: =IFERROR(LOOKUP(2,1/((D$2:D22023=D160)*(A$2:A22023<A160)),H$2:H22023),"") -> 92.08 | K160: 2.90% | L160: =VLOOKUP(D160, symbole!$A$2:$D$15, 4, FALSE) -> kryptowaluty
A161: 160 | B161: 2022-01-25 | C161: 1643068800 | D161: ETHUSD | E161: $2,444.36 | F161: $2,511.19 | G161: $2,350.00 | H161: $2,459.84 | I161: 1.94E+04 | J161: =IFERROR(LOOKUP(2,1/((D$2:D22023=D161)*(A$2:A22023<A161)),H$2:H22023),"") -> 2443.43 | K161: 0.67% | L161: =VLOOKUP(D161, symbole!$A$2:$D$15, 4, FALSE) -> kryptowaluty
A162: 161 | B162: 2022-01-25T14:30:00 | C162: 1643121000 | D162: NVDA | E162: $22.55 | F162: $22.94 | G162: $22.00 | H162: $22.32 | I162: 6.65E+08 | J162: =IFERROR(LOOKUP(2,1/((D$2:D22023=D162)*(A$2:A22023<A162)),H$2:H22023),"") -> 23.372 | K162: -4.48% | L162: =VLOOKUP(D162, symbole!$A$2:$D$15, 4, FALSE) -> akcje
A163: 162 | B163: 2022-01-25T14:30:00 | C163: 1643121000 | D163: MSFT | E163: $291.52 | F163: $294.99 | G163: $285.17 | H163: $288.49 | I163: 7.28E+07 | J163: =IFERROR(LOOKUP(2,1/((D$2:D22023=D163)*(A$2:A22023<A163)),H$2:H22023),"") -> 296.37 | K163: -2.66% | L163: =VLOOKUP(D163, symbole!$A$2:$D$15, 4, FALSE) -> akcje
A164: 163 | B164: 2022-01-25T14:30:00 | C164: 1643121000 | D164: GOOGL | E164: $128.74 | F164: $129.40 | G164: $126.50 | H164: $126.94 | I164: 4.70E+07 | J164: =IFERROR(LOOKUP(2,1/((D$2:D22023=D164)*(A$2:A22023<A164)),H$2:H22023),"") -> 130.804 | K164: -2.96% | L164: =VLOOKUP(D164, symbole!$A$2:$D$15, 4, FALSE) -> akcje
A165: 164 | B165: 2022-01-25T14:30:00 | C165: 1643121000 | D165: META | E165: $299.95 | F165: $306.23 | G165: $297.58 | H165: $300.15 | I165: 2.51E+07 | J165: =IFERROR(LOOKUP(2,1/((D$2:D22023=D165)*(A$2:A22023<A165)),H$2:H22023),"") -> 308.71 | K165: -2.77% | L165: =VLOOKUP(D165, symbole!$A$2:$D$15, 4, FALSE) -> akcje
A166: 165 | B166: 2022-01-26 | C166: 1643155200 | D166: ETHUSD | E166: $2,461.80 | F166: $2,725.60 | G166: $2,402.72 | H166: $2,463.78 | I166: 3.80E+04 | J166: =IFERROR(LOOKUP(2,1/((D$2:D22023=D166)*(A$2:A22023<A166)),H$2:H22023),"") -> 2459.84 | K166: 0.16% | L166: =VLOOKUP(D166, symbole!$A$2:$D$15, 4, FALSE) -> kryptowaluty
A167: 166 | B167: 2022-01-26 | C167: 1643155200 | D167: BTCUSD | E167: $37,006.76 | F167: $38,946.00 | G167: $36,279.21 | H167: $36,829.32 | I167: 3.66E+03 | J167: =IFERROR(LOOKUP(2,1/((D$2:D22023=D167)*(A$2:A22023<A167)),H$2:H22023),"") -> 36975.91 | K167: -0.40% | L167: =VLOOKUP(D167, symbole!$A$2:$D$15, 4, FALSE) -> kryptowaluty
A168: 167 | B168: 2022-01-26 | C168: 1643155200 | D168: DOGEUSDT | E168: $0.14 | F168: $0.15 | G168: $0.14 | H168: $0.14 | I168: 1.32E+09 | J168: =IFERROR(LOOKUP(2,1/((D$2:D22023=D168)*(A$2:A22023<A168)),H$2:H22023),"") -> 0.1427 | K168: 0.28% | L168: =VLOOKUP(D168, symbole!$A$2:$D$15, 4, FALSE) -> kryptowaluty
A169: 168 | B169: 2022-01-26 | C169: 1643155200 | D169: SOLUSD | E169: $94.71 | F169: $104.39 | G169: $89.44 | H169: $92.19 | I169: 3.88E+05 | J169: =IFERROR(LOOKUP(2,1/((D$2:D22023=D169)*(A$2:A22023<A169)),H$2:H22023),"") -> 94.75 | K169: -2.70% | L169: =VLOOKUP(D169, symbole!$A$2:$D$15, 4, FALSE) -> kryptowaluty
A170: 169 | B170: 2022-01-26T14:30:00 | C170: 1643207400 | D170: NVDA | E170: $23.24 | F170: $24.06 | G170: $22.30 | H170: $22.77 | I170: 7.56E+08 | J170: =IFERROR(LOOKUP(2,1/((D$2:D22023=D170)*(A$2:A22023<A170)),H$2:H22023),"") -> 22.324 | K170: 2.01% | L170: =VLOOKUP(D170, symbole!$A$2:$D$15, 4, FALSE) -> akcje
A171: 170 | B171: 2022-01-26T14:30:00 | C171: 1643207400 | D171: META | E171: $307.01 | F171: $307.51 | G171: $290.85 | H171: $294.63 | I171: 2.83E+07 | J171: =IFERROR(LOOKUP(2,1/((D$2:D22023=D171)*(A$2:A22023<A171)),H$2:H22023),"") -> 300.15 | K171: -1.84% | L171: =VLOOKUP(D171, symbole!$A$2:$D$15, 4, FALSE) -> akcje
A172: 171 | B172: 2022-01-26T14:30:00 | C172: 1643207400 | D172: MSFT | E172: $307.99 | F172: $308.50 | G172: $293.03 | H172: $296.71 | I172: 9.04E+07 | J172: =IFERROR(LOOKUP(2,1/((D$2:D22023=D172)*(A$2:A22023<A172)),H$2:H22023),"") -> 288.49 | K172: 2.85% | L172: =VLOOKUP(D172, symbole!$A$2:$D$15, 4, FALSE) -> akcje
A173: 172 | B173: =(C173/86400)+DATE(1970,1,1) -> 2022-01-26T14:30:00 | C173: 1643207400 | D173: GOOGL | E173: $131.12 | F173: $133.00 | G173: $127.14 | H173: $129.23 | I173: 4.91E+07 | J173: =IFERROR(LOOKUP(2,1/((D$2:D22023=D173)*(A$2:A22023<A173)),H$2:H22023),"") -> 126.935 | K173: =IF(J173 = "", 0, (H173/J173) - 1) -> 1.81% | L173: =VLOOKUP(D173, symbole!$A$2:$D$15, 4, FALSE) -> akcje
A174: 173 | B174: 2022-01-27 | C174: 1643241600 | D174: SOLUSD | E174: $92.16 | F174: $94.74 | G174: $85.69 | H174: $89.69 | I174: 3.23E+05 | J174: =IFERROR(LOOKUP(2,1/((D$2:D22023=D174)*(A$2:A22023<A174)),H$2:H22023),"") -> 92.19 | K174: -2.71% | L174: =VLOOKUP(D174, symbole!$A$2:$D$15, 4, FALSE) -> kryptowaluty
A175: 174 | B175: 2022-01-27 | C175: 1643241600 | D175: BTCUSD | E175: $36,824.02 | F175: $37,251.00 | G175: $35,511.32 | H175: $37,208.36 | I175: 3.10E+03 | J175: =IFERROR(LOOKUP(2,1/((D$2:D22023=D175)*(A$2:A22023<A175)),H$2:H22023),"") -> 36829.32 | K175: 1.03% | L175: =VLOOKUP(D175, symbole!$A$2:$D$15, 4, FALSE) -> kryptowaluty
A176: 175 | B176: 2022-01-27 | C176: 1643241600 | D176: DOGEUSDT | E176: $0.14 | F176: $0.15 | G176: $0.14 | H176: $0.14 | I176: 6.78E+08 | J176: =IFERROR(LOOKUP(2,1/((D$2:D22023=D176)*(A$2:A22023<A176)),H$2:H22023),"") -> 0.1431 | K176: -1.19% | L176: =VLOOKUP(D176, symbole!$A$2:$D$15, 4, FALSE) -> kryptowaluty
A177: 176 | B177: 2022-01-27 | C177: 1643241600 | D177: ETHUSD | E177: $2,464.37 | F177: $2,525.10 | G177: $2,317.00 | H177: $2,425.24 | I177: 2.60E+04 | J177: =IFERROR(LOOKUP(2,1/((D$2:D22023=D177)*(A$2:A22023<A177)),H$2:H22023),"") -> 2463.78 | K177: -1.56% | L177: =VLOOKUP(D177, symbole!$A$2:$D$15, 4, FALSE) -> kryptowaluty
A178: 177 | B178: 2022-01-27T14:30:00 | C178: 1643293800 | D178: META | E178: $297.75 | F178: $301.71 | G178: $294.26 | H178: $294.64 | I178: 2.16E+07 | J178: =IFERROR(LOOKUP(2,1/((D$2:D22023=D178)*(A$2:A22023<A178)),H$2:H22023),"") -> 294.63 | K178: 0.00% | L178: =VLOOKUP(D178, symbole!$A$2:$D$15, 4, FALSE) -> akcje
A179: 178 | B179: 2022-01-27T14:30:00 | C179: 1643293800 | D179: NVDA | E179: $23.57 | F179: $24.00 | G179: $21.68 | H179: $21.94 | I179: 5.73E+08 | J179: =IFERROR(LOOKUP(2,1/((D$2:D22023=D179)*(A$2:A22023<A179)),H$2:H22023),"") -> 22.772 | K179: -3.64% | L179: =VLOOKUP(D179, symbole!$A$2:$D$15, 4, FALSE) -> akcje
A180: =A179+1 -> 179 | B180: 2022-01-27T14:30:00 | C180: 1643293800 | D180: MSFT | E180: $302.66 | F180: $307.30 | G180: $297.93 | H180: $299.84 | I180: 5.35E+07 | J180: =IFERROR(LOOKUP(2,1/((D$2:D22023=D180)*(A$2:A22023<A180)),H$2:H22023),"") -> 296.71 | K180: 1.05% | L180: =VLOOKUP(D180, symbole!$A$2:$D$15, 4, FALSE) -> akcje
A181: 180 | B181: 2022-01-27T14:30:00 | C181: 1643293800 | D181: GOOGL | E181: $131.30 | F181: $132.65 | G181: $128.93 | H181: $129.01 | I181: 3.20E+07 | J181: =IFERROR(LOOKUP(2,1/((D$2:D22023=D181)*(A$2:A22023<A181)),H$2:H22023),"") -> 129.233 | K181: -0.18% | L181: =VLOOKUP(D181, symbole!$A$2:$D$15, 4, FALSE) -> akcje
A182: 181 | B182: 2022-01-28 | C182: 1643328000 | D182: BTCUSD | E182: $37,179.62 | F182: $38,022.11 | G182: $36,173.98 | H182: $37,748.36 | I182: 2.42E+03 | J182: =IFERROR(LOOKUP(2,1/((D$2:D22023=D182)*(A$2:A22023<A182)),H$2:H22023),"") -> 37208.36 | K182: 1.45% | L182: =VLOOKUP(D182, symbole!$A$2:$D$15, 4, FALSE) -> kryptowaluty
A183: 182 | B183: 2022-01-28 | C183: 1643328000 | D183: ETHUSD | E183: $2,427.01 | F183: $2,559.84 | G183: $2,360.00 | H183: $2,547.40 | I183: 2.98E+04 | J183: =IFERROR(LOOKUP(2,1/((D$2:D22023=D183)*(A$2:A22023<A183)),H$2:H22023),"") -> 2425.24 | K183: 5.04% | L183: =VLOOKUP(D183, symbole!$A$2:$D$15, 4, FALSE) -> kryptowaluty
A184: 183 | B184: 2022-01-28 | C184: 1643328000 | D184: SOLUSD | E184: $89.65 | F184: $93.54 | G184: $87.19 | H184: $91.46 | I184: 2.24E+05 | J184: =IFERROR(LOOKUP(2,1/((D$2:D22023=D184)*(A$2:A22023<A184)),H$2:H22023),"") -> 89.69 | K184: 1.97% | L184: =VLOOKUP(D184, symbole!$A$2:$D$15, 4, FALSE) -> kryptowaluty
A185: 184 | B185: 2022-01-28 | C185: 1643328000 | D185: DOGEUSDT | E185: $0.14 | F185: $0.14 | G185: $0.14 | H185: $0.14 | I185: 4.64E+08 | J185: =IFERROR(LOOKUP(2,1/((D$2:D22023=D185)*(A$2:A22023<A185)),H$2:H22023),"") -> 0.1414 | K185: 0.00% | L185: =VLOOKUP(D185, symbole!$A$2:$D$15, 4, FALSE) -> kryptowaluty
A186: 185 | B186: 2022-01-28T14:30:00 | C186: 1643380200 | D186: GOOGL | E186: $129.66 | F186: $133.36 | G186: $128.49 | H186: $133.35 | I186: 3.44E+07 | J186: =IFERROR(LOOKUP(2,1/((D$2:D22023=D186)*(A$2:A22023<A186)),H$2:H22023),"") -> 129.005 | K186: 3.37% | L186: =VLOOKUP(D186, symbole!$A$2:$D$15, 4, FALSE) -> akcje
A187: 186 | B187: 2022-01-28T14:30:00 | C187: 1643380200 | D187: MSFT | E187: $300.23 | F187: $308.48 | G187: $294.45 | H187: $308.26 | I187: 4.97E+07 | J187: =IFERROR(LOOKUP(2,1/((D$2:D22023=D187)*(A$2:A22023<A187)),H$2:H22023),"") -> 299.84 | K187: 2.81% | L187: =VLOOKUP(D187, symbole!$A$2:$D$15, 4, FALSE) -> akcje
A188: 187 | B188: 2022-01-28T14:30:00 | C188: 1643380200 | D188: META | E188: $295.62 | F188: $301.90 | G188: $293.03 | H188: $301.71 | I188: 2.19E+07 | J188: =IFERROR(LOOKUP(2,1/((D$2:D22023=D188)*(A$2:A22023<A188)),H$2:H22023),"") -> 294.64 | K188: 2.40% | L188: =VLOOKUP(D188, symbole!$A$2:$D$15, 4, FALSE) -> akcje
A189: 188 | B189: 2022-01-28T14:30:00 | C189: 1643380200 | D189: NVDA | E189: $22.01 | F189: $22.86 | G189: $21.30 | H189: $22.84 | I189: 5.44E+08 | J189: =IFERROR(LOOKUP(2,1/((D$2:D22023=D189)*(A$2:A22023<A189)),H$2:H22023),"") -> 21.944 | K189: 4.08% | L189: =VLOOKUP(D189, symbole!$A$2:$D$15, 4, FALSE) -> akcje
A190: 189 | B190: 2022-01-29 | C190: 1643414400 | D190: ETHUSD | E190: $2,546.50 | F190: $2,637.17 | G190: $2,522.72 | H190: $2,603.89 | I190: 1.34E+04 | J190: =IFERROR(LOOKUP(2,1/((D$2:D22023=D190)*(A$2:A22023<A190)),H$2:H22023),"") -> 2547.4 | K190: 2.22% | L190: =VLOOKUP(D190, symbole!$A$2:$D$15, 4, FALSE) -> kryptowaluty
A191: 190 | B191: 2022-01-29 | C191: 1643414400 | D191: SOLUSD | E191: $91.44 | F191: $98.89 | G191: $90.46 | H191: $96.17 | I191: 2.75E+05 | J191: =IFERROR(LOOKUP(2,1/((D$2:D22023=D191)*(A$2:A22023<A191)),H$2:H22023),"") -> 91.46 | K191: 5.15% | L191: =VLOOKUP(D191, symbole!$A$2:$D$15, 4, FALSE) -> kryptowaluty
A192: 191 | B192: 2022-01-29 | C192: 1643414400 | D192: BTCUSD | E192: $37,713.14 | F192: $38,741.67 | G192: $37,327.79 | H192: $38,192.65 | I192: 1.30E+03 | J192: =IFERROR(LOOKUP(2,1/((D$2:D22023=D192)*(A$2:A22023<A192)),H$2:H22023),"") -> 37748.36 | K192: 1.18% | L192: =VLOOKUP(D192, symbole!$A$2:$D$15, 4, FALSE) -> kryptowaluty
A193: 192 | B193: 2022-01-29 | C193: 1643414400 | D193: DOGEUSDT | E193: $0.14 | F193: $0.14 | G193: $0.14 | H193: $0.14 | I193: 3.39E+08 | J193: =IFERROR(LOOKUP(2,1/((D$2:D22023=D193)*(A$2:A22023<A193)),H$2:H22023),"") -> 0.1414 | K193: 1.13% | L193: =VLOOKUP(D193, symbole!$A$2:$D$15, 4, FALSE) -> kryptowaluty
A194: 193 | B194: 2022-01-30 | C194: 1643500800 | D194: BTCUSD | E194: $38,176.45 | F194: $38,378.88 | G194: $37,372.59 | H194: $37,941.82 | I194: 7.09E+02 | J194: =IFERROR(LOOKUP(2,1/((D$2:D22023=D194)*(A$2:A22023<A194)),H$2:H22023),"") -> 38192.65 | K194: -0.66% | L194: =VLOOKUP(D194, symbole!$A$2:$D$15, 4, FALSE) -> kryptowaluty
A195: 194 | B195: 2022-01-30 | C195: 1643500800 | D195: SOLUSD | E195: $96.20 | F195: $97.66 | G195: $91.55 | H195: $93.40 | I195: 1.38E+05 | J195: =IFERROR(LOOKUP(2,1/((D$2:D22023=D195)*(A$2:A22023<A195)),H$2:H22023),"") -> 96.17 | K195: -2.88% | L195: =VLOOKUP(D195, symbole!$A$2:$D$15, 4, FALSE) -> kryptowaluty
A196: 195 | B196: 2022-01-30 | C196: 1643500800 | D196: DOGEUSDT | E196: $0.14 | F196: $0.14 | G196: $0.14 | H196: $0.14 | I196: 3.42E+08 | J196: =IFERROR(LOOKUP(2,1/((D$2:D22023=D196)*(A$2:A22023<A196)),H$2:H22023),"") -> 0.143 | K196: -2.73% | L196: =VLOOKUP(D196, symbole!$A$2:$D$15, 4, FALSE) -> kryptowaluty
A197: 196 | B197: 2022-01-30 | C197: 1643500800 | D197: ETHUSD | E197: $2,600.40 | F197: $2,640.26 | G197: $2,543.64 | H197: $2,602.37 | I197: 8.36E+03 | J197: =IFERROR(LOOKUP(2,1/((D$2:D22023=D197)*(A$2:A22023<A197)),H$2:H22023),"") -> 2603.89 | K197: -0.06% | L197: =VLOOKUP(D197, symbole!$A$2:$D$15, 4, FALSE) -> kryptowaluty
A198: 197 | B198: 2022-01-31 | C198: 1643587200 | D198: SOLUSD | E198: $93.36 | F198: $101.46 | G198: $89.27 | H198: $99.59 | I198: 2.78E+05 | J198: =IFERROR(LOOKUP(2,1/((D$2:D22023=D198)*(A$2:A22023<A198)),H$2:H22023),"") -> 93.4 | K198: 6.63% | L198: =VLOOKUP(D198, symbole!$A$2:$D$15, 4, FALSE) -> kryptowaluty
A199: 198 | B199: 2022-01-31 | C199: 1643587200 | D199: BTCUSD | E199: $37,914.10 | F199: $38,776.33 | G199: $36,631.66 | H199: $38,491.92 | I199: 2.01E+03 | J199: =IFERROR(LOOKUP(2,1/((D$2:D22023=D199)*(A$2:A22023<A199)),H$2:H22023),"") -> 37941.82 | K199: 1.45% | L199: =VLOOKUP(D199, symbole!$A$2:$D$15, 4, FALSE) -> kryptowaluty
A200: 199 | B200: 2022-01-31 | C200: 1643587200 | D200: DOGEUSDT | E200: $0.14 | F200: $0.14 | G200: $0.14 | H200: $0.14 | I200: 3.65E+08 | J200: =IFERROR(LOOKUP(2,1/((D$2:D22023=D200)*(A$2:A22023<A200)),H$2:H22023),"") -> 0.1391 | K200: 1.73% | L200: =VLOOKUP(D200, symbole!$A$2:$D$15, 4, FALSE) -> kryptowaluty
... 6832 more rows

Sheet formularz
A2: formularz dodawania OHLCV
A4: symbol
A6: data
A8: cena otwarcia
A10: cena najwyższa
A12: cena najniższa
A14: cena zamknięcia
A16: wolumen

Sheet OHLCV wykres
A1: symbol | B1: GOOGL
A3: n | B3: index | C3: duplikat | D3: data | E3: cena otwarcia | F3: cena najwyższa | G3: cena najniższa | H3: cena zamknięcia
A4: 100 | B4: =IFERROR(LOOKUP(2,1/((OHLCV!D$2:D22023=$B$1)*(OHLCV!A$2:A22023<A4)),OHLCV!B$2:B22023),"") -> 2022-01-14T14:30:00 | C4: =FALSE -> FALSE | D4: =IF(C4, "", IFERROR(LOOKUP(2,1/((OHLCV!D$2:D22023=$B$1)*(OHLCV!A$2:A22023<A4)),OHLCV!B$2:B22023),"")) -> 2022-01-14T14:30:00 | E4: =IF(C4, "", IFERROR(LOOKUP(2,1/((OHLCV!D$2:D22023=$B$1)*(OHLCV!A$2:A22023<A4)),OHLCV!E$2:E22023),"")) -> $137.08 | F4: =IF(C4, "", IFERROR(LOOKUP(2,1/((OHLCV!D$2:D22023=$B$1)*(OHLCV!A$2:A22023<A4)),OHLCV!F$2:F22023),"")) -> $140.74 | G4: =IF(C4, "", IFERROR(LOOKUP(2,1/((OHLCV!D$2:D22023=$B$1)*(OHLCV!A$2:A22023<A4)),OHLCV!G$2:G22023),"")) -> $137.00 | H4: =IF(C4, "", IFERROR(LOOKUP(2,1/((OHLCV!D$2:D22023=$B$1)*(OHLCV!A$2:A22023<A4)),OHLCV!H$2:H22023),"")) -> $139.48 | L4: data | M4: cena otwarcia | N4: cena najwyższa | O4: cena najniższa | P4: cena zamknięcia
A5: =A4+1 -> 101 | B5: =IFERROR(LOOKUP(2,1/((OHLCV!D$2:D22024=$B$1)*(OHLCV!A$2:A22024<A5)),OHLCV!B$2:B22024),"") -> 2022-01-14T14:30:00 | C5: =B5 = B4 -> TRUE | D5: =IF(C5, "", IFERROR(LOOKUP(2,1/((OHLCV!D$2:D22024=$B$1)*(OHLCV!A$2:A22024<A5)),OHLCV!B$2:B22024),"")) ->  | E5: =IF(C5, "", IFERROR(LOOKUP(2,1/((OHLCV!D$2:D22024=$B$1)*(OHLCV!A$2:A22024<A5)),OHLCV!E$2:E22024),"")) ->  | F5: =IF(C5, "", IFERROR(LOOKUP(2,1/((OHLCV!D$2:D22024=$B$1)*(OHLCV!A$2:A22024<A5)),OHLCV!F$2:F22024),"")) ->  | G5: =IF(C5, "", IFERROR(LOOKUP(2,1/((OHLCV!D$2:D22024=$B$1)*(OHLCV!A$2:A22024<A5)),OHLCV!G$2:G22024),"")) ->  | H5: =IF(C5, "", IFERROR(LOOKUP(2,1/((OHLCV!D$2:D22024=$B$1)*(OHLCV!A$2:A22024<A5)),OHLCV!H$2:H22024),"")) ->  | L5: 2022-01-14T14:30:00 | M5: $137.08 | N5: $140.74 | O5: $137.00 | P5: $139.48
A6: =A5+1 -> 102 | B6: =IFERROR(LOOKUP(2,1/((OHLCV!D$2:D22025=$B$1)*(OHLCV!A$2:A22025<A6)),OHLCV!B$2:B22025),"") -> 2022-01-14T14:30:00 | C6: =B6 = B5 -> TRUE | D6: =IF(C6, "", IFERROR(LOOKUP(2,1/((OHLCV!D$2:D22025=$B$1)*(OHLCV!A$2:A22025<A6)),OHLCV!B$2:B22025),"")) ->  | E6: =IF(C6, "", IFERROR(LOOKUP(2,1/((OHLCV!D$2:D22025=$B$1)*(OHLCV!A$2:A22025<A6)),OHLCV!E$2:E22025),"")) ->  | F6: =IF(C6, "", IFERROR(LOOKUP(2,1/((OHLCV!D$2:D22025=$B$1)*(OHLCV!A$2:A22025<A6)),OHLCV!F$2:F22025),"")) ->  | G6: =IF(C6, "", IFERROR(LOOKUP(2,1/((OHLCV!D$2:D22025=$B$1)*(OHLCV!A$2:A22025<A6)),OHLCV!G$2:G22025),"")) ->  | H6: =IF(C6, "", IFERROR(LOOKUP(2,1/((OHLCV!D$2:D22025=$B$1)*(OHLCV!A$2:A22025<A6)),OHLCV!H$2:H22025),"")) ->  | L6: ="" -> 
A7: 103 | B7: =IFERROR(LOOKUP(2,1/((OHLCV!D$2:D22026=$B$1)*(OHLCV!A$2:A22026<A7)),OHLCV!B$2:B22026),"") -> 2022-01-14T14:30:00 | C7: TRUE | D7: =IF(C7, "", IFERROR(LOOKUP(2,1/((OHLCV!D$2:D22026=$B$1)*(OHLCV!A$2:A22026<A7)),OHLCV!B$2:B22026),"")) ->  | E7: =IF(C7, "", IFERROR(LOOKUP(2,1/((OHLCV!D$2:D22026=$B$1)*(OHLCV!A$2:A22026<A7)),OHLCV!E$2:E22026),"")) ->  | F7: =IF(C7, "", IFERROR(LOOKUP(2,1/((OHLCV!D$2:D22026=$B$1)*(OHLCV!A$2:A22026<A7)),OHLCV!F$2:F22026),"")) ->  | G7: =IF(C7, "", IFERROR(LOOKUP(2,1/((OHLCV!D$2:D22026=$B$1)*(OHLCV!A$2:A22026<A7)),OHLCV!G$2:G22026),"")) ->  | H7: =IF(C7, "", IFERROR(LOOKUP(2,1/((OHLCV!D$2:D22026=$B$1)*(OHLCV!A$2:A22026<A7)),OHLCV!H$2:H22026),"")) ->  | L7: ="" -> 
A8: 104 | B8: =IFERROR(LOOKUP(2,1/((OHLCV!D$2:D22027=$B$1)*(OHLCV!A$2:A22027<A8)),OHLCV!B$2:B22027),"") -> 2022-01-14T14:30:00 | C8: TRUE | D8: =IF(C8, "", IFERROR(LOOKUP(2,1/((OHLCV!D$2:D22027=$B$1)*(OHLCV!A$2:A22027<A8)),OHLCV!B$2:B22027),"")) ->  | E8: =IF(C8, "", IFERROR(LOOKUP(2,1/((OHLCV!D$2:D22027=$B$1)*(OHLCV!A$2:A22027<A8)),OHLCV!E$2:E22027),"")) ->  | F8: =IF(C8, "", IFERROR(LOOKUP(2,1/((OHLCV!D$2:D22027=$B$1)*(OHLCV!A$2:A22027<A8)),OHLCV!F$2:F22027),"")) ->  | G8: =IF(C8, "", IFERROR(LOOKUP(2,1/((OHLCV!D$2:D22027=$B$1)*(OHLCV!A$2:A22027<A8)),OHLCV!G$2:G22027),"")) ->  | H8: =IF(C8, "", IFERROR(LOOKUP(2,1/((OHLCV!D$2:D22027=$B$1)*(OHLCV!A$2:A22027<A8)),OHLCV!H$2:H22027),"")) ->  | L8: ="" -> 
A9: 105 | B9: =IFERROR(LOOKUP(2,1/((OHLCV!D$2:D22028=$B$1)*(OHLCV!A$2:A22028<A9)),OHLCV!B$2:B22028),"") -> 2022-01-14T14:30:00 | C9: TRUE | D9: =IF(C9, "", IFERROR(LOOKUP(2,1/((OHLCV!D$2:D22028=$B$1)*(OHLCV!A$2:A22028<A9)),OHLCV!B$2:B22028),"")) ->  | E9: =IF(C9, "", IFERROR(LOOKUP(2,1/((OHLCV!D$2:D22028=$B$1)*(OHLCV!A$2:A22028<A9)),OHLCV!E$2:E22028),"")) ->  | F9: =IF(C9, "", IFERROR(LOOKUP(2,1/((OHLCV!D$2:D22028=$B$1)*(OHLCV!A$2:A22028<A9)),OHLCV!F$2:F22028),"")) ->  | G9: =IF(C9, "", IFERROR(LOOKUP(2,1/((OHLCV!D$2:D22028=$B$1)*(OHLCV!A$2:A22028<A9)),OHLCV!G$2:G22028),"")) ->  | H9: =IF(C9, "", IFERROR(LOOKUP(2,1/((OHLCV!D$2:D22028=$B$1)*(OHLCV!A$2:A22028<A9)),OHLCV!H$2:H22028),"")) ->  | L9: ="" -> 
A10: 106 | B10: =IFERROR(LOOKUP(2,1/((OHLCV!D$2:D22029=$B$1)*(OHLCV!A$2:A22029<A10)),OHLCV!B$2:B22029),"") -> 2022-01-14T14:30:00 | C10: TRUE | D10: =IF(C10, "", IFERROR(LOOKUP(2,1/((OHLCV!D$2:D22029=$B$1)*(OHLCV!A$2:A22029<A10)),OHLCV!B$2:B22029),"")) ->  | E10: =IF(C10, "", IFERROR(LOOKUP(2,1/((OHLCV!D$2:D22029=$B$1)*(OHLCV!A$2:A22029<A10)),OHLCV!E$2:E22029),"")) ->  | F10: =IF(C10, "", IFERROR(LOOKUP(2,1/((OHLCV!D$2:D22029=$B$1)*(OHLCV!A$2:A22029<A10)),OHLCV!F$2:F22029),"")) ->  | G10: =IF(C10, "", IFERROR(LOOKUP(2,1/((OHLCV!D$2:D22029=$B$1)*(OHLCV!A$2:A22029<A10)),OHLCV!G$2:G22029),"")) ->  | H10: =IF(C10, "", IFERROR(LOOKUP(2,1/((OHLCV!D$2:D22029=$B$1)*(OHLCV!A$2:A22029<A10)),OHLCV!H$2:H22029),"")) ->  | L10: ="" -> 
A11: 107 | B11: =IFERROR(LOOKUP(2,1/((OHLCV!D$2:D22030=$B$1)*(OHLCV!A$2:A22030<A11)),OHLCV!B$2:B22030),"") -> 2022-01-14T14:30:00 | C11: TRUE | D11: =IF(C11, "", IFERROR(LOOKUP(2,1/((OHLCV!D$2:D22030=$B$1)*(OHLCV!A$2:A22030<A11)),OHLCV!B$2:B22030),"")) ->  | E11: =IF(C11, "", IFERROR(LOOKUP(2,1/((OHLCV!D$2:D22030=$B$1)*(OHLCV!A$2:A22030<A11)),OHLCV!E$2:E22030),"")) ->  | F11: =IF(C11, "", IFERROR(LOOKUP(2,1/((OHLCV!D$2:D22030=$B$1)*(OHLCV!A$2:A22030<A11)),OHLCV!F$2:F22030),"")) ->  | G11: =IF(C11, "", IFERROR(LOOKUP(2,1/((OHLCV!D$2:D22030=$B$1)*(OHLCV!A$2:A22030<A11)),OHLCV!G$2:G22030),"")) ->  | H11: =IF(C11, "", IFERROR(LOOKUP(2,1/((OHLCV!D$2:D22030=$B$1)*(OHLCV!A$2:A22030<A11)),OHLCV!H$2:H22030),"")) ->  | L11: ="" -> 
A12: 108 | B12: =IFERROR(LOOKUP(2,1/((OHLCV!D$2:D22031=$B$1)*(OHLCV!A$2:A22031<A12)),OHLCV!B$2:B22031),"") -> 2022-01-14T14:30:00 | C12: TRUE | D12: =IF(C12, "", IFERROR(LOOKUP(2,1/((OHLCV!D$2:D22031=$B$1)*(OHLCV!A$2:A22031<A12)),OHLCV!B$2:B22031),"")) ->  | E12: =IF(C12, "", IFERROR(LOOKUP(2,1/((OHLCV!D$2:D22031=$B$1)*(OHLCV!A$2:A22031<A12)),OHLCV!E$2:E22031),"")) ->  | F12: =IF(C12, "", IFERROR(LOOKUP(2,1/((OHLCV!D$2:D22031=$B$1)*(OHLCV!A$2:A22031<A12)),OHLCV!F$2:F22031),"")) ->  | G12: =IF(C12, "", IFERROR(LOOKUP(2,1/((OHLCV!D$2:D22031=$B$1)*(OHLCV!A$2:A22031<A12)),OHLCV!G$2:G22031),"")) ->  | H12: =IF(C12, "", IFERROR(LOOKUP(2,1/((OHLCV!D$2:D22031=$B$1)*(OHLCV!A$2:A22031<A12)),OHLCV!H$2:H22031),"")) ->  | L12: ="" -> 
A13: 109 | B13: =IFERROR(LOOKUP(2,1/((OHLCV!D$2:D22032=$B$1)*(OHLCV!A$2:A22032<A13)),OHLCV!B$2:B22032),"") -> 2022-01-14T14:30:00 | C13: TRUE | D13: =IF(C13, "", IFERROR(LOOKUP(2,1/((OHLCV!D$2:D22032=$B$1)*(OHLCV!A$2:A22032<A13)),OHLCV!B$2:B22032),"")) ->  | E13: =IF(C13, "", IFERROR(LOOKUP(2,1/((OHLCV!D$2:D22032=$B$1)*(OHLCV!A$2:A22032<A13)),OHLCV!E$2:E22032),"")) ->  | F13: =IF(C13, "", IFERROR(LOOKUP(2,1/((OHLCV!D$2:D22032=$B$1)*(OHLCV!A$2:A22032<A13)),OHLCV!F$2:F22032),"")) ->  | G13: =IF(C13, "", IFERROR(LOOKUP(2,1/((OHLCV!D$2:D22032=$B$1)*(OHLCV!A$2:A22032<A13)),OHLCV!G$2:G22032),"")) ->  | H13: =IF(C13, "", IFERROR(LOOKUP(2,1/((OHLCV!D$2:D22032=$B$1)*(OHLCV!A$2:A22032<A13)),OHLCV!H$2:H22032),"")) ->  | L13: 2022-01-18T14:30:00 | M13: $136.18 | N13: $137.13 | O13: $135.44 | P13: $136.00
A14: 110 | B14: =IFERROR(LOOKUP(2,1/((OHLCV!D$2:D22033=$B$1)*(OHLCV!A$2:A22033<A14)),OHLCV!B$2:B22033),"") -> 2022-01-14T14:30:00 | C14: TRUE | D14: =IF(C14, "", IFERROR(LOOKUP(2,1/((OHLCV!D$2:D22033=$B$1)*(OHLCV!A$2:A22033<A14)),OHLCV!B$2:B22033),"")) ->  | E14: =IF(C14, "", IFERROR(LOOKUP(2,1/((OHLCV!D$2:D22033=$B$1)*(OHLCV!A$2:A22033<A14)),OHLCV!E$2:E22033),"")) ->  | F14: =IF(C14, "", IFERROR(LOOKUP(2,1/((OHLCV!D$2:D22033=$B$1)*(OHLCV!A$2:A22033<A14)),OHLCV!F$2:F22033),"")) ->  | G14: =IF(C14, "", IFERROR(LOOKUP(2,1/((OHLCV!D$2:D22033=$B$1)*(OHLCV!A$2:A22033<A14)),OHLCV!G$2:G22033),"")) ->  | H14: =IF(C14, "", IFERROR(LOOKUP(2,1/((OHLCV!D$2:D22033=$B$1)*(OHLCV!A$2:A22033<A14)),OHLCV!H$2:H22033),"")) -> 
A15: 111 | B15: =IFERROR(LOOKUP(2,1/((OHLCV!D$2:D22034=$B$1)*(OHLCV!A$2:A22034<A15)),OHLCV!B$2:B22034),"") -> 2022-01-14T14:30:00 | C15: TRUE | D15: =IF(C15, "", IFERROR(LOOKUP(2,1/((OHLCV!D$2:D22034=$B$1)*(OHLCV!A$2:A22034<A15)),OHLCV!B$2:B22034),"")) ->  | E15: =IF(C15, "", IFERROR(LOOKUP(2,1/((OHLCV!D$2:D22034=$B$1)*(OHLCV!A$2:A22034<A15)),OHLCV!E$2:E22034),"")) ->  | F15: =IF(C15, "", IFERROR(LOOKUP(2,1/((OHLCV!D$2:D22034=$B$1)*(OHLCV!A$2:A22034<A15)),OHLCV!F$2:F22034),"")) ->  | G15: =IF(C15, "", IFERROR(LOOKUP(2,1/((OHLCV!D$2:D22034=$B$1)*(OHLCV!A$2:A22034<A15)),OHLCV!G$2:G22034),"")) ->  | H15: =IF(C15, "", IFERROR(LOOKUP(2,1/((OHLCV!D$2:D22034=$B$1)*(OHLCV!A$2:A22034<A15)),OHLCV!H$2:H22034),"")) -> 
A16: 112 | B16: =IFERROR(LOOKUP(2,1/((OHLCV!D$2:D22035=$B$1)*(OHLCV!A$2:A22035<A16)),OHLCV!B$2:B22035),"") -> 2022-01-14T14:30:00 | C16: TRUE | D16: =IF(C16, "", IFERROR(LOOKUP(2,1/((OHLCV!D$2:D22035=$B$1)*(OHLCV!A$2:A22035<A16)),OHLCV!B$2:B22035),"")) ->  | E16: =IF(C16, "", IFERROR(LOOKUP(2,1/((OHLCV!D$2:D22035=$B$1)*(OHLCV!A$2:A22035<A16)),OHLCV!E$2:E22035),"")) ->  | F16: =IF(C16, "", IFERROR(LOOKUP(2,1/((OHLCV!D$2:D22035=$B$1)*(OHLCV!A$2:A22035<A16)),OHLCV!F$2:F22035),"")) ->  | G16: =IF(C16, "", IFERROR(LOOKUP(2,1/((OHLCV!D$2:D22035=$B$1)*(OHLCV!A$2:A22035<A16)),OHLCV!G$2:G22035),"")) ->  | H16: =IF(C16, "", IFERROR(LOOKUP(2,1/((OHLCV!D$2:D22035=$B$1)*(OHLCV!A$2:A22035<A16)),OHLCV!H$2:H22035),"")) -> 
A17: 113 | B17: =IFERROR(LOOKUP(2,1/((OHLCV!D$2:D22036=$B$1)*(OHLCV!A$2:A22036<A17)),OHLCV!B$2:B22036),"") -> 2022-01-14T14:30:00 | C17: TRUE | D17: =IF(C17, "", IFERROR(LOOKUP(2,1/((OHLCV!D$2:D22036=$B$1)*(OHLCV!A$2:A22036<A17)),OHLCV!B$2:B22036),"")) ->  | E17: =IF(C17, "", IFERROR(LOOKUP(2,1/((OHLCV!D$2:D22036=$B$1)*(OHLCV!A$2:A22036<A17)),OHLCV!E$2:E22036),"")) ->  | F17: =IF(C17, "", IFERROR(LOOKUP(2,1/((OHLCV!D$2:D22036=$B$1)*(OHLCV!A$2:A22036<A17)),OHLCV!F$2:F22036),"")) ->  | G17: =IF(C17, "", IFERROR(LOOKUP(2,1/((OHLCV!D$2:D22036=$B$1)*(OHLCV!A$2:A22036<A17)),OHLCV!G$2:G22036),"")) ->  | H17: =IF(C17, "", IFERROR(LOOKUP(2,1/((OHLCV!D$2:D22036=$B$1)*(OHLCV!A$2:A22036<A17)),OHLCV!H$2:H22036),"")) -> 
A18: 114 | B18: =IFERROR(LOOKUP(2,1/((OHLCV!D$2:D22037=$B$1)*(OHLCV!A$2:A22037<A18)),OHLCV!B$2:B22037),"") -> 2022-01-18T14:30:00 | C18: FALSE | D18: =IF(C18, "", IFERROR(LOOKUP(2,1/((OHLCV!D$2:D22037=$B$1)*(OHLCV!A$2:A22037<A18)),OHLCV!B$2:B22037),"")) -> 2022-01-18T14:30:00 | E18: =IF(C18, "", IFERROR(LOOKUP(2,1/((OHLCV!D$2:D22037=$B$1)*(OHLCV!A$2:A22037<A18)),OHLCV!E$2:E22037),"")) -> $136.18 | F18: =IF(C18, "", IFERROR(LOOKUP(2,1/((OHLCV!D$2:D22037=$B$1)*(OHLCV!A$2:A22037<A18)),OHLCV!F$2:F22037),"")) -> $137.13 | G18: =IF(C18, "", IFERROR(LOOKUP(2,1/((OHLCV!D$2:D22037=$B$1)*(OHLCV!A$2:A22037<A18)),OHLCV!G$2:G22037),"")) -> $135.44 | H18: =IF(C18, "", IFERROR(LOOKUP(2,1/((OHLCV!D$2:D22037=$B$1)*(OHLCV!A$2:A22037<A18)),OHLCV!H$2:H22037),"")) -> $136.00
A19: 115 | B19: =IFERROR(LOOKUP(2,1/((OHLCV!D$2:D22038=$B$1)*(OHLCV!A$2:A22038<A19)),OHLCV!B$2:B22038),"") -> 2022-01-18T14:30:00 | C19: TRUE | D19: =IF(C19, "", IFERROR(LOOKUP(2,1/((OHLCV!D$2:D22038=$B$1)*(OHLCV!A$2:A22038<A19)),OHLCV!B$2:B22038),"")) ->  | E19: =IF(C19, "", IFERROR(LOOKUP(2,1/((OHLCV!D$2:D22038=$B$1)*(OHLCV!A$2:A22038<A19)),OHLCV!E$2:E22038),"")) ->  | F19: =IF(C19, "", IFERROR(LOOKUP(2,1/((OHLCV!D$2:D22038=$B$1)*(OHLCV!A$2:A22038<A19)),OHLCV!F$2:F22038),"")) ->  | G19: =IF(C19, "", IFERROR(LOOKUP(2,1/((OHLCV!D$2:D22038=$B$1)*(OHLCV!A$2:A22038<A19)),OHLCV!G$2:G22038),"")) ->  | H19: =IF(C19, "", IFERROR(LOOKUP(2,1/((OHLCV!D$2:D22038=$B$1)*(OHLCV!A$2:A22038<A19)),OHLCV!H$2:H22038),"")) -> 
A20: 116 | B20: =IFERROR(LOOKUP(2,1/((OHLCV!D$2:D22039=$B$1)*(OHLCV!A$2:A22039<A20)),OHLCV!B$2:B22039),"") -> 2022-01-18T14:30:00 | C20: TRUE | D20: =IF(C20, "", IFERROR(LOOKUP(2,1/((OHLCV!D$2:D22039=$B$1)*(OHLCV!A$2:A22039<A20)),OHLCV!B$2:B22039),"")) ->  | E20: =IF(C20, "", IFERROR(LOOKUP(2,1/((OHLCV!D$2:D22039=$B$1)*(OHLCV!A$2:A22039<A20)),OHLCV!E$2:E22039),"")) ->  | F20: =IF(C20, "", IFERROR(LOOKUP(2,1/((OHLCV!D$2:D22039=$B$1)*(OHLCV!A$2:A22039<A20)),OHLCV!F$2:F22039),"")) ->  | G20: =IF(C20, "", IFERROR(LOOKUP(2,1/((OHLCV!D$2:D22039=$B$1)*(OHLCV!A$2:A22039<A20)),OHLCV!G$2:G22039),"")) ->  | H20: =IF(C20, "", IFERROR(LOOKUP(2,1/((OHLCV!D$2:D22039=$B$1)*(OHLCV!A$2:A22039<A20)),OHLCV!H$2:H22039),"")) -> 
A21: 117 | B21: =IFERROR(LOOKUP(2,1/((OHLCV!D$2:D22040=$B$1)*(OHLCV!A$2:A22040<A21)),OHLCV!B$2:B22040),"") -> 2022-01-18T14:30:00 | C21: TRUE | D21: =IF(C21, "", IFERROR(LOOKUP(2,1/((OHLCV!D$2:D22040=$B$1)*(OHLCV!A$2:A22040<A21)),OHLCV!B$2:B22040),"")) ->  | E21: =IF(C21, "", IFERROR(LOOKUP(2,1/((OHLCV!D$2:D22040=$B$1)*(OHLCV!A$2:A22040<A21)),OHLCV!E$2:E22040),"")) ->  | F21: =IF(C21, "", IFERROR(LOOKUP(2,1/((OHLCV!D$2:D22040=$B$1)*(OHLCV!A$2:A22040<A21)),OHLCV!F$2:F22040),"")) ->  | G21: =IF(C21, "", IFERROR(LOOKUP(2,1/((OHLCV!D$2:D22040=$B$1)*(OHLCV!A$2:A22040<A21)),OHLCV!G$2:G22040),"")) ->  | H21: =IF(C21, "", IFERROR(LOOKUP(2,1/((OHLCV!D$2:D22040=$B$1)*(OHLCV!A$2:A22040<A21)),OHLCV!H$2:H22040),"")) -> 
A22: 118 | B22: =IFERROR(LOOKUP(2,1/((OHLCV!D$2:D22041=$B$1)*(OHLCV!A$2:A22041<A22)),OHLCV!B$2:B22041),"") -> 2022-01-18T14:30:00 | C22: TRUE | D22: =IF(C22, "", IFERROR(LOOKUP(2,1/((OHLCV!D$2:D22041=$B$1)*(OHLCV!A$2:A22041<A22)),OHLCV!B$2:B22041),"")) ->  | E22: =IF(C22, "", IFERROR(LOOKUP(2,1/((OHLCV!D$2:D22041=$B$1)*(OHLCV!A$2:A22041<A22)),OHLCV!E$2:E22041),"")) ->  | F22: =IF(C22, "", IFERROR(LOOKUP(2,1/((OHLCV!D$2:D22041=$B$1)*(OHLCV!A$2:A22041<A22)),OHLCV!F$2:F22041),"")) ->  | G22: =IF(C22, "", IFERROR(LOOKUP(2,1/((OHLCV!D$2:D22041=$B$1)*(OHLCV!A$2:A22041<A22)),OHLCV!G$2:G22041),"")) ->  | H22: =IF(C22, "", IFERROR(LOOKUP(2,1/((OHLCV!D$2:D22041=$B$1)*(OHLCV!A$2:A22041<A22)),OHLCV!H$2:H22041),"")) -> 
A23: 119 | B23: =IFERROR(LOOKUP(2,1/((OHLCV!D$2:D22042=$B$1)*(OHLCV!A$2:A22042<A23)),OHLCV!B$2:B22042),"") -> 2022-01-18T14:30:00 | C23: TRUE | D23: =IF(C23, "", IFERROR(LOOKUP(2,1/((OHLCV!D$2:D22042=$B$1)*(OHLCV!A$2:A22042<A23)),OHLCV!B$2:B22042),"")) ->  | E23: =IF(C23, "", IFERROR(LOOKUP(2,1/((OHLCV!D$2:D22042=$B$1)*(OHLCV!A$2:A22042<A23)),OHLCV!E$2:E22042),"")) ->  | F23: =IF(C23, "", IFERROR(LOOKUP(2,1/((OHLCV!D$2:D22042=$B$1)*(OHLCV!A$2:A22042<A23)),OHLCV!F$2:F22042),"")) ->  | G23: =IF(C23, "", IFERROR(LOOKUP(2,1/((OHLCV!D$2:D22042=$B$1)*(OHLCV!A$2:A22042<A23)),OHLCV!G$2:G22042),"")) ->  | H23: =IF(C23, "", IFERROR(LOOKUP(2,1/((OHLCV!D$2:D22042=$B$1)*(OHLCV!A$2:A22042<A23)),OHLCV!H$2:H22042),"")) -> 
A24: 120 | B24: =IFERROR(LOOKUP(2,1/((OHLCV!D$2:D22043=$B$1)*(OHLCV!A$2:A22043<A24)),OHLCV!B$2:B22043),"") -> 2022-01-18T14:30:00 | C24: TRUE | D24: =IF(C24, "", IFERROR(LOOKUP(2,1/((OHLCV!D$2:D22043=$B$1)*(OHLCV!A$2:A22043<A24)),OHLCV!B$2:B22043),"")) ->  | E24: =IF(C24, "", IFERROR(LOOKUP(2,1/((OHLCV!D$2:D22043=$B$1)*(OHLCV!A$2:A22043<A24)),OHLCV!E$2:E22043),"")) ->  | F24: =IF(C24, "", IFERROR(LOOKUP(2,1/((OHLCV!D$2:D22043=$B$1)*(OHLCV!A$2:A22043<A24)),OHLCV!F$2:F22043),"")) ->  | G24: =IF(C24, "", IFERROR(LOOKUP(2,1/((OHLCV!D$2:D22043=$B$1)*(OHLCV!A$2:A22043<A24)),OHLCV!G$2:G22043),"")) ->  | H24: =IF(C24, "", IFERROR(LOOKUP(2,1/((OHLCV!D$2:D22043=$B$1)*(OHLCV!A$2:A22043<A24)),OHLCV!H$2:H22043),"")) -> 
A25: 121 | B25: =IFERROR(LOOKUP(2,1/((OHLCV!D$2:D22044=$B$1)*(OHLCV!A$2:A22044<A25)),OHLCV!B$2:B22044),"") -> 2022-01-18T14:30:00 | C25: TRUE | D25: =IF(C25, "", IFERROR(LOOKUP(2,1/((OHLCV!D$2:D22044=$B$1)*(OHLCV!A$2:A22044<A25)),OHLCV!B$2:B22044),"")) ->  | E25: =IF(C25, "", IFERROR(LOOKUP(2,1/((OHLCV!D$2:D22044=$B$1)*(OHLCV!A$2:A22044<A25)),OHLCV!E$2:E22044),"")) ->  | F25: =IF(C25, "", IFERROR(LOOKUP(2,1/((OHLCV!D$2:D22044=$B$1)*(OHLCV!A$2:A22044<A25)),OHLCV!F$2:F22044),"")) ->  | G25: =IF(C25, "", IFERROR(LOOKUP(2,1/((OHLCV!D$2:D22044=$B$1)*(OHLCV!A$2:A22044<A25)),OHLCV!G$2:G22044),"")) ->  | H25: =IF(C25, "", IFERROR(LOOKUP(2,1/((OHLCV!D$2:D22044=$B$1)*(OHLCV!A$2:A22044<A25)),OHLCV!H$2:H22044),"")) -> 
A26: 122 | B26: =IFERROR(LOOKUP(2,1/((OHLCV!D$2:D22045=$B$1)*(OHLCV!A$2:A22045<A26)),OHLCV!B$2:B22045),"") -> 2022-01-18T14:30:00 | C26: TRUE | D26: =IF(C26, "", IFERROR(LOOKUP(2,1/((OHLCV!D$2:D22045=$B$1)*(OHLCV!A$2:A22045<A26)),OHLCV!B$2:B22045),"")) ->  | E26: =IF(C26, "", IFERROR(LOOKUP(2,1/((OHLCV!D$2:D22045=$B$1)*(OHLCV!A$2:A22045<A26)),OHLCV!E$2:E22045),"")) ->  | F26: =IF(C26, "", IFERROR(LOOKUP(2,1/((OHLCV!D$2:D22045=$B$1)*(OHLCV!A$2:A22045<A26)),OHLCV!F$2:F22045),"")) ->  | G26: =IF(C26, "", IFERROR(LOOKUP(2,1/((OHLCV!D$2:D22045=$B$1)*(OHLCV!A$2:A22045<A26)),OHLCV!G$2:G22045),"")) ->  | H26: =IF(C26, "", IFERROR(LOOKUP(2,1/((OHLCV!D$2:D22045=$B$1)*(OHLCV!A$2:A22045<A26)),OHLCV!H$2:H22045),"")) -> 
A27: 123 | B27: =IFERROR(LOOKUP(2,1/((OHLCV!D$2:D22046=$B$1)*(OHLCV!A$2:A22046<A27)),OHLCV!B$2:B22046),"") -> 2022-01-18T14:30:00 | C27: TRUE | D27: =IF(C27, "", IFERROR(LOOKUP(2,1/((OHLCV!D$2:D22046=$B$1)*(OHLCV!A$2:A22046<A27)),OHLCV!B$2:B22046),"")) ->  | E27: =IF(C27, "", IFERROR(LOOKUP(2,1/((OHLCV!D$2:D22046=$B$1)*(OHLCV!A$2:A22046<A27)),OHLCV!E$2:E22046),"")) ->  | F27: =IF(C27, "", IFERROR(LOOKUP(2,1/((OHLCV!D$2:D22046=$B$1)*(OHLCV!A$2:A22046<A27)),OHLCV!F$2:F22046),"")) ->  | G27: =IF(C27, "", IFERROR(LOOKUP(2,1/((OHLCV!D$2:D22046=$B$1)*(OHLCV!A$2:A22046<A27)),OHLCV!G$2:G22046),"")) ->  | H27: =IF(C27, "", IFERROR(LOOKUP(2,1/((OHLCV!D$2:D22046=$B$1)*(OHLCV!A$2:A22046<A27)),OHLCV!H$2:H22046),"")) -> 
A28: 124 | B28: =IFERROR(LOOKUP(2,1/((OHLCV!D$2:D22047=$B$1)*(OHLCV!A$2:A22047<A28)),OHLCV!B$2:B22047),"") -> 2022-01-18T14:30:00 | C28: TRUE | D28: =IF(C28, "", IFERROR(LOOKUP(2,1/((OHLCV!D$2:D22047=$B$1)*(OHLCV!A$2:A22047<A28)),OHLCV!B$2:B22047),"")) ->  | E28: =IF(C28, "", IFERROR(LOOKUP(2,1/((OHLCV!D$2:D22047=$B$1)*(OHLCV!A$2:A22047<A28)),OHLCV!E$2:E22047),"")) ->  | F28: =IF(C28, "", IFERROR(LOOKUP(2,1/((OHLCV!D$2:D22047=$B$1)*(OHLCV!A$2:A22047<A28)),OHLCV!F$2:F22047),"")) ->  | G28: =IF(C28, "", IFERROR(LOOKUP(2,1/((OHLCV!D$2:D22047=$B$1)*(OHLCV!A$2:A22047<A28)),OHLCV!G$2:G22047),"")) ->  | H28: =IF(C28, "", IFERROR(LOOKUP(2,1/((OHLCV!D$2:D22047=$B$1)*(OHLCV!A$2:A22047<A28)),OHLCV!H$2:H22047),"")) -> 
A29: 125 | B29: =IFERROR(LOOKUP(2,1/((OHLCV!D$2:D22048=$B$1)*(OHLCV!A$2:A22048<A29)),OHLCV!B$2:B22048),"") -> 2022-01-19T14:30:00 | C29: FALSE | D29: =IF(C29, "", IFERROR(LOOKUP(2,1/((OHLCV!D$2:D22048=$B$1)*(OHLCV!A$2:A22048<A29)),OHLCV!B$2:B22048),"")) -> 2022-01-19T14:30:00 | E29: =IF(C29, "", IFERROR(LOOKUP(2,1/((OHLCV!D$2:D22048=$B$1)*(OHLCV!A$2:A22048<A29)),OHLCV!E$2:E22048),"")) -> $136.52 | F29: =IF(C29, "", IFERROR(LOOKUP(2,1/((OHLCV!D$2:D22048=$B$1)*(OHLCV!A$2:A22048<A29)),OHLCV!F$2:F22048),"")) -> $137.96 | G29: =IF(C29, "", IFERROR(LOOKUP(2,1/((OHLCV!D$2:D22048=$B$1)*(OHLCV!A$2:A22048<A29)),OHLCV!G$2:G22048),"")) -> $135.02 | H29: =IF(C29, "", IFERROR(LOOKUP(2,1/((OHLCV!D$2:D22048=$B$1)*(OHLCV!A$2:A22048<A29)),OHLCV!H$2:H22048),"")) -> $135.12
A30: 126 | B30: =IFERROR(LOOKUP(2,1/((OHLCV!D$2:D22049=$B$1)*(OHLCV!A$2:A22049<A30)),OHLCV!B$2:B22049),"") -> 2022-01-19T14:30:00 | C30: TRUE | D30: =IF(C30, "", IFERROR(LOOKUP(2,1/((OHLCV!D$2:D22049=$B$1)*(OHLCV!A$2:A22049<A30)),OHLCV!B$2:B22049),"")) ->  | E30: =IF(C30, "", IFERROR(LOOKUP(2,1/((OHLCV!D$2:D22049=$B$1)*(OHLCV!A$2:A22049<A30)),OHLCV!E$2:E22049),"")) ->  | F30: =IF(C30, "", IFERROR(LOOKUP(2,1/((OHLCV!D$2:D22049=$B$1)*(OHLCV!A$2:A22049<A30)),OHLCV!F$2:F22049),"")) ->  | G30: =IF(C30, "", IFERROR(LOOKUP(2,1/((OHLCV!D$2:D22049=$B$1)*(OHLCV!A$2:A22049<A30)),OHLCV!G$2:G22049),"")) ->  | H30: =IF(C30, "", IFERROR(LOOKUP(2,1/((OHLCV!D$2:D22049=$B$1)*(OHLCV!A$2:A22049<A30)),OHLCV!H$2:H22049),"")) -> 
A31: 127 | B31: =IFERROR(LOOKUP(2,1/((OHLCV!D$2:D22050=$B$1)*(OHLCV!A$2:A22050<A31)),OHLCV!B$2:B22050),"") -> 2022-01-19T14:30:00 | C31: TRUE | D31: =IF(C31, "", IFERROR(LOOKUP(2,1/((OHLCV!D$2:D22050=$B$1)*(OHLCV!A$2:A22050<A31)),OHLCV!B$2:B22050),"")) ->  | E31: =IF(C31, "", IFERROR(LOOKUP(2,1/((OHLCV!D$2:D22050=$B$1)*(OHLCV!A$2:A22050<A31)),OHLCV!E$2:E22050),"")) ->  | F31: =IF(C31, "", IFERROR(LOOKUP(2,1/((OHLCV!D$2:D22050=$B$1)*(OHLCV!A$2:A22050<A31)),OHLCV!F$2:F22050),"")) ->  | G31: =IF(C31, "", IFERROR(LOOKUP(2,1/((OHLCV!D$2:D22050=$B$1)*(OHLCV!A$2:A22050<A31)),OHLCV!G$2:G22050),"")) ->  | H31: =IF(C31, "", IFERROR(LOOKUP(2,1/((OHLCV!D$2:D22050=$B$1)*(OHLCV!A$2:A22050<A31)),OHLCV!H$2:H22050),"")) -> 
A32: 128 | B32: =IFERROR(LOOKUP(2,1/((OHLCV!D$2:D22051=$B$1)*(OHLCV!A$2:A22051<A32)),OHLCV!B$2:B22051),"") -> 2022-01-19T14:30:00 | C32: TRUE | D32: =IF(C32, "", IFERROR(LOOKUP(2,1/((OHLCV!D$2:D22051=$B$1)*(OHLCV!A$2:A22051<A32)),OHLCV!B$2:B22051),"")) ->  | E32: =IF(C32, "", IFERROR(LOOKUP(2,1/((OHLCV!D$2:D22051=$B$1)*(OHLCV!A$2:A22051<A32)),OHLCV!E$2:E22051),"")) ->  | F32: =IF(C32, "", IFERROR(LOOKUP(2,1/((OHLCV!D$2:D22051=$B$1)*(OHLCV!A$2:A22051<A32)),OHLCV!F$2:F22051),"")) ->  | G32: =IF(C32, "", IFERROR(LOOKUP(2,1/((OHLCV!D$2:D22051=$B$1)*(OHLCV!A$2:A22051<A32)),OHLCV!G$2:G22051),"")) ->  | H32: =IF(C32, "", IFERROR(LOOKUP(2,1/((OHLCV!D$2:D22051=$B$1)*(OHLCV!A$2:A22051<A32)),OHLCV!H$2:H22051),"")) -> 
A33: 129 | B33: =IFERROR(LOOKUP(2,1/((OHLCV!D$2:D22052=$B$1)*(OHLCV!A$2:A22052<A33)),OHLCV!B$2:B22052),"") -> 2022-01-19T14:30:00 | C33: TRUE | D33: =IF(C33, "", IFERROR(LOOKUP(2,1/((OHLCV!D$2:D22052=$B$1)*(OHLCV!A$2:A22052<A33)),OHLCV!B$2:B22052),"")) ->  | E33: =IF(C33, "", IFERROR(LOOKUP(2,1/((OHLCV!D$2:D22052=$B$1)*(OHLCV!A$2:A22052<A33)),OHLCV!E$2:E22052),"")) ->  | F33: =IF(C33, "", IFERROR(LOOKUP(2,1/((OHLCV!D$2:D22052=$B$1)*(OHLCV!A$2:A22052<A33)),OHLCV!F$2:F22052),"")) ->  | G33: =IF(C33, "", IFERROR(LOOKUP(2,1/((OHLCV!D$2:D22052=$B$1)*(OHLCV!A$2:A22052<A33)),OHLCV!G$2:G22052),"")) ->  | H33: =IF(C33, "", IFERROR(LOOKUP(2,1/((OHLCV!D$2:D22052=$B$1)*(OHLCV!A$2:A22052<A33)),OHLCV!H$2:H22052),"")) -> 
A34: 130 | B34: =IFERROR(LOOKUP(2,1/((OHLCV!D$2:D22053=$B$1)*(OHLCV!A$2:A22053<A34)),OHLCV!B$2:B22053),"") -> 2022-01-19T14:30:00 | C34: TRUE | D34: =IF(C34, "", IFERROR(LOOKUP(2,1/((OHLCV!D$2:D22053=$B$1)*(OHLCV!A$2:A22053<A34)),OHLCV!B$2:B22053),"")) ->  | E34: =IF(C34, "", IFERROR(LOOKUP(2,1/((OHLCV!D$2:D22053=$B$1)*(OHLCV!A$2:A22053<A34)),OHLCV!E$2:E22053),"")) ->  | F34: =IF(C34, "", IFERROR(LOOKUP(2,1/((OHLCV!D$2:D22053=$B$1)*(OHLCV!A$2:A22053<A34)),OHLCV!F$2:F22053),"")) ->  | G34: =IF(C34, "", IFERROR(LOOKUP(2,1/((OHLCV!D$2:D22053=$B$1)*(OHLCV!A$2:A22053<A34)),OHLCV!G$2:G22053),"")) ->  | H34: =IF(C34, "", IFERROR(LOOKUP(2,1/((OHLCV!D$2:D22053=$B$1)*(OHLCV!A$2:A22053<A34)),OHLCV!H$2:H22053),"")) -> 
A35: 131 | B35: =IFERROR(LOOKUP(2,1/((OHLCV!D$2:D22054=$B$1)*(OHLCV!A$2:A22054<A35)),OHLCV!B$2:B22054),"") -> 2022-01-19T14:30:00 | C35: TRUE | D35: =IF(C35, "", IFERROR(LOOKUP(2,1/((OHLCV!D$2:D22054=$B$1)*(OHLCV!A$2:A22054<A35)),OHLCV!B$2:B22054),"")) ->  | E35: =IF(C35, "", IFERROR(LOOKUP(2,1/((OHLCV!D$2:D22054=$B$1)*(OHLCV!A$2:A22054<A35)),OHLCV!E$2:E22054),"")) ->  | F35: =IF(C35, "", IFERROR(LOOKUP(2,1/((OHLCV!D$2:D22054=$B$1)*(OHLCV!A$2:A22054<A35)),OHLCV!F$2:F22054),"")) ->  | G35: =IF(C35, "", IFERROR(LOOKUP(2,1/((OHLCV!D$2:D22054=$B$1)*(OHLCV!A$2:A22054<A35)),OHLCV!G$2:G22054),"")) ->  | H35: =IF(C35, "", IFERROR(LOOKUP(2,1/((OHLCV!D$2:D22054=$B$1)*(OHLCV!A$2:A22054<A35)),OHLCV!H$2:H22054),"")) -> 
A36: 132 | B36: =IFERROR(LOOKUP(2,1/((OHLCV!D$2:D22055=$B$1)*(OHLCV!A$2:A22055<A36)),OHLCV!B$2:B22055),"") -> 2022-01-20T14:30:00 | C36: FALSE | D36: =IF(C36, "", IFERROR(LOOKUP(2,1/((OHLCV!D$2:D22055=$B$1)*(OHLCV!A$2:A22055<A36)),OHLCV!B$2:B22055),"")) -> 2022-01-20T14:30:00 | E36: =IF(C36, "", IFERROR(LOOKUP(2,1/((OHLCV!D$2:D22055=$B$1)*(OHLCV!A$2:A22055<A36)),OHLCV!E$2:E22055),"")) -> $136.25 | F36: =IF(C36, "", IFERROR(LOOKUP(2,1/((OHLCV!D$2:D22055=$B$1)*(OHLCV!A$2:A22055<A36)),OHLCV!F$2:F22055),"")) -> $137.63 | G36: =IF(C36, "", IFERROR(LOOKUP(2,1/((OHLCV!D$2:D22055=$B$1)*(OHLCV!A$2:A22055<A36)),OHLCV!G$2:G22055),"")) -> $132.96 | H36: =IF(C36, "", IFERROR(LOOKUP(2,1/((OHLCV!D$2:D22055=$B$1)*(OHLCV!A$2:A22055<A36)),OHLCV!H$2:H22055),"")) -> $133.31
A37: 133 | B37: =IFERROR(LOOKUP(2,1/((OHLCV!D$2:D22056=$B$1)*(OHLCV!A$2:A22056<A37)),OHLCV!B$2:B22056),"") -> 2022-01-20T14:30:00 | C37: TRUE | D37: =IF(C37, "", IFERROR(LOOKUP(2,1/((OHLCV!D$2:D22056=$B$1)*(OHLCV!A$2:A22056<A37)),OHLCV!B$2:B22056),"")) ->  | E37: =IF(C37, "", IFERROR(LOOKUP(2,1/((OHLCV!D$2:D22056=$B$1)*(OHLCV!A$2:A22056<A37)),OHLCV!E$2:E22056),"")) ->  | F37: =IF(C37, "", IFERROR(LOOKUP(2,1/((OHLCV!D$2:D22056=$B$1)*(OHLCV!A$2:A22056<A37)),OHLCV!F$2:F22056),"")) ->  | G37: =IF(C37, "", IFERROR(LOOKUP(2,1/((OHLCV!D$2:D22056=$B$1)*(OHLCV!A$2:A22056<A37)),OHLCV!G$2:G22056),"")) ->  | H37: =IF(C37, "", IFERROR(LOOKUP(2,1/((OHLCV!D$2:D22056=$B$1)*(OHLCV!A$2:A22056<A37)),OHLCV!H$2:H22056),"")) -> 
A38: 134 | B38: =IFERROR(LOOKUP(2,1/((OHLCV!D$2:D22057=$B$1)*(OHLCV!A$2:A22057<A38)),OHLCV!B$2:B22057),"") -> 2022-01-20T14:30:00 | C38: TRUE | D38: =IF(C38, "", IFERROR(LOOKUP(2,1/((OHLCV!D$2:D22057=$B$1)*(OHLCV!A$2:A22057<A38)),OHLCV!B$2:B22057),"")) ->  | E38: =IF(C38, "", IFERROR(LOOKUP(2,1/((OHLCV!D$2:D22057=$B$1)*(OHLCV!A$2:A22057<A38)),OHLCV!E$2:E22057),"")) ->  | F38: =IF(C38, "", IFERROR(LOOKUP(2,1/((OHLCV!D$2:D22057=$B$1)*(OHLCV!A$2:A22057<A38)),OHLCV!F$2:F22057),"")) ->  | G38: =IF(C38, "", IFERROR(LOOKUP(2,1/((OHLCV!D$2:D22057=$B$1)*(OHLCV!A$2:A22057<A38)),OHLCV!G$2:G22057),"")) ->  | H38: =IF(C38, "", IFERROR(LOOKUP(2,1/((OHLCV!D$2:D22057=$B$1)*(OHLCV!A$2:A22057<A38)),OHLCV!H$2:H22057),"")) -> 
A39: 135 | B39: =IFERROR(LOOKUP(2,1/((OHLCV!D$2:D22058=$B$1)*(OHLCV!A$2:A22058<A39)),OHLCV!B$2:B22058),"") -> 2022-01-20T14:30:00 | C39: TRUE | D39: =IF(C39, "", IFERROR(LOOKUP(2,1/((OHLCV!D$2:D22058=$B$1)*(OHLCV!A$2:A22058<A39)),OHLCV!B$2:B22058),"")) ->  | E39: =IF(C39, "", IFERROR(LOOKUP(2,1/((OHLCV!D$2:D22058=$B$1)*(OHLCV!A$2:A22058<A39)),OHLCV!E$2:E22058),"")) ->  | F39: =IF(C39, "", IFERROR(LOOKUP(2,1/((OHLCV!D$2:D22058=$B$1)*(OHLCV!A$2:A22058<A39)),OHLCV!F$2:F22058),"")) ->  | G39: =IF(C39, "", IFERROR(LOOKUP(2,1/((OHLCV!D$2:D22058=$B$1)*(OHLCV!A$2:A22058<A39)),OHLCV!G$2:G22058),"")) ->  | H39: =IF(C39, "", IFERROR(LOOKUP(2,1/((OHLCV!D$2:D22058=$B$1)*(OHLCV!A$2:A22058<A39)),OHLCV!H$2:H22058),"")) -> 
A40: 136 | B40: =IFERROR(LOOKUP(2,1/((OHLCV!D$2:D22059=$B$1)*(OHLCV!A$2:A22059<A40)),OHLCV!B$2:B22059),"") -> 2022-01-20T14:30:00 | C40: TRUE | D40: =IF(C40, "", IFERROR(LOOKUP(2,1/((OHLCV!D$2:D22059=$B$1)*(OHLCV!A$2:A22059<A40)),OHLCV!B$2:B22059),"")) ->  | E40: =IF(C40, "", IFERROR(LOOKUP(2,1/((OHLCV!D$2:D22059=$B$1)*(OHLCV!A$2:A22059<A40)),OHLCV!E$2:E22059),"")) ->  | F40: =IF(C40, "", IFERROR(LOOKUP(2,1/((OHLCV!D$2:D22059=$B$1)*(OHLCV!A$2:A22059<A40)),OHLCV!F$2:F22059),"")) ->  | G40: =IF(C40, "", IFERROR(LOOKUP(2,1/((OHLCV!D$2:D22059=$B$1)*(OHLCV!A$2:A22059<A40)),OHLCV!G$2:G22059),"")) ->  | H40: =IF(C40, "", IFERROR(LOOKUP(2,1/((OHLCV!D$2:D22059=$B$1)*(OHLCV!A$2:A22059<A40)),OHLCV!H$2:H22059),"")) -> 
A41: 137 | B41: =IFERROR(LOOKUP(2,1/((OHLCV!D$2:D22060=$B$1)*(OHLCV!A$2:A22060<A41)),OHLCV!B$2:B22060),"") -> 2022-01-20T14:30:00 | C41: TRUE | D41: =IF(C41, "", IFERROR(LOOKUP(2,1/((OHLCV!D$2:D22060=$B$1)*(OHLCV!A$2:A22060<A41)),OHLCV!B$2:B22060),"")) ->  | E41: =IF(C41, "", IFERROR(LOOKUP(2,1/((OHLCV!D$2:D22060=$B$1)*(OHLCV!A$2:A22060<A41)),OHLCV!E$2:E22060),"")) ->  | F41: =IF(C41, "", IFERROR(LOOKUP(2,1/((OHLCV!D$2:D22060=$B$1)*(OHLCV!A$2:A22060<A41)),OHLCV!F$2:F22060),"")) ->  | G41: =IF(C41, "", IFERROR(LOOKUP(2,1/((OHLCV!D$2:D22060=$B$1)*(OHLCV!A$2:A22060<A41)),OHLCV!G$2:G22060),"")) ->  | H41: =IF(C41, "", IFERROR(LOOKUP(2,1/((OHLCV!D$2:D22060=$B$1)*(OHLCV!A$2:A22060<A41)),OHLCV!H$2:H22060),"")) -> 
A42: 138 | B42: =IFERROR(LOOKUP(2,1/((OHLCV!D$2:D22061=$B$1)*(OHLCV!A$2:A22061<A42)),OHLCV!B$2:B22061),"") -> 2022-01-20T14:30:00 | C42: TRUE | D42: =IF(C42, "", IFERROR(LOOKUP(2,1/((OHLCV!D$2:D22061=$B$1)*(OHLCV!A$2:A22061<A42)),OHLCV!B$2:B22061),"")) ->  | E42: =IF(C42, "", IFERROR(LOOKUP(2,1/((OHLCV!D$2:D22061=$B$1)*(OHLCV!A$2:A22061<A42)),OHLCV!E$2:E22061),"")) ->  | F42: =IF(C42, "", IFERROR(LOOKUP(2,1/((OHLCV!D$2:D22061=$B$1)*(OHLCV!A$2:A22061<A42)),OHLCV!F$2:F22061),"")) ->  | G42: =IF(C42, "", IFERROR(LOOKUP(2,1/((OHLCV!D$2:D22061=$B$1)*(OHLCV!A$2:A22061<A42)),OHLCV!G$2:G22061),"")) ->  | H42: =IF(C42, "", IFERROR(LOOKUP(2,1/((OHLCV!D$2:D22061=$B$1)*(OHLCV!A$2:A22061<A42)),OHLCV!H$2:H22061),"")) -> 
A43: 139 | B43: =IFERROR(LOOKUP(2,1/((OHLCV!D$2:D22062=$B$1)*(OHLCV!A$2:A22062<A43)),OHLCV!B$2:B22062),"") -> 2022-01-20T14:30:00 | C43: TRUE | D43: =IF(C43, "", IFERROR(LOOKUP(2,1/((OHLCV!D$2:D22062=$B$1)*(OHLCV!A$2:A22062<A43)),OHLCV!B$2:B22062),"")) ->  | E43: =IF(C43, "", IFERROR(LOOKUP(2,1/((OHLCV!D$2:D22062=$B$1)*(OHLCV!A$2:A22062<A43)),OHLCV!E$2:E22062),"")) ->  | F43: =IF(C43, "", IFERROR(LOOKUP(2,1/((OHLCV!D$2:D22062=$B$1)*(OHLCV!A$2:A22062<A43)),OHLCV!F$2:F22062),"")) ->  | G43: =IF(C43, "", IFERROR(LOOKUP(2,1/((OHLCV!D$2:D22062=$B$1)*(OHLCV!A$2:A22062<A43)),OHLCV!G$2:G22062),"")) ->  | H43: =IF(C43, "", IFERROR(LOOKUP(2,1/((OHLCV!D$2:D22062=$B$1)*(OHLCV!A$2:A22062<A43)),OHLCV!H$2:H22062),"")) -> 
A44: 140 | B44: =IFERROR(LOOKUP(2,1/((OHLCV!D$2:D22063=$B$1)*(OHLCV!A$2:A22063<A44)),OHLCV!B$2:B22063),"") -> 2022-01-21T14:30:00 | C44: FALSE | D44: =IF(C44, "", IFERROR(LOOKUP(2,1/((OHLCV!D$2:D22063=$B$1)*(OHLCV!A$2:A22063<A44)),OHLCV!B$2:B22063),"")) -> 2022-01-21T14:30:00 | E44: =IF(C44, "", IFERROR(LOOKUP(2,1/((OHLCV!D$2:D22063=$B$1)*(OHLCV!A$2:A22063<A44)),OHLCV!E$2:E22063),"")) -> $132.59 | F44: =IF(C44, "", IFERROR(LOOKUP(2,1/((OHLCV!D$2:D22063=$B$1)*(OHLCV!A$2:A22063<A44)),OHLCV!F$2:F22063),"")) -> $134.87 | G44: =IF(C44, "", IFERROR(LOOKUP(2,1/((OHLCV!D$2:D22063=$B$1)*(OHLCV!A$2:A22063<A44)),OHLCV!G$2:G22063),"")) -> $130.09 | H44: =IF(C44, "", IFERROR(LOOKUP(2,1/((OHLCV!D$2:D22063=$B$1)*(OHLCV!A$2:A22063<A44)),OHLCV!H$2:H22063),"")) -> $130.35
A45: 141 | B45: =IFERROR(LOOKUP(2,1/((OHLCV!D$2:D22064=$B$1)*(OHLCV!A$2:A22064<A45)),OHLCV!B$2:B22064),"") -> 2022-01-21T14:30:00 | C45: TRUE | D45: =IF(C45, "", IFERROR(LOOKUP(2,1/((OHLCV!D$2:D22064=$B$1)*(OHLCV!A$2:A22064<A45)),OHLCV!B$2:B22064),"")) ->  | E45: =IF(C45, "", IFERROR(LOOKUP(2,1/((OHLCV!D$2:D22064=$B$1)*(OHLCV!A$2:A22064<A45)),OHLCV!E$2:E22064),"")) ->  | F45: =IF(C45, "", IFERROR(LOOKUP(2,1/((OHLCV!D$2:D22064=$B$1)*(OHLCV!A$2:A22064<A45)),OHLCV!F$2:F22064),"")) ->  | G45: =IF(C45, "", IFERROR(LOOKUP(2,1/((OHLCV!D$2:D22064=$B$1)*(OHLCV!A$2:A22064<A45)),OHLCV!G$2:G22064),"")) ->  | H45: =IF(C45, "", IFERROR(LOOKUP(2,1/((OHLCV!D$2:D22064=$B$1)*(OHLCV!A$2:A22064<A45)),OHLCV!H$2:H22064),"")) -> 
A46: 142 | B46: =IFERROR(LOOKUP(2,1/((OHLCV!D$2:D22065=$B$1)*(OHLCV!A$2:A22065<A46)),OHLCV!B$2:B22065),"") -> 2022-01-21T14:30:00 | C46: TRUE | D46: =IF(C46, "", IFERROR(LOOKUP(2,1/((OHLCV!D$2:D22065=$B$1)*(OHLCV!A$2:A22065<A46)),OHLCV!B$2:B22065),"")) ->  | E46: =IF(C46, "", IFERROR(LOOKUP(2,1/((OHLCV!D$2:D22065=$B$1)*(OHLCV!A$2:A22065<A46)),OHLCV!E$2:E22065),"")) ->  | F46: =IF(C46, "", IFERROR(LOOKUP(2,1/((OHLCV!D$2:D22065=$B$1)*(OHLCV!A$2:A22065<A46)),OHLCV!F$2:F22065),"")) ->  | G46: =IF(C46, "", IFERROR(LOOKUP(2,1/((OHLCV!D$2:D22065=$B$1)*(OHLCV!A$2:A22065<A46)),OHLCV!G$2:G22065),"")) ->  | H46: =IF(C46, "", IFERROR(LOOKUP(2,1/((OHLCV!D$2:D22065=$B$1)*(OHLCV!A$2:A22065<A46)),OHLCV!H$2:H22065),"")) -> 
A47: 143 | B47: =IFERROR(LOOKUP(2,1/((OHLCV!D$2:D22066=$B$1)*(OHLCV!A$2:A22066<A47)),OHLCV!B$2:B22066),"") -> 2022-01-21T14:30:00 | C47: TRUE | D47: =IF(C47, "", IFERROR(LOOKUP(2,1/((OHLCV!D$2:D22066=$B$1)*(OHLCV!A$2:A22066<A47)),OHLCV!B$2:B22066),"")) ->  | E47: =IF(C47, "", IFERROR(LOOKUP(2,1/((OHLCV!D$2:D22066=$B$1)*(OHLCV!A$2:A22066<A47)),OHLCV!E$2:E22066),"")) ->  | F47: =IF(C47, "", IFERROR(LOOKUP(2,1/((OHLCV!D$2:D22066=$B$1)*(OHLCV!A$2:A22066<A47)),OHLCV!F$2:F22066),"")) ->  | G47: =IF(C47, "", IFERROR(LOOKUP(2,1/((OHLCV!D$2:D22066=$B$1)*(OHLCV!A$2:A22066<A47)),OHLCV!G$2:G22066),"")) ->  | H47: =IF(C47, "", IFERROR(LOOKUP(2,1/((OHLCV!D$2:D22066=$B$1)*(OHLCV!A$2:A22066<A47)),OHLCV!H$2:H22066),"")) -> 
A48: 144 | B48: =IFERROR(LOOKUP(2,1/((OHLCV!D$2:D22067=$B$1)*(OHLCV!A$2:A22067<A48)),OHLCV!B$2:B22067),"") -> 2022-01-21T14:30:00 | C48: TRUE | D48: =IF(C48, "", IFERROR(LOOKUP(2,1/((OHLCV!D$2:D22067=$B$1)*(OHLCV!A$2:A22067<A48)),OHLCV!B$2:B22067),"")) ->  | E48: =IF(C48, "", IFERROR(LOOKUP(2,1/((OHLCV!D$2:D22067=$B$1)*(OHLCV!A$2:A22067<A48)),OHLCV!E$2:E22067),"")) ->  | F48: =IF(C48, "", IFERROR(LOOKUP(2,1/((OHLCV!D$2:D22067=$B$1)*(OHLCV!A$2:A22067<A48)),OHLCV!F$2:F22067),"")) ->  | G48: =IF(C48, "", IFERROR(LOOKUP(2,1/((OHLCV!D$2:D22067=$B$1)*(OHLCV!A$2:A22067<A48)),OHLCV!G$2:G22067),"")) ->  | H48: =IF(C48, "", IFERROR(LOOKUP(2,1/((OHLCV!D$2:D22067=$B$1)*(OHLCV!A$2:A22067<A48)),OHLCV!H$2:H22067),"")) -> 
A49: 145 | B49: =IFERROR(LOOKUP(2,1/((OHLCV!D$2:D22068=$B$1)*(OHLCV!A$2:A22068<A49)),OHLCV!B$2:B22068),"") -> 2022-01-21T14:30:00 | C49: TRUE | D49: =IF(C49, "", IFERROR(LOOKUP(2,1/((OHLCV!D$2:D22068=$B$1)*(OHLCV!A$2:A22068<A49)),OHLCV!B$2:B22068),"")) ->  | E49: =IF(C49, "", IFERROR(LOOKUP(2,1/((OHLCV!D$2:D22068=$B$1)*(OHLCV!A$2:A22068<A49)),OHLCV!E$2:E22068),"")) ->  | F49: =IF(C49, "", IFERROR(LOOKUP(2,1/((OHLCV!D$2:D22068=$B$1)*(OHLCV!A$2:A22068<A49)),OHLCV!F$2:F22068),"")) ->  | G49: =IF(C49, "", IFERROR(LOOKUP(2,1/((OHLCV!D$2:D22068=$B$1)*(OHLCV!A$2:A22068<A49)),OHLCV!G$2:G22068),"")) ->  | H49: =IF(C49, "", IFERROR(LOOKUP(2,1/((OHLCV!D$2:D22068=$B$1)*(OHLCV!A$2:A22068<A49)),OHLCV!H$2:H22068),"")) -> 
A50: 146 | B50: =IFERROR(LOOKUP(2,1/((OHLCV!D$2:D22069=$B$1)*(OHLCV!A$2:A22069<A50)),OHLCV!B$2:B22069),"") -> 2022-01-21T14:30:00 | C50: TRUE | D50: =IF(C50, "", IFERROR(LOOKUP(2,1/((OHLCV!D$2:D22069=$B$1)*(OHLCV!A$2:A22069<A50)),OHLCV!B$2:B22069),"")) ->  | E50: =IF(C50, "", IFERROR(LOOKUP(2,1/((OHLCV!D$2:D22069=$B$1)*(OHLCV!A$2:A22069<A50)),OHLCV!E$2:E22069),"")) ->  | F50: =IF(C50, "", IFERROR(LOOKUP(2,1/((OHLCV!D$2:D22069=$B$1)*(OHLCV!A$2:A22069<A50)),OHLCV!F$2:F22069),"")) ->  | G50: =IF(C50, "", IFERROR(LOOKUP(2,1/((OHLCV!D$2:D22069=$B$1)*(OHLCV!A$2:A22069<A50)),OHLCV!G$2:G22069),"")) ->  | H50: =IF(C50, "", IFERROR(LOOKUP(2,1/((OHLCV!D$2:D22069=$B$1)*(OHLCV!A$2:A22069<A50)),OHLCV!H$2:H22069),"")) -> 
A51: 147 | B51: =IFERROR(LOOKUP(2,1/((OHLCV!D$2:D22070=$B$1)*(OHLCV!A$2:A22070<A51)),OHLCV!B$2:B22070),"") -> 2022-01-21T14:30:00 | C51: TRUE | D51: =IF(C51, "", IFERROR(LOOKUP(2,1/((OHLCV!D$2:D22070=$B$1)*(OHLCV!A$2:A22070<A51)),OHLCV!B$2:B22070),"")) ->  | E51: =IF(C51, "", IFERROR(LOOKUP(2,1/((OHLCV!D$2:D22070=$B$1)*(OHLCV!A$2:A22070<A51)),OHLCV!E$2:E22070),"")) ->  | F51: =IF(C51, "", IFERROR(LOOKUP(2,1/((OHLCV!D$2:D22070=$B$1)*(OHLCV!A$2:A22070<A51)),OHLCV!F$2:F22070),"")) ->  | G51: =IF(C51, "", IFERROR(LOOKUP(2,1/((OHLCV!D$2:D22070=$B$1)*(OHLCV!A$2:A22070<A51)),OHLCV!G$2:G22070),"")) ->  | H51: =IF(C51, "", IFERROR(LOOKUP(2,1/((OHLCV!D$2:D22070=$B$1)*(OHLCV!A$2:A22070<A51)),OHLCV!H$2:H22070),"")) -> 
A52: 148 | B52: =IFERROR(LOOKUP(2,1/((OHLCV!D$2:D22071=$B$1)*(OHLCV!A$2:A22071<A52)),OHLCV!B$2:B22071),"") -> 2022-01-21T14:30:00 | C52: TRUE | D52: =IF(C52, "", IFERROR(LOOKUP(2,1/((OHLCV!D$2:D22071=$B$1)*(OHLCV!A$2:A22071<A52)),OHLCV!B$2:B22071),"")) ->  | E52: =IF(C52, "", IFERROR(LOOKUP(2,1/((OHLCV!D$2:D22071=$B$1)*(OHLCV!A$2:A22071<A52)),OHLCV!E$2:E22071),"")) ->  | F52: =IF(C52, "", IFERROR(LOOKUP(2,1/((OHLCV!D$2:D22071=$B$1)*(OHLCV!A$2:A22071<A52)),OHLCV!F$2:F22071),"")) ->  | G52: =IF(C52, "", IFERROR(LOOKUP(2,1/((OHLCV!D$2:D22071=$B$1)*(OHLCV!A$2:A22071<A52)),OHLCV!G$2:G22071),"")) ->  | H52: =IF(C52, "", IFERROR(LOOKUP(2,1/((OHLCV!D$2:D22071=$B$1)*(OHLCV!A$2:A22071<A52)),OHLCV!H$2:H22071),"")) -> 
A53: 149 | B53: =IFERROR(LOOKUP(2,1/((OHLCV!D$2:D22072=$B$1)*(OHLCV!A$2:A22072<A53)),OHLCV!B$2:B22072),"") -> 2022-01-21T14:30:00 | C53: TRUE | D53: =IF(C53, "", IFERROR(LOOKUP(2,1/((OHLCV!D$2:D22072=$B$1)*(OHLCV!A$2:A22072<A53)),OHLCV!B$2:B22072),"")) ->  | E53: =IF(C53, "", IFERROR(LOOKUP(2,1/((OHLCV!D$2:D22072=$B$1)*(OHLCV!A$2:A22072<A53)),OHLCV!E$2:E22072),"")) ->  | F53: =IF(C53, "", IFERROR(LOOKUP(2,1/((OHLCV!D$2:D22072=$B$1)*(OHLCV!A$2:A22072<A53)),OHLCV!F$2:F22072),"")) ->  | G53: =IF(C53, "", IFERROR(LOOKUP(2,1/((OHLCV!D$2:D22072=$B$1)*(OHLCV!A$2:A22072<A53)),OHLCV!G$2:G22072),"")) ->  | H53: =IF(C53, "", IFERROR(LOOKUP(2,1/((OHLCV!D$2:D22072=$B$1)*(OHLCV!A$2:A22072<A53)),OHLCV!H$2:H22072),"")) -> 
A54: 150 | B54: =IFERROR(LOOKUP(2,1/((OHLCV!D$2:D22073=$B$1)*(OHLCV!A$2:A22073<A54)),OHLCV!B$2:B22073),"") -> 2022-01-21T14:30:00 | C54: TRUE | D54: =IF(C54, "", IFERROR(LOOKUP(2,1/((OHLCV!D$2:D22073=$B$1)*(OHLCV!A$2:A22073<A54)),OHLCV!B$2:B22073),"")) ->  | E54: =IF(C54, "", IFERROR(LOOKUP(2,1/((OHLCV!D$2:D22073=$B$1)*(OHLCV!A$2:A22073<A54)),OHLCV!E$2:E22073),"")) ->  | F54: =IF(C54, "", IFERROR(LOOKUP(2,1/((OHLCV!D$2:D22073=$B$1)*(OHLCV!A$2:A22073<A54)),OHLCV!F$2:F22073),"")) ->  | G54: =IF(C54, "", IFERROR(LOOKUP(2,1/((OHLCV!D$2:D22073=$B$1)*(OHLCV!A$2:A22073<A54)),OHLCV!G$2:G22073),"")) ->  | H54: =IF(C54, "", IFERROR(LOOKUP(2,1/((OHLCV!D$2:D22073=$B$1)*(OHLCV!A$2:A22073<A54)),OHLCV!H$2:H22073),"")) -> 
A55: 151 | B55: =IFERROR(LOOKUP(2,1/((OHLCV!D$2:D22074=$B$1)*(OHLCV!A$2:A22074<A55)),OHLCV!B$2:B22074),"") -> 2022-01-21T14:30:00 | C55: TRUE | D55: =IF(C55, "", IFERROR(LOOKUP(2,1/((OHLCV!D$2:D22074=$B$1)*(OHLCV!A$2:A22074<A55)),OHLCV!B$2:B22074),"")) ->  | E55: =IF(C55, "", IFERROR(LOOKUP(2,1/((OHLCV!D$2:D22074=$B$1)*(OHLCV!A$2:A22074<A55)),OHLCV!E$2:E22074),"")) ->  | F55: =IF(C55, "", IFERROR(LOOKUP(2,1/((OHLCV!D$2:D22074=$B$1)*(OHLCV!A$2:A22074<A55)),OHLCV!F$2:F22074),"")) ->  | G55: =IF(C55, "", IFERROR(LOOKUP(2,1/((OHLCV!D$2:D22074=$B$1)*(OHLCV!A$2:A22074<A55)),OHLCV!G$2:G22074),"")) ->  | H55: =IF(C55, "", IFERROR(LOOKUP(2,1/((OHLCV!D$2:D22074=$B$1)*(OHLCV!A$2:A22074<A55)),OHLCV!H$2:H22074),"")) -> 
A56: 152 | B56: =IFERROR(LOOKUP(2,1/((OHLCV!D$2:D22075=$B$1)*(OHLCV!A$2:A22075<A56)),OHLCV!B$2:B22075),"") -> 2022-01-21T14:30:00 | C56: TRUE | D56: =IF(C56, "", IFERROR(LOOKUP(2,1/((OHLCV!D$2:D22075=$B$1)*(OHLCV!A$2:A22075<A56)),OHLCV!B$2:B22075),"")) ->  | E56: =IF(C56, "", IFERROR(LOOKUP(2,1/((OHLCV!D$2:D22075=$B$1)*(OHLCV!A$2:A22075<A56)),OHLCV!E$2:E22075),"")) ->  | F56: =IF(C56, "", IFERROR(LOOKUP(2,1/((OHLCV!D$2:D22075=$B$1)*(OHLCV!A$2:A22075<A56)),OHLCV!F$2:F22075),"")) ->  | G56: =IF(C56, "", IFERROR(LOOKUP(2,1/((OHLCV!D$2:D22075=$B$1)*(OHLCV!A$2:A22075<A56)),OHLCV!G$2:G22075),"")) ->  | H56: =IF(C56, "", IFERROR(LOOKUP(2,1/((OHLCV!D$2:D22075=$B$1)*(OHLCV!A$2:A22075<A56)),OHLCV!H$2:H22075),"")) -> 
A57: 153 | B57: =IFERROR(LOOKUP(2,1/((OHLCV!D$2:D22076=$B$1)*(OHLCV!A$2:A22076<A57)),OHLCV!B$2:B22076),"") -> 2022-01-21T14:30:00 | C57: TRUE | D57: =IF(C57, "", IFERROR(LOOKUP(2,1/((OHLCV!D$2:D22076=$B$1)*(OHLCV!A$2:A22076<A57)),OHLCV!B$2:B22076),"")) ->  | E57: =IF(C57, "", IFERROR(LOOKUP(2,1/((OHLCV!D$2:D22076=$B$1)*(OHLCV!A$2:A22076<A57)),OHLCV!E$2:E22076),"")) ->  | F57: =IF(C57, "", IFERROR(LOOKUP(2,1/((OHLCV!D$2:D22076=$B$1)*(OHLCV!A$2:A22076<A57)),OHLCV!F$2:F22076),"")) ->  | G57: =IF(C57, "", IFERROR(LOOKUP(2,1/((OHLCV!D$2:D22076=$B$1)*(OHLCV!A$2:A22076<A57)),OHLCV!G$2:G22076),"")) ->  | H57: =IF(C57, "", IFERROR(LOOKUP(2,1/((OHLCV!D$2:D22076=$B$1)*(OHLCV!A$2:A22076<A57)),OHLCV!H$2:H22076),"")) -> 
A58: 154 | B58: =IFERROR(LOOKUP(2,1/((OHLCV!D$2:D22077=$B$1)*(OHLCV!A$2:A22077<A58)),OHLCV!B$2:B22077),"") -> 2022-01-21T14:30:00 | C58: TRUE | D58: =IF(C58, "", IFERROR(LOOKUP(2,1/((OHLCV!D$2:D22077=$B$1)*(OHLCV!A$2:A22077<A58)),OHLCV!B$2:B22077),"")) ->  | E58: =IF(C58, "", IFERROR(LOOKUP(2,1/((OHLCV!D$2:D22077=$B$1)*(OHLCV!A$2:A22077<A58)),OHLCV!E$2:E22077),"")) ->  | F58: =IF(C58, "", IFERROR(LOOKUP(2,1/((OHLCV!D$2:D22077=$B$1)*(OHLCV!A$2:A22077<A58)),OHLCV!F$2:F22077),"")) ->  | G58: =IF(C58, "", IFERROR(LOOKUP(2,1/((OHLCV!D$2:D22077=$B$1)*(OHLCV!A$2:A22077<A58)),OHLCV!G$2:G22077),"")) ->  | H58: =IF(C58, "", IFERROR(LOOKUP(2,1/((OHLCV!D$2:D22077=$B$1)*(OHLCV!A$2:A22077<A58)),OHLCV!H$2:H22077),"")) -> 
A59: 155 | B59: =IFERROR(LOOKUP(2,1/((OHLCV!D$2:D22078=$B$1)*(OHLCV!A$2:A22078<A59)),OHLCV!B$2:B22078),"") -> 2022-01-21T14:30:00 | C59: TRUE | D59: =IF(C59, "", IFERROR(LOOKUP(2,1/((OHLCV!D$2:D22078=$B$1)*(OHLCV!A$2:A22078<A59)),OHLCV!B$2:B22078),"")) ->  | E59: =IF(C59, "", IFERROR(LOOKUP(2,1/((OHLCV!D$2:D22078=$B$1)*(OHLCV!A$2:A22078<A59)),OHLCV!E$2:E22078),"")) ->  | F59: =IF(C59, "", IFERROR(LOOKUP(2,1/((OHLCV!D$2:D22078=$B$1)*(OHLCV!A$2:A22078<A59)),OHLCV!F$2:F22078),"")) ->  | G59: =IF(C59, "", IFERROR(LOOKUP(2,1/((OHLCV!D$2:D22078=$B$1)*(OHLCV!A$2:A22078<A59)),OHLCV!G$2:G22078),"")) ->  | H59: =IF(C59, "", IFERROR(LOOKUP(2,1/((OHLCV!D$2:D22078=$B$1)*(OHLCV!A$2:A22078<A59)),OHLCV!H$2:H22078),"")) -> 
A60: 156 | B60: =IFERROR(LOOKUP(2,1/((OHLCV!D$2:D22079=$B$1)*(OHLCV!A$2:A22079<A60)),OHLCV!B$2:B22079),"") -> 2022-01-24T14:30:00 | C60: FALSE | D60: =IF(C60, "", IFERROR(LOOKUP(2,1/((OHLCV!D$2:D22079=$B$1)*(OHLCV!A$2:A22079<A60)),OHLCV!B$2:B22079),"")) -> 2022-01-24T14:30:00 | E60: =IF(C60, "", IFERROR(LOOKUP(2,1/((OHLCV!D$2:D22079=$B$1)*(OHLCV!A$2:A22079<A60)),OHLCV!E$2:E22079),"")) -> $125.98 | F60: =IF(C60, "", IFERROR(LOOKUP(2,1/((OHLCV!D$2:D22079=$B$1)*(OHLCV!A$2:A22079<A60)),OHLCV!F$2:F22079),"")) -> $131.20 | G60: =IF(C60, "", IFERROR(LOOKUP(2,1/((OHLCV!D$2:D22079=$B$1)*(OHLCV!A$2:A22079<A60)),OHLCV!G$2:G22079),"")) -> $124.50 | H60: =IF(C60, "", IFERROR(LOOKUP(2,1/((OHLCV!D$2:D22079=$B$1)*(OHLCV!A$2:A22079<A60)),OHLCV!H$2:H22079),"")) -> $130.80
A61: 157 | B61: =IFERROR(LOOKUP(2,1/((OHLCV!D$2:D22080=$B$1)*(OHLCV!A$2:A22080<A61)),OHLCV!B$2:B22080),"") -> 2022-01-24T14:30:00 | C61: TRUE | D61: =IF(C61, "", IFERROR(LOOKUP(2,1/((OHLCV!D$2:D22080=$B$1)*(OHLCV!A$2:A22080<A61)),OHLCV!B$2:B22080),"")) ->  | E61: =IF(C61, "", IFERROR(LOOKUP(2,1/((OHLCV!D$2:D22080=$B$1)*(OHLCV!A$2:A22080<A61)),OHLCV!E$2:E22080),"")) ->  | F61: =IF(C61, "", IFERROR(LOOKUP(2,1/((OHLCV!D$2:D22080=$B$1)*(OHLCV!A$2:A22080<A61)),OHLCV!F$2:F22080),"")) ->  | G61: =IF(C61, "", IFERROR(LOOKUP(2,1/((OHLCV!D$2:D22080=$B$1)*(OHLCV!A$2:A22080<A61)),OHLCV!G$2:G22080),"")) ->  | H61: =IF(C61, "", IFERROR(LOOKUP(2,1/((OHLCV!D$2:D22080=$B$1)*(OHLCV!A$2:A22080<A61)),OHLCV!H$2:H22080),"")) -> 
A62: 158 | B62: =IFERROR(LOOKUP(2,1/((OHLCV!D$2:D22081=$B$1)*(OHLCV!A$2:A22081<A62)),OHLCV!B$2:B22081),"") -> 2022-01-24T14:30:00 | C62: TRUE | D62: =IF(C62, "", IFERROR(LOOKUP(2,1/((OHLCV!D$2:D22081=$B$1)*(OHLCV!A$2:A22081<A62)),OHLCV!B$2:B22081),"")) ->  | E62: =IF(C62, "", IFERROR(LOOKUP(2,1/((OHLCV!D$2:D22081=$B$1)*(OHLCV!A$2:A22081<A62)),OHLCV!E$2:E22081),"")) ->  | F62: =IF(C62, "", IFERROR(LOOKUP(2,1/((OHLCV!D$2:D22081=$B$1)*(OHLCV!A$2:A22081<A62)),OHLCV!F$2:F22081),"")) ->  | G62: =IF(C62, "", IFERROR(LOOKUP(2,1/((OHLCV!D$2:D22081=$B$1)*(OHLCV!A$2:A22081<A62)),OHLCV!G$2:G22081),"")) ->  | H62: =IF(C62, "", IFERROR(LOOKUP(2,1/((OHLCV!D$2:D22081=$B$1)*(OHLCV!A$2:A22081<A62)),OHLCV!H$2:H22081),"")) -> 
A63: 159 | B63: =IFERROR(LOOKUP(2,1/((OHLCV!D$2:D22082=$B$1)*(OHLCV!A$2:A22082<A63)),OHLCV!B$2:B22082),"") -> 2022-01-24T14:30:00 | C63: TRUE | D63: =IF(C63, "", IFERROR(LOOKUP(2,1/((OHLCV!D$2:D22082=$B$1)*(OHLCV!A$2:A22082<A63)),OHLCV!B$2:B22082),"")) ->  | E63: =IF(C63, "", IFERROR(LOOKUP(2,1/((OHLCV!D$2:D22082=$B$1)*(OHLCV!A$2:A22082<A63)),OHLCV!E$2:E22082),"")) ->  | F63: =IF(C63, "", IFERROR(LOOKUP(2,1/((OHLCV!D$2:D22082=$B$1)*(OHLCV!A$2:A22082<A63)),OHLCV!F$2:F22082),"")) ->  | G63: =IF(C63, "", IFERROR(LOOKUP(2,1/((OHLCV!D$2:D22082=$B$1)*(OHLCV!A$2:A22082<A63)),OHLCV!G$2:G22082),"")) ->  | H63: =IF(C63, "", IFERROR(LOOKUP(2,1/((OHLCV!D$2:D22082=$B$1)*(OHLCV!A$2:A22082<A63)),OHLCV!H$2:H22082),"")) -> 
A64: 160 | B64: =IFERROR(LOOKUP(2,1/((OHLCV!D$2:D22083=$B$1)*(OHLCV!A$2:A22083<A64)),OHLCV!B$2:B22083),"") -> 2022-01-24T14:30:00 | C64: TRUE | D64: =IF(C64, "", IFERROR(LOOKUP(2,1/((OHLCV!D$2:D22083=$B$1)*(OHLCV!A$2:A22083<A64)),OHLCV!B$2:B22083),"")) ->  | E64: =IF(C64, "", IFERROR(LOOKUP(2,1/((OHLCV!D$2:D22083=$B$1)*(OHLCV!A$2:A22083<A64)),OHLCV!E$2:E22083),"")) ->  | F64: =IF(C64, "", IFERROR(LOOKUP(2,1/((OHLCV!D$2:D22083=$B$1)*(OHLCV!A$2:A22083<A64)),OHLCV!F$2:F22083),"")) ->  | G64: =IF(C64, "", IFERROR(LOOKUP(2,1/((OHLCV!D$2:D22083=$B$1)*(OHLCV!A$2:A22083<A64)),OHLCV!G$2:G22083),"")) ->  | H64: =IF(C64, "", IFERROR(LOOKUP(2,1/((OHLCV!D$2:D22083=$B$1)*(OHLCV!A$2:A22083<A64)),OHLCV!H$2:H22083),"")) -> 
A65: 161 | B65: =IFERROR(LOOKUP(2,1/((OHLCV!D$2:D22084=$B$1)*(OHLCV!A$2:A22084<A65)),OHLCV!B$2:B22084),"") -> 2022-01-24T14:30:00 | C65: TRUE | D65: =IF(C65, "", IFERROR(LOOKUP(2,1/((OHLCV!D$2:D22084=$B$1)*(OHLCV!A$2:A22084<A65)),OHLCV!B$2:B22084),"")) ->  | E65: =IF(C65, "", IFERROR(LOOKUP(2,1/((OHLCV!D$2:D22084=$B$1)*(OHLCV!A$2:A22084<A65)),OHLCV!E$2:E22084),"")) ->  | F65: =IF(C65, "", IFERROR(LOOKUP(2,1/((OHLCV!D$2:D22084=$B$1)*(OHLCV!A$2:A22084<A65)),OHLCV!F$2:F22084),"")) ->  | G65: =IF(C65, "", IFERROR(LOOKUP(2,1/((OHLCV!D$2:D22084=$B$1)*(OHLCV!A$2:A22084<A65)),OHLCV!G$2:G22084),"")) ->  | H65: =IF(C65, "", IFERROR(LOOKUP(2,1/((OHLCV!D$2:D22084=$B$1)*(OHLCV!A$2:A22084<A65)),OHLCV!H$2:H22084),"")) -> 
A66: 162 | B66: =IFERROR(LOOKUP(2,1/((OHLCV!D$2:D22085=$B$1)*(OHLCV!A$2:A22085<A66)),OHLCV!B$2:B22085),"") -> 2022-01-24T14:30:00 | C66: TRUE | D66: =IF(C66, "", IFERROR(LOOKUP(2,1/((OHLCV!D$2:D22085=$B$1)*(OHLCV!A$2:A22085<A66)),OHLCV!B$2:B22085),"")) ->  | E66: =IF(C66, "", IFERROR(LOOKUP(2,1/((OHLCV!D$2:D22085=$B$1)*(OHLCV!A$2:A22085<A66)),OHLCV!E$2:E22085),"")) ->  | F66: =IF(C66, "", IFERROR(LOOKUP(2,1/((OHLCV!D$2:D22085=$B$1)*(OHLCV!A$2:A22085<A66)),OHLCV!F$2:F22085),"")) ->  | G66: =IF(C66, "", IFERROR(LOOKUP(2,1/((OHLCV!D$2:D22085=$B$1)*(OHLCV!A$2:A22085<A66)),OHLCV!G$2:G22085),"")) ->  | H66: =IF(C66, "", IFERROR(LOOKUP(2,1/((OHLCV!D$2:D22085=$B$1)*(OHLCV!A$2:A22085<A66)),OHLCV!H$2:H22085),"")) -> 
A67: 163 | B67: =IFERROR(LOOKUP(2,1/((OHLCV!D$2:D22086=$B$1)*(OHLCV!A$2:A22086<A67)),OHLCV!B$2:B22086),"") -> 2022-01-24T14:30:00 | C67: TRUE | D67: =IF(C67, "", IFERROR(LOOKUP(2,1/((OHLCV!D$2:D22086=$B$1)*(OHLCV!A$2:A22086<A67)),OHLCV!B$2:B22086),"")) ->  | E67: =IF(C67, "", IFERROR(LOOKUP(2,1/((OHLCV!D$2:D22086=$B$1)*(OHLCV!A$2:A22086<A67)),OHLCV!E$2:E22086),"")) ->  | F67: =IF(C67, "", IFERROR(LOOKUP(2,1/((OHLCV!D$2:D22086=$B$1)*(OHLCV!A$2:A22086<A67)),OHLCV!F$2:F22086),"")) ->  | G67: =IF(C67, "", IFERROR(LOOKUP(2,1/((OHLCV!D$2:D22086=$B$1)*(OHLCV!A$2:A22086<A67)),OHLCV!G$2:G22086),"")) ->  | H67: =IF(C67, "", IFERROR(LOOKUP(2,1/((OHLCV!D$2:D22086=$B$1)*(OHLCV!A$2:A22086<A67)),OHLCV!H$2:H22086),"")) -> 
A68: 164 | B68: =IFERROR(LOOKUP(2,1/((OHLCV!D$2:D22087=$B$1)*(OHLCV!A$2:A22087<A68)),OHLCV!B$2:B22087),"") -> 2022-01-25T14:30:00 | C68: FALSE | D68: =IF(C68, "", IFERROR(LOOKUP(2,1/((OHLCV!D$2:D22087=$B$1)*(OHLCV!A$2:A22087<A68)),OHLCV!B$2:B22087),"")) -> 2022-01-25T14:30:00 | E68: =IF(C68, "", IFERROR(LOOKUP(2,1/((OHLCV!D$2:D22087=$B$1)*(OHLCV!A$2:A22087<A68)),OHLCV!E$2:E22087),"")) -> $128.74 | F68: =IF(C68, "", IFERROR(LOOKUP(2,1/((OHLCV!D$2:D22087=$B$1)*(OHLCV!A$2:A22087<A68)),OHLCV!F$2:F22087),"")) -> $129.40 | G68: =IF(C68, "", IFERROR(LOOKUP(2,1/((OHLCV!D$2:D22087=$B$1)*(OHLCV!A$2:A22087<A68)),OHLCV!G$2:G22087),"")) -> $126.50 | H68: =IF(C68, "", IFERROR(LOOKUP(2,1/((OHLCV!D$2:D22087=$B$1)*(OHLCV!A$2:A22087<A68)),OHLCV!H$2:H22087),"")) -> $126.94
A69: 165 | B69: =IFERROR(LOOKUP(2,1/((OHLCV!D$2:D22088=$B$1)*(OHLCV!A$2:A22088<A69)),OHLCV!B$2:B22088),"") -> 2022-01-25T14:30:00 | C69: TRUE | D69: =IF(C69, "", IFERROR(LOOKUP(2,1/((OHLCV!D$2:D22088=$B$1)*(OHLCV!A$2:A22088<A69)),OHLCV!B$2:B22088),"")) ->  | E69: =IF(C69, "", IFERROR(LOOKUP(2,1/((OHLCV!D$2:D22088=$B$1)*(OHLCV!A$2:A22088<A69)),OHLCV!E$2:E22088),"")) ->  | F69: =IF(C69, "", IFERROR(LOOKUP(2,1/((OHLCV!D$2:D22088=$B$1)*(OHLCV!A$2:A22088<A69)),OHLCV!F$2:F22088),"")) ->  | G69: =IF(C69, "", IFERROR(LOOKUP(2,1/((OHLCV!D$2:D22088=$B$1)*(OHLCV!A$2:A22088<A69)),OHLCV!G$2:G22088),"")) ->  | H69: =IF(C69, "", IFERROR(LOOKUP(2,1/((OHLCV!D$2:D22088=$B$1)*(OHLCV!A$2:A22088<A69)),OHLCV!H$2:H22088),"")) -> 
A70: =A69+1 -> 166 | B70: =IFERROR(LOOKUP(2,1/((OHLCV!D$2:D22089=$B$1)*(OHLCV!A$2:A22089<A70)),OHLCV!B$2:B22089),"") -> 2022-01-25T14:30:00 | C70: =B70 = B69 -> TRUE | D70: =IF(C70, "", IFERROR(LOOKUP(2,1/((OHLCV!D$2:D22089=$B$1)*(OHLCV!A$2:A22089<A70)),OHLCV!B$2:B22089),"")) ->  | E70: =IF(C70, "", IFERROR(LOOKUP(2,1/((OHLCV!D$2:D22089=$B$1)*(OHLCV!A$2:A22089<A70)),OHLCV!E$2:E22089),"")) ->  | F70: =IF(C70, "", IFERROR(LOOKUP(2,1/((OHLCV!D$2:D22089=$B$1)*(OHLCV!A$2:A22089<A70)),OHLCV!F$2:F22089),"")) ->  | G70: =IF(C70, "", IFERROR(LOOKUP(2,1/((OHLCV!D$2:D22089=$B$1)*(OHLCV!A$2:A22089<A70)),OHLCV!G$2:G22089),"")) ->  | H70: =IF(C70, "", IFERROR(LOOKUP(2,1/((OHLCV!D$2:D22089=$B$1)*(OHLCV!A$2:A22089<A70)),OHLCV!H$2:H22089),"")) -> 
A71: 167 | B71: =IFERROR(LOOKUP(2,1/((OHLCV!D$2:D22090=$B$1)*(OHLCV!A$2:A22090<A71)),OHLCV!B$2:B22090),"") -> 2022-01-25T14:30:00 | C71: TRUE | D71: =IF(C71, "", IFERROR(LOOKUP(2,1/((OHLCV!D$2:D22090=$B$1)*(OHLCV!A$2:A22090<A71)),OHLCV!B$2:B22090),"")) ->  | E71: =IF(C71, "", IFERROR(LOOKUP(2,1/((OHLCV!D$2:D22090=$B$1)*(OHLCV!A$2:A22090<A71)),OHLCV!E$2:E22090),"")) ->  | F71: =IF(C71, "", IFERROR(LOOKUP(2,1/((OHLCV!D$2:D22090=$B$1)*(OHLCV!A$2:A22090<A71)),OHLCV!F$2:F22090),"")) ->  | G71: =IF(C71, "", IFERROR(LOOKUP(2,1/((OHLCV!D$2:D22090=$B$1)*(OHLCV!A$2:A22090<A71)),OHLCV!G$2:G22090),"")) ->  | H71: =IF(C71, "", IFERROR(LOOKUP(2,1/((OHLCV!D$2:D22090=$B$1)*(OHLCV!A$2:A22090<A71)),OHLCV!H$2:H22090),"")) -> 
A72: 168 | B72: =IFERROR(LOOKUP(2,1/((OHLCV!D$2:D22091=$B$1)*(OHLCV!A$2:A22091<A72)),OHLCV!B$2:B22091),"") -> 2022-01-25T14:30:00 | C72: TRUE | D72: =IF(C72, "", IFERROR(LOOKUP(2,1/((OHLCV!D$2:D22091=$B$1)*(OHLCV!A$2:A22091<A72)),OHLCV!B$2:B22091),"")) ->  | E72: =IF(C72, "", IFERROR(LOOKUP(2,1/((OHLCV!D$2:D22091=$B$1)*(OHLCV!A$2:A22091<A72)),OHLCV!E$2:E22091),"")) ->  | F72: =IF(C72, "", IFERROR(LOOKUP(2,1/((OHLCV!D$2:D22091=$B$1)*(OHLCV!A$2:A22091<A72)),OHLCV!F$2:F22091),"")) ->  | G72: =IF(C72, "", IFERROR(LOOKUP(2,1/((OHLCV!D$2:D22091=$B$1)*(OHLCV!A$2:A22091<A72)),OHLCV!G$2:G22091),"")) ->  | H72: =IF(C72, "", IFERROR(LOOKUP(2,1/((OHLCV!D$2:D22091=$B$1)*(OHLCV!A$2:A22091<A72)),OHLCV!H$2:H22091),"")) -> 
A73: 169 | B73: =IFERROR(LOOKUP(2,1/((OHLCV!D$2:D22092=$B$1)*(OHLCV!A$2:A22092<A73)),OHLCV!B$2:B22092),"") -> 2022-01-25T14:30:00 | C73: TRUE | D73: =IF(C73, "", IFERROR(LOOKUP(2,1/((OHLCV!D$2:D22092=$B$1)*(OHLCV!A$2:A22092<A73)),OHLCV!B$2:B22092),"")) ->  | E73: =IF(C73, "", IFERROR(LOOKUP(2,1/((OHLCV!D$2:D22092=$B$1)*(OHLCV!A$2:A22092<A73)),OHLCV!E$2:E22092),"")) ->  | F73: =IF(C73, "", IFERROR(LOOKUP(2,1/((OHLCV!D$2:D22092=$B$1)*(OHLCV!A$2:A22092<A73)),OHLCV!F$2:F22092),"")) ->  | G73: =IF(C73, "", IFERROR(LOOKUP(2,1/((OHLCV!D$2:D22092=$B$1)*(OHLCV!A$2:A22092<A73)),OHLCV!G$2:G22092),"")) ->  | H73: =IF(C73, "", IFERROR(LOOKUP(2,1/((OHLCV!D$2:D22092=$B$1)*(OHLCV!A$2:A22092<A73)),OHLCV!H$2:H22092),"")) -> 
A74: 170 | B74: =IFERROR(LOOKUP(2,1/((OHLCV!D$2:D22093=$B$1)*(OHLCV!A$2:A22093<A74)),OHLCV!B$2:B22093),"") -> 2022-01-25T14:30:00 | C74: TRUE | D74: =IF(C74, "", IFERROR(LOOKUP(2,1/((OHLCV!D$2:D22093=$B$1)*(OHLCV!A$2:A22093<A74)),OHLCV!B$2:B22093),"")) ->  | E74: =IF(C74, "", IFERROR(LOOKUP(2,1/((OHLCV!D$2:D22093=$B$1)*(OHLCV!A$2:A22093<A74)),OHLCV!E$2:E22093),"")) ->  | F74: =IF(C74, "", IFERROR(LOOKUP(2,1/((OHLCV!D$2:D22093=$B$1)*(OHLCV!A$2:A22093<A74)),OHLCV!F$2:F22093),"")) ->  | G74: =IF(C74, "", IFERROR(LOOKUP(2,1/((OHLCV!D$2:D22093=$B$1)*(OHLCV!A$2:A22093<A74)),OHLCV!G$2:G22093),"")) ->  | H74: =IF(C74, "", IFERROR(LOOKUP(2,1/((OHLCV!D$2:D22093=$B$1)*(OHLCV!A$2:A22093<A74)),OHLCV!H$2:H22093),"")) -> 
A75: 171 | B75: =IFERROR(LOOKUP(2,1/((OHLCV!D$2:D22094=$B$1)*(OHLCV!A$2:A22094<A75)),OHLCV!B$2:B22094),"") -> 2022-01-25T14:30:00 | C75: TRUE | D75: =IF(C75, "", IFERROR(LOOKUP(2,1/((OHLCV!D$2:D22094=$B$1)*(OHLCV!A$2:A22094<A75)),OHLCV!B$2:B22094),"")) ->  | E75: =IF(C75, "", IFERROR(LOOKUP(2,1/((OHLCV!D$2:D22094=$B$1)*(OHLCV!A$2:A22094<A75)),OHLCV!E$2:E22094),"")) ->  | F75: =IF(C75, "", IFERROR(LOOKUP(2,1/((OHLCV!D$2:D22094=$B$1)*(OHLCV!A$2:A22094<A75)),OHLCV!F$2:F22094),"")) ->  | G75: =IF(C75, "", IFERROR(LOOKUP(2,1/((OHLCV!D$2:D22094=$B$1)*(OHLCV!A$2:A22094<A75)),OHLCV!G$2:G22094),"")) ->  | H75: =IF(C75, "", IFERROR(LOOKUP(2,1/((OHLCV!D$2:D22094=$B$1)*(OHLCV!A$2:A22094<A75)),OHLCV!H$2:H22094),"")) -> 
A76: 172 | B76: =IFERROR(LOOKUP(2,1/((OHLCV!D$2:D22095=$B$1)*(OHLCV!A$2:A22095<A76)),OHLCV!B$2:B22095),"") -> 2022-01-25T14:30:00 | C76: TRUE | D76: =IF(C76, "", IFERROR(LOOKUP(2,1/((OHLCV!D$2:D22095=$B$1)*(OHLCV!A$2:A22095<A76)),OHLCV!B$2:B22095),"")) ->  | E76: =IF(C76, "", IFERROR(LOOKUP(2,1/((OHLCV!D$2:D22095=$B$1)*(OHLCV!A$2:A22095<A76)),OHLCV!E$2:E22095),"")) ->  | F76: =IF(C76, "", IFERROR(LOOKUP(2,1/((OHLCV!D$2:D22095=$B$1)*(OHLCV!A$2:A22095<A76)),OHLCV!F$2:F22095),"")) ->  | G76: =IF(C76, "", IFERROR(LOOKUP(2,1/((OHLCV!D$2:D22095=$B$1)*(OHLCV!A$2:A22095<A76)),OHLCV!G$2:G22095),"")) ->  | H76: =IF(C76, "", IFERROR(LOOKUP(2,1/((OHLCV!D$2:D22095=$B$1)*(OHLCV!A$2:A22095<A76)),OHLCV!H$2:H22095),"")) -> 
A77: 173 | B77: =IFERROR(LOOKUP(2,1/((OHLCV!D$2:D22096=$B$1)*(OHLCV!A$2:A22096<A77)),OHLCV!B$2:B22096),"") -> 2022-01-26T14:30:00 | C77: FALSE | D77: =IF(C77, "", IFERROR(LOOKUP(2,1/((OHLCV!D$2:D22096=$B$1)*(OHLCV!A$2:A22096<A77)),OHLCV!B$2:B22096),"")) -> 2022-01-26T14:30:00 | E77: =IF(C77, "", IFERROR(LOOKUP(2,1/((OHLCV!D$2:D22096=$B$1)*(OHLCV!A$2:A22096<A77)),OHLCV!E$2:E22096),"")) -> $131.12 | F77: =IF(C77, "", IFERROR(LOOKUP(2,1/((OHLCV!D$2:D22096=$B$1)*(OHLCV!A$2:A22096<A77)),OHLCV!F$2:F22096),"")) -> $133.00 | G77: =IF(C77, "", IFERROR(LOOKUP(2,1/((OHLCV!D$2:D22096=$B$1)*(OHLCV!A$2:A22096<A77)),OHLCV!G$2:G22096),"")) -> $127.14 | H77: =IF(C77, "", IFERROR(LOOKUP(2,1/((OHLCV!D$2:D22096=$B$1)*(OHLCV!A$2:A22096<A77)),OHLCV!H$2:H22096),"")) -> $129.23
A78: 174 | B78: =IFERROR(LOOKUP(2,1/((OHLCV!D$2:D22097=$B$1)*(OHLCV!A$2:A22097<A78)),OHLCV!B$2:B22097),"") -> 2022-01-26T14:30:00 | C78: TRUE | D78: =IF(C78, "", IFERROR(LOOKUP(2,1/((OHLCV!D$2:D22097=$B$1)*(OHLCV!A$2:A22097<A78)),OHLCV!B$2:B22097),"")) ->  | E78: =IF(C78, "", IFERROR(LOOKUP(2,1/((OHLCV!D$2:D22097=$B$1)*(OHLCV!A$2:A22097<A78)),OHLCV!E$2:E22097),"")) ->  | F78: =IF(C78, "", IFERROR(LOOKUP(2,1/((OHLCV!D$2:D22097=$B$1)*(OHLCV!A$2:A22097<A78)),OHLCV!F$2:F22097),"")) ->  | G78: =IF(C78, "", IFERROR(LOOKUP(2,1/((OHLCV!D$2:D22097=$B$1)*(OHLCV!A$2:A22097<A78)),OHLCV!G$2:G22097),"")) ->  | H78: =IF(C78, "", IFERROR(LOOKUP(2,1/((OHLCV!D$2:D22097=$B$1)*(OHLCV!A$2:A22097<A78)),OHLCV!H$2:H22097),"")) -> 
A79: 175 | B79: =IFERROR(LOOKUP(2,1/((OHLCV!D$2:D22098=$B$1)*(OHLCV!A$2:A22098<A79)),OHLCV!B$2:B22098),"") -> 2022-01-26T14:30:00 | C79: TRUE | D79: =IF(C79, "", IFERROR(LOOKUP(2,1/((OHLCV!D$2:D22098=$B$1)*(OHLCV!A$2:A22098<A79)),OHLCV!B$2:B22098),"")) ->  | E79: =IF(C79, "", IFERROR(LOOKUP(2,1/((OHLCV!D$2:D22098=$B$1)*(OHLCV!A$2:A22098<A79)),OHLCV!E$2:E22098),"")) ->  | F79: =IF(C79, "", IFERROR(LOOKUP(2,1/((OHLCV!D$2:D22098=$B$1)*(OHLCV!A$2:A22098<A79)),OHLCV!F$2:F22098),"")) ->  | G79: =IF(C79, "", IFERROR(LOOKUP(2,1/((OHLCV!D$2:D22098=$B$1)*(OHLCV!A$2:A22098<A79)),OHLCV!G$2:G22098),"")) ->  | H79: =IF(C79, "", IFERROR(LOOKUP(2,1/((OHLCV!D$2:D22098=$B$1)*(OHLCV!A$2:A22098<A79)),OHLCV!H$2:H22098),"")) -> 
A80: 176 | B80: =IFERROR(LOOKUP(2,1/((OHLCV!D$2:D22099=$B$1)*(OHLCV!A$2:A22099<A80)),OHLCV!B$2:B22099),"") -> 2022-01-26T14:30:00 | C80: TRUE | D80: =IF(C80, "", IFERROR(LOOKUP(2,1/((OHLCV!D$2:D22099=$B$1)*(OHLCV!A$2:A22099<A80)),OHLCV!B$2:B22099),"")) ->  | E80: =IF(C80, "", IFERROR(LOOKUP(2,1/((OHLCV!D$2:D22099=$B$1)*(OHLCV!A$2:A22099<A80)),OHLCV!E$2:E22099),"")) ->  | F80: =IF(C80, "", IFERROR(LOOKUP(2,1/((OHLCV!D$2:D22099=$B$1)*(OHLCV!A$2:A22099<A80)),OHLCV!F$2:F22099),"")) ->  | G80: =IF(C80, "", IFERROR(LOOKUP(2,1/((OHLCV!D$2:D22099=$B$1)*(OHLCV!A$2:A22099<A80)),OHLCV!G$2:G22099),"")) ->  | H80: =IF(C80, "", IFERROR(LOOKUP(2,1/((OHLCV!D$2:D22099=$B$1)*(OHLCV!A$2:A22099<A80)),OHLCV!H$2:H22099),"")) -> 
A81: 177 | B81: =IFERROR(LOOKUP(2,1/((OHLCV!D$2:D22100=$B$1)*(OHLCV!A$2:A22100<A81)),OHLCV!B$2:B22100),"") -> 2022-01-26T14:30:00 | C81: TRUE | D81: =IF(C81, "", IFERROR(LOOKUP(2,1/((OHLCV!D$2:D22100=$B$1)*(OHLCV!A$2:A22100<A81)),OHLCV!B$2:B22100),"")) ->  | E81: =IF(C81, "", IFERROR(LOOKUP(2,1/((OHLCV!D$2:D22100=$B$1)*(OHLCV!A$2:A22100<A81)),OHLCV!E$2:E22100),"")) ->  | F81: =IF(C81, "", IFERROR(LOOKUP(2,1/((OHLCV!D$2:D22100=$B$1)*(OHLCV!A$2:A22100<A81)),OHLCV!F$2:F22100),"")) ->  | G81: =IF(C81, "", IFERROR(LOOKUP(2,1/((OHLCV!D$2:D22100=$B$1)*(OHLCV!A$2:A22100<A81)),OHLCV!G$2:G22100),"")) ->  | H81: =IF(C81, "", IFERROR(LOOKUP(2,1/((OHLCV!D$2:D22100=$B$1)*(OHLCV!A$2:A22100<A81)),OHLCV!H$2:H22100),"")) -> 
A82: 178 | B82: =IFERROR(LOOKUP(2,1/((OHLCV!D$2:D22101=$B$1)*(OHLCV!A$2:A22101<A82)),OHLCV!B$2:B22101),"") -> 2022-01-26T14:30:00 | C82: TRUE | D82: =IF(C82, "", IFERROR(LOOKUP(2,1/((OHLCV!D$2:D22101=$B$1)*(OHLCV!A$2:A22101<A82)),OHLCV!B$2:B22101),"")) ->  | E82: =IF(C82, "", IFERROR(LOOKUP(2,1/((OHLCV!D$2:D22101=$B$1)*(OHLCV!A$2:A22101<A82)),OHLCV!E$2:E22101),"")) ->  | F82: =IF(C82, "", IFERROR(LOOKUP(2,1/((OHLCV!D$2:D22101=$B$1)*(OHLCV!A$2:A22101<A82)),OHLCV!F$2:F22101),"")) ->  | G82: =IF(C82, "", IFERROR(LOOKUP(2,1/((OHLCV!D$2:D22101=$B$1)*(OHLCV!A$2:A22101<A82)),OHLCV!G$2:G22101),"")) ->  | H82: =IF(C82, "", IFERROR(LOOKUP(2,1/((OHLCV!D$2:D22101=$B$1)*(OHLCV!A$2:A22101<A82)),OHLCV!H$2:H22101),"")) -> 
A83: 179 | B83: =IFERROR(LOOKUP(2,1/((OHLCV!D$2:D22102=$B$1)*(OHLCV!A$2:A22102<A83)),OHLCV!B$2:B22102),"") -> 2022-01-26T14:30:00 | C83: TRUE | D83: =IF(C83, "", IFERROR(LOOKUP(2,1/((OHLCV!D$2:D22102=$B$1)*(OHLCV!A$2:A22102<A83)),OHLCV!B$2:B22102),"")) ->  | E83: =IF(C83, "", IFERROR(LOOKUP(2,1/((OHLCV!D$2:D22102=$B$1)*(OHLCV!A$2:A22102<A83)),OHLCV!E$2:E22102),"")) ->  | F83: =IF(C83, "", IFERROR(LOOKUP(2,1/((OHLCV!D$2:D22102=$B$1)*(OHLCV!A$2:A22102<A83)),OHLCV!F$2:F22102),"")) ->  | G83: =IF(C83, "", IFERROR(LOOKUP(2,1/((OHLCV!D$2:D22102=$B$1)*(OHLCV!A$2:A22102<A83)),OHLCV!G$2:G22102),"")) ->  | H83: =IF(C83, "", IFERROR(LOOKUP(2,1/((OHLCV!D$2:D22102=$B$1)*(OHLCV!A$2:A22102<A83)),OHLCV!H$2:H22102),"")) -> 
A84: 180 | B84: =IFERROR(LOOKUP(2,1/((OHLCV!D$2:D22103=$B$1)*(OHLCV!A$2:A22103<A84)),OHLCV!B$2:B22103),"") -> 2022-01-26T14:30:00 | C84: TRUE | D84: =IF(C84, "", IFERROR(LOOKUP(2,1/((OHLCV!D$2:D22103=$B$1)*(OHLCV!A$2:A22103<A84)),OHLCV!B$2:B22103),"")) ->  | E84: =IF(C84, "", IFERROR(LOOKUP(2,1/((OHLCV!D$2:D22103=$B$1)*(OHLCV!A$2:A22103<A84)),OHLCV!E$2:E22103),"")) ->  | F84: =IF(C84, "", IFERROR(LOOKUP(2,1/((OHLCV!D$2:D22103=$B$1)*(OHLCV!A$2:A22103<A84)),OHLCV!F$2:F22103),"")) ->  | G84: =IF(C84, "", IFERROR(LOOKUP(2,1/((OHLCV!D$2:D22103=$B$1)*(OHLCV!A$2:A22103<A84)),OHLCV!G$2:G22103),"")) ->  | H84: =IF(C84, "", IFERROR(LOOKUP(2,1/((OHLCV!D$2:D22103=$B$1)*(OHLCV!A$2:A22103<A84)),OHLCV!H$2:H22103),"")) -> 
A85: 181 | B85: =IFERROR(LOOKUP(2,1/((OHLCV!D$2:D22104=$B$1)*(OHLCV!A$2:A22104<A85)),OHLCV!B$2:B22104),"") -> 2022-01-27T14:30:00 | C85: FALSE | D85: =IF(C85, "", IFERROR(LOOKUP(2,1/((OHLCV!D$2:D22104=$B$1)*(OHLCV!A$2:A22104<A85)),OHLCV!B$2:B22104),"")) -> 2022-01-27T14:30:00 | E85: =IF(C85, "", IFERROR(LOOKUP(2,1/((OHLCV!D$2:D22104=$B$1)*(OHLCV!A$2:A22104<A85)),OHLCV!E$2:E22104),"")) -> $131.30 | F85: =IF(C85, "", IFERROR(LOOKUP(2,1/((OHLCV!D$2:D22104=$B$1)*(OHLCV!A$2:A22104<A85)),OHLCV!F$2:F22104),"")) -> $132.65 | G85: =IF(C85, "", IFERROR(LOOKUP(2,1/((OHLCV!D$2:D22104=$B$1)*(OHLCV!A$2:A22104<A85)),OHLCV!G$2:G22104),"")) -> $128.93 | H85: =IF(C85, "", IFERROR(LOOKUP(2,1/((OHLCV!D$2:D22104=$B$1)*(OHLCV!A$2:A22104<A85)),OHLCV!H$2:H22104),"")) -> $129.01
A86: 182 | B86: =IFERROR(LOOKUP(2,1/((OHLCV!D$2:D22105=$B$1)*(OHLCV!A$2:A22105<A86)),OHLCV!B$2:B22105),"") -> 2022-01-27T14:30:00 | C86: TRUE | D86: =IF(C86, "", IFERROR(LOOKUP(2,1/((OHLCV!D$2:D22105=$B$1)*(OHLCV!A$2:A22105<A86)),OHLCV!B$2:B22105),"")) ->  | E86: =IF(C86, "", IFERROR(LOOKUP(2,1/((OHLCV!D$2:D22105=$B$1)*(OHLCV!A$2:A22105<A86)),OHLCV!E$2:E22105),"")) ->  | F86: =IF(C86, "", IFERROR(LOOKUP(2,1/((OHLCV!D$2:D22105=$B$1)*(OHLCV!A$2:A22105<A86)),OHLCV!F$2:F22105),"")) ->  | G86: =IF(C86, "", IFERROR(LOOKUP(2,1/((OHLCV!D$2:D22105=$B$1)*(OHLCV!A$2:A22105<A86)),OHLCV!G$2:G22105),"")) ->  | H86: =IF(C86, "", IFERROR(LOOKUP(2,1/((OHLCV!D$2:D22105=$B$1)*(OHLCV!A$2:A22105<A86)),OHLCV!H$2:H22105),"")) -> 
A87: 183 | B87: =IFERROR(LOOKUP(2,1/((OHLCV!D$2:D22106=$B$1)*(OHLCV!A$2:A22106<A87)),OHLCV!B$2:B22106),"") -> 2022-01-27T14:30:00 | C87: TRUE | D87: =IF(C87, "", IFERROR(LOOKUP(2,1/((OHLCV!D$2:D22106=$B$1)*(OHLCV!A$2:A22106<A87)),OHLCV!B$2:B22106),"")) ->  | E87: =IF(C87, "", IFERROR(LOOKUP(2,1/((OHLCV!D$2:D22106=$B$1)*(OHLCV!A$2:A22106<A87)),OHLCV!E$2:E22106),"")) ->  | F87: =IF(C87, "", IFERROR(LOOKUP(2,1/((OHLCV!D$2:D22106=$B$1)*(OHLCV!A$2:A22106<A87)),OHLCV!F$2:F22106),"")) ->  | G87: =IF(C87, "", IFERROR(LOOKUP(2,1/((OHLCV!D$2:D22106=$B$1)*(OHLCV!A$2:A22106<A87)),OHLCV!G$2:G22106),"")) ->  | H87: =IF(C87, "", IFERROR(LOOKUP(2,1/((OHLCV!D$2:D22106=$B$1)*(OHLCV!A$2:A22106<A87)),OHLCV!H$2:H22106),"")) -> 
A88: 184 | B88: =IFERROR(LOOKUP(2,1/((OHLCV!D$2:D22107=$B$1)*(OHLCV!A$2:A22107<A88)),OHLCV!B$2:B22107),"") -> 2022-01-27T14:30:00 | C88: TRUE | D88: =IF(C88, "", IFERROR(LOOKUP(2,1/((OHLCV!D$2:D22107=$B$1)*(OHLCV!A$2:A22107<A88)),OHLCV!B$2:B22107),"")) ->  | E88: =IF(C88, "", IFERROR(LOOKUP(2,1/((OHLCV!D$2:D22107=$B$1)*(OHLCV!A$2:A22107<A88)),OHLCV!E$2:E22107),"")) ->  | F88: =IF(C88, "", IFERROR(LOOKUP(2,1/((OHLCV!D$2:D22107=$B$1)*(OHLCV!A$2:A22107<A88)),OHLCV!F$2:F22107),"")) ->  | G88: =IF(C88, "", IFERROR(LOOKUP(2,1/((OHLCV!D$2:D22107=$B$1)*(OHLCV!A$2:A22107<A88)),OHLCV!G$2:G22107),"")) ->  | H88: =IF(C88, "", IFERROR(LOOKUP(2,1/((OHLCV!D$2:D22107=$B$1)*(OHLCV!A$2:A22107<A88)),OHLCV!H$2:H22107),"")) -> 
A89: 185 | B89: =IFERROR(LOOKUP(2,1/((OHLCV!D$2:D22108=$B$1)*(OHLCV!A$2:A22108<A89)),OHLCV!B$2:B22108),"") -> 2022-01-27T14:30:00 | C89: TRUE | D89: =IF(C89, "", IFERROR(LOOKUP(2,1/((OHLCV!D$2:D22108=$B$1)*(OHLCV!A$2:A22108<A89)),OHLCV!B$2:B22108),"")) ->  | E89: =IF(C89, "", IFERROR(LOOKUP(2,1/((OHLCV!D$2:D22108=$B$1)*(OHLCV!A$2:A22108<A89)),OHLCV!E$2:E22108),"")) ->  | F89: =IF(C89, "", IFERROR(LOOKUP(2,1/((OHLCV!D$2:D22108=$B$1)*(OHLCV!A$2:A22108<A89)),OHLCV!F$2:F22108),"")) ->  | G89: =IF(C89, "", IFERROR(LOOKUP(2,1/((OHLCV!D$2:D22108=$B$1)*(OHLCV!A$2:A22108<A89)),OHLCV!G$2:G22108),"")) ->  | H89: =IF(C89, "", IFERROR(LOOKUP(2,1/((OHLCV!D$2:D22108=$B$1)*(OHLCV!A$2:A22108<A89)),OHLCV!H$2:H22108),"")) -> 
A90: 186 | B90: =IFERROR(LOOKUP(2,1/((OHLCV!D$2:D22109=$B$1)*(OHLCV!A$2:A22109<A90)),OHLCV!B$2:B22109),"") -> 2022-01-28T14:30:00 | C90: FALSE | D90: =IF(C90, "", IFERROR(LOOKUP(2,1/((OHLCV!D$2:D22109=$B$1)*(OHLCV!A$2:A22109<A90)),OHLCV!B$2:B22109),"")) -> 2022-01-28T14:30:00 | E90: =IF(C90, "", IFERROR(LOOKUP(2,1/((OHLCV!D$2:D22109=$B$1)*(OHLCV!A$2:A22109<A90)),OHLCV!E$2:E22109),"")) -> $129.66 | F90: =IF(C90, "", IFERROR(LOOKUP(2,1/((OHLCV!D$2:D22109=$B$1)*(OHLCV!A$2:A22109<A90)),OHLCV!F$2:F22109),"")) -> $133.36 | G90: =IF(C90, "", IFERROR(LOOKUP(2,1/((OHLCV!D$2:D22109=$B$1)*(OHLCV!A$2:A22109<A90)),OHLCV!G$2:G22109),"")) -> $128.49 | H90: =IF(C90, "", IFERROR(LOOKUP(2,1/((OHLCV!D$2:D22109=$B$1)*(OHLCV!A$2:A22109<A90)),OHLCV!H$2:H22109),"")) -> $133.35
A91: 187 | B91: =IFERROR(LOOKUP(2,1/((OHLCV!D$2:D22110=$B$1)*(OHLCV!A$2:A22110<A91)),OHLCV!B$2:B22110),"") -> 2022-01-28T14:30:00 | C91: TRUE | D91: =IF(C91, "", IFERROR(LOOKUP(2,1/((OHLCV!D$2:D22110=$B$1)*(OHLCV!A$2:A22110<A91)),OHLCV!B$2:B22110),"")) ->  | E91: =IF(C91, "", IFERROR(LOOKUP(2,1/((OHLCV!D$2:D22110=$B$1)*(OHLCV!A$2:A22110<A91)),OHLCV!E$2:E22110),"")) ->  | F91: =IF(C91, "", IFERROR(LOOKUP(2,1/((OHLCV!D$2:D22110=$B$1)*(OHLCV!A$2:A22110<A91)),OHLCV!F$2:F22110),"")) ->  | G91: =IF(C91, "", IFERROR(LOOKUP(2,1/((OHLCV!D$2:D22110=$B$1)*(OHLCV!A$2:A22110<A91)),OHLCV!G$2:G22110),"")) ->  | H91: =IF(C91, "", IFERROR(LOOKUP(2,1/((OHLCV!D$2:D22110=$B$1)*(OHLCV!A$2:A22110<A91)),OHLCV!H$2:H22110),"")) -> 
A92: 188 | B92: =IFERROR(LOOKUP(2,1/((OHLCV!D$2:D22111=$B$1)*(OHLCV!A$2:A22111<A92)),OHLCV!B$2:B22111),"") -> 2022-01-28T14:30:00 | C92: TRUE | D92: =IF(C92, "", IFERROR(LOOKUP(2,1/((OHLCV!D$2:D22111=$B$1)*(OHLCV!A$2:A22111<A92)),OHLCV!B$2:B22111),"")) ->  | E92: =IF(C92, "", IFERROR(LOOKUP(2,1/((OHLCV!D$2:D22111=$B$1)*(OHLCV!A$2:A22111<A92)),OHLCV!E$2:E22111),"")) ->  | F92: =IF(C92, "", IFERROR(LOOKUP(2,1/((OHLCV!D$2:D22111=$B$1)*(OHLCV!A$2:A22111<A92)),OHLCV!F$2:F22111),"")) ->  | G92: =IF(C92, "", IFERROR(LOOKUP(2,1/((OHLCV!D$2:D22111=$B$1)*(OHLCV!A$2:A22111<A92)),OHLCV!G$2:G22111),"")) ->  | H92: =IF(C92, "", IFERROR(LOOKUP(2,1/((OHLCV!D$2:D22111=$B$1)*(OHLCV!A$2:A22111<A92)),OHLCV!H$2:H22111),"")) -> 
A93: 189 | B93: =IFERROR(LOOKUP(2,1/((OHLCV!D$2:D22112=$B$1)*(OHLCV!A$2:A22112<A93)),OHLCV!B$2:B22112),"") -> 2022-01-28T14:30:00 | C93: TRUE | D93: =IF(C93, "", IFERROR(LOOKUP(2,1/((OHLCV!D$2:D22112=$B$1)*(OHLCV!A$2:A22112<A93)),OHLCV!B$2:B22112),"")) ->  | E93: =IF(C93, "", IFERROR(LOOKUP(2,1/((OHLCV!D$2:D22112=$B$1)*(OHLCV!A$2:A22112<A93)),OHLCV!E$2:E22112),"")) ->  | F93: =IF(C93, "", IFERROR(LOOKUP(2,1/((OHLCV!D$2:D22112=$B$1)*(OHLCV!A$2:A22112<A93)),OHLCV!F$2:F22112),"")) ->  | G93: =IF(C93, "", IFERROR(LOOKUP(2,1/((OHLCV!D$2:D22112=$B$1)*(OHLCV!A$2:A22112<A93)),OHLCV!G$2:G22112),"")) ->  | H93: =IF(C93, "", IFERROR(LOOKUP(2,1/((OHLCV!D$2:D22112=$B$1)*(OHLCV!A$2:A22112<A93)),OHLCV!H$2:H22112),"")) -> 
A94: 190 | B94: =IFERROR(LOOKUP(2,1/((OHLCV!D$2:D22113=$B$1)*(OHLCV!A$2:A22113<A94)),OHLCV!B$2:B22113),"") -> 2022-01-28T14:30:00 | C94: TRUE | D94: =IF(C94, "", IFERROR(LOOKUP(2,1/((OHLCV!D$2:D22113=$B$1)*(OHLCV!A$2:A22113<A94)),OHLCV!B$2:B22113),"")) ->  | E94: =IF(C94, "", IFERROR(LOOKUP(2,1/((OHLCV!D$2:D22113=$B$1)*(OHLCV!A$2:A22113<A94)),OHLCV!E$2:E22113),"")) ->  | F94: =IF(C94, "", IFERROR(LOOKUP(2,1/((OHLCV!D$2:D22113=$B$1)*(OHLCV!A$2:A22113<A94)),OHLCV!F$2:F22113),"")) ->  | G94: =IF(C94, "", IFERROR(LOOKUP(2,1/((OHLCV!D$2:D22113=$B$1)*(OHLCV!A$2:A22113<A94)),OHLCV!G$2:G22113),"")) ->  | H94: =IF(C94, "", IFERROR(LOOKUP(2,1/((OHLCV!D$2:D22113=$B$1)*(OHLCV!A$2:A22113<A94)),OHLCV!H$2:H22113),"")) -> 
A95: 191 | B95: =IFERROR(LOOKUP(2,1/((OHLCV!D$2:D22114=$B$1)*(OHLCV!A$2:A22114<A95)),OHLCV!B$2:B22114),"") -> 2022-01-28T14:30:00 | C95: TRUE | D95: =IF(C95, "", IFERROR(LOOKUP(2,1/((OHLCV!D$2:D22114=$B$1)*(OHLCV!A$2:A22114<A95)),OHLCV!B$2:B22114),"")) ->  | E95: =IF(C95, "", IFERROR(LOOKUP(2,1/((OHLCV!D$2:D22114=$B$1)*(OHLCV!A$2:A22114<A95)),OHLCV!E$2:E22114),"")) ->  | F95: =IF(C95, "", IFERROR(LOOKUP(2,1/((OHLCV!D$2:D22114=$B$1)*(OHLCV!A$2:A22114<A95)),OHLCV!F$2:F22114),"")) ->  | G95: =IF(C95, "", IFERROR(LOOKUP(2,1/((OHLCV!D$2:D22114=$B$1)*(OHLCV!A$2:A22114<A95)),OHLCV!G$2:G22114),"")) ->  | H95: =IF(C95, "", IFERROR(LOOKUP(2,1/((OHLCV!D$2:D22114=$B$1)*(OHLCV!A$2:A22114<A95)),OHLCV!H$2:H22114),"")) -> 
A96: 192 | B96: =IFERROR(LOOKUP(2,1/((OHLCV!D$2:D22115=$B$1)*(OHLCV!A$2:A22115<A96)),OHLCV!B$2:B22115),"") -> 2022-01-28T14:30:00 | C96: TRUE | D96: =IF(C96, "", IFERROR(LOOKUP(2,1/((OHLCV!D$2:D22115=$B$1)*(OHLCV!A$2:A22115<A96)),OHLCV!B$2:B22115),"")) ->  | E96: =IF(C96, "", IFERROR(LOOKUP(2,1/((OHLCV!D$2:D22115=$B$1)*(OHLCV!A$2:A22115<A96)),OHLCV!E$2:E22115),"")) ->  | F96: =IF(C96, "", IFERROR(LOOKUP(2,1/((OHLCV!D$2:D22115=$B$1)*(OHLCV!A$2:A22115<A96)),OHLCV!F$2:F22115),"")) ->  | G96: =IF(C96, "", IFERROR(LOOKUP(2,1/((OHLCV!D$2:D22115=$B$1)*(OHLCV!A$2:A22115<A96)),OHLCV!G$2:G22115),"")) ->  | H96: =IF(C96, "", IFERROR(LOOKUP(2,1/((OHLCV!D$2:D22115=$B$1)*(OHLCV!A$2:A22115<A96)),OHLCV!H$2:H22115),"")) -> 
A97: 193 | B97: =IFERROR(LOOKUP(2,1/((OHLCV!D$2:D22116=$B$1)*(OHLCV!A$2:A22116<A97)),OHLCV!B$2:B22116),"") -> 2022-01-28T14:30:00 | C97: TRUE | D97: =IF(C97, "", IFERROR(LOOKUP(2,1/((OHLCV!D$2:D22116=$B$1)*(OHLCV!A$2:A22116<A97)),OHLCV!B$2:B22116),"")) ->  | E97: =IF(C97, "", IFERROR(LOOKUP(2,1/((OHLCV!D$2:D22116=$B$1)*(OHLCV!A$2:A22116<A97)),OHLCV!E$2:E22116),"")) ->  | F97: =IF(C97, "", IFERROR(LOOKUP(2,1/((OHLCV!D$2:D22116=$B$1)*(OHLCV!A$2:A22116<A97)),OHLCV!F$2:F22116),"")) ->  | G97: =IF(C97, "", IFERROR(LOOKUP(2,1/((OHLCV!D$2:D22116=$B$1)*(OHLCV!A$2:A22116<A97)),OHLCV!G$2:G22116),"")) ->  | H97: =IF(C97, "", IFERROR(LOOKUP(2,1/((OHLCV!D$2:D22116=$B$1)*(OHLCV!A$2:A22116<A97)),OHLCV!H$2:H22116),"")) -> 
A98: 194 | B98: =IFERROR(LOOKUP(2,1/((OHLCV!D$2:D22117=$B$1)*(OHLCV!A$2:A22117<A98)),OHLCV!B$2:B22117),"") -> 2022-01-28T14:30:00 | C98: TRUE | D98: =IF(C98, "", IFERROR(LOOKUP(2,1/((OHLCV!D$2:D22117=$B$1)*(OHLCV!A$2:A22117<A98)),OHLCV!B$2:B22117),"")) ->  | E98: =IF(C98, "", IFERROR(LOOKUP(2,1/((OHLCV!D$2:D22117=$B$1)*(OHLCV!A$2:A22117<A98)),OHLCV!E$2:E22117),"")) ->  | F98: =IF(C98, "", IFERROR(LOOKUP(2,1/((OHLCV!D$2:D22117=$B$1)*(OHLCV!A$2:A22117<A98)),OHLCV!F$2:F22117),"")) ->  | G98: =IF(C98, "", IFERROR(LOOKUP(2,1/((OHLCV!D$2:D22117=$B$1)*(OHLCV!A$2:A22117<A98)),OHLCV!G$2:G22117),"")) ->  | H98: =IF(C98, "", IFERROR(LOOKUP(2,1/((OHLCV!D$2:D22117=$B$1)*(OHLCV!A$2:A22117<A98)),OHLCV!H$2:H22117),"")) -> 
A99: 195 | B99: =IFERROR(LOOKUP(2,1/((OHLCV!D$2:D22118=$B$1)*(OHLCV!A$2:A22118<A99)),OHLCV!B$2:B22118),"") -> 2022-01-28T14:30:00 | C99: TRUE | D99: =IF(C99, "", IFERROR(LOOKUP(2,1/((OHLCV!D$2:D22118=$B$1)*(OHLCV!A$2:A22118<A99)),OHLCV!B$2:B22118),"")) ->  | E99: =IF(C99, "", IFERROR(LOOKUP(2,1/((OHLCV!D$2:D22118=$B$1)*(OHLCV!A$2:A22118<A99)),OHLCV!E$2:E22118),"")) ->  | F99: =IF(C99, "", IFERROR(LOOKUP(2,1/((OHLCV!D$2:D22118=$B$1)*(OHLCV!A$2:A22118<A99)),OHLCV!F$2:F22118),"")) ->  | G99: =IF(C99, "", IFERROR(LOOKUP(2,1/((OHLCV!D$2:D22118=$B$1)*(OHLCV!A$2:A22118<A99)),OHLCV!G$2:G22118),"")) ->  | H99: =IF(C99, "", IFERROR(LOOKUP(2,1/((OHLCV!D$2:D22118=$B$1)*(OHLCV!A$2:A22118<A99)),OHLCV!H$2:H22118),"")) -> 
A100: 196 | B100: =IFERROR(LOOKUP(2,1/((OHLCV!D$2:D22119=$B$1)*(OHLCV!A$2:A22119<A100)),OHLCV!B$2:B22119),"") -> 2022-01-28T14:30:00 | C100: TRUE | D100: =IF(C100, "", IFERROR(LOOKUP(2,1/((OHLCV!D$2:D22119=$B$1)*(OHLCV!A$2:A22119<A100)),OHLCV!B$2:B22119),"")) ->  | E100: =IF(C100, "", IFERROR(LOOKUP(2,1/((OHLCV!D$2:D22119=$B$1)*(OHLCV!A$2:A22119<A100)),OHLCV!E$2:E22119),"")) ->  | F100: =IF(C100, "", IFERROR(LOOKUP(2,1/((OHLCV!D$2:D22119=$B$1)*(OHLCV!A$2:A22119<A100)),OHLCV!F$2:F22119),"")) ->  | G100: =IF(C100, "", IFERROR(LOOKUP(2,1/((OHLCV!D$2:D22119=$B$1)*(OHLCV!A$2:A22119<A100)),OHLCV!G$2:G22119),"")) ->  | H100: =IF(C100, "", IFERROR(LOOKUP(2,1/((OHLCV!D$2:D22119=$B$1)*(OHLCV!A$2:A22119<A100)),OHLCV!H$2:H22119),"")) -> 
A101: 197 | B101: =IFERROR(LOOKUP(2,1/((OHLCV!D$2:D22120=$B$1)*(OHLCV!A$2:A22120<A101)),OHLCV!B$2:B22120),"") -> 2022-01-28T14:30:00 | C101: TRUE | D101: =IF(C101, "", IFERROR(LOOKUP(2,1/((OHLCV!D$2:D22120=$B$1)*(OHLCV!A$2:A22120<A101)),OHLCV!B$2:B22120),"")) ->  | E101: =IF(C101, "", IFERROR(LOOKUP(2,1/((OHLCV!D$2:D22120=$B$1)*(OHLCV!A$2:A22120<A101)),OHLCV!E$2:E22120),"")) ->  | F101: =IF(C101, "", IFERROR(LOOKUP(2,1/((OHLCV!D$2:D22120=$B$1)*(OHLCV!A$2:A22120<A101)),OHLCV!F$2:F22120),"")) ->  | G101: =IF(C101, "", IFERROR(LOOKUP(2,1/((OHLCV!D$2:D22120=$B$1)*(OHLCV!A$2:A22120<A101)),OHLCV!G$2:G22120),"")) ->  | H101: =IF(C101, "", IFERROR(LOOKUP(2,1/((OHLCV!D$2:D22120=$B$1)*(OHLCV!A$2:A22120<A101)),OHLCV!H$2:H22120),"")) -> 
A102: 198 | B102: =IFERROR(LOOKUP(2,1/((OHLCV!D$2:D22121=$B$1)*(OHLCV!A$2:A22121<A102)),OHLCV!B$2:B22121),"") -> 2022-01-28T14:30:00 | C102: TRUE | D102: =IF(C102, "", IFERROR(LOOKUP(2,1/((OHLCV!D$2:D22121=$B$1)*(OHLCV!A$2:A22121<A102)),OHLCV!B$2:B22121),"")) ->  | E102: =IF(C102, "", IFERROR(LOOKUP(2,1/((OHLCV!D$2:D22121=$B$1)*(OHLCV!A$2:A22121<A102)),OHLCV!E$2:E22121),"")) ->  | F102: =IF(C102, "", IFERROR(LOOKUP(2,1/((OHLCV!D$2:D22121=$B$1)*(OHLCV!A$2:A22121<A102)),OHLCV!F$2:F22121),"")) ->  | G102: =IF(C102, "", IFERROR(LOOKUP(2,1/((OHLCV!D$2:D22121=$B$1)*(OHLCV!A$2:A22121<A102)),OHLCV!G$2:G22121),"")) ->  | H102: =IF(C102, "", IFERROR(LOOKUP(2,1/((OHLCV!D$2:D22121=$B$1)*(OHLCV!A$2:A22121<A102)),OHLCV!H$2:H22121),"")) -> 
A103: 199 | B103: =IFERROR(LOOKUP(2,1/((OHLCV!D$2:D22122=$B$1)*(OHLCV!A$2:A22122<A103)),OHLCV!B$2:B22122),"") -> 2022-01-28T14:30:00 | C103: TRUE | D103: =IF(C103, "", IFERROR(LOOKUP(2,1/((OHLCV!D$2:D22122=$B$1)*(OHLCV!A$2:A22122<A103)),OHLCV!B$2:B22122),"")) ->  | E103: =IF(C103, "", IFERROR(LOOKUP(2,1/((OHLCV!D$2:D22122=$B$1)*(OHLCV!A$2:A22122<A103)),OHLCV!E$2:E22122),"")) ->  | F103: =IF(C103, "", IFERROR(LOOKUP(2,1/((OHLCV!D$2:D22122=$B$1)*(OHLCV!A$2:A22122<A103)),OHLCV!F$2:F22122),"")) ->  | G103: =IF(C103, "", IFERROR(LOOKUP(2,1/((OHLCV!D$2:D22122=$B$1)*(OHLCV!A$2:A22122<A103)),OHLCV!G$2:G22122),"")) ->  | H103: =IF(C103, "", IFERROR(LOOKUP(2,1/((OHLCV!D$2:D22122=$B$1)*(OHLCV!A$2:A22122<A103)),OHLCV!H$2:H22122),"")) -> 
A104: 200 | B104: =IFERROR(LOOKUP(2,1/((OHLCV!D$2:D22123=$B$1)*(OHLCV!A$2:A22123<A104)),OHLCV!B$2:B22123),"") -> 2022-01-28T14:30:00 | C104: TRUE | D104: =IF(C104, "", IFERROR(LOOKUP(2,1/((OHLCV!D$2:D22123=$B$1)*(OHLCV!A$2:A22123<A104)),OHLCV!B$2:B22123),"")) ->  | E104: =IF(C104, "", IFERROR(LOOKUP(2,1/((OHLCV!D$2:D22123=$B$1)*(OHLCV!A$2:A22123<A104)),OHLCV!E$2:E22123),"")) ->  | F104: =IF(C104, "", IFERROR(LOOKUP(2,1/((OHLCV!D$2:D22123=$B$1)*(OHLCV!A$2:A22123<A104)),OHLCV!F$2:F22123),"")) ->  | G104: =IF(C104, "", IFERROR(LOOKUP(2,1/((OHLCV!D$2:D22123=$B$1)*(OHLCV!A$2:A22123<A104)),OHLCV!G$2:G22123),"")) ->  | H104: =IF(C104, "", IFERROR(LOOKUP(2,1/((OHLCV!D$2:D22123=$B$1)*(OHLCV!A$2:A22123<A104)),OHLCV!H$2:H22123),"")) -> 
A105: 201 | B105: =IFERROR(LOOKUP(2,1/((OHLCV!D$2:D22124=$B$1)*(OHLCV!A$2:A22124<A105)),OHLCV!B$2:B22124),"") -> 2022-01-28T14:30:00 | C105: TRUE | D105: =IF(C105, "", IFERROR(LOOKUP(2,1/((OHLCV!D$2:D22124=$B$1)*(OHLCV!A$2:A22124<A105)),OHLCV!B$2:B22124),"")) ->  | E105: =IF(C105, "", IFERROR(LOOKUP(2,1/((OHLCV!D$2:D22124=$B$1)*(OHLCV!A$2:A22124<A105)),OHLCV!E$2:E22124),"")) ->  | F105: =IF(C105, "", IFERROR(LOOKUP(2,1/((OHLCV!D$2:D22124=$B$1)*(OHLCV!A$2:A22124<A105)),OHLCV!F$2:F22124),"")) ->  | G105: =IF(C105, "", IFERROR(LOOKUP(2,1/((OHLCV!D$2:D22124=$B$1)*(OHLCV!A$2:A22124<A105)),OHLCV!G$2:G22124),"")) ->  | H105: =IF(C105, "", IFERROR(LOOKUP(2,1/((OHLCV!D$2:D22124=$B$1)*(OHLCV!A$2:A22124<A105)),OHLCV!H$2:H22124),"")) -> 
A106: 202 | B106: =IFERROR(LOOKUP(2,1/((OHLCV!D$2:D22125=$B$1)*(OHLCV!A$2:A22125<A106)),OHLCV!B$2:B22125),"") -> 2022-01-28T14:30:00 | C106: TRUE | D106: =IF(C106, "", IFERROR(LOOKUP(2,1/((OHLCV!D$2:D22125=$B$1)*(OHLCV!A$2:A22125<A106)),OHLCV!B$2:B22125),"")) ->  | E106: =IF(C106, "", IFERROR(LOOKUP(2,1/((OHLCV!D$2:D22125=$B$1)*(OHLCV!A$2:A22125<A106)),OHLCV!E$2:E22125),"")) ->  | F106: =IF(C106, "", IFERROR(LOOKUP(2,1/((OHLCV!D$2:D22125=$B$1)*(OHLCV!A$2:A22125<A106)),OHLCV!F$2:F22125),"")) ->  | G106: =IF(C106, "", IFERROR(LOOKUP(2,1/((OHLCV!D$2:D22125=$B$1)*(OHLCV!A$2:A22125<A106)),OHLCV!G$2:G22125),"")) ->  | H106: =IF(C106, "", IFERROR(LOOKUP(2,1/((OHLCV!D$2:D22125=$B$1)*(OHLCV!A$2:A22125<A106)),OHLCV!H$2:H22125),"")) -> 
A107: 203 | B107: =IFERROR(LOOKUP(2,1/((OHLCV!D$2:D22126=$B$1)*(OHLCV!A$2:A22126<A107)),OHLCV!B$2:B22126),"") -> 2022-01-28T14:30:00 | C107: TRUE | D107: =IF(C107, "", IFERROR(LOOKUP(2,1/((OHLCV!D$2:D22126=$B$1)*(OHLCV!A$2:A22126<A107)),OHLCV!B$2:B22126),"")) ->  | E107: =IF(C107, "", IFERROR(LOOKUP(2,1/((OHLCV!D$2:D22126=$B$1)*(OHLCV!A$2:A22126<A107)),OHLCV!E$2:E22126),"")) ->  | F107: =IF(C107, "", IFERROR(LOOKUP(2,1/((OHLCV!D$2:D22126=$B$1)*(OHLCV!A$2:A22126<A107)),OHLCV!F$2:F22126),"")) ->  | G107: =IF(C107, "", IFERROR(LOOKUP(2,1/((OHLCV!D$2:D22126=$B$1)*(OHLCV!A$2:A22126<A107)),OHLCV!G$2:G22126),"")) ->  | H107: =IF(C107, "", IFERROR(LOOKUP(2,1/((OHLCV!D$2:D22126=$B$1)*(OHLCV!A$2:A22126<A107)),OHLCV!H$2:H22126),"")) -> 
A108: 204 | B108: =IFERROR(LOOKUP(2,1/((OHLCV!D$2:D22127=$B$1)*(OHLCV!A$2:A22127<A108)),OHLCV!B$2:B22127),"") -> 2022-01-31T14:30:00 | C108: FALSE | D108: =IF(C108, "", IFERROR(LOOKUP(2,1/((OHLCV!D$2:D22127=$B$1)*(OHLCV!A$2:A22127<A108)),OHLCV!B$2:B22127),"")) -> 2022-01-31T14:30:00 | E108: =IF(C108, "", IFERROR(LOOKUP(2,1/((OHLCV!D$2:D22127=$B$1)*(OHLCV!A$2:A22127<A108)),OHLCV!E$2:E22127),"")) -> $134.16 | F108: =IF(C108, "", IFERROR(LOOKUP(2,1/((OHLCV!D$2:D22127=$B$1)*(OHLCV!A$2:A22127<A108)),OHLCV!F$2:F22127),"")) -> $135.47 | G108: =IF(C108, "", IFERROR(LOOKUP(2,1/((OHLCV!D$2:D22127=$B$1)*(OHLCV!A$2:A22127<A108)),OHLCV!G$2:G22127),"")) -> $132.21 | H108: =IF(C108, "", IFERROR(LOOKUP(2,1/((OHLCV!D$2:D22127=$B$1)*(OHLCV!A$2:A22127<A108)),OHLCV!H$2:H22127),"")) -> $135.30
A109: 205 | B109: =IFERROR(LOOKUP(2,1/((OHLCV!D$2:D22128=$B$1)*(OHLCV!A$2:A22128<A109)),OHLCV!B$2:B22128),"") -> 2022-01-31T14:30:00 | C109: TRUE | D109: =IF(C109, "", IFERROR(LOOKUP(2,1/((OHLCV!D$2:D22128=$B$1)*(OHLCV!A$2:A22128<A109)),OHLCV!B$2:B22128),"")) ->  | E109: =IF(C109, "", IFERROR(LOOKUP(2,1/((OHLCV!D$2:D22128=$B$1)*(OHLCV!A$2:A22128<A109)),OHLCV!E$2:E22128),"")) ->  | F109: =IF(C109, "", IFERROR(LOOKUP(2,1/((OHLCV!D$2:D22128=$B$1)*(OHLCV!A$2:A22128<A109)),OHLCV!F$2:F22128),"")) ->  | G109: =IF(C109, "", IFERROR(LOOKUP(2,1/((OHLCV!D$2:D22128=$B$1)*(OHLCV!A$2:A22128<A109)),OHLCV!G$2:G22128),"")) ->  | H109: =IF(C109, "", IFERROR(LOOKUP(2,1/((OHLCV!D$2:D22128=$B$1)*(OHLCV!A$2:A22128<A109)),OHLCV!H$2:H22128),"")) -> 
A110: 206 | B110: =IFERROR(LOOKUP(2,1/((OHLCV!D$2:D22129=$B$1)*(OHLCV!A$2:A22129<A110)),OHLCV!B$2:B22129),"") -> 2022-01-31T14:30:00 | C110: TRUE | D110: =IF(C110, "", IFERROR(LOOKUP(2,1/((OHLCV!D$2:D22129=$B$1)*(OHLCV!A$2:A22129<A110)),OHLCV!B$2:B22129),"")) ->  | E110: =IF(C110, "", IFERROR(LOOKUP(2,1/((OHLCV!D$2:D22129=$B$1)*(OHLCV!A$2:A22129<A110)),OHLCV!E$2:E22129),"")) ->  | F110: =IF(C110, "", IFERROR(LOOKUP(2,1/((OHLCV!D$2:D22129=$B$1)*(OHLCV!A$2:A22129<A110)),OHLCV!F$2:F22129),"")) ->  | G110: =IF(C110, "", IFERROR(LOOKUP(2,1/((OHLCV!D$2:D22129=$B$1)*(OHLCV!A$2:A22129<A110)),OHLCV!G$2:G22129),"")) ->  | H110: =IF(C110, "", IFERROR(LOOKUP(2,1/((OHLCV!D$2:D22129=$B$1)*(OHLCV!A$2:A22129<A110)),OHLCV!H$2:H22129),"")) -> 
A111: 207 | B111: =IFERROR(LOOKUP(2,1/((OHLCV!D$2:D22130=$B$1)*(OHLCV!A$2:A22130<A111)),OHLCV!B$2:B22130),"") -> 2022-01-31T14:30:00 | C111: TRUE | D111: =IF(C111, "", IFERROR(LOOKUP(2,1/((OHLCV!D$2:D22130=$B$1)*(OHLCV!A$2:A22130<A111)),OHLCV!B$2:B22130),"")) ->  | E111: =IF(C111, "", IFERROR(LOOKUP(2,1/((OHLCV!D$2:D22130=$B$1)*(OHLCV!A$2:A22130<A111)),OHLCV!E$2:E22130),"")) ->  | F111: =IF(C111, "", IFERROR(LOOKUP(2,1/((OHLCV!D$2:D22130=$B$1)*(OHLCV!A$2:A22130<A111)),OHLCV!F$2:F22130),"")) ->  | G111: =IF(C111, "", IFERROR(LOOKUP(2,1/((OHLCV!D$2:D22130=$B$1)*(OHLCV!A$2:A22130<A111)),OHLCV!G$2:G22130),"")) ->  | H111: =IF(C111, "", IFERROR(LOOKUP(2,1/((OHLCV!D$2:D22130=$B$1)*(OHLCV!A$2:A22130<A111)),OHLCV!H$2:H22130),"")) -> 
A112: 208 | B112: =IFERROR(LOOKUP(2,1/((OHLCV!D$2:D22131=$B$1)*(OHLCV!A$2:A22131<A112)),OHLCV!B$2:B22131),"") -> 2022-01-31T14:30:00 | C112: TRUE | D112: =IF(C112, "", IFERROR(LOOKUP(2,1/((OHLCV!D$2:D22131=$B$1)*(OHLCV!A$2:A22131<A112)),OHLCV!B$2:B22131),"")) ->  | E112: =IF(C112, "", IFERROR(LOOKUP(2,1/((OHLCV!D$2:D22131=$B$1)*(OHLCV!A$2:A22131<A112)),OHLCV!E$2:E22131),"")) ->  | F112: =IF(C112, "", IFERROR(LOOKUP(2,1/((OHLCV!D$2:D22131=$B$1)*(OHLCV!A$2:A22131<A112)),OHLCV!F$2:F22131),"")) ->  | G112: =IF(C112, "", IFERROR(LOOKUP(2,1/((OHLCV!D$2:D22131=$B$1)*(OHLCV!A$2:A22131<A112)),OHLCV!G$2:G22131),"")) ->  | H112: =IF(C112, "", IFERROR(LOOKUP(2,1/((OHLCV!D$2:D22131=$B$1)*(OHLCV!A$2:A22131<A112)),OHLCV!H$2:H22131),"")) -> 
A113: 209 | B113: =IFERROR(LOOKUP(2,1/((OHLCV!D$2:D22132=$B$1)*(OHLCV!A$2:A22132<A113)),OHLCV!B$2:B22132),"") -> 2022-01-31T14:30:00 | C113: TRUE | D113: =IF(C113, "", IFERROR(LOOKUP(2,1/((OHLCV!D$2:D22132=$B$1)*(OHLCV!A$2:A22132<A113)),OHLCV!B$2:B22132),"")) ->  | E113: =IF(C113, "", IFERROR(LOOKUP(2,1/((OHLCV!D$2:D22132=$B$1)*(OHLCV!A$2:A22132<A113)),OHLCV!E$2:E22132),"")) ->  | F113: =IF(C113, "", IFERROR(LOOKUP(2,1/((OHLCV!D$2:D22132=$B$1)*(OHLCV!A$2:A22132<A113)),OHLCV!F$2:F22132),"")) ->  | G113: =IF(C113, "", IFERROR(LOOKUP(2,1/((OHLCV!D$2:D22132=$B$1)*(OHLCV!A$2:A22132<A113)),OHLCV!G$2:G22132),"")) ->  | H113: =IF(C113, "", IFERROR(LOOKUP(2,1/((OHLCV!D$2:D22132=$B$1)*(OHLCV!A$2:A22132<A113)),OHLCV!H$2:H22132),"")) -> 
A114: 210 | B114: =IFERROR(LOOKUP(2,1/((OHLCV!D$2:D22133=$B$1)*(OHLCV!A$2:A22133<A114)),OHLCV!B$2:B22133),"") -> 2022-01-31T14:30:00 | C114: TRUE | D114: =IF(C114, "", IFERROR(LOOKUP(2,1/((OHLCV!D$2:D22133=$B$1)*(OHLCV!A$2:A22133<A114)),OHLCV!B$2:B22133),"")) ->  | E114: =IF(C114, "", IFERROR(LOOKUP(2,1/((OHLCV!D$2:D22133=$B$1)*(OHLCV!A$2:A22133<A114)),OHLCV!E$2:E22133),"")) ->  | F114: =IF(C114, "", IFERROR(LOOKUP(2,1/((OHLCV!D$2:D22133=$B$1)*(OHLCV!A$2:A22133<A114)),OHLCV!F$2:F22133),"")) ->  | G114: =IF(C114, "", IFERROR(LOOKUP(2,1/((OHLCV!D$2:D22133=$B$1)*(OHLCV!A$2:A22133<A114)),OHLCV!G$2:G22133),"")) ->  | H114: =IF(C114, "", IFERROR(LOOKUP(2,1/((OHLCV!D$2:D22133=$B$1)*(OHLCV!A$2:A22133<A114)),OHLCV!H$2:H22133),"")) -> 
A115: 211 | B115: =IFERROR(LOOKUP(2,1/((OHLCV!D$2:D22134=$B$1)*(OHLCV!A$2:A22134<A115)),OHLCV!B$2:B22134),"") -> 2022-01-31T14:30:00 | C115: TRUE | D115: =IF(C115, "", IFERROR(LOOKUP(2,1/((OHLCV!D$2:D22134=$B$1)*(OHLCV!A$2:A22134<A115)),OHLCV!B$2:B22134),"")) ->  | E115: =IF(C115, "", IFERROR(LOOKUP(2,1/((OHLCV!D$2:D22134=$B$1)*(OHLCV!A$2:A22134<A115)),OHLCV!E$2:E22134),"")) ->  | F115: =IF(C115, "", IFERROR(LOOKUP(2,1/((OHLCV!D$2:D22134=$B$1)*(OHLCV!A$2:A22134<A115)),OHLCV!F$2:F22134),"")) ->  | G115: =IF(C115, "", IFERROR(LOOKUP(2,1/((OHLCV!D$2:D22134=$B$1)*(OHLCV!A$2:A22134<A115)),OHLCV!G$2:G22134),"")) ->  | H115: =IF(C115, "", IFERROR(LOOKUP(2,1/((OHLCV!D$2:D22134=$B$1)*(OHLCV!A$2:A22134<A115)),OHLCV!H$2:H22134),"")) -> 
A116: 212 | B116: =IFERROR(LOOKUP(2,1/((OHLCV!D$2:D22135=$B$1)*(OHLCV!A$2:A22135<A116)),OHLCV!B$2:B22135),"") -> 2022-02-01T14:30:00 | C116: FALSE | D116: =IF(C116, "", IFERROR(LOOKUP(2,1/((OHLCV!D$2:D22135=$B$1)*(OHLCV!A$2:A22135<A116)),OHLCV!B$2:B22135),"")) -> 2022-02-01T14:30:00 | E116: =IF(C116, "", IFERROR(LOOKUP(2,1/((OHLCV!D$2:D22135=$B$1)*(OHLCV!A$2:A22135<A116)),OHLCV!E$2:E22135),"")) -> $137.59 | F116: =IF(C116, "", IFERROR(LOOKUP(2,1/((OHLCV!D$2:D22135=$B$1)*(OHLCV!A$2:A22135<A116)),OHLCV!F$2:F22135),"")) -> $137.79 | G116: =IF(C116, "", IFERROR(LOOKUP(2,1/((OHLCV!D$2:D22135=$B$1)*(OHLCV!A$2:A22135<A116)),OHLCV!G$2:G22135),"")) -> $134.37 | H116: =IF(C116, "", IFERROR(LOOKUP(2,1/((OHLCV!D$2:D22135=$B$1)*(OHLCV!A$2:A22135<A116)),OHLCV!H$2:H22135),"")) -> $137.64
A117: 213 | B117: =IFERROR(LOOKUP(2,1/((OHLCV!D$2:D22136=$B$1)*(OHLCV!A$2:A22136<A117)),OHLCV!B$2:B22136),"") -> 2022-02-01T14:30:00 | C117: TRUE | D117: =IF(C117, "", IFERROR(LOOKUP(2,1/((OHLCV!D$2:D22136=$B$1)*(OHLCV!A$2:A22136<A117)),OHLCV!B$2:B22136),"")) ->  | E117: =IF(C117, "", IFERROR(LOOKUP(2,1/((OHLCV!D$2:D22136=$B$1)*(OHLCV!A$2:A22136<A117)),OHLCV!E$2:E22136),"")) ->  | F117: =IF(C117, "", IFERROR(LOOKUP(2,1/((OHLCV!D$2:D22136=$B$1)*(OHLCV!A$2:A22136<A117)),OHLCV!F$2:F22136),"")) ->  | G117: =IF(C117, "", IFERROR(LOOKUP(2,1/((OHLCV!D$2:D22136=$B$1)*(OHLCV!A$2:A22136<A117)),OHLCV!G$2:G22136),"")) ->  | H117: =IF(C117, "", IFERROR(LOOKUP(2,1/((OHLCV!D$2:D22136=$B$1)*(OHLCV!A$2:A22136<A117)),OHLCV!H$2:H22136),"")) -> 
A118: 214 | B118: =IFERROR(LOOKUP(2,1/((OHLCV!D$2:D22137=$B$1)*(OHLCV!A$2:A22137<A118)),OHLCV!B$2:B22137),"") -> 2022-02-01T14:30:00 | C118: TRUE | D118: =IF(C118, "", IFERROR(LOOKUP(2,1/((OHLCV!D$2:D22137=$B$1)*(OHLCV!A$2:A22137<A118)),OHLCV!B$2:B22137),"")) ->  | E118: =IF(C118, "", IFERROR(LOOKUP(2,1/((OHLCV!D$2:D22137=$B$1)*(OHLCV!A$2:A22137<A118)),OHLCV!E$2:E22137),"")) ->  | F118: =IF(C118, "", IFERROR(LOOKUP(2,1/((OHLCV!D$2:D22137=$B$1)*(OHLCV!A$2:A22137<A118)),OHLCV!F$2:F22137),"")) ->  | G118: =IF(C118, "", IFERROR(LOOKUP(2,1/((OHLCV!D$2:D22137=$B$1)*(OHLCV!A$2:A22137<A118)),OHLCV!G$2:G22137),"")) ->  | H118: =IF(C118, "", IFERROR(LOOKUP(2,1/((OHLCV!D$2:D22137=$B$1)*(OHLCV!A$2:A22137<A118)),OHLCV!H$2:H22137),"")) -> 
A119: 215 | B119: =IFERROR(LOOKUP(2,1/((OHLCV!D$2:D22138=$B$1)*(OHLCV!A$2:A22138<A119)),OHLCV!B$2:B22138),"") -> 2022-02-01T14:30:00 | C119: TRUE | D119: =IF(C119, "", IFERROR(LOOKUP(2,1/((OHLCV!D$2:D22138=$B$1)*(OHLCV!A$2:A22138<A119)),OHLCV!B$2:B22138),"")) ->  | E119: =IF(C119, "", IFERROR(LOOKUP(2,1/((OHLCV!D$2:D22138=$B$1)*(OHLCV!A$2:A22138<A119)),OHLCV!E$2:E22138),"")) ->  | F119: =IF(C119, "", IFERROR(LOOKUP(2,1/((OHLCV!D$2:D22138=$B$1)*(OHLCV!A$2:A22138<A119)),OHLCV!F$2:F22138),"")) ->  | G119: =IF(C119, "", IFERROR(LOOKUP(2,1/((OHLCV!D$2:D22138=$B$1)*(OHLCV!A$2:A22138<A119)),OHLCV!G$2:G22138),"")) ->  | H119: =IF(C119, "", IFERROR(LOOKUP(2,1/((OHLCV!D$2:D22138=$B$1)*(OHLCV!A$2:A22138<A119)),OHLCV!H$2:H22138),"")) -> 
A120: 216 | B120: =IFERROR(LOOKUP(2,1/((OHLCV!D$2:D22139=$B$1)*(OHLCV!A$2:A22139<A120)),OHLCV!B$2:B22139),"") -> 2022-02-01T14:30:00 | C120: TRUE | D120: =IF(C120, "", IFERROR(LOOKUP(2,1/((OHLCV!D$2:D22139=$B$1)*(OHLCV!A$2:A22139<A120)),OHLCV!B$2:B22139),"")) ->  | E120: =IF(C120, "", IFERROR(LOOKUP(2,1/((OHLCV!D$2:D22139=$B$1)*(OHLCV!A$2:A22139<A120)),OHLCV!E$2:E22139),"")) ->  | F120: =IF(C120, "", IFERROR(LOOKUP(2,1/((OHLCV!D$2:D22139=$B$1)*(OHLCV!A$2:A22139<A120)),OHLCV!F$2:F22139),"")) ->  | G120: =IF(C120, "", IFERROR(LOOKUP(2,1/((OHLCV!D$2:D22139=$B$1)*(OHLCV!A$2:A22139<A120)),OHLCV!G$2:G22139),"")) ->  | H120: =IF(C120, "", IFERROR(LOOKUP(2,1/((OHLCV!D$2:D22139=$B$1)*(OHLCV!A$2:A22139<A120)),OHLCV!H$2:H22139),"")) -> 
A121: 217 | B121: =IFERROR(LOOKUP(2,1/((OHLCV!D$2:D22140=$B$1)*(OHLCV!A$2:A22140<A121)),OHLCV!B$2:B22140),"") -> 2022-02-01T14:30:00 | C121: TRUE | D121: =IF(C121, "", IFERROR(LOOKUP(2,1/((OHLCV!D$2:D22140=$B$1)*(OHLCV!A$2:A22140<A121)),OHLCV!B$2:B22140),"")) ->  | E121: =IF(C121, "", IFERROR(LOOKUP(2,1/((OHLCV!D$2:D22140=$B$1)*(OHLCV!A$2:A22140<A121)),OHLCV!E$2:E22140),"")) ->  | F121: =IF(C121, "", IFERROR(LOOKUP(2,1/((OHLCV!D$2:D22140=$B$1)*(OHLCV!A$2:A22140<A121)),OHLCV!F$2:F22140),"")) ->  | G121: =IF(C121, "", IFERROR(LOOKUP(2,1/((OHLCV!D$2:D22140=$B$1)*(OHLCV!A$2:A22140<A121)),OHLCV!G$2:G22140),"")) ->  | H121: =IF(C121, "", IFERROR(LOOKUP(2,1/((OHLCV!D$2:D22140=$B$1)*(OHLCV!A$2:A22140<A121)),OHLCV!H$2:H22140),"")) -> 
A122: 218 | B122: =IFERROR(LOOKUP(2,1/((OHLCV!D$2:D22141=$B$1)*(OHLCV!A$2:A22141<A122)),OHLCV!B$2:B22141),"") -> 2022-02-01T14:30:00 | C122: TRUE | D122: =IF(C122, "", IFERROR(LOOKUP(2,1/((OHLCV!D$2:D22141=$B$1)*(OHLCV!A$2:A22141<A122)),OHLCV!B$2:B22141),"")) ->  | E122: =IF(C122, "", IFERROR(LOOKUP(2,1/((OHLCV!D$2:D22141=$B$1)*(OHLCV!A$2:A22141<A122)),OHLCV!E$2:E22141),"")) ->  | F122: =IF(C122, "", IFERROR(LOOKUP(2,1/((OHLCV!D$2:D22141=$B$1)*(OHLCV!A$2:A22141<A122)),OHLCV!F$2:F22141),"")) ->  | G122: =IF(C122, "", IFERROR(LOOKUP(2,1/((OHLCV!D$2:D22141=$B$1)*(OHLCV!A$2:A22141<A122)),OHLCV!G$2:G22141),"")) ->  | H122: =IF(C122, "", IFERROR(LOOKUP(2,1/((OHLCV!D$2:D22141=$B$1)*(OHLCV!A$2:A22141<A122)),OHLCV!H$2:H22141),"")) -> 
A123: 219 | B123: =IFERROR(LOOKUP(2,1/((OHLCV!D$2:D22142=$B$1)*(OHLCV!A$2:A22142<A123)),OHLCV!B$2:B22142),"") -> 2022-02-01T14:30:00 | C123: TRUE | D123: =IF(C123, "", IFERROR(LOOKUP(2,1/((OHLCV!D$2:D22142=$B$1)*(OHLCV!A$2:A22142<A123)),OHLCV!B$2:B22142),"")) ->  | E123: =IF(C123, "", IFERROR(LOOKUP(2,1/((OHLCV!D$2:D22142=$B$1)*(OHLCV!A$2:A22142<A123)),OHLCV!E$2:E22142),"")) ->  | F123: =IF(C123, "", IFERROR(LOOKUP(2,1/((OHLCV!D$2:D22142=$B$1)*(OHLCV!A$2:A22142<A123)),OHLCV!F$2:F22142),"")) ->  | G123: =IF(C123, "", IFERROR(LOOKUP(2,1/((OHLCV!D$2:D22142=$B$1)*(OHLCV!A$2:A22142<A123)),OHLCV!G$2:G22142),"")) ->  | H123: =IF(C123, "", IFERROR(LOOKUP(2,1/((OHLCV!D$2:D22142=$B$1)*(OHLCV!A$2:A22142<A123)),OHLCV!H$2:H22142),"")) -> 
A124: 220 | B124: =IFERROR(LOOKUP(2,1/((OHLCV!D$2:D22143=$B$1)*(OHLCV!A$2:A22143<A124)),OHLCV!B$2:B22143),"") -> 2022-02-02T14:30:00 | C124: FALSE | D124: =IF(C124, "", IFERROR(LOOKUP(2,1/((OHLCV!D$2:D22143=$B$1)*(OHLCV!A$2:A22143<A124)),OHLCV!B$2:B22143),"")) -> 2022-02-02T14:30:00 | E124: =IF(C124, "", IFERROR(LOOKUP(2,1/((OHLCV!D$2:D22143=$B$1)*(OHLCV!A$2:A22143<A124)),OHLCV!E$2:E22143),"")) -> $151.25 | F124: =IF(C124, "", IFERROR(LOOKUP(2,1/((OHLCV!D$2:D22143=$B$1)*(OHLCV!A$2:A22143<A124)),OHLCV!F$2:F22143),"")) -> $151.55 | G124: =IF(C124, "", IFERROR(LOOKUP(2,1/((OHLCV!D$2:D22143=$B$1)*(OHLCV!A$2:A22143<A124)),OHLCV!G$2:G22143),"")) -> $145.52 | H124: =IF(C124, "", IFERROR(LOOKUP(2,1/((OHLCV!D$2:D22143=$B$1)*(OHLCV!A$2:A22143<A124)),OHLCV!H$2:H22143),"")) -> $148.00
A125: 221 | B125: =IFERROR(LOOKUP(2,1/((OHLCV!D$2:D22144=$B$1)*(OHLCV!A$2:A22144<A125)),OHLCV!B$2:B22144),"") -> 2022-02-02T14:30:00 | C125: TRUE | D125: =IF(C125, "", IFERROR(LOOKUP(2,1/((OHLCV!D$2:D22144=$B$1)*(OHLCV!A$2:A22144<A125)),OHLCV!B$2:B22144),"")) ->  | E125: =IF(C125, "", IFERROR(LOOKUP(2,1/((OHLCV!D$2:D22144=$B$1)*(OHLCV!A$2:A22144<A125)),OHLCV!E$2:E22144),"")) ->  | F125: =IF(C125, "", IFERROR(LOOKUP(2,1/((OHLCV!D$2:D22144=$B$1)*(OHLCV!A$2:A22144<A125)),OHLCV!F$2:F22144),"")) ->  | G125: =IF(C125, "", IFERROR(LOOKUP(2,1/((OHLCV!D$2:D22144=$B$1)*(OHLCV!A$2:A22144<A125)),OHLCV!G$2:G22144),"")) ->  | H125: =IF(C125, "", IFERROR(LOOKUP(2,1/((OHLCV!D$2:D22144=$B$1)*(OHLCV!A$2:A22144<A125)),OHLCV!H$2:H22144),"")) -> 
A126: 222 | B126: =IFERROR(LOOKUP(2,1/((OHLCV!D$2:D22145=$B$1)*(OHLCV!A$2:A22145<A126)),OHLCV!B$2:B22145),"") -> 2022-02-02T14:30:00 | C126: TRUE | D126: =IF(C126, "", IFERROR(LOOKUP(2,1/((OHLCV!D$2:D22145=$B$1)*(OHLCV!A$2:A22145<A126)),OHLCV!B$2:B22145),"")) ->  | E126: =IF(C126, "", IFERROR(LOOKUP(2,1/((OHLCV!D$2:D22145=$B$1)*(OHLCV!A$2:A22145<A126)),OHLCV!E$2:E22145),"")) ->  | F126: =IF(C126, "", IFERROR(LOOKUP(2,1/((OHLCV!D$2:D22145=$B$1)*(OHLCV!A$2:A22145<A126)),OHLCV!F$2:F22145),"")) ->  | G126: =IF(C126, "", IFERROR(LOOKUP(2,1/((OHLCV!D$2:D22145=$B$1)*(OHLCV!A$2:A22145<A126)),OHLCV!G$2:G22145),"")) ->  | H126: =IF(C126, "", IFERROR(LOOKUP(2,1/((OHLCV!D$2:D22145=$B$1)*(OHLCV!A$2:A22145<A126)),OHLCV!H$2:H22145),"")) -> 
A127: 223 | B127: =IFERROR(LOOKUP(2,1/((OHLCV!D$2:D22146=$B$1)*(OHLCV!A$2:A22146<A127)),OHLCV!B$2:B22146),"") -> 2022-02-02T14:30:00 | C127: TRUE | D127: =IF(C127, "", IFERROR(LOOKUP(2,1/((OHLCV!D$2:D22146=$B$1)*(OHLCV!A$2:A22146<A127)),OHLCV!B$2:B22146),"")) ->  | E127: =IF(C127, "", IFERROR(LOOKUP(2,1/((OHLCV!D$2:D22146=$B$1)*(OHLCV!A$2:A22146<A127)),OHLCV!E$2:E22146),"")) ->  | F127: =IF(C127, "", IFERROR(LOOKUP(2,1/((OHLCV!D$2:D22146=$B$1)*(OHLCV!A$2:A22146<A127)),OHLCV!F$2:F22146),"")) ->  | G127: =IF(C127, "", IFERROR(LOOKUP(2,1/((OHLCV!D$2:D22146=$B$1)*(OHLCV!A$2:A22146<A127)),OHLCV!G$2:G22146),"")) ->  | H127: =IF(C127, "", IFERROR(LOOKUP(2,1/((OHLCV!D$2:D22146=$B$1)*(OHLCV!A$2:A22146<A127)),OHLCV!H$2:H22146),"")) -> 
A128: 224 | B128: =IFERROR(LOOKUP(2,1/((OHLCV!D$2:D22147=$B$1)*(OHLCV!A$2:A22147<A128)),OHLCV!B$2:B22147),"") -> 2022-02-02T14:30:00 | C128: TRUE | D128: =IF(C128, "", IFERROR(LOOKUP(2,1/((OHLCV!D$2:D22147=$B$1)*(OHLCV!A$2:A22147<A128)),OHLCV!B$2:B22147),"")) ->  | E128: =IF(C128, "", IFERROR(LOOKUP(2,1/((OHLCV!D$2:D22147=$B$1)*(OHLCV!A$2:A22147<A128)),OHLCV!E$2:E22147),"")) ->  | F128: =IF(C128, "", IFERROR(LOOKUP(2,1/((OHLCV!D$2:D22147=$B$1)*(OHLCV!A$2:A22147<A128)),OHLCV!F$2:F22147),"")) ->  | G128: =IF(C128, "", IFERROR(LOOKUP(2,1/((OHLCV!D$2:D22147=$B$1)*(OHLCV!A$2:A22147<A128)),OHLCV!G$2:G22147),"")) ->  | H128: =IF(C128, "", IFERROR(LOOKUP(2,1/((OHLCV!D$2:D22147=$B$1)*(OHLCV!A$2:A22147<A128)),OHLCV!H$2:H22147),"")) -> 
A129: 225 | B129: =IFERROR(LOOKUP(2,1/((OHLCV!D$2:D22148=$B$1)*(OHLCV!A$2:A22148<A129)),OHLCV!B$2:B22148),"") -> 2022-02-02T14:30:00 | C129: TRUE | D129: =IF(C129, "", IFERROR(LOOKUP(2,1/((OHLCV!D$2:D22148=$B$1)*(OHLCV!A$2:A22148<A129)),OHLCV!B$2:B22148),"")) ->  | E129: =IF(C129, "", IFERROR(LOOKUP(2,1/((OHLCV!D$2:D22148=$B$1)*(OHLCV!A$2:A22148<A129)),OHLCV!E$2:E22148),"")) ->  | F129: =IF(C129, "", IFERROR(LOOKUP(2,1/((OHLCV!D$2:D22148=$B$1)*(OHLCV!A$2:A22148<A129)),OHLCV!F$2:F22148),"")) ->  | G129: =IF(C129, "", IFERROR(LOOKUP(2,1/((OHLCV!D$2:D22148=$B$1)*(OHLCV!A$2:A22148<A129)),OHLCV!G$2:G22148),"")) ->  | H129: =IF(C129, "", IFERROR(LOOKUP(2,1/((OHLCV!D$2:D22148=$B$1)*(OHLCV!A$2:A22148<A129)),OHLCV!H$2:H22148),"")) -> 
A130: 226 | B130: =IFERROR(LOOKUP(2,1/((OHLCV!D$2:D22149=$B$1)*(OHLCV!A$2:A22149<A130)),OHLCV!B$2:B22149),"") -> 2022-02-03T14:30:00 | C130: FALSE | D130: =IF(C130, "", IFERROR(LOOKUP(2,1/((OHLCV!D$2:D22149=$B$1)*(OHLCV!A$2:A22149<A130)),OHLCV!B$2:B22149),"")) -> 2022-02-03T14:30:00 | E130: =IF(C130, "", IFERROR(LOOKUP(2,1/((OHLCV!D$2:D22149=$B$1)*(OHLCV!A$2:A22149<A130)),OHLCV!E$2:E22149),"")) -> $145.71 | F130: =IF(C130, "", IFERROR(LOOKUP(2,1/((OHLCV!D$2:D22149=$B$1)*(OHLCV!A$2:A22149<A130)),OHLCV!F$2:F22149),"")) -> $149.68 | G130: =IF(C130, "", IFERROR(LOOKUP(2,1/((OHLCV!D$2:D22149=$B$1)*(OHLCV!A$2:A22149<A130)),OHLCV!G$2:G22149),"")) -> $142.67 | H130: =IF(C130, "", IFERROR(LOOKUP(2,1/((OHLCV!D$2:D22149=$B$1)*(OHLCV!A$2:A22149<A130)),OHLCV!H$2:H22149),"")) -> $143.09
A131: 227 | B131: =IFERROR(LOOKUP(2,1/((OHLCV!D$2:D22150=$B$1)*(OHLCV!A$2:A22150<A131)),OHLCV!B$2:B22150),"") -> 2022-02-03T14:30:00 | C131: TRUE | D131: =IF(C131, "", IFERROR(LOOKUP(2,1/((OHLCV!D$2:D22150=$B$1)*(OHLCV!A$2:A22150<A131)),OHLCV!B$2:B22150),"")) ->  | E131: =IF(C131, "", IFERROR(LOOKUP(2,1/((OHLCV!D$2:D22150=$B$1)*(OHLCV!A$2:A22150<A131)),OHLCV!E$2:E22150),"")) ->  | F131: =IF(C131, "", IFERROR(LOOKUP(2,1/((OHLCV!D$2:D22150=$B$1)*(OHLCV!A$2:A22150<A131)),OHLCV!F$2:F22150),"")) ->  | G131: =IF(C131, "", IFERROR(LOOKUP(2,1/((OHLCV!D$2:D22150=$B$1)*(OHLCV!A$2:A22150<A131)),OHLCV!G$2:G22150),"")) ->  | H131: =IF(C131, "", IFERROR(LOOKUP(2,1/((OHLCV!D$2:D22150=$B$1)*(OHLCV!A$2:A22150<A131)),OHLCV!H$2:H22150),"")) -> 
A132: 228 | B132: =IFERROR(LOOKUP(2,1/((OHLCV!D$2:D22151=$B$1)*(OHLCV!A$2:A22151<A132)),OHLCV!B$2:B22151),"") -> 2022-02-03T14:30:00 | C132: TRUE | D132: =IF(C132, "", IFERROR(LOOKUP(2,1/((OHLCV!D$2:D22151=$B$1)*(OHLCV!A$2:A22151<A132)),OHLCV!B$2:B22151),"")) ->  | E132: =IF(C132, "", IFERROR(LOOKUP(2,1/((OHLCV!D$2:D22151=$B$1)*(OHLCV!A$2:A22151<A132)),OHLCV!E$2:E22151),"")) ->  | F132: =IF(C132, "", IFERROR(LOOKUP(2,1/((OHLCV!D$2:D22151=$B$1)*(OHLCV!A$2:A22151<A132)),OHLCV!F$2:F22151),"")) ->  | G132: =IF(C132, "", IFERROR(LOOKUP(2,1/((OHLCV!D$2:D22151=$B$1)*(OHLCV!A$2:A22151<A132)),OHLCV!G$2:G22151),"")) ->  | H132: =IF(C132, "", IFERROR(LOOKUP(2,1/((OHLCV!D$2:D22151=$B$1)*(OHLCV!A$2:A22151<A132)),OHLCV!H$2:H22151),"")) -> 
A133: 229 | B133: =IFERROR(LOOKUP(2,1/((OHLCV!D$2:D22152=$B$1)*(OHLCV!A$2:A22152<A133)),OHLCV!B$2:B22152),"") -> 2022-02-03T14:30:00 | C133: TRUE | D133: =IF(C133, "", IFERROR(LOOKUP(2,1/((OHLCV!D$2:D22152=$B$1)*(OHLCV!A$2:A22152<A133)),OHLCV!B$2:B22152),"")) ->  | E133: =IF(C133, "", IFERROR(LOOKUP(2,1/((OHLCV!D$2:D22152=$B$1)*(OHLCV!A$2:A22152<A133)),OHLCV!E$2:E22152),"")) ->  | F133: =IF(C133, "", IFERROR(LOOKUP(2,1/((OHLCV!D$2:D22152=$B$1)*(OHLCV!A$2:A22152<A133)),OHLCV!F$2:F22152),"")) ->  | G133: =IF(C133, "", IFERROR(LOOKUP(2,1/((OHLCV!D$2:D22152=$B$1)*(OHLCV!A$2:A22152<A133)),OHLCV!G$2:G22152),"")) ->  | H133: =IF(C133, "", IFERROR(LOOKUP(2,1/((OHLCV!D$2:D22152=$B$1)*(OHLCV!A$2:A22152<A133)),OHLCV!H$2:H22152),"")) -> 
A134: =A133+1 -> 230 | B134: =IFERROR(LOOKUP(2,1/((OHLCV!D$2:D22153=$B$1)*(OHLCV!A$2:A22153<A134)),OHLCV!B$2:B22153),"") -> 2022-02-03T14:30:00 | C134: =B134 = B133 -> TRUE | D134: =IF(C134, "", IFERROR(LOOKUP(2,1/((OHLCV!D$2:D22153=$B$1)*(OHLCV!A$2:A22153<A134)),OHLCV!B$2:B22153),"")) ->  | E134: =IF(C134, "", IFERROR(LOOKUP(2,1/((OHLCV!D$2:D22153=$B$1)*(OHLCV!A$2:A22153<A134)),OHLCV!E$2:E22153),"")) ->  | F134: =IF(C134, "", IFERROR(LOOKUP(2,1/((OHLCV!D$2:D22153=$B$1)*(OHLCV!A$2:A22153<A134)),OHLCV!F$2:F22153),"")) ->  | G134: =IF(C134, "", IFERROR(LOOKUP(2,1/((OHLCV!D$2:D22153=$B$1)*(OHLCV!A$2:A22153<A134)),OHLCV!G$2:G22153),"")) ->  | H134: =IF(C134, "", IFERROR(LOOKUP(2,1/((OHLCV!D$2:D22153=$B$1)*(OHLCV!A$2:A22153<A134)),OHLCV!H$2:H22153),"")) -> 
A135: 231 | B135: =IFERROR(LOOKUP(2,1/((OHLCV!D$2:D22154=$B$1)*(OHLCV!A$2:A22154<A135)),OHLCV!B$2:B22154),"") -> 2022-02-03T14:30:00 | C135: TRUE | D135: =IF(C135, "", IFERROR(LOOKUP(2,1/((OHLCV!D$2:D22154=$B$1)*(OHLCV!A$2:A22154<A135)),OHLCV!B$2:B22154),"")) ->  | E135: =IF(C135, "", IFERROR(LOOKUP(2,1/((OHLCV!D$2:D22154=$B$1)*(OHLCV!A$2:A22154<A135)),OHLCV!E$2:E22154),"")) ->  | F135: =IF(C135, "", IFERROR(LOOKUP(2,1/((OHLCV!D$2:D22154=$B$1)*(OHLCV!A$2:A22154<A135)),OHLCV!F$2:F22154),"")) ->  | G135: =IF(C135, "", IFERROR(LOOKUP(2,1/((OHLCV!D$2:D22154=$B$1)*(OHLCV!A$2:A22154<A135)),OHLCV!G$2:G22154),"")) ->  | H135: =IF(C135, "", IFERROR(LOOKUP(2,1/((OHLCV!D$2:D22154=$B$1)*(OHLCV!A$2:A22154<A135)),OHLCV!H$2:H22154),"")) -> 
A136: 232 | B136: =IFERROR(LOOKUP(2,1/((OHLCV!D$2:D22155=$B$1)*(OHLCV!A$2:A22155<A136)),OHLCV!B$2:B22155),"") -> 2022-02-03T14:30:00 | C136: TRUE | D136: =IF(C136, "", IFERROR(LOOKUP(2,1/((OHLCV!D$2:D22155=$B$1)*(OHLCV!A$2:A22155<A136)),OHLCV!B$2:B22155),"")) ->  | E136: =IF(C136, "", IFERROR(LOOKUP(2,1/((OHLCV!D$2:D22155=$B$1)*(OHLCV!A$2:A22155<A136)),OHLCV!E$2:E22155),"")) ->  | F136: =IF(C136, "", IFERROR(LOOKUP(2,1/((OHLCV!D$2:D22155=$B$1)*(OHLCV!A$2:A22155<A136)),OHLCV!F$2:F22155),"")) ->  | G136: =IF(C136, "", IFERROR(LOOKUP(2,1/((OHLCV!D$2:D22155=$B$1)*(OHLCV!A$2:A22155<A136)),OHLCV!G$2:G22155),"")) ->  | H136: =IF(C136, "", IFERROR(LOOKUP(2,1/((OHLCV!D$2:D22155=$B$1)*(OHLCV!A$2:A22155<A136)),OHLCV!H$2:H22155),"")) -> 
A137: 233 | B137: =IFERROR(LOOKUP(2,1/((OHLCV!D$2:D22156=$B$1)*(OHLCV!A$2:A22156<A137)),OHLCV!B$2:B22156),"") -> 2022-02-03T14:30:00 | C137: TRUE | D137: =IF(C137, "", IFERROR(LOOKUP(2,1/((OHLCV!D$2:D22156=$B$1)*(OHLCV!A$2:A22156<A137)),OHLCV!B$2:B22156),"")) ->  | E137: =IF(C137, "", IFERROR(LOOKUP(2,1/((OHLCV!D$2:D22156=$B$1)*(OHLCV!A$2:A22156<A137)),OHLCV!E$2:E22156),"")) ->  | F137: =IF(C137, "", IFERROR(LOOKUP(2,1/((OHLCV!D$2:D22156=$B$1)*(OHLCV!A$2:A22156<A137)),OHLCV!F$2:F22156),"")) ->  | G137: =IF(C137, "", IFERROR(LOOKUP(2,1/((OHLCV!D$2:D22156=$B$1)*(OHLCV!A$2:A22156<A137)),OHLCV!G$2:G22156),"")) ->  | H137: =IF(C137, "", IFERROR(LOOKUP(2,1/((OHLCV!D$2:D22156=$B$1)*(OHLCV!A$2:A22156<A137)),OHLCV!H$2:H22156),"")) -> 
A138: 234 | B138: =IFERROR(LOOKUP(2,1/((OHLCV!D$2:D22157=$B$1)*(OHLCV!A$2:A22157<A138)),OHLCV!B$2:B22157),"") -> 2022-02-03T14:30:00 | C138: TRUE | D138: =IF(C138, "", IFERROR(LOOKUP(2,1/((OHLCV!D$2:D22157=$B$1)*(OHLCV!A$2:A22157<A138)),OHLCV!B$2:B22157),"")) ->  | E138: =IF(C138, "", IFERROR(LOOKUP(2,1/((OHLCV!D$2:D22157=$B$1)*(OHLCV!A$2:A22157<A138)),OHLCV!E$2:E22157),"")) ->  | F138: =IF(C138, "", IFERROR(LOOKUP(2,1/((OHLCV!D$2:D22157=$B$1)*(OHLCV!A$2:A22157<A138)),OHLCV!F$2:F22157),"")) ->  | G138: =IF(C138, "", IFERROR(LOOKUP(2,1/((OHLCV!D$2:D22157=$B$1)*(OHLCV!A$2:A22157<A138)),OHLCV!G$2:G22157),"")) ->  | H138: =IF(C138, "", IFERROR(LOOKUP(2,1/((OHLCV!D$2:D22157=$B$1)*(OHLCV!A$2:A22157<A138)),OHLCV!H$2:H22157),"")) -> 
A139: 235 | B139: =IFERROR(LOOKUP(2,1/((OHLCV!D$2:D22158=$B$1)*(OHLCV!A$2:A22158<A139)),OHLCV!B$2:B22158),"") -> 2022-02-03T14:30:00 | C139: TRUE | D139: =IF(C139, "", IFERROR(LOOKUP(2,1/((OHLCV!D$2:D22158=$B$1)*(OHLCV!A$2:A22158<A139)),OHLCV!B$2:B22158),"")) ->  | E139: =IF(C139, "", IFERROR(LOOKUP(2,1/((OHLCV!D$2:D22158=$B$1)*(OHLCV!A$2:A22158<A139)),OHLCV!E$2:E22158),"")) ->  | F139: =IF(C139, "", IFERROR(LOOKUP(2,1/((OHLCV!D$2:D22158=$B$1)*(OHLCV!A$2:A22158<A139)),OHLCV!F$2:F22158),"")) ->  | G139: =IF(C139, "", IFERROR(LOOKUP(2,1/((OHLCV!D$2:D22158=$B$1)*(OHLCV!A$2:A22158<A139)),OHLCV!G$2:G22158),"")) ->  | H139: =IF(C139, "", IFERROR(LOOKUP(2,1/((OHLCV!D$2:D22158=$B$1)*(OHLCV!A$2:A22158<A139)),OHLCV!H$2:H22158),"")) -> 
A140: 236 | B140: =IFERROR(LOOKUP(2,1/((OHLCV!D$2:D22159=$B$1)*(OHLCV!A$2:A22159<A140)),OHLCV!B$2:B22159),"") -> 2022-02-04T14:30:00 | C140: FALSE | D140: =IF(C140, "", IFERROR(LOOKUP(2,1/((OHLCV!D$2:D22159=$B$1)*(OHLCV!A$2:A22159<A140)),OHLCV!B$2:B22159),"")) -> 2022-02-04T14:30:00 | E140: =IF(C140, "", IFERROR(LOOKUP(2,1/((OHLCV!D$2:D22159=$B$1)*(OHLCV!A$2:A22159<A140)),OHLCV!E$2:E22159),"")) -> $143.44 | F140: =IF(C140, "", IFERROR(LOOKUP(2,1/((OHLCV!D$2:D22159=$B$1)*(OHLCV!A$2:A22159<A140)),OHLCV!F$2:F22159),"")) -> $144.88 | G140: =IF(C140, "", IFERROR(LOOKUP(2,1/((OHLCV!D$2:D22159=$B$1)*(OHLCV!A$2:A22159<A140)),OHLCV!G$2:G22159),"")) -> $140.52 | H140: =IF(C140, "", IFERROR(LOOKUP(2,1/((OHLCV!D$2:D22159=$B$1)*(OHLCV!A$2:A22159<A140)),OHLCV!H$2:H22159),"")) -> $143.29
A141: 237 | B141: =IFERROR(LOOKUP(2,1/((OHLCV!D$2:D22160=$B$1)*(OHLCV!A$2:A22160<A141)),OHLCV!B$2:B22160),"") -> 2022-02-04T14:30:00 | C141: TRUE | D141: =IF(C141, "", IFERROR(LOOKUP(2,1/((OHLCV!D$2:D22160=$B$1)*(OHLCV!A$2:A22160<A141)),OHLCV!B$2:B22160),"")) ->  | E141: =IF(C141, "", IFERROR(LOOKUP(2,1/((OHLCV!D$2:D22160=$B$1)*(OHLCV!A$2:A22160<A141)),OHLCV!E$2:E22160),"")) ->  | F141: =IF(C141, "", IFERROR(LOOKUP(2,1/((OHLCV!D$2:D22160=$B$1)*(OHLCV!A$2:A22160<A141)),OHLCV!F$2:F22160),"")) ->  | G141: =IF(C141, "", IFERROR(LOOKUP(2,1/((OHLCV!D$2:D22160=$B$1)*(OHLCV!A$2:A22160<A141)),OHLCV!G$2:G22160),"")) ->  | H141: =IF(C141, "", IFERROR(LOOKUP(2,1/((OHLCV!D$2:D22160=$B$1)*(OHLCV!A$2:A22160<A141)),OHLCV!H$2:H22160),"")) -> 
A142: 238 | B142: =IFERROR(LOOKUP(2,1/((OHLCV!D$2:D22161=$B$1)*(OHLCV!A$2:A22161<A142)),OHLCV!B$2:B22161),"") -> 2022-02-04T14:30:00 | C142: TRUE | D142: =IF(C142, "", IFERROR(LOOKUP(2,1/((OHLCV!D$2:D22161=$B$1)*(OHLCV!A$2:A22161<A142)),OHLCV!B$2:B22161),"")) ->  | E142: =IF(C142, "", IFERROR(LOOKUP(2,1/((OHLCV!D$2:D22161=$B$1)*(OHLCV!A$2:A22161<A142)),OHLCV!E$2:E22161),"")) ->  | F142: =IF(C142, "", IFERROR(LOOKUP(2,1/((OHLCV!D$2:D22161=$B$1)*(OHLCV!A$2:A22161<A142)),OHLCV!F$2:F22161),"")) ->  | G142: =IF(C142, "", IFERROR(LOOKUP(2,1/((OHLCV!D$2:D22161=$B$1)*(OHLCV!A$2:A22161<A142)),OHLCV!G$2:G22161),"")) ->  | H142: =IF(C142, "", IFERROR(LOOKUP(2,1/((OHLCV!D$2:D22161=$B$1)*(OHLCV!A$2:A22161<A142)),OHLCV!H$2:H22161),"")) -> 
A143: 239 | B143: =IFERROR(LOOKUP(2,1/((OHLCV!D$2:D22162=$B$1)*(OHLCV!A$2:A22162<A143)),OHLCV!B$2:B22162),"") -> 2022-02-04T14:30:00 | C143: TRUE | D143: =IF(C143, "", IFERROR(LOOKUP(2,1/((OHLCV!D$2:D22162=$B$1)*(OHLCV!A$2:A22162<A143)),OHLCV!B$2:B22162),"")) ->  | E143: =IF(C143, "", IFERROR(LOOKUP(2,1/((OHLCV!D$2:D22162=$B$1)*(OHLCV!A$2:A22162<A143)),OHLCV!E$2:E22162),"")) ->  | F143: =IF(C143, "", IFERROR(LOOKUP(2,1/((OHLCV!D$2:D22162=$B$1)*(OHLCV!A$2:A22162<A143)),OHLCV!F$2:F22162),"")) ->  | G143: =IF(C143, "", IFERROR(LOOKUP(2,1/((OHLCV!D$2:D22162=$B$1)*(OHLCV!A$2:A22162<A143)),OHLCV!G$2:G22162),"")) ->  | H143: =IF(C143, "", IFERROR(LOOKUP(2,1/((OHLCV!D$2:D22162=$B$1)*(OHLCV!A$2:A22162<A143)),OHLCV!H$2:H22162),"")) -> 
A144: 240 | B144: =IFERROR(LOOKUP(2,1/((OHLCV!D$2:D22163=$B$1)*(OHLCV!A$2:A22163<A144)),OHLCV!B$2:B22163),"") -> 2022-02-04T14:30:00 | C144: TRUE | D144: =IF(C144, "", IFERROR(LOOKUP(2,1/((OHLCV!D$2:D22163=$B$1)*(OHLCV!A$2:A22163<A144)),OHLCV!B$2:B22163),"")) ->  | E144: =IF(C144, "", IFERROR(LOOKUP(2,1/((OHLCV!D$2:D22163=$B$1)*(OHLCV!A$2:A22163<A144)),OHLCV!E$2:E22163),"")) ->  | F144: =IF(C144, "", IFERROR(LOOKUP(2,1/((OHLCV!D$2:D22163=$B$1)*(OHLCV!A$2:A22163<A144)),OHLCV!F$2:F22163),"")) ->  | G144: =IF(C144, "", IFERROR(LOOKUP(2,1/((OHLCV!D$2:D22163=$B$1)*(OHLCV!A$2:A22163<A144)),OHLCV!G$2:G22163),"")) ->  | H144: =IF(C144, "", IFERROR(LOOKUP(2,1/((OHLCV!D$2:D22163=$B$1)*(OHLCV!A$2:A22163<A144)),OHLCV!H$2:H22163),"")) -> 
A145: 241 | B145: =IFERROR(LOOKUP(2,1/((OHLCV!D$2:D22164=$B$1)*(OHLCV!A$2:A22164<A145)),OHLCV!B$2:B22164),"") -> 2022-02-04T14:30:00 | C145: TRUE | D145: =IF(C145, "", IFERROR(LOOKUP(2,1/((OHLCV!D$2:D22164=$B$1)*(OHLCV!A$2:A22164<A145)),OHLCV!B$2:B22164),"")) ->  | E145: =IF(C145, "", IFERROR(LOOKUP(2,1/((OHLCV!D$2:D22164=$B$1)*(OHLCV!A$2:A22164<A145)),OHLCV!E$2:E22164),"")) ->  | F145: =IF(C145, "", IFERROR(LOOKUP(2,1/((OHLCV!D$2:D22164=$B$1)*(OHLCV!A$2:A22164<A145)),OHLCV!F$2:F22164),"")) ->  | G145: =IF(C145, "", IFERROR(LOOKUP(2,1/((OHLCV!D$2:D22164=$B$1)*(OHLCV!A$2:A22164<A145)),OHLCV!G$2:G22164),"")) ->  | H145: =IF(C145, "", IFERROR(LOOKUP(2,1/((OHLCV!D$2:D22164=$B$1)*(OHLCV!A$2:A22164<A145)),OHLCV!H$2:H22164),"")) -> 
A146: 242 | B146: =IFERROR(LOOKUP(2,1/((OHLCV!D$2:D22165=$B$1)*(OHLCV!A$2:A22165<A146)),OHLCV!B$2:B22165),"") -> 2022-02-04T14:30:00 | C146: TRUE | D146: =IF(C146, "", IFERROR(LOOKUP(2,1/((OHLCV!D$2:D22165=$B$1)*(OHLCV!A$2:A22165<A146)),OHLCV!B$2:B22165),"")) ->  | E146: =IF(C146, "", IFERROR(LOOKUP(2,1/((OHLCV!D$2:D22165=$B$1)*(OHLCV!A$2:A22165<A146)),OHLCV!E$2:E22165),"")) ->  | F146: =IF(C146, "", IFERROR(LOOKUP(2,1/((OHLCV!D$2:D22165=$B$1)*(OHLCV!A$2:A22165<A146)),OHLCV!F$2:F22165),"")) ->  | G146: =IF(C146, "", IFERROR(LOOKUP(2,1/((OHLCV!D$2:D22165=$B$1)*(OHLCV!A$2:A22165<A146)),OHLCV!G$2:G22165),"")) ->  | H146: =IF(C146, "", IFERROR(LOOKUP(2,1/((OHLCV!D$2:D22165=$B$1)*(OHLCV!A$2:A22165<A146)),OHLCV!H$2:H22165),"")) -> 
A147: 243 | B147: =IFERROR(LOOKUP(2,1/((OHLCV!D$2:D22166=$B$1)*(OHLCV!A$2:A22166<A147)),OHLCV!B$2:B22166),"") -> 2022-02-04T14:30:00 | C147: TRUE | D147: =IF(C147, "", IFERROR(LOOKUP(2,1/((OHLCV!D$2:D22166=$B$1)*(OHLCV!A$2:A22166<A147)),OHLCV!B$2:B22166),"")) ->  | E147: =IF(C147, "", IFERROR(LOOKUP(2,1/((OHLCV!D$2:D22166=$B$1)*(OHLCV!A$2:A22166<A147)),OHLCV!E$2:E22166),"")) ->  | F147: =IF(C147, "", IFERROR(LOOKUP(2,1/((OHLCV!D$2:D22166=$B$1)*(OHLCV!A$2:A22166<A147)),OHLCV!F$2:F22166),"")) ->  | G147: =IF(C147, "", IFERROR(LOOKUP(2,1/((OHLCV!D$2:D22166=$B$1)*(OHLCV!A$2:A22166<A147)),OHLCV!G$2:G22166),"")) ->  | H147: =IF(C147, "", IFERROR(LOOKUP(2,1/((OHLCV!D$2:D22166=$B$1)*(OHLCV!A$2:A22166<A147)),OHLCV!H$2:H22166),"")) -> 
A148: 244 | B148: =IFERROR(LOOKUP(2,1/((OHLCV!D$2:D22167=$B$1)*(OHLCV!A$2:A22167<A148)),OHLCV!B$2:B22167),"") -> 2022-02-04T14:30:00 | C148: TRUE | D148: =IF(C148, "", IFERROR(LOOKUP(2,1/((OHLCV!D$2:D22167=$B$1)*(OHLCV!A$2:A22167<A148)),OHLCV!B$2:B22167),"")) ->  | E148: =IF(C148, "", IFERROR(LOOKUP(2,1/((OHLCV!D$2:D22167=$B$1)*(OHLCV!A$2:A22167<A148)),OHLCV!E$2:E22167),"")) ->  | F148: =IF(C148, "", IFERROR(LOOKUP(2,1/((OHLCV!D$2:D22167=$B$1)*(OHLCV!A$2:A22167<A148)),OHLCV!F$2:F22167),"")) ->  | G148: =IF(C148, "", IFERROR(LOOKUP(2,1/((OHLCV!D$2:D22167=$B$1)*(OHLCV!A$2:A22167<A148)),OHLCV!G$2:G22167),"")) ->  | H148: =IF(C148, "", IFERROR(LOOKUP(2,1/((OHLCV!D$2:D22167=$B$1)*(OHLCV!A$2:A22167<A148)),OHLCV!H$2:H22167),"")) -> 
A149: 245 | B149: =IFERROR(LOOKUP(2,1/((OHLCV!D$2:D22168=$B$1)*(OHLCV!A$2:A22168<A149)),OHLCV!B$2:B22168),"") -> 2022-02-04T14:30:00 | C149: TRUE | D149: =IF(C149, "", IFERROR(LOOKUP(2,1/((OHLCV!D$2:D22168=$B$1)*(OHLCV!A$2:A22168<A149)),OHLCV!B$2:B22168),"")) ->  | E149: =IF(C149, "", IFERROR(LOOKUP(2,1/((OHLCV!D$2:D22168=$B$1)*(OHLCV!A$2:A22168<A149)),OHLCV!E$2:E22168),"")) ->  | F149: =IF(C149, "", IFERROR(LOOKUP(2,1/((OHLCV!D$2:D22168=$B$1)*(OHLCV!A$2:A22168<A149)),OHLCV!F$2:F22168),"")) ->  | G149: =IF(C149, "", IFERROR(LOOKUP(2,1/((OHLCV!D$2:D22168=$B$1)*(OHLCV!A$2:A22168<A149)),OHLCV!G$2:G22168),"")) ->  | H149: =IF(C149, "", IFERROR(LOOKUP(2,1/((OHLCV!D$2:D22168=$B$1)*(OHLCV!A$2:A22168<A149)),OHLCV!H$2:H22168),"")) -> 
A150: 246 | B150: =IFERROR(LOOKUP(2,1/((OHLCV!D$2:D22169=$B$1)*(OHLCV!A$2:A22169<A150)),OHLCV!B$2:B22169),"") -> 2022-02-04T14:30:00 | C150: TRUE | D150: =IF(C150, "", IFERROR(LOOKUP(2,1/((OHLCV!D$2:D22169=$B$1)*(OHLCV!A$2:A22169<A150)),OHLCV!B$2:B22169),"")) ->  | E150: =IF(C150, "", IFERROR(LOOKUP(2,1/((OHLCV!D$2:D22169=$B$1)*(OHLCV!A$2:A22169<A150)),OHLCV!E$2:E22169),"")) ->  | F150: =IF(C150, "", IFERROR(LOOKUP(2,1/((OHLCV!D$2:D22169=$B$1)*(OHLCV!A$2:A22169<A150)),OHLCV!F$2:F22169),"")) ->  | G150: =IF(C150, "", IFERROR(LOOKUP(2,1/((OHLCV!D$2:D22169=$B$1)*(OHLCV!A$2:A22169<A150)),OHLCV!G$2:G22169),"")) ->  | H150: =IF(C150, "", IFERROR(LOOKUP(2,1/((OHLCV!D$2:D22169=$B$1)*(OHLCV!A$2:A22169<A150)),OHLCV!H$2:H22169),"")) -> 
A151: 247 | B151: =IFERROR(LOOKUP(2,1/((OHLCV!D$2:D22170=$B$1)*(OHLCV!A$2:A22170<A151)),OHLCV!B$2:B22170),"") -> 2022-02-04T14:30:00 | C151: TRUE | D151: =IF(C151, "", IFERROR(LOOKUP(2,1/((OHLCV!D$2:D22170=$B$1)*(OHLCV!A$2:A22170<A151)),OHLCV!B$2:B22170),"")) ->  | E151: =IF(C151, "", IFERROR(LOOKUP(2,1/((OHLCV!D$2:D22170=$B$1)*(OHLCV!A$2:A22170<A151)),OHLCV!E$2:E22170),"")) ->  | F151: =IF(C151, "", IFERROR(LOOKUP(2,1/((OHLCV!D$2:D22170=$B$1)*(OHLCV!A$2:A22170<A151)),OHLCV!F$2:F22170),"")) ->  | G151: =IF(C151, "", IFERROR(LOOKUP(2,1/((OHLCV!D$2:D22170=$B$1)*(OHLCV!A$2:A22170<A151)),OHLCV!G$2:G22170),"")) ->  | H151: =IF(C151, "", IFERROR(LOOKUP(2,1/((OHLCV!D$2:D22170=$B$1)*(OHLCV!A$2:A22170<A151)),OHLCV!H$2:H22170),"")) -> 
A152: 248 | B152: =IFERROR(LOOKUP(2,1/((OHLCV!D$2:D22171=$B$1)*(OHLCV!A$2:A22171<A152)),OHLCV!B$2:B22171),"") -> 2022-02-04T14:30:00 | C152: TRUE | D152: =IF(C152, "", IFERROR(LOOKUP(2,1/((OHLCV!D$2:D22171=$B$1)*(OHLCV!A$2:A22171<A152)),OHLCV!B$2:B22171),"")) ->  | E152: =IF(C152, "", IFERROR(LOOKUP(2,1/((OHLCV!D$2:D22171=$B$1)*(OHLCV!A$2:A22171<A152)),OHLCV!E$2:E22171),"")) ->  | F152: =IF(C152, "", IFERROR(LOOKUP(2,1/((OHLCV!D$2:D22171=$B$1)*(OHLCV!A$2:A22171<A152)),OHLCV!F$2:F22171),"")) ->  | G152: =IF(C152, "", IFERROR(LOOKUP(2,1/((OHLCV!D$2:D22171=$B$1)*(OHLCV!A$2:A22171<A152)),OHLCV!G$2:G22171),"")) ->  | H152: =IF(C152, "", IFERROR(LOOKUP(2,1/((OHLCV!D$2:D22171=$B$1)*(OHLCV!A$2:A22171<A152)),OHLCV!H$2:H22171),"")) -> 
A153: 249 | B153: =IFERROR(LOOKUP(2,1/((OHLCV!D$2:D22172=$B$1)*(OHLCV!A$2:A22172<A153)),OHLCV!B$2:B22172),"") -> 2022-02-04T14:30:00 | C153: TRUE | D153: =IF(C153, "", IFERROR(LOOKUP(2,1/((OHLCV!D$2:D22172=$B$1)*(OHLCV!A$2:A22172<A153)),OHLCV!B$2:B22172),"")) ->  | E153: =IF(C153, "", IFERROR(LOOKUP(2,1/((OHLCV!D$2:D22172=$B$1)*(OHLCV!A$2:A22172<A153)),OHLCV!E$2:E22172),"")) ->  | F153: =IF(C153, "", IFERROR(LOOKUP(2,1/((OHLCV!D$2:D22172=$B$1)*(OHLCV!A$2:A22172<A153)),OHLCV!F$2:F22172),"")) ->  | G153: =IF(C153, "", IFERROR(LOOKUP(2,1/((OHLCV!D$2:D22172=$B$1)*(OHLCV!A$2:A22172<A153)),OHLCV!G$2:G22172),"")) ->  | H153: =IF(C153, "", IFERROR(LOOKUP(2,1/((OHLCV!D$2:D22172=$B$1)*(OHLCV!A$2:A22172<A153)),OHLCV!H$2:H22172),"")) -> 
A154: 250 | B154: =IFERROR(LOOKUP(2,1/((OHLCV!D$2:D22173=$B$1)*(OHLCV!A$2:A22173<A154)),OHLCV!B$2:B22173),"") -> 2022-02-07T14:30:00 | C154: FALSE | D154: =IF(C154, "", IFERROR(LOOKUP(2,1/((OHLCV!D$2:D22173=$B$1)*(OHLCV!A$2:A22173<A154)),OHLCV!B$2:B22173),"")) -> 2022-02-07T14:30:00 | E154: =IF(C154, "", IFERROR(LOOKUP(2,1/((OHLCV!D$2:D22173=$B$1)*(OHLCV!A$2:A22173<A154)),OHLCV!E$2:E22173),"")) -> $144.25 | F154: =IF(C154, "", IFERROR(LOOKUP(2,1/((OHLCV!D$2:D22173=$B$1)*(OHLCV!A$2:A22173<A154)),OHLCV!F$2:F22173),"")) -> $144.25 | G154: =IF(C154, "", IFERROR(LOOKUP(2,1/((OHLCV!D$2:D22173=$B$1)*(OHLCV!A$2:A22173<A154)),OHLCV!G$2:G22173),"")) -> $138.90 | H154: =IF(C154, "", IFERROR(LOOKUP(2,1/((OHLCV!D$2:D22173=$B$1)*(OHLCV!A$2:A22173<A154)),OHLCV!H$2:H22173),"")) -> $139.20
A155: 251 | B155: =IFERROR(LOOKUP(2,1/((OHLCV!D$2:D22174=$B$1)*(OHLCV!A$2:A22174<A155)),OHLCV!B$2:B22174),"") -> 2022-02-07T14:30:00 | C155: TRUE | D155: =IF(C155, "", IFERROR(LOOKUP(2,1/((OHLCV!D$2:D22174=$B$1)*(OHLCV!A$2:A22174<A155)),OHLCV!B$2:B22174),"")) ->  | E155: =IF(C155, "", IFERROR(LOOKUP(2,1/((OHLCV!D$2:D22174=$B$1)*(OHLCV!A$2:A22174<A155)),OHLCV!E$2:E22174),"")) ->  | F155: =IF(C155, "", IFERROR(LOOKUP(2,1/((OHLCV!D$2:D22174=$B$1)*(OHLCV!A$2:A22174<A155)),OHLCV!F$2:F22174),"")) ->  | G155: =IF(C155, "", IFERROR(LOOKUP(2,1/((OHLCV!D$2:D22174=$B$1)*(OHLCV!A$2:A22174<A155)),OHLCV!G$2:G22174),"")) ->  | H155: =IF(C155, "", IFERROR(LOOKUP(2,1/((OHLCV!D$2:D22174=$B$1)*(OHLCV!A$2:A22174<A155)),OHLCV!H$2:H22174),"")) -> 
A156: 252 | B156: =IFERROR(LOOKUP(2,1/((OHLCV!D$2:D22175=$B$1)*(OHLCV!A$2:A22175<A156)),OHLCV!B$2:B22175),"") -> 2022-02-07T14:30:00 | C156: TRUE | D156: =IF(C156, "", IFERROR(LOOKUP(2,1/((OHLCV!D$2:D22175=$B$1)*(OHLCV!A$2:A22175<A156)),OHLCV!B$2:B22175),"")) ->  | E156: =IF(C156, "", IFERROR(LOOKUP(2,1/((OHLCV!D$2:D22175=$B$1)*(OHLCV!A$2:A22175<A156)),OHLCV!E$2:E22175),"")) ->  | F156: =IF(C156, "", IFERROR(LOOKUP(2,1/((OHLCV!D$2:D22175=$B$1)*(OHLCV!A$2:A22175<A156)),OHLCV!F$2:F22175),"")) ->  | G156: =IF(C156, "", IFERROR(LOOKUP(2,1/((OHLCV!D$2:D22175=$B$1)*(OHLCV!A$2:A22175<A156)),OHLCV!G$2:G22175),"")) ->  | H156: =IF(C156, "", IFERROR(LOOKUP(2,1/((OHLCV!D$2:D22175=$B$1)*(OHLCV!A$2:A22175<A156)),OHLCV!H$2:H22175),"")) -> 
A157: 253 | B157: =IFERROR(LOOKUP(2,1/((OHLCV!D$2:D22176=$B$1)*(OHLCV!A$2:A22176<A157)),OHLCV!B$2:B22176),"") -> 2022-02-07T14:30:00 | C157: TRUE | D157: =IF(C157, "", IFERROR(LOOKUP(2,1/((OHLCV!D$2:D22176=$B$1)*(OHLCV!A$2:A22176<A157)),OHLCV!B$2:B22176),"")) ->  | E157: =IF(C157, "", IFERROR(LOOKUP(2,1/((OHLCV!D$2:D22176=$B$1)*(OHLCV!A$2:A22176<A157)),OHLCV!E$2:E22176),"")) ->  | F157: =IF(C157, "", IFERROR(LOOKUP(2,1/((OHLCV!D$2:D22176=$B$1)*(OHLCV!A$2:A22176<A157)),OHLCV!F$2:F22176),"")) ->  | G157: =IF(C157, "", IFERROR(LOOKUP(2,1/((OHLCV!D$2:D22176=$B$1)*(OHLCV!A$2:A22176<A157)),OHLCV!G$2:G22176),"")) ->  | H157: =IF(C157, "", IFERROR(LOOKUP(2,1/((OHLCV!D$2:D22176=$B$1)*(OHLCV!A$2:A22176<A157)),OHLCV!H$2:H22176),"")) -> 
A158: 254 | B158: =IFERROR(LOOKUP(2,1/((OHLCV!D$2:D22177=$B$1)*(OHLCV!A$2:A22177<A158)),OHLCV!B$2:B22177),"") -> 2022-02-07T14:30:00 | C158: TRUE | D158: =IF(C158, "", IFERROR(LOOKUP(2,1/((OHLCV!D$2:D22177=$B$1)*(OHLCV!A$2:A22177<A158)),OHLCV!B$2:B22177),"")) ->  | E158: =IF(C158, "", IFERROR(LOOKUP(2,1/((OHLCV!D$2:D22177=$B$1)*(OHLCV!A$2:A22177<A158)),OHLCV!E$2:E22177),"")) ->  | F158: =IF(C158, "", IFERROR(LOOKUP(2,1/((OHLCV!D$2:D22177=$B$1)*(OHLCV!A$2:A22177<A158)),OHLCV!F$2:F22177),"")) ->  | G158: =IF(C158, "", IFERROR(LOOKUP(2,1/((OHLCV!D$2:D22177=$B$1)*(OHLCV!A$2:A22177<A158)),OHLCV!G$2:G22177),"")) ->  | H158: =IF(C158, "", IFERROR(LOOKUP(2,1/((OHLCV!D$2:D22177=$B$1)*(OHLCV!A$2:A22177<A158)),OHLCV!H$2:H22177),"")) -> 
A159: 255 | B159: =IFERROR(LOOKUP(2,1/((OHLCV!D$2:D22178=$B$1)*(OHLCV!A$2:A22178<A159)),OHLCV!B$2:B22178),"") -> 2022-02-07T14:30:00 | C159: TRUE | D159: =IF(C159, "", IFERROR(LOOKUP(2,1/((OHLCV!D$2:D22178=$B$1)*(OHLCV!A$2:A22178<A159)),OHLCV!B$2:B22178),"")) ->  | E159: =IF(C159, "", IFERROR(LOOKUP(2,1/((OHLCV!D$2:D22178=$B$1)*(OHLCV!A$2:A22178<A159)),OHLCV!E$2:E22178),"")) ->  | F159: =IF(C159, "", IFERROR(LOOKUP(2,1/((OHLCV!D$2:D22178=$B$1)*(OHLCV!A$2:A22178<A159)),OHLCV!F$2:F22178),"")) ->  | G159: =IF(C159, "", IFERROR(LOOKUP(2,1/((OHLCV!D$2:D22178=$B$1)*(OHLCV!A$2:A22178<A159)),OHLCV!G$2:G22178),"")) ->  | H159: =IF(C159, "", IFERROR(LOOKUP(2,1/((OHLCV!D$2:D22178=$B$1)*(OHLCV!A$2:A22178<A159)),OHLCV!H$2:H22178),"")) -> 
A160: 256 | B160: =IFERROR(LOOKUP(2,1/((OHLCV!D$2:D22179=$B$1)*(OHLCV!A$2:A22179<A160)),OHLCV!B$2:B22179),"") -> 2022-02-07T14:30:00 | C160: TRUE | D160: =IF(C160, "", IFERROR(LOOKUP(2,1/((OHLCV!D$2:D22179=$B$1)*(OHLCV!A$2:A22179<A160)),OHLCV!B$2:B22179),"")) ->  | E160: =IF(C160, "", IFERROR(LOOKUP(2,1/((OHLCV!D$2:D22179=$B$1)*(OHLCV!A$2:A22179<A160)),OHLCV!E$2:E22179),"")) ->  | F160: =IF(C160, "", IFERROR(LOOKUP(2,1/((OHLCV!D$2:D22179=$B$1)*(OHLCV!A$2:A22179<A160)),OHLCV!F$2:F22179),"")) ->  | G160: =IF(C160, "", IFERROR(LOOKUP(2,1/((OHLCV!D$2:D22179=$B$1)*(OHLCV!A$2:A22179<A160)),OHLCV!G$2:G22179),"")) ->  | H160: =IF(C160, "", IFERROR(LOOKUP(2,1/((OHLCV!D$2:D22179=$B$1)*(OHLCV!A$2:A22179<A160)),OHLCV!H$2:H22179),"")) -> 
A161: 257 | B161: =IFERROR(LOOKUP(2,1/((OHLCV!D$2:D22180=$B$1)*(OHLCV!A$2:A22180<A161)),OHLCV!B$2:B22180),"") -> 2022-02-07T14:30:00 | C161: TRUE | D161: =IF(C161, "", IFERROR(LOOKUP(2,1/((OHLCV!D$2:D22180=$B$1)*(OHLCV!A$2:A22180<A161)),OHLCV!B$2:B22180),"")) ->  | E161: =IF(C161, "", IFERROR(LOOKUP(2,1/((OHLCV!D$2:D22180=$B$1)*(OHLCV!A$2:A22180<A161)),OHLCV!E$2:E22180),"")) ->  | F161: =IF(C161, "", IFERROR(LOOKUP(2,1/((OHLCV!D$2:D22180=$B$1)*(OHLCV!A$2:A22180<A161)),OHLCV!F$2:F22180),"")) ->  | G161: =IF(C161, "", IFERROR(LOOKUP(2,1/((OHLCV!D$2:D22180=$B$1)*(OHLCV!A$2:A22180<A161)),OHLCV!G$2:G22180),"")) ->  | H161: =IF(C161, "", IFERROR(LOOKUP(2,1/((OHLCV!D$2:D22180=$B$1)*(OHLCV!A$2:A22180<A161)),OHLCV!H$2:H22180),"")) -> 
A162: 258 | B162: =IFERROR(LOOKUP(2,1/((OHLCV!D$2:D22181=$B$1)*(OHLCV!A$2:A22181<A162)),OHLCV!B$2:B22181),"") -> 2022-02-07T14:30:00 | C162: TRUE | D162: =IF(C162, "", IFERROR(LOOKUP(2,1/((OHLCV!D$2:D22181=$B$1)*(OHLCV!A$2:A22181<A162)),OHLCV!B$2:B22181),"")) ->  | E162: =IF(C162, "", IFERROR(LOOKUP(2,1/((OHLCV!D$2:D22181=$B$1)*(OHLCV!A$2:A22181<A162)),OHLCV!E$2:E22181),"")) ->  | F162: =IF(C162, "", IFERROR(LOOKUP(2,1/((OHLCV!D$2:D22181=$B$1)*(OHLCV!A$2:A22181<A162)),OHLCV!F$2:F22181),"")) ->  | G162: =IF(C162, "", IFERROR(LOOKUP(2,1/((OHLCV!D$2:D22181=$B$1)*(OHLCV!A$2:A22181<A162)),OHLCV!G$2:G22181),"")) ->  | H162: =IF(C162, "", IFERROR(LOOKUP(2,1/((OHLCV!D$2:D22181=$B$1)*(OHLCV!A$2:A22181<A162)),OHLCV!H$2:H22181),"")) -> 
A163: 259 | B163: =IFERROR(LOOKUP(2,1/((OHLCV!D$2:D22182=$B$1)*(OHLCV!A$2:A22182<A163)),OHLCV!B$2:B22182),"") -> 2022-02-08T14:30:00 | C163: FALSE | D163: =IF(C163, "", IFERROR(LOOKUP(2,1/((OHLCV!D$2:D22182=$B$1)*(OHLCV!A$2:A22182<A163)),OHLCV!B$2:B22182),"")) -> 2022-02-08T14:30:00 | E163: =IF(C163, "", IFERROR(LOOKUP(2,1/((OHLCV!D$2:D22182=$B$1)*(OHLCV!A$2:A22182<A163)),OHLCV!E$2:E22182),"")) -> $139.03 | F163: =IF(C163, "", IFERROR(LOOKUP(2,1/((OHLCV!D$2:D22182=$B$1)*(OHLCV!A$2:A22182<A163)),OHLCV!F$2:F22182),"")) -> $140.00 | G163: =IF(C163, "", IFERROR(LOOKUP(2,1/((OHLCV!D$2:D22182=$B$1)*(OHLCV!A$2:A22182<A163)),OHLCV!G$2:G22182),"")) -> $137.01 | H163: =IF(C163, "", IFERROR(LOOKUP(2,1/((OHLCV!D$2:D22182=$B$1)*(OHLCV!A$2:A22182<A163)),OHLCV!H$2:H22182),"")) -> $139.40
A164: 260 | B164: =IFERROR(LOOKUP(2,1/((OHLCV!D$2:D22183=$B$1)*(OHLCV!A$2:A22183<A164)),OHLCV!B$2:B22183),"") -> 2022-02-08T14:30:00 | C164: TRUE | D164: =IF(C164, "", IFERROR(LOOKUP(2,1/((OHLCV!D$2:D22183=$B$1)*(OHLCV!A$2:A22183<A164)),OHLCV!B$2:B22183),"")) ->  | E164: =IF(C164, "", IFERROR(LOOKUP(2,1/((OHLCV!D$2:D22183=$B$1)*(OHLCV!A$2:A22183<A164)),OHLCV!E$2:E22183),"")) ->  | F164: =IF(C164, "", IFERROR(LOOKUP(2,1/((OHLCV!D$2:D22183=$B$1)*(OHLCV!A$2:A22183<A164)),OHLCV!F$2:F22183),"")) ->  | G164: =IF(C164, "", IFERROR(LOOKUP(2,1/((OHLCV!D$2:D22183=$B$1)*(OHLCV!A$2:A22183<A164)),OHLCV!G$2:G22183),"")) ->  | H164: =IF(C164, "", IFERROR(LOOKUP(2,1/((OHLCV!D$2:D22183=$B$1)*(OHLCV!A$2:A22183<A164)),OHLCV!H$2:H22183),"")) -> 
A165: 261 | B165: =IFERROR(LOOKUP(2,1/((OHLCV!D$2:D22184=$B$1)*(OHLCV!A$2:A22184<A165)),OHLCV!B$2:B22184),"") -> 2022-02-08T14:30:00 | C165: TRUE | D165: =IF(C165, "", IFERROR(LOOKUP(2,1/((OHLCV!D$2:D22184=$B$1)*(OHLCV!A$2:A22184<A165)),OHLCV!B$2:B22184),"")) ->  | E165: =IF(C165, "", IFERROR(LOOKUP(2,1/((OHLCV!D$2:D22184=$B$1)*(OHLCV!A$2:A22184<A165)),OHLCV!E$2:E22184),"")) ->  | F165: =IF(C165, "", IFERROR(LOOKUP(2,1/((OHLCV!D$2:D22184=$B$1)*(OHLCV!A$2:A22184<A165)),OHLCV!F$2:F22184),"")) ->  | G165: =IF(C165, "", IFERROR(LOOKUP(2,1/((OHLCV!D$2:D22184=$B$1)*(OHLCV!A$2:A22184<A165)),OHLCV!G$2:G22184),"")) ->  | H165: =IF(C165, "", IFERROR(LOOKUP(2,1/((OHLCV!D$2:D22184=$B$1)*(OHLCV!A$2:A22184<A165)),OHLCV!H$2:H22184),"")) -> 
A166: 262 | B166: =IFERROR(LOOKUP(2,1/((OHLCV!D$2:D22185=$B$1)*(OHLCV!A$2:A22185<A166)),OHLCV!B$2:B22185),"") -> 2022-02-08T14:30:00 | C166: TRUE | D166: =IF(C166, "", IFERROR(LOOKUP(2,1/((OHLCV!D$2:D22185=$B$1)*(OHLCV!A$2:A22185<A166)),OHLCV!B$2:B22185),"")) ->  | E166: =IF(C166, "", IFERROR(LOOKUP(2,1/((OHLCV!D$2:D22185=$B$1)*(OHLCV!A$2:A22185<A166)),OHLCV!E$2:E22185),"")) ->  | F166: =IF(C166, "", IFERROR(LOOKUP(2,1/((OHLCV!D$2:D22185=$B$1)*(OHLCV!A$2:A22185<A166)),OHLCV!F$2:F22185),"")) ->  | G166: =IF(C166, "", IFERROR(LOOKUP(2,1/((OHLCV!D$2:D22185=$B$1)*(OHLCV!A$2:A22185<A166)),OHLCV!G$2:G22185),"")) ->  | H166: =IF(C166, "", IFERROR(LOOKUP(2,1/((OHLCV!D$2:D22185=$B$1)*(OHLCV!A$2:A22185<A166)),OHLCV!H$2:H22185),"")) -> 
A167: 263 | B167: =IFERROR(LOOKUP(2,1/((OHLCV!D$2:D22186=$B$1)*(OHLCV!A$2:A22186<A167)),OHLCV!B$2:B22186),"") -> 2022-02-08T14:30:00 | C167: TRUE | D167: =IF(C167, "", IFERROR(LOOKUP(2,1/((OHLCV!D$2:D22186=$B$1)*(OHLCV!A$2:A22186<A167)),OHLCV!B$2:B22186),"")) ->  | E167: =IF(C167, "", IFERROR(LOOKUP(2,1/((OHLCV!D$2:D22186=$B$1)*(OHLCV!A$2:A22186<A167)),OHLCV!E$2:E22186),"")) ->  | F167: =IF(C167, "", IFERROR(LOOKUP(2,1/((OHLCV!D$2:D22186=$B$1)*(OHLCV!A$2:A22186<A167)),OHLCV!F$2:F22186),"")) ->  | G167: =IF(C167, "", IFERROR(LOOKUP(2,1/((OHLCV!D$2:D22186=$B$1)*(OHLCV!A$2:A22186<A167)),OHLCV!G$2:G22186),"")) ->  | H167: =IF(C167, "", IFERROR(LOOKUP(2,1/((OHLCV!D$2:D22186=$B$1)*(OHLCV!A$2:A22186<A167)),OHLCV!H$2:H22186),"")) -> 
A168: 264 | B168: =IFERROR(LOOKUP(2,1/((OHLCV!D$2:D22187=$B$1)*(OHLCV!A$2:A22187<A168)),OHLCV!B$2:B22187),"") -> 2022-02-08T14:30:00 | C168: TRUE | D168: =IF(C168, "", IFERROR(LOOKUP(2,1/((OHLCV!D$2:D22187=$B$1)*(OHLCV!A$2:A22187<A168)),OHLCV!B$2:B22187),"")) ->  | E168: =IF(C168, "", IFERROR(LOOKUP(2,1/((OHLCV!D$2:D22187=$B$1)*(OHLCV!A$2:A22187<A168)),OHLCV!E$2:E22187),"")) ->  | F168: =IF(C168, "", IFERROR(LOOKUP(2,1/((OHLCV!D$2:D22187=$B$1)*(OHLCV!A$2:A22187<A168)),OHLCV!F$2:F22187),"")) ->  | G168: =IF(C168, "", IFERROR(LOOKUP(2,1/((OHLCV!D$2:D22187=$B$1)*(OHLCV!A$2:A22187<A168)),OHLCV!G$2:G22187),"")) ->  | H168: =IF(C168, "", IFERROR(LOOKUP(2,1/((OHLCV!D$2:D22187=$B$1)*(OHLCV!A$2:A22187<A168)),OHLCV!H$2:H22187),"")) -> 
A169: 265 | B169: =IFERROR(LOOKUP(2,1/((OHLCV!D$2:D22188=$B$1)*(OHLCV!A$2:A22188<A169)),OHLCV!B$2:B22188),"") -> 2022-02-08T14:30:00 | C169: TRUE | D169: =IF(C169, "", IFERROR(LOOKUP(2,1/((OHLCV!D$2:D22188=$B$1)*(OHLCV!A$2:A22188<A169)),OHLCV!B$2:B22188),"")) ->  | E169: =IF(C169, "", IFERROR(LOOKUP(2,1/((OHLCV!D$2:D22188=$B$1)*(OHLCV!A$2:A22188<A169)),OHLCV!E$2:E22188),"")) ->  | F169: =IF(C169, "", IFERROR(LOOKUP(2,1/((OHLCV!D$2:D22188=$B$1)*(OHLCV!A$2:A22188<A169)),OHLCV!F$2:F22188),"")) ->  | G169: =IF(C169, "", IFERROR(LOOKUP(2,1/((OHLCV!D$2:D22188=$B$1)*(OHLCV!A$2:A22188<A169)),OHLCV!G$2:G22188),"")) ->  | H169: =IF(C169, "", IFERROR(LOOKUP(2,1/((OHLCV!D$2:D22188=$B$1)*(OHLCV!A$2:A22188<A169)),OHLCV!H$2:H22188),"")) -> 
A170: 266 | B170: =IFERROR(LOOKUP(2,1/((OHLCV!D$2:D22189=$B$1)*(OHLCV!A$2:A22189<A170)),OHLCV!B$2:B22189),"") -> 2022-02-08T14:30:00 | C170: TRUE | D170: =IF(C170, "", IFERROR(LOOKUP(2,1/((OHLCV!D$2:D22189=$B$1)*(OHLCV!A$2:A22189<A170)),OHLCV!B$2:B22189),"")) ->  | E170: =IF(C170, "", IFERROR(LOOKUP(2,1/((OHLCV!D$2:D22189=$B$1)*(OHLCV!A$2:A22189<A170)),OHLCV!E$2:E22189),"")) ->  | F170: =IF(C170, "", IFERROR(LOOKUP(2,1/((OHLCV!D$2:D22189=$B$1)*(OHLCV!A$2:A22189<A170)),OHLCV!F$2:F22189),"")) ->  | G170: =IF(C170, "", IFERROR(LOOKUP(2,1/((OHLCV!D$2:D22189=$B$1)*(OHLCV!A$2:A22189<A170)),OHLCV!G$2:G22189),"")) ->  | H170: =IF(C170, "", IFERROR(LOOKUP(2,1/((OHLCV!D$2:D22189=$B$1)*(OHLCV!A$2:A22189<A170)),OHLCV!H$2:H22189),"")) -> 
A171: 267 | B171: =IFERROR(LOOKUP(2,1/((OHLCV!D$2:D22190=$B$1)*(OHLCV!A$2:A22190<A171)),OHLCV!B$2:B22190),"") -> 2022-02-08T14:30:00 | C171: TRUE | D171: =IF(C171, "", IFERROR(LOOKUP(2,1/((OHLCV!D$2:D22190=$B$1)*(OHLCV!A$2:A22190<A171)),OHLCV!B$2:B22190),"")) ->  | E171: =IF(C171, "", IFERROR(LOOKUP(2,1/((OHLCV!D$2:D22190=$B$1)*(OHLCV!A$2:A22190<A171)),OHLCV!E$2:E22190),"")) ->  | F171: =IF(C171, "", IFERROR(LOOKUP(2,1/((OHLCV!D$2:D22190=$B$1)*(OHLCV!A$2:A22190<A171)),OHLCV!F$2:F22190),"")) ->  | G171: =IF(C171, "", IFERROR(LOOKUP(2,1/((OHLCV!D$2:D22190=$B$1)*(OHLCV!A$2:A22190<A171)),OHLCV!G$2:G22190),"")) ->  | H171: =IF(C171, "", IFERROR(LOOKUP(2,1/((OHLCV!D$2:D22190=$B$1)*(OHLCV!A$2:A22190<A171)),OHLCV!H$2:H22190),"")) -> 
A172: 268 | B172: =IFERROR(LOOKUP(2,1/((OHLCV!D$2:D22191=$B$1)*(OHLCV!A$2:A22191<A172)),OHLCV!B$2:B22191),"") -> 2022-02-08T14:30:00 | C172: TRUE | D172: =IF(C172, "", IFERROR(LOOKUP(2,1/((OHLCV!D$2:D22191=$B$1)*(OHLCV!A$2:A22191<A172)),OHLCV!B$2:B22191),"")) ->  | E172: =IF(C172, "", IFERROR(LOOKUP(2,1/((OHLCV!D$2:D22191=$B$1)*(OHLCV!A$2:A22191<A172)),OHLCV!E$2:E22191),"")) ->  | F172: =IF(C172, "", IFERROR(LOOKUP(2,1/((OHLCV!D$2:D22191=$B$1)*(OHLCV!A$2:A22191<A172)),OHLCV!F$2:F22191),"")) ->  | G172: =IF(C172, "", IFERROR(LOOKUP(2,1/((OHLCV!D$2:D22191=$B$1)*(OHLCV!A$2:A22191<A172)),OHLCV!G$2:G22191),"")) ->  | H172: =IF(C172, "", IFERROR(LOOKUP(2,1/((OHLCV!D$2:D22191=$B$1)*(OHLCV!A$2:A22191<A172)),OHLCV!H$2:H22191),"")) -> 
A173: 269 | B173: =IFERROR(LOOKUP(2,1/((OHLCV!D$2:D22192=$B$1)*(OHLCV!A$2:A22192<A173)),OHLCV!B$2:B22192),"") -> 2022-02-09T14:30:00 | C173: FALSE | D173: =IF(C173, "", IFERROR(LOOKUP(2,1/((OHLCV!D$2:D22192=$B$1)*(OHLCV!A$2:A22192<A173)),OHLCV!B$2:B22192),"")) -> 2022-02-09T14:30:00 | E173: =IF(C173, "", IFERROR(LOOKUP(2,1/((OHLCV!D$2:D22192=$B$1)*(OHLCV!A$2:A22192<A173)),OHLCV!E$2:E22192),"")) -> $140.96 | F173: =IF(C173, "", IFERROR(LOOKUP(2,1/((OHLCV!D$2:D22192=$B$1)*(OHLCV!A$2:A22192<A173)),OHLCV!F$2:F22192),"")) -> $142.52 | G173: =IF(C173, "", IFERROR(LOOKUP(2,1/((OHLCV!D$2:D22192=$B$1)*(OHLCV!A$2:A22192<A173)),OHLCV!G$2:G22192),"")) -> $140.19 | H173: =IF(C173, "", IFERROR(LOOKUP(2,1/((OHLCV!D$2:D22192=$B$1)*(OHLCV!A$2:A22192<A173)),OHLCV!H$2:H22192),"")) -> $141.59
A174: 270 | B174: =IFERROR(LOOKUP(2,1/((OHLCV!D$2:D22193=$B$1)*(OHLCV!A$2:A22193<A174)),OHLCV!B$2:B22193),"") -> 2022-02-09T14:30:00 | C174: TRUE | D174: =IF(C174, "", IFERROR(LOOKUP(2,1/((OHLCV!D$2:D22193=$B$1)*(OHLCV!A$2:A22193<A174)),OHLCV!B$2:B22193),"")) ->  | E174: =IF(C174, "", IFERROR(LOOKUP(2,1/((OHLCV!D$2:D22193=$B$1)*(OHLCV!A$2:A22193<A174)),OHLCV!E$2:E22193),"")) ->  | F174: =IF(C174, "", IFERROR(LOOKUP(2,1/((OHLCV!D$2:D22193=$B$1)*(OHLCV!A$2:A22193<A174)),OHLCV!F$2:F22193),"")) ->  | G174: =IF(C174, "", IFERROR(LOOKUP(2,1/((OHLCV!D$2:D22193=$B$1)*(OHLCV!A$2:A22193<A174)),OHLCV!G$2:G22193),"")) ->  | H174: =IF(C174, "", IFERROR(LOOKUP(2,1/((OHLCV!D$2:D22193=$B$1)*(OHLCV!A$2:A22193<A174)),OHLCV!H$2:H22193),"")) -> 
A175: 271 | B175: =IFERROR(LOOKUP(2,1/((OHLCV!D$2:D22194=$B$1)*(OHLCV!A$2:A22194<A175)),OHLCV!B$2:B22194),"") -> 2022-02-09T14:30:00 | C175: TRUE | D175: =IF(C175, "", IFERROR(LOOKUP(2,1/((OHLCV!D$2:D22194=$B$1)*(OHLCV!A$2:A22194<A175)),OHLCV!B$2:B22194),"")) ->  | E175: =IF(C175, "", IFERROR(LOOKUP(2,1/((OHLCV!D$2:D22194=$B$1)*(OHLCV!A$2:A22194<A175)),OHLCV!E$2:E22194),"")) ->  | F175: =IF(C175, "", IFERROR(LOOKUP(2,1/((OHLCV!D$2:D22194=$B$1)*(OHLCV!A$2:A22194<A175)),OHLCV!F$2:F22194),"")) ->  | G175: =IF(C175, "", IFERROR(LOOKUP(2,1/((OHLCV!D$2:D22194=$B$1)*(OHLCV!A$2:A22194<A175)),OHLCV!G$2:G22194),"")) ->  | H175: =IF(C175, "", IFERROR(LOOKUP(2,1/((OHLCV!D$2:D22194=$B$1)*(OHLCV!A$2:A22194<A175)),OHLCV!H$2:H22194),"")) -> 
A176: 272 | B176: =IFERROR(LOOKUP(2,1/((OHLCV!D$2:D22195=$B$1)*(OHLCV!A$2:A22195<A176)),OHLCV!B$2:B22195),"") -> 2022-02-09T14:30:00 | C176: TRUE | D176: =IF(C176, "", IFERROR(LOOKUP(2,1/((OHLCV!D$2:D22195=$B$1)*(OHLCV!A$2:A22195<A176)),OHLCV!B$2:B22195),"")) ->  | E176: =IF(C176, "", IFERROR(LOOKUP(2,1/((OHLCV!D$2:D22195=$B$1)*(OHLCV!A$2:A22195<A176)),OHLCV!E$2:E22195),"")) ->  | F176: =IF(C176, "", IFERROR(LOOKUP(2,1/((OHLCV!D$2:D22195=$B$1)*(OHLCV!A$2:A22195<A176)),OHLCV!F$2:F22195),"")) ->  | G176: =IF(C176, "", IFERROR(LOOKUP(2,1/((OHLCV!D$2:D22195=$B$1)*(OHLCV!A$2:A22195<A176)),OHLCV!G$2:G22195),"")) ->  | H176: =IF(C176, "", IFERROR(LOOKUP(2,1/((OHLCV!D$2:D22195=$B$1)*(OHLCV!A$2:A22195<A176)),OHLCV!H$2:H22195),"")) -> 
A177: 273 | B177: =IFERROR(LOOKUP(2,1/((OHLCV!D$2:D22196=$B$1)*(OHLCV!A$2:A22196<A177)),OHLCV!B$2:B22196),"") -> 2022-02-09T14:30:00 | C177: TRUE | D177: =IF(C177, "", IFERROR(LOOKUP(2,1/((OHLCV!D$2:D22196=$B$1)*(OHLCV!A$2:A22196<A177)),OHLCV!B$2:B22196),"")) ->  | E177: =IF(C177, "", IFERROR(LOOKUP(2,1/((OHLCV!D$2:D22196=$B$1)*(OHLCV!A$2:A22196<A177)),OHLCV!E$2:E22196),"")) ->  | F177: =IF(C177, "", IFERROR(LOOKUP(2,1/((OHLCV!D$2:D22196=$B$1)*(OHLCV!A$2:A22196<A177)),OHLCV!F$2:F22196),"")) ->  | G177: =IF(C177, "", IFERROR(LOOKUP(2,1/((OHLCV!D$2:D22196=$B$1)*(OHLCV!A$2:A22196<A177)),OHLCV!G$2:G22196),"")) ->  | H177: =IF(C177, "", IFERROR(LOOKUP(2,1/((OHLCV!D$2:D22196=$B$1)*(OHLCV!A$2:A22196<A177)),OHLCV!H$2:H22196),"")) -> 
A178: 274 | B178: =IFERROR(LOOKUP(2,1/((OHLCV!D$2:D22197=$B$1)*(OHLCV!A$2:A22197<A178)),OHLCV!B$2:B22197),"") -> 2022-02-09T14:30:00 | C178: TRUE | D178: =IF(C178, "", IFERROR(LOOKUP(2,1/((OHLCV!D$2:D22197=$B$1)*(OHLCV!A$2:A22197<A178)),OHLCV!B$2:B22197),"")) ->  | E178: =IF(C178, "", IFERROR(LOOKUP(2,1/((OHLCV!D$2:D22197=$B$1)*(OHLCV!A$2:A22197<A178)),OHLCV!E$2:E22197),"")) ->  | F178: =IF(C178, "", IFERROR(LOOKUP(2,1/((OHLCV!D$2:D22197=$B$1)*(OHLCV!A$2:A22197<A178)),OHLCV!F$2:F22197),"")) ->  | G178: =IF(C178, "", IFERROR(LOOKUP(2,1/((OHLCV!D$2:D22197=$B$1)*(OHLCV!A$2:A22197<A178)),OHLCV!G$2:G22197),"")) ->  | H178: =IF(C178, "", IFERROR(LOOKUP(2,1/((OHLCV!D$2:D22197=$B$1)*(OHLCV!A$2:A22197<A178)),OHLCV!H$2:H22197),"")) -> 
A179: 275 | B179: =IFERROR(LOOKUP(2,1/((OHLCV!D$2:D22198=$B$1)*(OHLCV!A$2:A22198<A179)),OHLCV!B$2:B22198),"") -> 2022-02-09T14:30:00 | C179: TRUE | D179: =IF(C179, "", IFERROR(LOOKUP(2,1/((OHLCV!D$2:D22198=$B$1)*(OHLCV!A$2:A22198<A179)),OHLCV!B$2:B22198),"")) ->  | E179: =IF(C179, "", IFERROR(LOOKUP(2,1/((OHLCV!D$2:D22198=$B$1)*(OHLCV!A$2:A22198<A179)),OHLCV!E$2:E22198),"")) ->  | F179: =IF(C179, "", IFERROR(LOOKUP(2,1/((OHLCV!D$2:D22198=$B$1)*(OHLCV!A$2:A22198<A179)),OHLCV!F$2:F22198),"")) ->  | G179: =IF(C179, "", IFERROR(LOOKUP(2,1/((OHLCV!D$2:D22198=$B$1)*(OHLCV!A$2:A22198<A179)),OHLCV!G$2:G22198),"")) ->  | H179: =IF(C179, "", IFERROR(LOOKUP(2,1/((OHLCV!D$2:D22198=$B$1)*(OHLCV!A$2:A22198<A179)),OHLCV!H$2:H22198),"")) -> 
A180: 276 | B180: =IFERROR(LOOKUP(2,1/((OHLCV!D$2:D22199=$B$1)*(OHLCV!A$2:A22199<A180)),OHLCV!B$2:B22199),"") -> 2022-02-10T14:30:00 | C180: FALSE | D180: =IF(C180, "", IFERROR(LOOKUP(2,1/((OHLCV!D$2:D22199=$B$1)*(OHLCV!A$2:A22199<A180)),OHLCV!B$2:B22199),"")) -> 2022-02-10T14:30:00 | E180: =IF(C180, "", IFERROR(LOOKUP(2,1/((OHLCV!D$2:D22199=$B$1)*(OHLCV!A$2:A22199<A180)),OHLCV!E$2:E22199),"")) -> $139.70 | F180: =IF(C180, "", IFERROR(LOOKUP(2,1/((OHLCV!D$2:D22199=$B$1)*(OHLCV!A$2:A22199<A180)),OHLCV!F$2:F22199),"")) -> $141.48 | G180: =IF(C180, "", IFERROR(LOOKUP(2,1/((OHLCV!D$2:D22199=$B$1)*(OHLCV!A$2:A22199<A180)),OHLCV!G$2:G22199),"")) -> $137.96 | H180: =IF(C180, "", IFERROR(LOOKUP(2,1/((OHLCV!D$2:D22199=$B$1)*(OHLCV!A$2:A22199<A180)),OHLCV!H$2:H22199),"")) -> $138.62
A181: 277 | B181: =IFERROR(LOOKUP(2,1/((OHLCV!D$2:D22200=$B$1)*(OHLCV!A$2:A22200<A181)),OHLCV!B$2:B22200),"") -> 2022-02-10T14:30:00 | C181: TRUE | D181: =IF(C181, "", IFERROR(LOOKUP(2,1/((OHLCV!D$2:D22200=$B$1)*(OHLCV!A$2:A22200<A181)),OHLCV!B$2:B22200),"")) ->  | E181: =IF(C181, "", IFERROR(LOOKUP(2,1/((OHLCV!D$2:D22200=$B$1)*(OHLCV!A$2:A22200<A181)),OHLCV!E$2:E22200),"")) ->  | F181: =IF(C181, "", IFERROR(LOOKUP(2,1/((OHLCV!D$2:D22200=$B$1)*(OHLCV!A$2:A22200<A181)),OHLCV!F$2:F22200),"")) ->  | G181: =IF(C181, "", IFERROR(LOOKUP(2,1/((OHLCV!D$2:D22200=$B$1)*(OHLCV!A$2:A22200<A181)),OHLCV!G$2:G22200),"")) ->  | H181: =IF(C181, "", IFERROR(LOOKUP(2,1/((OHLCV!D$2:D22200=$B$1)*(OHLCV!A$2:A22200<A181)),OHLCV!H$2:H22200),"")) -> 
A182: 278 | B182: =IFERROR(LOOKUP(2,1/((OHLCV!D$2:D22201=$B$1)*(OHLCV!A$2:A22201<A182)),OHLCV!B$2:B22201),"") -> 2022-02-10T14:30:00 | C182: TRUE | D182: =IF(C182, "", IFERROR(LOOKUP(2,1/((OHLCV!D$2:D22201=$B$1)*(OHLCV!A$2:A22201<A182)),OHLCV!B$2:B22201),"")) ->  | E182: =IF(C182, "", IFERROR(LOOKUP(2,1/((OHLCV!D$2:D22201=$B$1)*(OHLCV!A$2:A22201<A182)),OHLCV!E$2:E22201),"")) ->  | F182: =IF(C182, "", IFERROR(LOOKUP(2,1/((OHLCV!D$2:D22201=$B$1)*(OHLCV!A$2:A22201<A182)),OHLCV!F$2:F22201),"")) ->  | G182: =IF(C182, "", IFERROR(LOOKUP(2,1/((OHLCV!D$2:D22201=$B$1)*(OHLCV!A$2:A22201<A182)),OHLCV!G$2:G22201),"")) ->  | H182: =IF(C182, "", IFERROR(LOOKUP(2,1/((OHLCV!D$2:D22201=$B$1)*(OHLCV!A$2:A22201<A182)),OHLCV!H$2:H22201),"")) -> 
A183: 279 | B183: =IFERROR(LOOKUP(2,1/((OHLCV!D$2:D22202=$B$1)*(OHLCV!A$2:A22202<A183)),OHLCV!B$2:B22202),"") -> 2022-02-10T14:30:00 | C183: TRUE | D183: =IF(C183, "", IFERROR(LOOKUP(2,1/((OHLCV!D$2:D22202=$B$1)*(OHLCV!A$2:A22202<A183)),OHLCV!B$2:B22202),"")) ->  | E183: =IF(C183, "", IFERROR(LOOKUP(2,1/((OHLCV!D$2:D22202=$B$1)*(OHLCV!A$2:A22202<A183)),OHLCV!E$2:E22202),"")) ->  | F183: =IF(C183, "", IFERROR(LOOKUP(2,1/((OHLCV!D$2:D22202=$B$1)*(OHLCV!A$2:A22202<A183)),OHLCV!F$2:F22202),"")) ->  | G183: =IF(C183, "", IFERROR(LOOKUP(2,1/((OHLCV!D$2:D22202=$B$1)*(OHLCV!A$2:A22202<A183)),OHLCV!G$2:G22202),"")) ->  | H183: =IF(C183, "", IFERROR(LOOKUP(2,1/((OHLCV!D$2:D22202=$B$1)*(OHLCV!A$2:A22202<A183)),OHLCV!H$2:H22202),"")) -> 
A184: 280 | B184: =IFERROR(LOOKUP(2,1/((OHLCV!D$2:D22203=$B$1)*(OHLCV!A$2:A22203<A184)),OHLCV!B$2:B22203),"") -> 2022-02-10T14:30:00 | C184: TRUE | D184: =IF(C184, "", IFERROR(LOOKUP(2,1/((OHLCV!D$2:D22203=$B$1)*(OHLCV!A$2:A22203<A184)),OHLCV!B$2:B22203),"")) ->  | E184: =IF(C184, "", IFERROR(LOOKUP(2,1/((OHLCV!D$2:D22203=$B$1)*(OHLCV!A$2:A22203<A184)),OHLCV!E$2:E22203),"")) ->  | F184: =IF(C184, "", IFERROR(LOOKUP(2,1/((OHLCV!D$2:D22203=$B$1)*(OHLCV!A$2:A22203<A184)),OHLCV!F$2:F22203),"")) ->  | G184: =IF(C184, "", IFERROR(LOOKUP(2,1/((OHLCV!D$2:D22203=$B$1)*(OHLCV!A$2:A22203<A184)),OHLCV!G$2:G22203),"")) ->  | H184: =IF(C184, "", IFERROR(LOOKUP(2,1/((OHLCV!D$2:D22203=$B$1)*(OHLCV!A$2:A22203<A184)),OHLCV!H$2:H22203),"")) -> 
A185: 281 | B185: =IFERROR(LOOKUP(2,1/((OHLCV!D$2:D22204=$B$1)*(OHLCV!A$2:A22204<A185)),OHLCV!B$2:B22204),"") -> 2022-02-10T14:30:00 | C185: TRUE | D185: =IF(C185, "", IFERROR(LOOKUP(2,1/((OHLCV!D$2:D22204=$B$1)*(OHLCV!A$2:A22204<A185)),OHLCV!B$2:B22204),"")) ->  | E185: =IF(C185, "", IFERROR(LOOKUP(2,1/((OHLCV!D$2:D22204=$B$1)*(OHLCV!A$2:A22204<A185)),OHLCV!E$2:E22204),"")) ->  | F185: =IF(C185, "", IFERROR(LOOKUP(2,1/((OHLCV!D$2:D22204=$B$1)*(OHLCV!A$2:A22204<A185)),OHLCV!F$2:F22204),"")) ->  | G185: =IF(C185, "", IFERROR(LOOKUP(2,1/((OHLCV!D$2:D22204=$B$1)*(OHLCV!A$2:A22204<A185)),OHLCV!G$2:G22204),"")) ->  | H185: =IF(C185, "", IFERROR(LOOKUP(2,1/((OHLCV!D$2:D22204=$B$1)*(OHLCV!A$2:A22204<A185)),OHLCV!H$2:H22204),"")) -> 
A186: 282 | B186: =IFERROR(LOOKUP(2,1/((OHLCV!D$2:D22205=$B$1)*(OHLCV!A$2:A22205<A186)),OHLCV!B$2:B22205),"") -> 2022-02-10T14:30:00 | C186: TRUE | D186: =IF(C186, "", IFERROR(LOOKUP(2,1/((OHLCV!D$2:D22205=$B$1)*(OHLCV!A$2:A22205<A186)),OHLCV!B$2:B22205),"")) ->  | E186: =IF(C186, "", IFERROR(LOOKUP(2,1/((OHLCV!D$2:D22205=$B$1)*(OHLCV!A$2:A22205<A186)),OHLCV!E$2:E22205),"")) ->  | F186: =IF(C186, "", IFERROR(LOOKUP(2,1/((OHLCV!D$2:D22205=$B$1)*(OHLCV!A$2:A22205<A186)),OHLCV!F$2:F22205),"")) ->  | G186: =IF(C186, "", IFERROR(LOOKUP(2,1/((OHLCV!D$2:D22205=$B$1)*(OHLCV!A$2:A22205<A186)),OHLCV!G$2:G22205),"")) ->  | H186: =IF(C186, "", IFERROR(LOOKUP(2,1/((OHLCV!D$2:D22205=$B$1)*(OHLCV!A$2:A22205<A186)),OHLCV!H$2:H22205),"")) -> 
A187: 283 | B187: =IFERROR(LOOKUP(2,1/((OHLCV!D$2:D22206=$B$1)*(OHLCV!A$2:A22206<A187)),OHLCV!B$2:B22206),"") -> 2022-02-10T14:30:00 | C187: TRUE | D187: =IF(C187, "", IFERROR(LOOKUP(2,1/((OHLCV!D$2:D22206=$B$1)*(OHLCV!A$2:A22206<A187)),OHLCV!B$2:B22206),"")) ->  | E187: =IF(C187, "", IFERROR(LOOKUP(2,1/((OHLCV!D$2:D22206=$B$1)*(OHLCV!A$2:A22206<A187)),OHLCV!E$2:E22206),"")) ->  | F187: =IF(C187, "", IFERROR(LOOKUP(2,1/((OHLCV!D$2:D22206=$B$1)*(OHLCV!A$2:A22206<A187)),OHLCV!F$2:F22206),"")) ->  | G187: =IF(C187, "", IFERROR(LOOKUP(2,1/((OHLCV!D$2:D22206=$B$1)*(OHLCV!A$2:A22206<A187)),OHLCV!G$2:G22206),"")) ->  | H187: =IF(C187, "", IFERROR(LOOKUP(2,1/((OHLCV!D$2:D22206=$B$1)*(OHLCV!A$2:A22206<A187)),OHLCV!H$2:H22206),"")) -> 
A188: 284 | B188: =IFERROR(LOOKUP(2,1/((OHLCV!D$2:D22207=$B$1)*(OHLCV!A$2:A22207<A188)),OHLCV!B$2:B22207),"") -> 2022-02-10T14:30:00 | C188: TRUE | D188: =IF(C188, "", IFERROR(LOOKUP(2,1/((OHLCV!D$2:D22207=$B$1)*(OHLCV!A$2:A22207<A188)),OHLCV!B$2:B22207),"")) ->  | E188: =IF(C188, "", IFERROR(LOOKUP(2,1/((OHLCV!D$2:D22207=$B$1)*(OHLCV!A$2:A22207<A188)),OHLCV!E$2:E22207),"")) ->  | F188: =IF(C188, "", IFERROR(LOOKUP(2,1/((OHLCV!D$2:D22207=$B$1)*(OHLCV!A$2:A22207<A188)),OHLCV!F$2:F22207),"")) ->  | G188: =IF(C188, "", IFERROR(LOOKUP(2,1/((OHLCV!D$2:D22207=$B$1)*(OHLCV!A$2:A22207<A188)),OHLCV!G$2:G22207),"")) ->  | H188: =IF(C188, "", IFERROR(LOOKUP(2,1/((OHLCV!D$2:D22207=$B$1)*(OHLCV!A$2:A22207<A188)),OHLCV!H$2:H22207),"")) -> 
A189: 285 | B189: =IFERROR(LOOKUP(2,1/((OHLCV!D$2:D22208=$B$1)*(OHLCV!A$2:A22208<A189)),OHLCV!B$2:B22208),"") -> 2022-02-11T14:30:00 | C189: FALSE | D189: =IF(C189, "", IFERROR(LOOKUP(2,1/((OHLCV!D$2:D22208=$B$1)*(OHLCV!A$2:A22208<A189)),OHLCV!B$2:B22208),"")) -> 2022-02-11T14:30:00 | E189: =IF(C189, "", IFERROR(LOOKUP(2,1/((OHLCV!D$2:D22208=$B$1)*(OHLCV!A$2:A22208<A189)),OHLCV!E$2:E22208),"")) -> $138.60 | F189: =IF(C189, "", IFERROR(LOOKUP(2,1/((OHLCV!D$2:D22208=$B$1)*(OHLCV!A$2:A22208<A189)),OHLCV!F$2:F22208),"")) -> $139.16 | G189: =IF(C189, "", IFERROR(LOOKUP(2,1/((OHLCV!D$2:D22208=$B$1)*(OHLCV!A$2:A22208<A189)),OHLCV!G$2:G22208),"")) -> $133.40 | H189: =IF(C189, "", IFERROR(LOOKUP(2,1/((OHLCV!D$2:D22208=$B$1)*(OHLCV!A$2:A22208<A189)),OHLCV!H$2:H22208),"")) -> $134.28
A190: 286 | B190: =IFERROR(LOOKUP(2,1/((OHLCV!D$2:D22209=$B$1)*(OHLCV!A$2:A22209<A190)),OHLCV!B$2:B22209),"") -> 2022-02-11T14:30:00 | C190: TRUE | D190: =IF(C190, "", IFERROR(LOOKUP(2,1/((OHLCV!D$2:D22209=$B$1)*(OHLCV!A$2:A22209<A190)),OHLCV!B$2:B22209),"")) ->  | E190: =IF(C190, "", IFERROR(LOOKUP(2,1/((OHLCV!D$2:D22209=$B$1)*(OHLCV!A$2:A22209<A190)),OHLCV!E$2:E22209),"")) ->  | F190: =IF(C190, "", IFERROR(LOOKUP(2,1/((OHLCV!D$2:D22209=$B$1)*(OHLCV!A$2:A22209<A190)),OHLCV!F$2:F22209),"")) ->  | G190: =IF(C190, "", IFERROR(LOOKUP(2,1/((OHLCV!D$2:D22209=$B$1)*(OHLCV!A$2:A22209<A190)),OHLCV!G$2:G22209),"")) ->  | H190: =IF(C190, "", IFERROR(LOOKUP(2,1/((OHLCV!D$2:D22209=$B$1)*(OHLCV!A$2:A22209<A190)),OHLCV!H$2:H22209),"")) -> 
A191: 287 | B191: =IFERROR(LOOKUP(2,1/((OHLCV!D$2:D22210=$B$1)*(OHLCV!A$2:A22210<A191)),OHLCV!B$2:B22210),"") -> 2022-02-11T14:30:00 | C191: TRUE | D191: =IF(C191, "", IFERROR(LOOKUP(2,1/((OHLCV!D$2:D22210=$B$1)*(OHLCV!A$2:A22210<A191)),OHLCV!B$2:B22210),"")) ->  | E191: =IF(C191, "", IFERROR(LOOKUP(2,1/((OHLCV!D$2:D22210=$B$1)*(OHLCV!A$2:A22210<A191)),OHLCV!E$2:E22210),"")) ->  | F191: =IF(C191, "", IFERROR(LOOKUP(2,1/((OHLCV!D$2:D22210=$B$1)*(OHLCV!A$2:A22210<A191)),OHLCV!F$2:F22210),"")) ->  | G191: =IF(C191, "", IFERROR(LOOKUP(2,1/((OHLCV!D$2:D22210=$B$1)*(OHLCV!A$2:A22210<A191)),OHLCV!G$2:G22210),"")) ->  | H191: =IF(C191, "", IFERROR(LOOKUP(2,1/((OHLCV!D$2:D22210=$B$1)*(OHLCV!A$2:A22210<A191)),OHLCV!H$2:H22210),"")) -> 
A192: 288 | B192: =IFERROR(LOOKUP(2,1/((OHLCV!D$2:D22211=$B$1)*(OHLCV!A$2:A22211<A192)),OHLCV!B$2:B22211),"") -> 2022-02-11T14:30:00 | C192: TRUE | D192: =IF(C192, "", IFERROR(LOOKUP(2,1/((OHLCV!D$2:D22211=$B$1)*(OHLCV!A$2:A22211<A192)),OHLCV!B$2:B22211),"")) ->  | E192: =IF(C192, "", IFERROR(LOOKUP(2,1/((OHLCV!D$2:D22211=$B$1)*(OHLCV!A$2:A22211<A192)),OHLCV!E$2:E22211),"")) ->  | F192: =IF(C192, "", IFERROR(LOOKUP(2,1/((OHLCV!D$2:D22211=$B$1)*(OHLCV!A$2:A22211<A192)),OHLCV!F$2:F22211),"")) ->  | G192: =IF(C192, "", IFERROR(LOOKUP(2,1/((OHLCV!D$2:D22211=$B$1)*(OHLCV!A$2:A22211<A192)),OHLCV!G$2:G22211),"")) ->  | H192: =IF(C192, "", IFERROR(LOOKUP(2,1/((OHLCV!D$2:D22211=$B$1)*(OHLCV!A$2:A22211<A192)),OHLCV!H$2:H22211),"")) -> 
A193: 289 | B193: =IFERROR(LOOKUP(2,1/((OHLCV!D$2:D22212=$B$1)*(OHLCV!A$2:A22212<A193)),OHLCV!B$2:B22212),"") -> 2022-02-11T14:30:00 | C193: TRUE | D193: =IF(C193, "", IFERROR(LOOKUP(2,1/((OHLCV!D$2:D22212=$B$1)*(OHLCV!A$2:A22212<A193)),OHLCV!B$2:B22212),"")) ->  | E193: =IF(C193, "", IFERROR(LOOKUP(2,1/((OHLCV!D$2:D22212=$B$1)*(OHLCV!A$2:A22212<A193)),OHLCV!E$2:E22212),"")) ->  | F193: =IF(C193, "", IFERROR(LOOKUP(2,1/((OHLCV!D$2:D22212=$B$1)*(OHLCV!A$2:A22212<A193)),OHLCV!F$2:F22212),"")) ->  | G193: =IF(C193, "", IFERROR(LOOKUP(2,1/((OHLCV!D$2:D22212=$B$1)*(OHLCV!A$2:A22212<A193)),OHLCV!G$2:G22212),"")) ->  | H193: =IF(C193, "", IFERROR(LOOKUP(2,1/((OHLCV!D$2:D22212=$B$1)*(OHLCV!A$2:A22212<A193)),OHLCV!H$2:H22212),"")) -> 
A194: 290 | B194: =IFERROR(LOOKUP(2,1/((OHLCV!D$2:D22213=$B$1)*(OHLCV!A$2:A22213<A194)),OHLCV!B$2:B22213),"") -> 2022-02-11T14:30:00 | C194: TRUE | D194: =IF(C194, "", IFERROR(LOOKUP(2,1/((OHLCV!D$2:D22213=$B$1)*(OHLCV!A$2:A22213<A194)),OHLCV!B$2:B22213),"")) ->  | E194: =IF(C194, "", IFERROR(LOOKUP(2,1/((OHLCV!D$2:D22213=$B$1)*(OHLCV!A$2:A22213<A194)),OHLCV!E$2:E22213),"")) ->  | F194: =IF(C194, "", IFERROR(LOOKUP(2,1/((OHLCV!D$2:D22213=$B$1)*(OHLCV!A$2:A22213<A194)),OHLCV!F$2:F22213),"")) ->  | G194: =IF(C194, "", IFERROR(LOOKUP(2,1/((OHLCV!D$2:D22213=$B$1)*(OHLCV!A$2:A22213<A194)),OHLCV!G$2:G22213),"")) ->  | H194: =IF(C194, "", IFERROR(LOOKUP(2,1/((OHLCV!D$2:D22213=$B$1)*(OHLCV!A$2:A22213<A194)),OHLCV!H$2:H22213),"")) -> 
A195: 291 | B195: =IFERROR(LOOKUP(2,1/((OHLCV!D$2:D22214=$B$1)*(OHLCV!A$2:A22214<A195)),OHLCV!B$2:B22214),"") -> 2022-02-11T14:30:00 | C195: TRUE | D195: =IF(C195, "", IFERROR(LOOKUP(2,1/((OHLCV!D$2:D22214=$B$1)*(OHLCV!A$2:A22214<A195)),OHLCV!B$2:B22214),"")) ->  | E195: =IF(C195, "", IFERROR(LOOKUP(2,1/((OHLCV!D$2:D22214=$B$1)*(OHLCV!A$2:A22214<A195)),OHLCV!E$2:E22214),"")) ->  | F195: =IF(C195, "", IFERROR(LOOKUP(2,1/((OHLCV!D$2:D22214=$B$1)*(OHLCV!A$2:A22214<A195)),OHLCV!F$2:F22214),"")) ->  | G195: =IF(C195, "", IFERROR(LOOKUP(2,1/((OHLCV!D$2:D22214=$B$1)*(OHLCV!A$2:A22214<A195)),OHLCV!G$2:G22214),"")) ->  | H195: =IF(C195, "", IFERROR(LOOKUP(2,1/((OHLCV!D$2:D22214=$B$1)*(OHLCV!A$2:A22214<A195)),OHLCV!H$2:H22214),"")) -> 
A196: 292 | B196: =IFERROR(LOOKUP(2,1/((OHLCV!D$2:D22215=$B$1)*(OHLCV!A$2:A22215<A196)),OHLCV!B$2:B22215),"") -> 2022-02-11T14:30:00 | C196: TRUE | D196: =IF(C196, "", IFERROR(LOOKUP(2,1/((OHLCV!D$2:D22215=$B$1)*(OHLCV!A$2:A22215<A196)),OHLCV!B$2:B22215),"")) ->  | E196: =IF(C196, "", IFERROR(LOOKUP(2,1/((OHLCV!D$2:D22215=$B$1)*(OHLCV!A$2:A22215<A196)),OHLCV!E$2:E22215),"")) ->  | F196: =IF(C196, "", IFERROR(LOOKUP(2,1/((OHLCV!D$2:D22215=$B$1)*(OHLCV!A$2:A22215<A196)),OHLCV!F$2:F22215),"")) ->  | G196: =IF(C196, "", IFERROR(LOOKUP(2,1/((OHLCV!D$2:D22215=$B$1)*(OHLCV!A$2:A22215<A196)),OHLCV!G$2:G22215),"")) ->  | H196: =IF(C196, "", IFERROR(LOOKUP(2,1/((OHLCV!D$2:D22215=$B$1)*(OHLCV!A$2:A22215<A196)),OHLCV!H$2:H22215),"")) -> 
A197: 293 | B197: =IFERROR(LOOKUP(2,1/((OHLCV!D$2:D22216=$B$1)*(OHLCV!A$2:A22216<A197)),OHLCV!B$2:B22216),"") -> 2022-02-11T14:30:00 | C197: TRUE | D197: =IF(C197, "", IFERROR(LOOKUP(2,1/((OHLCV!D$2:D22216=$B$1)*(OHLCV!A$2:A22216<A197)),OHLCV!B$2:B22216),"")) ->  | E197: =IF(C197, "", IFERROR(LOOKUP(2,1/((OHLCV!D$2:D22216=$B$1)*(OHLCV!A$2:A22216<A197)),OHLCV!E$2:E22216),"")) ->  | F197: =IF(C197, "", IFERROR(LOOKUP(2,1/((OHLCV!D$2:D22216=$B$1)*(OHLCV!A$2:A22216<A197)),OHLCV!F$2:F22216),"")) ->  | G197: =IF(C197, "", IFERROR(LOOKUP(2,1/((OHLCV!D$2:D22216=$B$1)*(OHLCV!A$2:A22216<A197)),OHLCV!G$2:G22216),"")) ->  | H197: =IF(C197, "", IFERROR(LOOKUP(2,1/((OHLCV!D$2:D22216=$B$1)*(OHLCV!A$2:A22216<A197)),OHLCV!H$2:H22216),"")) -> 
A198: =A197+1 -> 294 | B198: =IFERROR(LOOKUP(2,1/((OHLCV!D$2:D22217=$B$1)*(OHLCV!A$2:A22217<A198)),OHLCV!B$2:B22217),"") -> 2022-02-11T14:30:00 | C198: =B198 = B197 -> TRUE | D198: =IF(C198, "", IFERROR(LOOKUP(2,1/((OHLCV!D$2:D22217=$B$1)*(OHLCV!A$2:A22217<A198)),OHLCV!B$2:B22217),"")) ->  | E198: =IF(C198, "", IFERROR(LOOKUP(2,1/((OHLCV!D$2:D22217=$B$1)*(OHLCV!A$2:A22217<A198)),OHLCV!E$2:E22217),"")) ->  | F198: =IF(C198, "", IFERROR(LOOKUP(2,1/((OHLCV!D$2:D22217=$B$1)*(OHLCV!A$2:A22217<A198)),OHLCV!F$2:F22217),"")) ->  | G198: =IF(C198, "", IFERROR(LOOKUP(2,1/((OHLCV!D$2:D22217=$B$1)*(OHLCV!A$2:A22217<A198)),OHLCV!G$2:G22217),"")) ->  | H198: =IF(C198, "", IFERROR(LOOKUP(2,1/((OHLCV!D$2:D22217=$B$1)*(OHLCV!A$2:A22217<A198)),OHLCV!H$2:H22217),"")) -> 
A199: 295 | B199: =IFERROR(LOOKUP(2,1/((OHLCV!D$2:D22218=$B$1)*(OHLCV!A$2:A22218<A199)),OHLCV!B$2:B22218),"") -> 2022-02-11T14:30:00 | C199: TRUE | D199: =IF(C199, "", IFERROR(LOOKUP(2,1/((OHLCV!D$2:D22218=$B$1)*(OHLCV!A$2:A22218<A199)),OHLCV!B$2:B22218),"")) ->  | E199: =IF(C199, "", IFERROR(LOOKUP(2,1/((OHLCV!D$2:D22218=$B$1)*(OHLCV!A$2:A22218<A199)),OHLCV!E$2:E22218),"")) ->  | F199: =IF(C199, "", IFERROR(LOOKUP(2,1/((OHLCV!D$2:D22218=$B$1)*(OHLCV!A$2:A22218<A199)),OHLCV!F$2:F22218),"")) ->  | G199: =IF(C199, "", IFERROR(LOOKUP(2,1/((OHLCV!D$2:D22218=$B$1)*(OHLCV!A$2:A22218<A199)),OHLCV!G$2:G22218),"")) ->  | H199: =IF(C199, "", IFERROR(LOOKUP(2,1/((OHLCV!D$2:D22218=$B$1)*(OHLCV!A$2:A22218<A199)),OHLCV!H$2:H22218),"")) -> 
A200: 296 | B200: =IFERROR(LOOKUP(2,1/((OHLCV!D$2:D22219=$B$1)*(OHLCV!A$2:A22219<A200)),OHLCV!B$2:B22219),"") -> 2022-02-11T14:30:00 | C200: TRUE | D200: =IF(C200, "", IFERROR(LOOKUP(2,1/((OHLCV!D$2:D22219=$B$1)*(OHLCV!A$2:A22219<A200)),OHLCV!B$2:B22219),"")) ->  | E200: =IF(C200, "", IFERROR(LOOKUP(2,1/((OHLCV!D$2:D22219=$B$1)*(OHLCV!A$2:A22219<A200)),OHLCV!E$2:E22219),"")) ->  | F200: =IF(C200, "", IFERROR(LOOKUP(2,1/((OHLCV!D$2:D22219=$B$1)*(OHLCV!A$2:A22219<A200)),OHLCV!F$2:F22219),"")) ->  | G200: =IF(C200, "", IFERROR(LOOKUP(2,1/((OHLCV!D$2:D22219=$B$1)*(OHLCV!A$2:A22219<A200)),OHLCV!G$2:G22219),"")) ->  | H200: =IF(C200, "", IFERROR(LOOKUP(2,1/((OHLCV!D$2:D22219=$B$1)*(OHLCV!A$2:A22219<A200)),OHLCV!H$2:H22219),"")) -> 
A201: 297 | B201: =IFERROR(LOOKUP(2,1/((OHLCV!D$2:D22220=$B$1)*(OHLCV!A$2:A22220<A201)),OHLCV!B$2:B22220),"") -> 2022-02-11T14:30:00 | C201: TRUE | D201: =IF(C201, "", IFERROR(LOOKUP(2,1/((OHLCV!D$2:D22220=$B$1)*(OHLCV!A$2:A22220<A201)),OHLCV!B$2:B22220),"")) ->  | E201: =IF(C201, "", IFERROR(LOOKUP(2,1/((OHLCV!D$2:D22220=$B$1)*(OHLCV!A$2:A22220<A201)),OHLCV!E$2:E22220),"")) ->  | F201: =IF(C201, "", IFERROR(LOOKUP(2,1/((OHLCV!D$2:D22220=$B$1)*(OHLCV!A$2:A22220<A201)),OHLCV!F$2:F22220),"")) ->  | G201: =IF(C201, "", IFERROR(LOOKUP(2,1/((OHLCV!D$2:D22220=$B$1)*(OHLCV!A$2:A22220<A201)),OHLCV!G$2:G22220),"")) ->  | H201: =IF(C201, "", IFERROR(LOOKUP(2,1/((OHLCV!D$2:D22220=$B$1)*(OHLCV!A$2:A22220<A201)),OHLCV!H$2:H22220),"")) -> 
... 231 more rows

Sheet symbole
A1: symbol | B1: nazwa | C1: giełda | D1: rodzaj
A2: GOOGL | B2: Google | C2: NASDAQ | D2: akcje
A3: META | B3: Facebook | C3: NYSE | D3: akcje
A4: MSFT | B4: Microsoft | C4: NASDAQ | D4: akcje
A5: NVDA | B5: Nvidia | C5: NYSE | D5: akcje
A6: DOGEUSDT | B6: Dogecoin | C6: BINANCE | D6: kryptowaluty
A7: SOLUSD | B7: Solana | C7: BINANCE | D7: kryptowaluty
A8: BTCUSD | B8: Bitcoin | C8: BITSTAMP | D8: kryptowaluty
A9: ETHUSD | B9: Etherum | C9: BITSTAMP | D9: kryptowaluty
A16: NVDA | B16: =VLOOKUP(OHLCV!D2, symbole!$A$2:$D$9, 4,FALSE) -> kryptowaluty

Sheet kokpit
AE16: Średnia z cena zamknięcia | AF16: Etykiety kolumn
AE17: Etykiety wierszy | AF17: GOOGL | AG17: META | AH17: MSFT | AI17: NVDA | AJ17: średnia cena
AE18: 2022 | AF18: 114.7603705 | AG18: 180.1876892 | AH18: 268.9170916 | AI18: 18.56895618 | AJ18: 145.6085269
AE19: 2023 | AF19: 118.79468 | AG19: 261.42426 | AH19: 313.95098 | AI19: 36.569256 | AJ19: 182.684794
AE20: 2024 | AF20: 160.8026744 | AG20: 494.9177907 | AH20: 418.432 | AI20: 102.3122814 | AJ20: 294.1161866
AE21: średnia cena | AF21: 129.9945503 | AG21: 303.0593575 | AH21: 329.5374511 | AI21: 50.00036662 | AJ21: 203.1479314
AE26: Średnia z dniowa stopa zwrotu | AF26: Etykiety kolumn
AE27: Etykiety wierszy | AF27: BTCUSD | AG27: DOGEUSDT | AH27: ETHUSD | AI27: GOOGL | AJ27: META | AK27: MSFT | AL27: NVDA | AM27: SOLUSD | AN27: Suma końcowa
AE28: 2022 | AF28: -0.00234026324 | AG28: -0.0009262050478 | AH28: -0.002099783826 | AI28: -0.00168191416 | AJ28: -0.003249240508 | AK28: -0.001081007116 | AL28: -0.0020909672 | AM28: -0.005894662239 | AN28: -0.002493554835
AE29: 2023 | AF29: 0.00283656308 | AG29: 0.001186345062 | AH29: 0.00206947026 | AI29: 0.002022106907 | AJ29: 0.004621446841 | AK29: 0.001924512541 | AL29: 0.005336437775 | AM29: 0.007670941921 | AN29: 0.003455178022
AE30: 2024 | AF30: 0.00223110491 | AG30: 0.003672718802 | AH30: 0.001228236604 | AI30: 0.001232972233 | AJ30: 0.002509611956 | AK30: 0.0005968102516 | AL30: 0.005617057308 | AM30: 0.002910671207 | AN30: 0.002501882999
AE31: Suma końcowa | AF31: 0.0008418946004 | AG31: 0.001190824732 | AH31: 0.0003571452678 | AI31: 0.0004866694172 | AJ31: 0.001228168873 | AK31: 0.0004722200464 | AL31: 0.002816960891 | AM31: 0.001493734645 | AN31: 0.001084981254
AE34: Średnia z dniowa stopa zwrotu | AF34: Etykiety kolumn
AE35: Etykiety wierszy | AF35: BTCUSD | AG35: DOGEUSDT | AH35: ETHUSD | AI35: GOOGL | AJ35: META | AK35: MSFT | AL35: NVDA | AM35: SOLUSD | AN35: Suma końcowa
AE36: 2022 | AF36: -0.00234026324 | AG36: -0.0009262050478 | AH36: -0.002099783826 | AI36: -0.00168191416 | AJ36: -0.003249240508 | AK36: -0.001081007116 | AL36: -0.0020909672 | AM36: -0.005894662239 | AN36: -0.002493554835
AE37: 2023 | AF37: 0.00283656308 | AG37: 0.001186345062 | AH37: 0.00206947026 | AI37: 0.002022106907 | AJ37: 0.004621446841 | AK37: 0.001924512541 | AL37: 0.005336437775 | AM37: 0.007670941921 | AN37: 0.003455178022
AE38: 2024 | AF38: 0.00223110491 | AG38: 0.003672718802 | AH38: 0.001228236604 | AI38: 0.001232972233 | AJ38: 0.002509611956 | AK38: 0.0005968102516 | AL38: 0.005617057308 | AM38: 0.002910671207 | AN38: 0.002501882999
AE39: Suma końcowa | AF39: 0.0008418946004 | AG39: 0.001190824732 | AH39: 0.0003571452678 | AI39: 0.0004866694172 | AJ39: 0.001228168873 | AK39: 0.0004722200464 | AL39: 0.002816960891 | AM39: 0.001493734645 | AN39: 0.001084981254
A67: Etykiety wierszy | B67: Średnia z dniowa stopa zwrotu | C67: Wariancja z dniowa stopa zwrotu
A68: BTCUSD | B68: 0.0008418946004 | C68: 0.0008175584217
A69: DOGEUSDT | B69: 0.001190824732 | C69: 0.00225212558
A70: ETHUSD | B70: 0.0003571452678 | C70: 0.00127490324
A71: GOOGL | B71: 0.0004866694172 | C71: 0.0004240846329
A72: META | B72: 0.001228168873 | C72: 0.0009745152919
A73: MSFT | B73: 0.0004722200464 | C73: 0.0003098838005
A74: NVDA | B74: 0.002816960891 | C74: 0.001247964042
A75: SOLUSD | B75: 0.001493734645 | C75: 0.002864899044
A76: Suma końcowa | B76: 0.001084981254 | C76: 0.001368570953
A7035: xd

Sheet solver
A3: timestamp | AP3: obejrzalem poradnik https://www.youtube.com/watch?v=SKnpdX5rSt8
A4: 1313625600
A5: 1313712000 | B5: kategoria
A6: 1313798400 | AU6: var covar matrx
A7: 1313884800 | B7: data | C7: cena BTC | D7: cena GOOGL | E7: cena META | F7: cena MSFT | G7: zwrot BTC | H7: zwrot GOOGL | I7: zwrot META | J7: zwrot MSFT | K7: gmean_14 BTC | L7: gmean_14 GOOGL | M7: gmean_14 META | N7: gmean_14 MSFT | O7: trend BTC | P7: trend GOOGL | Q7: trend META | R7: trend MSFT | S7: sharpe ratio BTC | T7: sharpe ratio GOOGL | U7: sharpe ratio META | V7: sharpe ratio MSFT | W7: decyzja BTC | X7: decyzja GOOGL | Y7: decyzja META | Z7: decyzja MSFT | AG7: BTC | AH7: GOOGL | AI7: META | AJ7: MSFT | AL7: ponadprzecitne zwroty | AM7: BTC | AN7: GOOGL | AO7: META | AP7: MSFT | AU7: BTC | AV7: GOOGL | AW7: META | AX7: MSFT
A8: 1313971200 | B8: =(A4/86400)+DATE(1970,1,1) -> 2011-08-18 | C8: $10.90 | D8: $2.51 | E8: $38.23 | F8: $5.74 | G8: 0.0% | H8: 0.0% | I8: 0.0% | J8: 0.0% | K8: 0 | L8: 0 | M8: 0 | N8: 0 | AF8: sredni zwrot | AG8: =AVERAGE(G8:G3139) -> 0.3% | AH8: =AVERAGE(H8:H3139) -> 0.1% | AI8: 0.1% | AJ8: 0.1% | AM8: =G8-AG$8 -> -0.3% | AN8: =H8-AH$8 -> -0.1% | AO8: -0.1% | AP8: -0.1% | AT8: BTC | AU8: =MMULT(TRANSPOSE(AM8:AP3140),AM8:AP3140)*365/3131 -> 0.9137713638 | AV8: 0.007834931393 | AW8: 0.01970467073 | AX8: -0.005301906823
A9: 1314144000 | B9: 2011-08-19 | C9: $11.69 | D9: $2.71 | E9: $34.03 | F9: $5.75 | G9: =C9/C8 - 1 -> 7.2% | H9: 7.9% | I9: -11.0% | J9: 0.1% | K9: 0 | L9: 0 | M9: 0 | N9: 0 | S9: =AVERAGE(G$8:G9)/STDEV(G$8:G9) -> 0.71 | T9: =AVERAGE(H$8:H9)/STDEV(H$8:H9) -> 0.71 | U9: =AVERAGE(I$8:I9)/STDEV(I$8:I9) -> -0.71 | V9: =AVERAGE(J$8:J9)/STDEV(J$8:J9) -> 0.71 | AF9: variancja zwrotow | AG9: =VAR(G8:G3139) -> 0.002503479613 | AH9: =VAR(H8:H3139) -> 0.0003892575369 | AI9: 0.000634537747 | AJ9: 0.0004627178926 | AM9: =G9-AG$8 -> 6.9% | AN9: 7.8% | AO9: -11.1% | AP9: 0.1% | AT9: GOOGL | AU9: 0.007834931393 | AV9: 0.1420791417 | AW9: 0.001793312128 | AX9: -0.004076229473
A10: 1314230400 | B10: 2011-08-20 | C10: $11.70 | D10: $2.74 | E10: $31.00 | F10: $5.59 | G10: 0.1% | H10: 1.0% | I10: -8.9% | J10: -2.7% | K10: 0 | L10: 0 | M10: 0 | N10: 0 | S10: =AVERAGE(G$8:G10)/STDEV(G$8:G10) -> 0.59 | T10: =AVERAGE(H$8:H10)/STDEV(H$8:H10) -> 0.69 | U10: =AVERAGE(I$8:I10)/STDEV(I$8:I10) -> -1.14 | V10: =AVERAGE(J$8:J10)/STDEV(J$8:J10) -> -0.53 | AF10: zwrot roczny | AG10: =AG8*365 -> 1.221206165 | AH10: =AH8*365 -> 0.4009904404 | AI10: 0.4354489689 | AJ10: 0.2675159162 | AM10: -0.2% | AN10: 0.9% | AO10: -9.0% | AP10: -2.8% | AT10: META | AU10: 0.01970467073 | AV10: 0.001793312128 | AW10: 0.2316064436 | AX10: 0.001484852024 | BA10: 0
A11: 1314662400 | B11: 2011-08-21 | C11: $11.70 | D11: $2.62 | E11: $32.00 | F11: $5.70 | G11: 0.0% | H11: -4.1% | I11: 3.2% | J11: 2.0% | K11: 0 | L11: 0 | M11: 0 | N11: 0 | S11: =AVERAGE(G$8:G11)/STDEV(G$8:G11) -> 0.51 | T11: =AVERAGE(H$8:H11)/STDEV(H$8:H11) -> 0.24 | U11: =AVERAGE(I$8:I11)/STDEV(I$8:I11) -> -0.61 | V11: =AVERAGE(J$8:J11)/STDEV(J$8:J11) -> -0.08 | AF11: variancja roczna | AG11: =AG9*365 -> 0.9137700588 | AH11: 0.142079001 | AI11: 0.2316062777 | AJ11: 0.1688920308 | AM11: -0.3% | AN11: -4.3% | AO11: 3.1% | AP11: 1.9% | AT11: MSFT | AU11: -0.005301906823 | AV11: -0.004076229473 | AW11: 0.001484852024 | AX11: 0.1688920934
A12: 1314835200 | B12: 2011-08-22 | C12: $11.70 | D12: $2.65 | E12: $33.03 | F12: $5.59 | G12: 0.0% | H12: 1.1% | I12: 3.2% | J12: -2.1% | K12: 0 | L12: 0 | M12: 0 | N12: 0 | S12: =AVERAGE(G$8:G12)/STDEV(G$8:G12) -> 0.45 | T12: =AVERAGE(H$8:H12)/STDEV(H$8:H12) -> 0.27 | U12: =AVERAGE(I$8:I12)/STDEV(I$8:I12) -> -0.40 | V12: =AVERAGE(J$8:J12)/STDEV(J$8:J12) -> -0.29 | AM12: -0.3% | AN12: 1.0% | AO12: 3.1% | AP12: -2.1%
A13: 1314921600 | B13: 2011-08-24 | C13: $10.50 | D13: $2.70 | E13: $31.91 | F13: $5.66 | G13: -10.3% | H13: 1.8% | I13: -3.4% | J13: 1.3% | K13: 0 | L13: 0 | M13: 0 | N13: 0 | S13: =AVERAGE(G$8:G13)/STDEV(G$8:G13) -> -0.09 | T13: =AVERAGE(H$8:H13)/STDEV(H$8:H13) -> 0.33 | U13: =AVERAGE(I$8:I13)/STDEV(I$8:I13) -> -0.46 | V13: =AVERAGE(J$8:J13)/STDEV(J$8:J13) -> -0.13 | AM13: -10.6% | AN13: 1.7% | AO13: -3.5% | AP13: 1.2% | AT13: rfr | AU13: 0
A14: 1315094400 | B14: 2011-08-25 | C14: $10.00 | D14: $2.66 | E14: $28.84 | F14: $5.65 | G14: -4.8% | H14: -1.6% | I14: -9.6% | J14: -0.1% | K14: 0 | L14: 0 | M14: 0 | N14: 0 | S14: =AVERAGE(G$8:G14)/STDEV(G$8:G14) -> -0.21 | T14: =AVERAGE(H$8:H14)/STDEV(H$8:H14) -> 0.23 | U14: =AVERAGE(I$8:I14)/STDEV(I$8:I14) -> -0.62 | V14: =AVERAGE(J$8:J14)/STDEV(J$8:J14) -> -0.13 | AM14: -5.1% | AN14: -1.7% | AO14: -9.7% | AP14: -0.2%
A15: 1315267200 | B15: 2011-08-30 | C15: $8.00 | D15: $2.55 | E15: $28.19 | F15: $5.68 | G15: -20.0% | H15: -3.9% | I15: -2.3% | J15: 0.5% | K15: 0 | L15: 0 | M15: 0 | N15: 0 | S15: =AVERAGE(G$8:G15)/STDEV(G$8:G15) -> -0.42 | T15: =AVERAGE(H$8:H15)/STDEV(H$8:H15) -> 0.07 | U15: =AVERAGE(I$8:I15)/STDEV(I$8:I15) -> -0.63 | V15: =AVERAGE(J$8:J15)/STDEV(J$8:J15) -> -0.09 | AM15: -20.3% | AN15: -4.0% | AO15: -2.4% | AP15: 0.4%
A16: 1315353600 | B16: 2011-09-01 | C16: $8.22 | D16: $2.56 | E16: $29.60 | F16: $5.78 | G16: 2.8% | H16: 0.4% | I16: 5.0% | J16: 1.9% | K16: 0 | L16: 0 | M16: 0 | N16: 0 | S16: =AVERAGE(G$8:G16)/STDEV(G$8:G16) -> -0.34 | T16: =AVERAGE(H$8:H16)/STDEV(H$8:H16) -> 0.08 | U16: =AVERAGE(I$8:I16)/STDEV(I$8:I16) -> -0.44 | V16: =AVERAGE(J$8:J16)/STDEV(J$8:J16) -> 0.05 | AM16: 2.4% | AN16: 0.2% | AO16: 4.9% | AP16: 1.8% | AU16: roczny zysk
A17: 1315440000 | B17: 2011-09-02 | C17: $8.88 | D17: $2.51 | E17: $27.72 | F17: $5.88 | G17: 8.0% | H17: -2.1% | I17: -6.4% | J17: 1.8% | K17: 0 | L17: 0 | M17: 0 | N17: 0 | S17: =AVERAGE(G$8:G17)/STDEV(G$8:G17) -> -0.20 | T17: =AVERAGE(H$8:H17)/STDEV(H$8:H17) -> 0.01 | U17: =AVERAGE(I$8:I17)/STDEV(I$8:I17) -> -0.52 | V17: =AVERAGE(J$8:J17)/STDEV(J$8:J17) -> 0.16 | AM17: 7.7% | AN17: -2.2% | AO17: -6.5% | AP17: 1.7% | AT17: BTC | AU17: =AG10 -> 1.221206165
A18: 1315872000 | B18: 2011-09-04 | C18: $8.89 | D18: $2.54 | E18: $26.90 | F18: $5.81 | G18: 0.1% | H18: 1.3% | I18: -3.0% | J18: -1.2% | K18: 0 | L18: 0 | M18: 0 | N18: 0 | S18: =AVERAGE(G$8:G18)/STDEV(G$8:G18) -> -0.19 | T18: =AVERAGE(H$8:H18)/STDEV(H$8:H18) -> 0.05 | U18: =AVERAGE(I$8:I18)/STDEV(I$8:I18) -> -0.54 | V18: =AVERAGE(J$8:J18)/STDEV(J$8:J18) -> 0.08 | AM18: -0.2% | AN18: 1.1% | AO18: -3.1% | AP18: -1.3% | AT18: GOOGL | AU18: =AH10 -> 0.4009904404
A19: 1315958400 | B19: 2011-09-06 | C19: $8.00 | D19: $2.50 | E19: $25.87 | F19: $6.07 | G19: -10.0% | H19: -1.5% | I19: -3.8% | J19: 4.4% | K19: 0 | L19: 0 | M19: 0 | N19: 0 | S19: =AVERAGE(G$8:G19)/STDEV(G$8:G19) -> -0.28 | T19: =AVERAGE(H$8:H19)/STDEV(H$8:H19) -> 0.01 | U19: =AVERAGE(I$8:I19)/STDEV(I$8:I19) -> -0.58 | V19: =AVERAGE(J$8:J19)/STDEV(J$8:J19) -> 0.25 | AM19: -10.3% | AN19: -1.6% | AO19: -4.0% | AP19: 4.4% | AT19: META | AU19: =AI11 -> 0.2316062777
A20: 1316044800 | B20: 2011-09-07 | C20: $8.50 | D20: $2.54 | E20: $26.81 | F20: $6.03 | G20: 6.3% | H20: 1.6% | I20: 3.6% | J20: -0.6% | K20: 0 | L20: 0 | M20: 0 | N20: 0 | S20: =AVERAGE(G$8:G20)/STDEV(G$8:G20) -> -0.20 | T20: =AVERAGE(H$8:H20)/STDEV(H$8:H20) -> 0.04 | U20: =AVERAGE(I$8:I20)/STDEV(I$8:I20) -> -0.48 | V20: =AVERAGE(J$8:J20)/STDEV(J$8:J20) -> 0.21 | AM20: 5.9% | AN20: 1.5% | AO20: 3.5% | AP20: -0.7% | AT20: MSFT | AU20: =AJ11 -> 0.1688920308
A21: 1316131200 | B21: 2011-09-08 | C21: $7.40 | D21: $2.56 | E21: $26.31 | F21: $6.05 | G21: -12.9% | H21: 0.7% | I21: -1.9% | J21: 0.4% | K21: =GEOMEAN(C8:C21) -> $9.59 | L21: =GEOMEAN(D8:D21) -> $2.60 | M21: $29.85 | N21: $5.78 | O21: =IF(K21<=C21,"wzrost","spadek") -> spadek | P21: =IF(L21<=D21,"wzrost","spadek") -> spadek | Q21: spadek | R21: wzrost | S21: =AVERAGE(G$8:G21)/STDEV(G$8:G21) -> -0.29 | T21: =AVERAGE(H$8:H21)/STDEV(H$8:H21) -> 0.06 | U21: =AVERAGE(I$8:I21)/STDEV(I$8:I21) -> -0.48 | V21: =AVERAGE(J$8:J21)/STDEV(J$8:J21) -> 0.22 | W21: =IF(AND(S10>S9, O21 = "wzrost"),"kup", IF(AND(S10<S9, O21 = "spadek"), "sprzedaj", "")) -> sprzedaj | X21: =IF(AND(T10>T9, P21 = "wzrost"),"kup", IF(AND(T10<T9, P21 = "spadek"), "sprzedaj", "")) -> sprzedaj | Y21: sprzedaj | AM21: -13.3% | AN21: 0.6% | AO21: -2.0% | AP21: 0.3%
A22: 1316217600 | B22: 2011-09-13 | C22: $5.97 | D22: $2.56 | E22: $27.10 | F22: $6.18 | G22: -19.3% | H22: 0.0% | I22: 3.0% | J22: 2.1% | K22: =GEOMEAN(C9:C22) -> $9.19 | L22: $2.60 | M22: $29.12 | N22: $5.81 | O22: =IF(K22<=C22,"wzrost","spadek") -> spadek | P22: spadek | Q22: spadek | R22: wzrost | S22: =AVERAGE(G$8:G22)/STDEV(G$8:G22) -> -0.39 | T22: =AVERAGE(H$8:H22)/STDEV(H$8:H22) -> 0.06 | U22: =AVERAGE(I$8:I22)/STDEV(I$8:I22) -> -0.41 | V22: =AVERAGE(J$8:J22)/STDEV(J$8:J22) -> 0.28 | W22: =IF(AND(S11>S10, O22 = "wzrost"),"kup", IF(AND(S11<S10, O22 = "spadek"), "sprzedaj", "")) -> sprzedaj | X22: sprzedaj | Z22: kup | AM22: -19.7% | AN22: -0.1% | AO22: 2.9% | AP22: 2.0%
A23: 1316304000 | B23: 2011-09-14 | C23: $5.53 | D23: $2.64 | E23: $27.01 | F23: $6.26 | G23: -7.4% | H23: 3.0% | I23: -0.4% | J23: 1.3% | K23: $8.71 | L23: $2.59 | M23: $28.65 | N23: $5.85 | O23: spadek | P23: wzrost | Q23: spadek | R23: wzrost | S23: =AVERAGE(G$8:G23)/STDEV(G$8:G23) -> -0.43 | T23: =AVERAGE(H$8:H23)/STDEV(H$8:H23) -> 0.12 | U23: =AVERAGE(I$8:I23)/STDEV(I$8:I23) -> -0.40 | V23: =AVERAGE(J$8:J23)/STDEV(J$8:J23) -> 0.31 | W23: sprzedaj | X23: kup | AM23: -7.7% | AN23: 2.8% | AO23: -0.5% | AP23: 1.2%
A24: 1316390400 | B24: 2011-09-15 | C24: $5.13 | D24: $2.69 | E24: $27.40 | F24: $6.22 | G24: -7.2% | H24: 2.1% | I24: 1.5% | J24: -0.6% | K24: $8.21 | L24: $2.59 | M24: $28.39 | N24: $5.89 | O24: spadek | P24: wzrost | Q24: spadek | R24: wzrost | S24: =AVERAGE(G$8:G24)/STDEV(G$8:G24) -> -0.46 | T24: =AVERAGE(H$8:H24)/STDEV(H$8:H24) -> 0.16 | U24: =AVERAGE(I$8:I24)/STDEV(I$8:I24) -> -0.37 | V24: =AVERAGE(J$8:J24)/STDEV(J$8:J24) -> 0.28 | W24: sprzedaj | X24: kup | Y24: sprzedaj | Z24: kup | AM24: -7.6% | AN24: 2.0% | AO24: 1.3% | AP24: -0.7% | AU24: takie same wagi roczny zysk
A25: 1316476800 | B25: 2011-09-16 | C25: $4.85 | D25: $2.79 | E25: $27.27 | F25: $6.23 | G25: -5.5% | H25: 3.7% | I25: -0.5% | J25: 0.1% | K25: $7.71 | L25: $2.60 | M25: $28.07 | N25: $5.93 | O25: spadek | P25: wzrost | Q25: spadek | R25: wzrost | S25: =AVERAGE(G$8:G25)/STDEV(G$8:G25) -> -0.49 | T25: =AVERAGE(H$8:H25)/STDEV(H$8:H25) -> 0.22 | U25: =AVERAGE(I$8:I25)/STDEV(I$8:I25) -> -0.36 | V25: =AVERAGE(J$8:J25)/STDEV(J$8:J25) -> 0.28 | W25: sprzedaj | Y25: sprzedaj | AM25: -5.8% | AN25: 3.6% | AO25: -0.6% | AP25: 0.1% | AT25: BTC | AU25: 0.25
A26: 1316563200 | B26: 2011-09-17 | C26: $4.87 | D26: $2.80 | E26: $28.29 | F26: $6.17 | G26: 0.4% | H26: 0.5% | I26: 3.7% | J26: -0.9% | K26: $7.24 | L26: $2.61 | M26: $27.76 | N26: $5.97 | O26: spadek | P26: wzrost | Q26: wzrost | R26: wzrost | S26: =AVERAGE(G$8:G26)/STDEV(G$8:G26) -> -0.47 | T26: =AVERAGE(H$8:H26)/STDEV(H$8:H26) -> 0.23 | U26: =AVERAGE(I$8:I26)/STDEV(I$8:I26) -> -0.30 | V26: =AVERAGE(J$8:J26)/STDEV(J$8:J26) -> 0.24 | W26: sprzedaj | Z26: kup | AM26: 0.1% | AN26: 0.3% | AO26: 3.6% | AP26: -1.0% | AT26: GOOGL | AU26: 0.25
A27: 1316649600 | B27: 2011-09-18 | C27: $4.92 | D27: $2.85 | E27: $30.01 | F27: $6.16 | G27: 1.0% | H27: 1.8% | I27: 6.1% | J27: -0.3% | K27: $6.86 | L27: $2.62 | M27: $27.64 | N27: $6.01 | O27: spadek | P27: wzrost | Q27: wzrost | R27: wzrost | S27: =AVERAGE(G$8:G27)/STDEV(G$8:G27) -> -0.45 | T27: =AVERAGE(H$8:H27)/STDEV(H$8:H27) -> 0.25 | U27: =AVERAGE(I$8:I27)/STDEV(I$8:I27) -> -0.22 | V27: =AVERAGE(J$8:J27)/STDEV(J$8:J27) -> 0.22 | X27: kup | Y27: kup | Z27: kup | AM27: 0.7% | AN27: 1.6% | AO27: 6.0% | AP27: -0.3% | AT27: META | AU27: 0.25
A28: 1316736000 | B28: 2011-09-19 | C28: $4.90 | D28: $2.94 | E28: $31.41 | F28: $6.12 | G28: -0.4% | H28: 3.1% | I28: 4.7% | J28: -0.6% | K28: $6.52 | L28: $2.64 | M28: $27.81 | N28: $6.04 | O28: spadek | P28: wzrost | Q28: wzrost | R28: wzrost | S28: =AVERAGE(G$8:G28)/STDEV(G$8:G28) -> -0.44 | T28: =AVERAGE(H$8:H28)/STDEV(H$8:H28) -> 0.30 | U28: =AVERAGE(I$8:I28)/STDEV(I$8:I28) -> -0.16 | V28: =AVERAGE(J$8:J28)/STDEV(J$8:J28) -> 0.20 | Z28: kup | AM28: -0.7% | AN28: 3.0% | AO28: 4.5% | AP28: -0.7% | AT28: MSFT | AU28: 0.25
A29: 1316822400 | B29: 2011-09-20 | C29: $5.66 | D29: $2.99 | E29: $31.91 | F29: $6.11 | G29: 15.5% | H29: 1.6% | I29: 1.6% | J29: -0.1% | K29: $6.36 | L29: $2.67 | M29: $28.06 | N29: $6.07 | O29: spadek | P29: wzrost | Q29: wzrost | R29: wzrost | S29: =AVERAGE(G$8:G29)/STDEV(G$8:G29) -> -0.30 | T29: =AVERAGE(H$8:H29)/STDEV(H$8:H29) -> 0.32 | U29: =AVERAGE(I$8:I29)/STDEV(I$8:I29) -> -0.14 | V29: =AVERAGE(J$8:J29)/STDEV(J$8:J29) -> 0.19 | X29: kup | AM29: 15.2% | AN29: 1.5% | AO29: 1.5% | AP29: -0.2% | AT29: suma | AU29: =SUM(AU25:AU28) -> 1
A30: 1316908800 | B30: 2011-09-21 | C30: $5.66 | D30: $2.95 | E30: $31.60 | F30: $6.24 | G30: 0.0% | H30: -1.3% | I30: -1.0% | J30: 2.2% | K30: $6.20 | L30: $2.70 | M30: $28.19 | N30: $6.11 | O30: spadek | P30: wzrost | Q30: wzrost | R30: wzrost | S30: =AVERAGE(G$8:G30)/STDEV(G$8:G30) -> -0.29 | T30: =AVERAGE(H$8:H30)/STDEV(H$8:H30) -> 0.28 | U30: =AVERAGE(I$8:I30)/STDEV(I$8:I30) -> -0.15 | V30: =AVERAGE(J$8:J30)/STDEV(J$8:J30) -> 0.24 | W30: sprzedaj | Z30: kup | AM30: -0.3% | AN30: -1.4% | AO30: -1.1% | AP30: 2.1%
A31: 1316995200 | B31: 2011-09-22 | C31: $5.72 | D31: $2.96 | E31: $31.84 | F31: $6.41 | G31: 1.1% | H31: 0.5% | I31: 0.8% | J31: 2.6% | K31: $6.00 | L31: $2.73 | M31: $28.47 | N31: $6.15 | O31: spadek | P31: wzrost | Q31: wzrost | R31: wzrost | S31: =AVERAGE(G$8:G31)/STDEV(G$8:G31) -> -0.28 | T31: =AVERAGE(H$8:H31)/STDEV(H$8:H31) -> 0.29 | U31: =AVERAGE(I$8:I31)/STDEV(I$8:I31) -> -0.14 | V31: =AVERAGE(J$8:J31)/STDEV(J$8:J31) -> 0.29 | X31: kup | Y31: kup | AM31: 0.7% | AN31: 0.3% | AO31: 0.6% | AP31: 2.6%
A32: 1317081600 | B32: 2011-09-23 | C32: $5.72 | D32: $3.02 | E32: $33.05 | F32: $6.47 | G32: 0.0% | H32: 2.1% | I32: 3.8% | J32: 1.0% | K32: $5.82 | L32: $2.77 | M32: $28.89 | N32: $6.19 | O32: spadek | P32: wzrost | Q32: wzrost | R32: wzrost | S32: =AVERAGE(G$8:G32)/STDEV(G$8:G32) -> -0.27 | T32: =AVERAGE(H$8:H32)/STDEV(H$8:H32) -> 0.31 | U32: =AVERAGE(I$8:I32)/STDEV(I$8:I32) -> -0.10 | V32: =AVERAGE(J$8:J32)/STDEV(J$8:J32) -> 0.31 | W32: sprzedaj | X32: kup | Z32: kup | AM32: -0.3% | AN32: 2.0% | AO32: 3.7% | AP32: 0.9% | AT32: oczekiwany zysk | AU32: =MMULT(TRANSPOSE(AU25:AU28),AU17:AU20) -> 0.5056737284
A33: 1317168000 | B33: 2011-09-24 | C33: $5.68 | D33: $3.00 | E33: $32.06 | F33: $6.29 | G33: -0.7% | H33: -0.8% | I33: -3.0% | J33: -2.8% | K33: $5.68 | L33: $2.80 | M33: $29.34 | N33: $6.21 | O33: wzrost | P33: wzrost | Q33: wzrost | R33: wzrost | S33: =AVERAGE(G$8:G33)/STDEV(G$8:G33) -> -0.27 | T33: =AVERAGE(H$8:H33)/STDEV(H$8:H33) -> 0.29 | U33: =AVERAGE(I$8:I33)/STDEV(I$8:I33) -> -0.12 | V33: =AVERAGE(J$8:J33)/STDEV(J$8:J33) -> 0.22 | Y33: kup | Z33: kup | AM33: -1.0% | AN33: -0.9% | AO33: -3.1% | AP33: -2.9% | AT33: ryzyko | AU33: =SQRT(MMULT(MMULT(TRANSPOSE(AU25:AU28),_xlfn.ANCHORARRAY(AU8)),AU25:AU28)) -> 0.3061074467
A34: 1317254400 | B34: 2011-09-25 | C34: $6.05 | D34: $2.96 | E34: $33.10 | F34: $6.26 | G34: 6.5% | H34: -1.3% | I34: 3.2% | J34: -0.5% | K34: $5.54 | L34: $2.83 | M34: $29.78 | N34: $6.22 | O34: wzrost | P34: wzrost | Q34: wzrost | R34: wzrost | S34: =AVERAGE(G$8:G34)/STDEV(G$8:G34) -> -0.23 | T34: =AVERAGE(H$8:H34)/STDEV(H$8:H34) -> 0.26 | U34: =AVERAGE(I$8:I34)/STDEV(I$8:I34) -> -0.09 | V34: =AVERAGE(J$8:J34)/STDEV(J$8:J34) -> 0.20 | X34: kup | Y34: kup | Z34: kup | AM34: 6.2% | AN34: -1.4% | AO34: 3.1% | AP34: -0.6% | AT34: shape ratio | AU34: =(AU32-AU13)/AU33 -> 1.651948471
A35: 1317600000 | B35: 2011-09-26 | C35: $4.80 | D35: $3.17 | E35: $32.23 | F35: $6.26 | G35: -20.7% | H35: 7.3% | I35: -2.6% | J35: 0.0% | K35: $5.37 | L35: $2.88 | M35: $30.22 | N35: $6.24 | O35: spadek | P35: wzrost | Q35: wzrost | R35: wzrost | S35: =AVERAGE(G$8:G35)/STDEV(G$8:G35) -> -0.29 | T35: =AVERAGE(H$8:H35)/STDEV(H$8:H35) -> 0.32 | U35: =AVERAGE(I$8:I35)/STDEV(I$8:I35) -> -0.11 | V35: =AVERAGE(J$8:J35)/STDEV(J$8:J35) -> 0.20 | W35: sprzedaj | X35: kup | Y35: kup | AM35: -21.0% | AN35: 7.2% | AO35: -2.7% | AP35: -0.1%
A36: 1317686400 | B36: 2011-09-27 | C36: $4.92 | D36: $3.28 | E36: $31.36 | F36: $6.17 | G36: 2.5% | H36: 3.3% | I36: -2.7% | J36: -1.4% | K36: $5.30 | L36: $2.93 | M36: $30.53 | N36: $6.24 | O36: spadek | P36: wzrost | Q36: wzrost | R36: spadek | S36: =AVERAGE(G$8:G36)/STDEV(G$8:G36) -> -0.27 | T36: =AVERAGE(H$8:H36)/STDEV(H$8:H36) -> 0.36 | U36: =AVERAGE(I$8:I36)/STDEV(I$8:I36) -> -0.13 | V36: =AVERAGE(J$8:J36)/STDEV(J$8:J36) -> 0.16 | W36: sprzedaj | X36: kup | Y36: kup | Z36: sprzedaj | AM36: 2.2% | AN36: 3.2% | AO36: -2.8% | AP36: -1.5%
A37: 1317772800 | B37: 2011-09-28 | C37: $4.82 | D37: $3.24 | E37: $31.10 | F37: $5.97 | G37: -2.0% | H37: -1.1% | I37: -0.8% | J37: -3.2% | K37: $5.25 | L37: $2.97 | M37: $30.84 | N37: $6.22 | O37: spadek | P37: wzrost | Q37: wzrost | R37: spadek | S37: =AVERAGE(G$8:G37)/STDEV(G$8:G37) -> -0.28 | T37: =AVERAGE(H$8:H37)/STDEV(H$8:H37) -> 0.33 | U37: =AVERAGE(I$8:I37)/STDEV(I$8:I37) -> -0.13 | V37: =AVERAGE(J$8:J37)/STDEV(J$8:J37) -> 0.08 | X37: kup | Y37: kup | Z37: sprzedaj | AM37: -2.4% | AN37: -1.2% | AO37: -1.0% | AP37: -3.3%
A38: 1317859200 | B38: 2011-09-29 | C38: $4.82 | D38: $3.32 | E38: $30.77 | F38: $6.02 | G38: 0.0% | H38: 2.3% | I38: -1.0% | J38: 0.8% | K38: $5.22 | L38: $3.02 | M38: $31.10 | N38: $6.20 | O38: spadek | P38: wzrost | Q38: spadek | R38: spadek | S38: =AVERAGE(G$8:G38)/STDEV(G$8:G38) -> -0.27 | T38: =AVERAGE(H$8:H38)/STDEV(H$8:H38) -> 0.35 | U38: =AVERAGE(I$8:I38)/STDEV(I$8:I38) -> -0.14 | V38: =AVERAGE(J$8:J38)/STDEV(J$8:J38) -> 0.10 | X38: kup | Z38: sprzedaj | AM38: -0.3% | AN38: 2.2% | AO38: -1.2% | AP38: 0.7%
A39: 1317945600 | B39: 2011-10-03 | C39: $4.87 | D39: $3.38 | E39: $31.20 | F39: $6.13 | G39: 1.0% | H39: 1.9% | I39: 1.4% | J39: 1.9% | K39: $5.22 | L39: $3.06 | M39: $31.40 | N39: $6.20 | O39: spadek | P39: wzrost | Q39: spadek | R39: spadek | S39: =AVERAGE(G$8:G39)/STDEV(G$8:G39) -> -0.26 | T39: =AVERAGE(H$8:H39)/STDEV(H$8:H39) -> 0.37 | U39: =AVERAGE(I$8:I39)/STDEV(I$8:I39) -> -0.13 | V39: =AVERAGE(J$8:J39)/STDEV(J$8:J39) -> 0.13 | X39: kup | Z39: sprzedaj | AM39: 0.7% | AN39: 1.8% | AO39: 1.3% | AP39: 1.9% | AU39: zoptymalizowane wagi roczny zysk
A40: 1318032000 | B40: 2011-10-04 | C40: $4.98 | D40: $3.46 | E40: $31.47 | F40: $6.06 | G40: 2.3% | H40: 2.5% | I40: 0.9% | J40: -1.1% | K40: $5.23 | L40: $3.10 | M40: $31.64 | N40: $6.19 | O40: spadek | P40: wzrost | Q40: spadek | R40: spadek | S40: =AVERAGE(G$8:G40)/STDEV(G$8:G40) -> -0.25 | T40: =AVERAGE(H$8:H40)/STDEV(H$8:H40) -> 0.39 | U40: =AVERAGE(I$8:I40)/STDEV(I$8:I40) -> -0.12 | V40: =AVERAGE(J$8:J40)/STDEV(J$8:J40) -> 0.11 | X40: kup | Z40: sprzedaj | AM40: 1.9% | AN40: 2.3% | AO40: 0.7% | AP40: -1.2% | AT40: BTC | AU40: 1
A41: 1318118400 | B41: 2011-10-05 | C41: $4.92 | D41: $3.43 | E41: $31.73 | F41: $6.08 | G41: -1.2% | H41: -0.9% | I41: 0.8% | J41: 0.3% | K41: $5.23 | L41: $3.14 | M41: $31.77 | N41: $6.18 | O41: spadek | P41: wzrost | Q41: spadek | R41: spadek | S41: =AVERAGE(G$8:G41)/STDEV(G$8:G41) -> -0.25 | T41: =AVERAGE(H$8:H41)/STDEV(H$8:H41) -> 0.37 | U41: =AVERAGE(I$8:I41)/STDEV(I$8:I41) -> -0.11 | V41: =AVERAGE(J$8:J41)/STDEV(J$8:J41) -> 0.11 | Y41: sprzedaj | AM41: -1.5% | AN41: -1.0% | AO41: 0.7% | AP41: 0.2% | AT41: GOOGL | AU41: 0
A42: 1318204800 | B42: 2011-10-06 | C42: $4.80 | D42: $3.47 | E42: $32.17 | F42: $5.95 | G42: -2.4% | H42: 1.3% | I42: 1.4% | J42: -2.2% | K42: $5.23 | L42: $3.18 | M42: $31.82 | N42: $6.17 | O42: spadek | P42: wzrost | Q42: wzrost | R42: spadek | S42: =AVERAGE(G$8:G42)/STDEV(G$8:G42) -> -0.26 | T42: =AVERAGE(H$8:H42)/STDEV(H$8:H42) -> 0.38 | U42: =AVERAGE(I$8:I42)/STDEV(I$8:I42) -> -0.10 | V42: =AVERAGE(J$8:J42)/STDEV(J$8:J42) -> 0.07 | X42: kup | Y42: kup | AM42: -2.8% | AN42: 1.2% | AO42: 1.3% | AP42: -2.3% | AT42: META | AU42: 0
A43: 1318291200 | B43: 2011-10-07 | C43: $4.61 | D43: $3.45 | E43: $31.47 | F43: $6.03 | G43: -4.0% | H43: -0.8% | I43: -2.2% | J43: 1.4% | K43: $5.15 | L43: $3.22 | M43: $31.79 | N43: $6.16 | O43: spadek | P43: wzrost | Q43: spadek | R43: spadek | S43: =AVERAGE(G$8:G43)/STDEV(G$8:G43) -> -0.27 | T43: =AVERAGE(H$8:H43)/STDEV(H$8:H43) -> 0.37 | U43: =AVERAGE(I$8:I43)/STDEV(I$8:I43) -> -0.11 | V43: =AVERAGE(J$8:J43)/STDEV(J$8:J43) -> 0.09 | X43: kup | AM43: -4.3% | AN43: -0.9% | AO43: -2.3% | AP43: 1.4% | AT43: MSFT | AU43: 0
A44: 1318377600 | B44: 2011-10-08 | C44: $3.99 | D44: $3.38 | E44: $30.97 | F44: $5.98 | G44: -13.4% | H44: -1.8% | I44: -1.6% | J44: -0.8% | K44: $5.02 | L44: $3.25 | M44: $31.74 | N44: $6.15 | O44: spadek | P44: wzrost | Q44: spadek | R44: spadek | S44: =AVERAGE(G$8:G44)/STDEV(G$8:G44) -> -0.30 | T44: =AVERAGE(H$8:H44)/STDEV(H$8:H44) -> 0.34 | U44: =AVERAGE(I$8:I44)/STDEV(I$8:I44) -> -0.12 | V44: =AVERAGE(J$8:J44)/STDEV(J$8:J44) -> 0.08 | Y44: sprzedaj | Z44: sprzedaj | AM44: -13.8% | AN44: -1.9% | AO44: -1.7% | AP44: -0.9% | AT44: suma | AU44: =SUM(AU40:AU43) -> 1
A45: 1318464000 | B45: 2011-10-09 | C45: $3.89 | D45: $3.44 | E45: $30.81 | F45: $6.30 | G45: -2.5% | H45: 1.6% | I45: -0.5% | J45: 5.4% | K45: $4.89 | L45: $3.28 | M45: $31.67 | N45: $6.14 | O45: spadek | P45: wzrost | Q45: spadek | R45: wzrost | S45: =AVERAGE(G$8:G45)/STDEV(G$8:G45) -> -0.31 | T45: =AVERAGE(H$8:H45)/STDEV(H$8:H45) -> 0.35 | U45: =AVERAGE(I$8:I45)/STDEV(I$8:I45) -> -0.12 | V45: =AVERAGE(J$8:J45)/STDEV(J$8:J45) -> 0.14 | AM45: -2.8% | AN45: 1.5% | AO45: -0.6% | AP45: 5.3%
A46: 1318550400 | B46: 2011-10-10 | C46: $4.51 | D46: $3.53 | E46: $30.72 | F46: $6.23 | G46: 15.9% | H46: 2.5% | I46: -0.3% | J46: -1.2% | K46: =GEOMEAN(C33:C46) -> $4.80 | L46: $3.32 | M46: $31.50 | N46: $6.12 | O46: =IF(K46<=C46,"wzrost","spadek") -> spadek | P46: wzrost | Q46: spadek | R46: wzrost | S46: =AVERAGE(G$8:G46)/STDEV(G$8:G46) -> -0.23 | T46: =AVERAGE(H$8:H46)/STDEV(H$8:H46) -> 0.37 | U46: =AVERAGE(I$8:I46)/STDEV(I$8:I46) -> -0.12 | V46: =AVERAGE(J$8:J46)/STDEV(J$8:J46) -> 0.12 | W46: sprzedaj | X46: kup | Y46: sprzedaj | AM46: 15.6% | AN46: 2.4% | AO46: -0.4% | AP46: -1.3%
A47: 1318809600 | B47: 2011-10-11 | C47: $4.10 | D47: $3.55 | E47: $28.25 | F47: $6.40 | G47: -9.1% | H47: 0.8% | I47: -8.1% | J47: 2.8% | K47: $4.69 | L47: $3.36 | M47: $31.22 | N47: $6.13 | O47: spadek | P47: wzrost | Q47: spadek | R47: wzrost | S47: =AVERAGE(G$8:G47)/STDEV(G$8:G47) -> -0.26 | T47: =AVERAGE(H$8:H47)/STDEV(H$8:H47) -> 0.37 | U47: =AVERAGE(I$8:I47)/STDEV(I$8:I47) -> -0.17 | V47: =AVERAGE(J$8:J47)/STDEV(J$8:J47) -> 0.16 | X47: kup | Y47: sprzedaj | AM47: -9.4% | AN47: 0.7% | AO47: -8.2% | AP47: 2.7% | AT47: oczekiwany zysk | AU47: =MMULT(TRANSPOSE(AU40:AU43),AU17:AU20) -> 1.221206165
A48: 1319068800 | B48: 2011-10-12 | C48: $3.93 | D48: $3.61 | E48: $28.09 | F48: $6.58 | G48: -4.1% | H48: 1.5% | I48: -0.5% | J48: 2.8% | K48: $4.55 | L48: $3.41 | M48: $30.86 | N48: $6.15 | O48: spadek | P48: wzrost | Q48: spadek | R48: wzrost | S48: =AVERAGE(G$8:G48)/STDEV(G$8:G48) -> -0.27 | T48: =AVERAGE(H$8:H48)/STDEV(H$8:H48) -> 0.38 | U48: =AVERAGE(I$8:I48)/STDEV(I$8:I48) -> -0.17 | V48: =AVERAGE(J$8:J48)/STDEV(J$8:J48) -> 0.19 | W48: sprzedaj | Y48: sprzedaj | AM48: -4.5% | AN48: 1.4% | AO48: -0.7% | AP48: 2.7% | AT48: ryzyko | AU48: =SQRT(MMULT(MMULT(TRANSPOSE(AU40:AU43),_xlfn.ANCHORARRAY(AU8)),AU25:AU28)) -> 0.4837378058
A49: 1319155200 | B49: 2011-10-13 | C49: $3.97 | D49: $3.73 | E49: $29.11 | F49: $6.68 | G49: 1.0% | H49: 3.5% | I49: 3.6% | J49: 1.5% | K49: $4.49 | L49: $3.45 | M49: $30.63 | N49: $6.18 | O49: spadek | P49: wzrost | Q49: spadek | R49: wzrost | S49: =AVERAGE(G$8:G49)/STDEV(G$8:G49) -> -0.26 | T49: =AVERAGE(H$8:H49)/STDEV(H$8:H49) -> 0.41 | U49: =AVERAGE(I$8:I49)/STDEV(I$8:I49) -> -0.14 | V49: =AVERAGE(J$8:J49)/STDEV(J$8:J49) -> 0.20 | X49: kup | Y49: sprzedaj | Z49: kup | AM49: 0.7% | AN49: 3.4% | AO49: 3.5% | AP49: 1.5% | AT49: shape ratio | AU49: =(AU47-AU13)/AU48 -> 2.524520826
A50: 1319414400 | B50: 2011-10-14 | C50: $4.05 | D50: $3.70 | E50: $29.00 | F50: $6.54 | G50: 2.0% | H50: -0.8% | I50: -0.4% | J50: -2.1% | K50: $4.43 | L50: $3.48 | M50: $30.46 | N50: $6.21 | O50: spadek | P50: wzrost | Q50: spadek | R50: wzrost | S50: =AVERAGE(G$8:G50)/STDEV(G$8:G50) -> -0.25 | T50: =AVERAGE(H$8:H50)/STDEV(H$8:H50) -> 0.39 | U50: =AVERAGE(I$8:I50)/STDEV(I$8:I50) -> -0.14 | V50: =AVERAGE(J$8:J50)/STDEV(J$8:J50) -> 0.17 | X50: kup | Z50: kup | AM50: 1.7% | AN50: -0.9% | AO50: -0.5% | AP50: -2.2%
A51: 1319500800 | B51: 2011-10-17 | C51: $3.92 | D51: $3.52 | E51: $28.76 | F51: $6.30 | G51: -3.2% | H51: -5.0% | I51: -0.8% | J51: -3.7% | K51: $4.36 | L51: $3.50 | M51: $30.29 | N51: $6.23 | O51: spadek | P51: wzrost | Q51: spadek | R51: wzrost | S51: =AVERAGE(G$8:G51)/STDEV(G$8:G51) -> -0.26 | T51: =AVERAGE(H$8:H51)/STDEV(H$8:H51) -> 0.32 | U51: =AVERAGE(I$8:I51)/STDEV(I$8:I51) -> -0.15 | V51: =AVERAGE(J$8:J51)/STDEV(J$8:J51) -> 0.12 | X51: kup | AM51: -3.5% | AN51: -5.1% | AO51: -0.9% | AP51: -3.8%
A52: 1319587200 | B52: 2011-10-20 | C52: $2.24 | D52: $3.74 | E52: $28.75 | F52: $6.32 | G52: -42.9% | H52: 6.3% | I52: -0.0% | J52: 0.4% | K52: $4.13 | L52: $3.53 | M52: $30.15 | N52: $6.25 | O52: spadek | P52: wzrost | Q52: spadek | R52: wzrost | S52: =AVERAGE(G$8:G52)/STDEV(G$8:G52) -> -0.29 | T52: =AVERAGE(H$8:H52)/STDEV(H$8:H52) -> 0.35 | U52: =AVERAGE(I$8:I52)/STDEV(I$8:I52) -> -0.14 | V52: =AVERAGE(J$8:J52)/STDEV(J$8:J52) -> 0.12 | W52: sprzedaj | Z52: kup | AM52: -43.2% | AN52: 6.2% | AO52: -0.2% | AP52: 0.3%
A53: 1319760000 | B53: 2011-10-21 | C53: $2.27 | D53: $4.31 | E53: $28.45 | F53: $6.24 | G53: 1.3% | H53: 15.4% | I53: -1.0% | J53: -1.2% | K53: $3.91 | L53: $3.59 | M53: $29.95 | N53: $6.26 | O53: spadek | P53: wzrost | Q53: spadek | R53: spadek | S53: =AVERAGE(G$8:G53)/STDEV(G$8:G53) -> -0.29 | T53: =AVERAGE(H$8:H53)/STDEV(H$8:H53) -> 0.37 | U53: =AVERAGE(I$8:I53)/STDEV(I$8:I53) -> -0.15 | V53: =AVERAGE(J$8:J53)/STDEV(J$8:J53) -> 0.10 | W53: sprzedaj | X53: kup | Z53: sprzedaj | AM53: 1.0% | AN53: 15.3% | AO53: -1.2% | AP53: -1.3%
A54: 1319846400 | B54: 2011-10-24 | C54: $2.92 | D54: $4.69 | E54: $29.34 | F54: $6.42 | G54: 28.6% | H54: 8.7% | I54: 3.1% | J54: 2.9% | K54: $3.76 | L54: $3.67 | M54: $29.80 | N54: $6.29 | O54: spadek | P54: wzrost | Q54: spadek | R54: wzrost | S54: =AVERAGE(G$8:G54)/STDEV(G$8:G54) -> -0.20 | T54: =AVERAGE(H$8:H54)/STDEV(H$8:H54) -> 0.40 | U54: =AVERAGE(I$8:I54)/STDEV(I$8:I54) -> -0.13 | V54: =AVERAGE(J$8:J54)/STDEV(J$8:J54) -> 0.13 | W54: sprzedaj | Y54: sprzedaj | Z54: kup | AM54: 28.3% | AN54: 8.6% | AO54: 3.0% | AP54: 2.8%
A55: 1319932800 | B55: 2011-10-25 | C55: $2.72 | D55: $4.55 | E55: $26.85 | F55: $6.41 | G55: -6.8% | H55: -3.0% | I55: -8.5% | J55: -0.2% | K55: $3.61 | L55: $3.74 | M55: $29.45 | N55: $6.31 | O55: spadek | P55: wzrost | Q55: spadek | R55: wzrost | S55: =AVERAGE(G$8:G55)/STDEV(G$8:G55) -> -0.21 | T55: =AVERAGE(H$8:H55)/STDEV(H$8:H55) -> 0.37 | U55: =AVERAGE(I$8:I55)/STDEV(I$8:I55) -> -0.17 | V55: =AVERAGE(J$8:J55)/STDEV(J$8:J55) -> 0.13 | W55: sprzedaj | Y55: sprzedaj | AM55: -7.2% | AN55: -3.1% | AO55: -8.6% | AP55: -0.3%
A56: 1320019200 | B56: 2011-10-26 | C56: $2.69 | D56: $4.65 | E56: $23.71 | F56: $6.39 | G56: -1.1% | H56: 2.3% | I56: -11.7% | J56: -0.2% | K56: $3.46 | L56: $3.82 | M56: $28.81 | N56: $6.34 | O56: spadek | P56: wzrost | Q56: spadek | R56: wzrost | S56: =AVERAGE(G$8:G56)/STDEV(G$8:G56) -> -0.21 | T56: =AVERAGE(H$8:H56)/STDEV(H$8:H56) -> 0.38 | U56: =AVERAGE(I$8:I56)/STDEV(I$8:I56) -> -0.21 | V56: =AVERAGE(J$8:J56)/STDEV(J$8:J56) -> 0.12 | W56: sprzedaj | X56: kup | Y56: sprzedaj | Z56: kup | AM56: -1.4% | AN56: 2.2% | AO56: -11.8% | AP56: -0.3%
A57: 1320105600 | B57: 2011-10-28 | C57: $4.20 | D57: $4.84 | E57: $23.15 | F57: $6.45 | G57: 56.1% | H57: 3.9% | I57: -2.3% | J57: 0.9% | K57: $3.44 | L57: $3.91 | M57: $28.18 | N57: $6.37 | O57: wzrost | P57: wzrost | Q57: spadek | R57: wzrost | S57: =AVERAGE(G$8:G57)/STDEV(G$8:G57) -> -0.08 | T57: =AVERAGE(H$8:H57)/STDEV(H$8:H57) -> 0.40 | U57: =AVERAGE(I$8:I57)/STDEV(I$8:I57) -> -0.22 | V57: =AVERAGE(J$8:J57)/STDEV(J$8:J57) -> 0.13 | W57: kup | X57: kup | Y57: sprzedaj | AM57: 55.8% | AN57: 3.8% | AO57: -2.5% | AP57: 0.8%
A58: 1320364800 | B58: 2011-10-29 | C58: $3.95 | D58: $4.77 | E58: $21.71 | F58: $6.42 | G58: -6.0% | H58: -1.4% | I58: -6.2% | J58: -0.4% | K58: $3.44 | L58: $4.01 | M58: $27.48 | N58: $6.40 | O58: wzrost | P58: wzrost | Q58: spadek | R58: wzrost | S58: =AVERAGE(G$8:G58)/STDEV(G$8:G58) -> -0.09 | T58: =AVERAGE(H$8:H58)/STDEV(H$8:H58) -> 0.38 | U58: =AVERAGE(I$8:I58)/STDEV(I$8:I58) -> -0.24 | V58: =AVERAGE(J$8:J58)/STDEV(J$8:J58) -> 0.13 | X58: kup | Y58: sprzedaj | Z58: kup | AM58: -6.3% | AN58: -1.5% | AO58: -6.3% | AP58: -0.4%
A59: 1320451200 | B59: 2011-10-30 | C59: $3.50 | D59: $4.91 | E59: $20.88 | F59: $6.54 | G59: -11.4% | H59: 2.8% | I59: -3.8% | J59: 1.8% | K59: $3.41 | L59: $4.11 | M59: $26.73 | N59: $6.42 | O59: wzrost | P59: wzrost | Q59: spadek | R59: wzrost | S59: =AVERAGE(G$8:G59)/STDEV(G$8:G59) -> -0.10 | T59: =AVERAGE(H$8:H59)/STDEV(H$8:H59) -> 0.39 | U59: =AVERAGE(I$8:I59)/STDEV(I$8:I59) -> -0.26 | V59: =AVERAGE(J$8:J59)/STDEV(J$8:J59) -> 0.14 | X59: kup | Y59: sprzedaj | Z59: kup | AM59: -11.7% | AN59: 2.7% | AO59: -3.9% | AP59: 1.8%
A60: 1320537600 | B60: 2011-10-31 | C60: $3.30 | D60: $4.88 | E60: $20.04 | F60: $6.53 | G60: -5.7% | H60: -0.6% | I60: -4.0% | J60: -0.1% | K60: $3.34 | L60: $4.21 | M60: $25.92 | N60: $6.44 | O60: spadek | P60: wzrost | Q60: spadek | R60: wzrost | S60: =AVERAGE(G$8:G60)/STDEV(G$8:G60) -> -0.11 | T60: =AVERAGE(H$8:H60)/STDEV(H$8:H60) -> 0.39 | U60: =AVERAGE(I$8:I60)/STDEV(I$8:I60) -> -0.27 | V60: =AVERAGE(J$8:J60)/STDEV(J$8:J60) -> 0.14 | X60: kup | Z60: kup | AM60: -6.0% | AN60: -0.7% | AO60: -4.1% | AP60: -0.2%
A61: 1320710400 | B61: 2011-11-01 | C61: $3.33 | D61: $4.80 | E61: $21.09 | F61: $6.52 | G61: 0.9% | H61: -1.6% | I61: 5.2% | J61: -0.1% | K61: $3.29 | L61: $4.30 | M61: $25.39 | N61: $6.45 | O61: wzrost | P61: wzrost | Q61: spadek | R61: wzrost | S61: =AVERAGE(G$8:G61)/STDEV(G$8:G61) -> -0.11 | T61: =AVERAGE(H$8:H61)/STDEV(H$8:H61) -> 0.37 | U61: =AVERAGE(I$8:I61)/STDEV(I$8:I61) -> -0.24 | V61: =AVERAGE(J$8:J61)/STDEV(J$8:J61) -> 0.14 | W61: kup | Y61: sprzedaj | AM61: 0.6% | AN61: -1.8% | AO61: 5.1% | AP61: -0.2%
A62: 1320796800 | B62: 2011-11-04 | C62: $3.55 | D62: $4.62 | E62: $21.92 | F62: $6.48 | G62: 6.6% | H62: -3.6% | I62: 3.9% | J62: -0.6% | K62: $3.26 | L62: $4.38 | M62: $24.94 | N62: $6.44 | O62: wzrost | P62: wzrost | Q62: spadek | R62: wzrost | S62: =AVERAGE(G$8:G62)/STDEV(G$8:G62) -> -0.10 | T62: =AVERAGE(H$8:H62)/STDEV(H$8:H62) -> 0.34 | U62: =AVERAGE(I$8:I62)/STDEV(I$8:I62) -> -0.22 | V62: =AVERAGE(J$8:J62)/STDEV(J$8:J62) -> 0.13 | Y62: sprzedaj | AM62: 6.3% | AN62: -3.7% | AO62: 3.8% | AP62: -0.7%
A63: 1320883200 | B63: 2011-11-05 | C63: $3.00 | D63: $4.24 | E63: $20.72 | F63: $6.35 | G63: -15.5% | H63: -8.3% | I63: -5.5% | J63: -2.0% | K63: $3.20 | L63: $4.42 | M63: $24.34 | N63: $6.42 | O63: spadek | P63: spadek | Q63: spadek | R63: spadek | S63: =AVERAGE(G$8:G63)/STDEV(G$8:G63) -> -0.12 | T63: =AVERAGE(H$8:H63)/STDEV(H$8:H63) -> 0.28 | U63: =AVERAGE(I$8:I63)/STDEV(I$8:I63) -> -0.24 | V63: =AVERAGE(J$8:J63)/STDEV(J$8:J63) -> 0.11 | W63: sprzedaj | AM63: -15.8% | AN63: -8.4% | AO63: -5.6% | AP63: -2.1%
A64: 1320969600 | B64: 2011-11-06 | C64: $2.95 | D64: $4.32 | E64: $20.72 | F64: $6.35 | G64: -1.7% | H64: 1.9% | I64: 0.0% | J64: 0.0% | K64: $3.13 | L64: $4.47 | M64: $23.77 | N64: $6.41 | O64: spadek | P64: spadek | Q64: spadek | R64: spadek | S64: =AVERAGE(G$8:G64)/STDEV(G$8:G64) -> -0.12 | T64: =AVERAGE(H$8:H64)/STDEV(H$8:H64) -> 0.28 | U64: =AVERAGE(I$8:I64)/STDEV(I$8:I64) -> -0.23 | V64: =AVERAGE(J$8:J64)/STDEV(J$8:J64) -> 0.11 | Y64: sprzedaj | Z64: sprzedaj | AM64: -2.0% | AN64: 1.8% | AO64: -0.1% | AP64: -0.1%
A65: 1321056000 | B65: 2011-11-08 | C65: $3.08 | D65: $4.22 | E65: $21.01 | F65: $6.32 | G65: 4.4% | H65: -2.2% | I65: 1.4% | J65: -0.5% | K65: $3.07 | L65: $4.53 | M65: $23.24 | N65: $6.41 | O65: wzrost | P65: spadek | Q65: spadek | R65: spadek | S65: =AVERAGE(G$8:G65)/STDEV(G$8:G65) -> -0.11 | T65: =AVERAGE(H$8:H65)/STDEV(H$8:H65) -> 0.27 | U65: =AVERAGE(I$8:I65)/STDEV(I$8:I65) -> -0.23 | V65: =AVERAGE(J$8:J65)/STDEV(J$8:J65) -> 0.10 | W65: kup | AM65: 4.1% | AN65: -2.3% | AO65: 1.3% | AP65: -0.6%
A66: 1321142400 | B66: 2011-11-09 | C66: $3.30 | D66: $4.20 | E66: $21.81 | F66: $6.32 | G66: 7.1% | H66: -0.5% | I66: 3.8% | J66: 0.0% | K66: $3.16 | L66: $4.56 | M66: $22.78 | N66: $6.41 | O66: wzrost | P66: spadek | Q66: spadek | R66: spadek | S66: =AVERAGE(G$8:G66)/STDEV(G$8:G66) -> -0.10 | T66: =AVERAGE(H$8:H66)/STDEV(H$8:H66) -> 0.26 | U66: =AVERAGE(I$8:I66)/STDEV(I$8:I66) -> -0.21 | V66: =AVERAGE(J$8:J66)/STDEV(J$8:J66) -> 0.10 | X66: sprzedaj | Y66: sprzedaj | Z66: sprzedaj | AM66: 6.8% | AN66: -0.6% | AO66: 3.7% | AP66: -0.1%
A67: 1321228800 | B67: 2011-11-10 | C67: $3.30 | D67: $4.58 | E67: $21.60 | F67: $6.47 | G67: 0.0% | H67: 9.0% | I67: -0.9% | J67: 2.4% | K67: $3.25 | L67: $4.58 | M67: $22.34 | N67: $6.43 | O67: wzrost | P67: spadek | Q67: spadek | R67: wzrost | S67: =AVERAGE(G$8:G67)/STDEV(G$8:G67) -> -0.10 | T67: =AVERAGE(H$8:H67)/STDEV(H$8:H67) -> 0.29 | U67: =AVERAGE(I$8:I67)/STDEV(I$8:I67) -> -0.21 | V67: =AVERAGE(J$8:J67)/STDEV(J$8:J67) -> 0.12 | Y67: sprzedaj | AM67: -0.3% | AN67: 8.9% | AO67: -1.1% | AP67: 2.3%
A68: 1321315200 | B68: 2011-11-11 | C68: $3.30 | D68: $4.55 | E68: $20.38 | F68: $6.58 | G68: 0.0% | H68: -0.6% | I68: -5.6% | J68: 1.7% | K68: $3.27 | L68: $4.57 | M68: $21.77 | N68: $6.44 | O68: wzrost | P68: spadek | Q68: spadek | R68: wzrost | S68: =AVERAGE(G$8:G68)/STDEV(G$8:G68) -> -0.10 | T68: =AVERAGE(H$8:H68)/STDEV(H$8:H68) -> 0.29 | U68: =AVERAGE(I$8:I68)/STDEV(I$8:I68) -> -0.23 | V68: =AVERAGE(J$8:J68)/STDEV(J$8:J68) -> 0.13 | W68: kup | Y68: sprzedaj | Z68: kup | AM68: -0.3% | AN68: -0.7% | AO68: -5.8% | AP68: 1.6%
A69: 1321401600 | B69: 2011-11-12 | C69: $3.35 | D69: $4.63 | E69: $21.20 | F69: $6.62 | G69: 1.5% | H69: 1.6% | I69: 4.0% | J69: 0.7% | K69: $3.32 | L69: $4.58 | M69: $21.40 | N69: $6.45 | O69: wzrost | P69: wzrost | Q69: spadek | R69: wzrost | S69: =AVERAGE(G$8:G69)/STDEV(G$8:G69) -> -0.09 | T69: =AVERAGE(H$8:H69)/STDEV(H$8:H69) -> 0.29 | U69: =AVERAGE(I$8:I69)/STDEV(I$8:I69) -> -0.21 | V69: =AVERAGE(J$8:J69)/STDEV(J$8:J69) -> 0.14 | Y69: sprzedaj | AM69: 1.2% | AN69: 1.5% | AO69: 3.9% | AP69: 0.6%
A70: 1321488000 | B70: 2011-11-13 | C70: $3.35 | D70: $4.32 | E70: $19.87 | F70: $6.81 | G70: 0.0% | H70: -6.7% | I70: -6.3% | J70: 2.9% | K70: $3.38 | L70: $4.55 | M70: $21.13 | N70: $6.48 | O70: spadek | P70: spadek | Q70: spadek | R70: wzrost | S70: =AVERAGE(G$8:G70)/STDEV(G$8:G70) -> -0.09 | T70: =AVERAGE(H$8:H70)/STDEV(H$8:H70) -> 0.25 | U70: =AVERAGE(I$8:I70)/STDEV(I$8:I70) -> -0.23 | V70: =AVERAGE(J$8:J70)/STDEV(J$8:J70) -> 0.16 | W70: sprzedaj | Y70: sprzedaj | Z70: kup | AM70: -0.3% | AN70: -6.8% | AO70: -6.4% | AP70: 2.8%
A71: 1321574400 | B71: 2011-11-14 | C71: $2.47 | D71: $4.32 | E71: $19.05 | F71: $6.86 | G71: -26.3% | H71: -0.0% | I71: -4.1% | J71: 0.7% | K71: $3.25 | L71: $4.52 | M71: $20.84 | N71: $6.51 | O71: spadek | P71: spadek | Q71: spadek | R71: wzrost | S71: =AVERAGE(G$8:G71)/STDEV(G$8:G71) -> -0.12 | T71: =AVERAGE(H$8:H71)/STDEV(H$8:H71) -> 0.25 | U71: =AVERAGE(I$8:I71)/STDEV(I$8:I71) -> -0.24 | V71: =AVERAGE(J$8:J71)/STDEV(J$8:J71) -> 0.17 | W71: sprzedaj | X71: sprzedaj | Y71: sprzedaj | AM71: -26.6% | AN71: -0.1% | AO71: -4.2% | AP71: 0.6%
A72: 1321660800 | B72: =(A68/86400)+DATE(1970,1,1) -> 2011-11-15 | C72: $2.50 | D72: $4.19 | E72: $20.01 | F72: $7.05 | G72: 1.2% | H72: -2.9% | I72: 5.0% | J72: =F72/F71 - 1 -> 2.7% | K72: $3.15 | L72: $4.48 | M72: $20.72 | N72: $6.55 | O72: spadek | P72: spadek | Q72: spadek | R72: wzrost | S72: =AVERAGE(G$8:G72)/STDEV(G$8:G72) -> -0.12 | T72: =AVERAGE(H$8:H72)/STDEV(H$8:H72) -> 0.23 | U72: =AVERAGE(I$8:I72)/STDEV(I$8:I72) -> -0.21 | V72: =AVERAGE(J$8:J72)/STDEV(J$8:J72) -> 0.19 | X72: sprzedaj | AM72: 0.9% | AN72: -3.0% | AO72: 4.9% | AP72: 2.7%
A73: 1321747200 | B73: 2011-11-16 | C73: $3.00 | D73: $4.24 | E73: $19.16 | F73: $7.04 | G73: =C73/C72 - 1 -> 20.0% | H73: 1.1% | I73: -4.3% | J73: -0.1% | K73: $3.11 | L73: $4.43 | M73: $20.59 | N73: $6.59 | O73: spadek | P73: spadek | Q73: spadek | R73: wzrost | S73: =AVERAGE(G$8:G73)/STDEV(G$8:G73) -> -0.09 | T73: =AVERAGE(H$8:H73)/STDEV(H$8:H73) -> 0.23 | U73: =AVERAGE(I$8:I73)/STDEV(I$8:I73) -> -0.23 | V73: =AVERAGE(J$8:J73)/STDEV(J$8:J73) -> 0.18 | X73: sprzedaj | AM73: =G73-AG$8 -> 19.7% | AN73: 1.0% | AO73: -4.4% | AP73: -0.2%
A74: 1321833600 | B74: 2011-11-17 | C74: $2.99 | D74: $4.13 | E74: $19.44 | F74: $6.97 | G74: -0.3% | H74: -2.5% | I74: 1.5% | J74: -1.0% | K74: $3.09 | L74: $4.38 | M74: $20.55 | N74: $6.62 | O74: spadek | P74: spadek | Q74: spadek | R74: wzrost | S74: =AVERAGE(G$8:G74)/STDEV(G$8:G74) -> -0.09 | T74: =AVERAGE(H$8:H74)/STDEV(H$8:H74) -> 0.22 | U74: =AVERAGE(I$8:I74)/STDEV(I$8:I74) -> -0.22 | V74: =AVERAGE(J$8:J74)/STDEV(J$8:J74) -> 0.17 | W74: sprzedaj | X74: sprzedaj | Y74: sprzedaj | AM74: -0.7% | AN74: -2.6% | AO74: 1.3% | AP74: -1.1%
A75: 1321920000 | B75: 2011-11-18 | C75: $2.50 | D75: $4.19 | E75: $19.44 | F75: $7.05 | G75: -16.4% | H75: 1.5% | I75: 0.0% | J75: 1.1% | K75: $3.03 | L75: $4.34 | M75: $20.43 | N75: $6.66 | O75: spadek | P75: spadek | Q75: spadek | R75: wzrost | S75: =AVERAGE(G$8:G75)/STDEV(G$8:G75) -> -0.11 | T75: =AVERAGE(H$8:H75)/STDEV(H$8:H75) -> 0.23 | U75: =AVERAGE(I$8:I75)/STDEV(I$8:I75) -> -0.22 | V75: =AVERAGE(J$8:J75)/STDEV(J$8:J75) -> 0.18 | W75: sprzedaj | AM75: -16.7% | AN75: 1.4% | AO75: -0.1% | AP75: 1.0%
A76: 1322092800 | B76: 2011-11-19 | C76: $2.43 | D76: $4.37 | E76: $19.41 | F76: $7.09 | G76: -2.8% | H76: 4.3% | I76: -0.2% | J76: 0.7% | K76: $2.95 | L76: $4.32 | M76: $20.25 | N76: $6.70 | O76: spadek | P76: wzrost | Q76: spadek | R76: wzrost | S76: =AVERAGE(G$8:G76)/STDEV(G$8:G76) -> -0.11 | T76: =AVERAGE(H$8:H76)/STDEV(H$8:H76) -> 0.24 | U76: =AVERAGE(I$8:I76)/STDEV(I$8:I76) -> -0.22 | V76: =AVERAGE(J$8:J76)/STDEV(J$8:J76) -> 0.18 | AM76: -3.1% | AN76: 4.2% | AO76: -0.3% | AP76: 0.6%
A77: 1322179200 | B77: 2011-11-20 | C77: $2.37 | D77: $4.49 | E77: $19.15 | F77: $7.04 | G77: -2.5% | H77: 2.6% | I77: -1.3% | J77: -0.8% | K77: $2.90 | L77: $4.34 | M77: $20.14 | N77: $6.75 | O77: spadek | P77: wzrost | Q77: spadek | R77: wzrost | S77: =AVERAGE(G$8:G77)/STDEV(G$8:G77) -> -0.11 | T77: =AVERAGE(H$8:H77)/STDEV(H$8:H77) -> 0.25 | U77: =AVERAGE(I$8:I77)/STDEV(I$8:I77) -> -0.22 | V77: =AVERAGE(J$8:J77)/STDEV(J$8:J77) -> 0.18 | AM77: -2.8% | AN77: 2.5% | AO77: -1.5% | AP77: -0.8%
A78: 1322265600 | B78: 2011-11-21 | C78: $2.25 | D78: $4.53 | E78: $19.34 | F78: $7.08 | G78: -5.1% | H78: 0.9% | I78: 1.0% | J78: 0.6% | K78: $2.84 | L78: $4.35 | M78: $20.04 | N78: $6.80 | O78: spadek | P78: wzrost | Q78: spadek | R78: wzrost | S78: =AVERAGE(G$8:G78)/STDEV(G$8:G78) -> -0.12 | T78: =AVERAGE(H$8:H78)/STDEV(H$8:H78) -> 0.25 | U78: =AVERAGE(I$8:I78)/STDEV(I$8:I78) -> -0.22 | V78: =AVERAGE(J$8:J78)/STDEV(J$8:J78) -> 0.18 | X78: kup | Y78: sprzedaj | Z78: kup | AM78: -5.4% | AN78: 0.8% | AO78: 0.9% | AP78: 0.5%
A79: 1322438400 | B79: 2011-11-22 | C79: $2.59 | D79: $4.55 | E79: $19.10 | F79: $7.20 | G79: 15.1% | H79: 0.5% | I79: -1.2% | J79: 1.7% | K79: $2.81 | L79: $4.38 | M79: $19.90 | N79: $6.86 | O79: spadek | P79: wzrost | Q79: spadek | R79: wzrost | S79: =AVERAGE(G$8:G79)/STDEV(G$8:G79) -> -0.10 | T79: =AVERAGE(H$8:H79)/STDEV(H$8:H79) -> 0.25 | U79: =AVERAGE(I$8:I79)/STDEV(I$8:I79) -> -0.22 | V79: =AVERAGE(J$8:J79)/STDEV(J$8:J79) -> 0.19 | Y79: sprzedaj | Z79: kup | AM79: 14.8% | AN79: 0.4% | AO79: -1.4% | AP79: 1.6%
A80: 1322524800 | B80: 2011-11-24 | C80: $3.00 | D80: $4.50 | E80: $19.09 | F80: $6.98 | G80: 15.8% | H80: -1.1% | I80: -0.1% | J80: -3.0% | K80: $2.79 | L80: $4.40 | M80: $19.72 | N80: $6.91 | O80: wzrost | P80: wzrost | Q80: spadek | R80: wzrost | S80: =AVERAGE(G$8:G80)/STDEV(G$8:G80) -> -0.08 | T80: =AVERAGE(H$8:H80)/STDEV(H$8:H80) -> 0.24 | U80: =AVERAGE(I$8:I80)/STDEV(I$8:I80) -> -0.22 | V80: =AVERAGE(J$8:J80)/STDEV(J$8:J80) -> 0.16 | W80: kup | X80: kup | Z80: kup | AM80: 15.5% | AN80: -1.2% | AO80: -0.2% | AP80: -3.1%
A81: 1322611200 | B81: 2011-11-25 | C81: $2.75 | D81: $4.49 | E81: $18.06 | F81: $6.93 | G81: -8.3% | H81: -0.3% | I81: -5.4% | J81: -0.7% | K81: $2.75 | L81: $4.39 | M81: $19.47 | N81: $6.95 | O81: spadek | P81: wzrost | Q81: spadek | R81: spadek | S81: =AVERAGE(G$8:G81)/STDEV(G$8:G81) -> -0.09 | T81: =AVERAGE(H$8:H81)/STDEV(H$8:H81) -> 0.24 | U81: =AVERAGE(I$8:I81)/STDEV(I$8:I81) -> -0.23 | V81: =AVERAGE(J$8:J81)/STDEV(J$8:J81) -> 0.15 | Y81: sprzedaj | AM81: -8.7% | AN81: -0.4% | AO81: -5.5% | AP81: -0.7%
A82: 1322697600 | B82: 2011-11-26 | C82: $2.77 | D82: $4.51 | E82: $17.73 | F82: $6.98 | G82: 0.7% | H82: 0.6% | I82: -1.8% | J82: 0.8% | K82: $2.72 | L82: $4.39 | M82: $19.27 | N82: $6.98 | O82: wzrost | P82: wzrost | Q82: spadek | R82: wzrost | S82: =AVERAGE(G$8:G82)/STDEV(G$8:G82) -> -0.09 | T82: =AVERAGE(H$8:H82)/STDEV(H$8:H82) -> 0.24 | U82: =AVERAGE(I$8:I82)/STDEV(I$8:I82) -> -0.24 | V82: =AVERAGE(J$8:J82)/STDEV(J$8:J82) -> 0.16 | Y82: sprzedaj | Z82: kup | AM82: 0.4% | AN82: 0.4% | AO82: -1.9% | AP82: 0.7%
A83: 1322784000 | B83: 2011-11-28 | C83: $2.66 | D83: $4.41 | E83: $18.58 | F83: $7.07 | G83: -4.0% | H83: -2.3% | I83: 4.8% | J83: 1.2% | K83: $2.67 | L83: $4.37 | M83: $19.09 | N83: $7.01 | O83: spadek | P83: wzrost | Q83: spadek | R83: wzrost | S83: =AVERAGE(G$8:G83)/STDEV(G$8:G83) -> -0.09 | T83: =AVERAGE(H$8:H83)/STDEV(H$8:H83) -> 0.23 | U83: =AVERAGE(I$8:I83)/STDEV(I$8:I83) -> -0.22 | V83: =AVERAGE(J$8:J83)/STDEV(J$8:J83) -> 0.17 | Z83: kup | AM83: -4.3% | AN83: -2.4% | AO83: 4.7% | AP83: 1.2%
A84: 1322870400 | B84: 2011-11-29 | C84: $2.72 | D84: $4.29 | E84: $18.96 | F84: $7.14 | G84: 2.3% | H84: -2.8% | I84: 2.0% | J84: 1.0% | K84: $2.63 | L84: $4.37 | M84: $19.03 | N84: $7.03 | O84: wzrost | P84: spadek | Q84: spadek | R84: wzrost | S84: =AVERAGE(G$8:G84)/STDEV(G$8:G84) -> -0.09 | T84: =AVERAGE(H$8:H84)/STDEV(H$8:H84) -> 0.22 | U84: =AVERAGE(I$8:I84)/STDEV(I$8:I84) -> -0.21 | V84: =AVERAGE(J$8:J84)/STDEV(J$8:J84) -> 0.17 | W84: kup | Y84: sprzedaj | AM84: 1.9% | AN84: -2.9% | AO84: 1.9% | AP84: 0.9%
A85: 1323043200 | B85: 2011-11-30 | C85: $3.19 | D85: $4.25 | E85: $18.98 | F85: $7.09 | G85: 17.3% | H85: -0.8% | I85: 0.1% | J85: -0.7% | K85: $2.68 | L85: $4.37 | M85: $19.02 | N85: $7.05 | O85: wzrost | P85: spadek | Q85: spadek | R85: wzrost | S85: =AVERAGE(G$8:G85)/STDEV(G$8:G85) -> -0.07 | T85: =AVERAGE(H$8:H85)/STDEV(H$8:H85) -> 0.21 | U85: =AVERAGE(I$8:I85)/STDEV(I$8:I85) -> -0.21 | V85: =AVERAGE(J$8:J85)/STDEV(J$8:J85) -> 0.17 | W85: kup | X85: sprzedaj | AM85: 16.9% | AN85: -1.0% | AO85: -0.0% | AP85: -0.7%
A86: 1323129600 | B86: 2011-12-01 | C86: $3.42 | D86: $4.34 | E86: $18.81 | F86: $7.18 | G86: 7.2% | H86: 2.0% | I86: -0.9% | J86: 1.2% | K86: $2.74 | L86: $4.38 | M86: $18.94 | N86: $7.06 | O86: wzrost | P86: spadek | Q86: spadek | R86: wzrost | S86: =AVERAGE(G$8:G86)/STDEV(G$8:G86) -> -0.06 | T86: =AVERAGE(H$8:H86)/STDEV(H$8:H86) -> 0.22 | U86: =AVERAGE(I$8:I86)/STDEV(I$8:I86) -> -0.21 | V86: =AVERAGE(J$8:J86)/STDEV(J$8:J86) -> 0.18 | W86: =IF(AND(S75>S74, O86 = "wzrost"),"kup", IF(AND(S75<S74, O86 = "spadek"), "sprzedaj", "")) ->  | Z86: kup | AM86: 6.9% | AN86: 1.9% | AO86: -1.0% | AP86: 1.1%
A87: 1323216000 | B87: 2011-12-02 | C87: $3.04 | D87: $4.30 | E87: $19.43 | F87: $7.41 | G87: -11.1% | H87: -1.0% | I87: 3.3% | J87: 3.3% | K87: $2.74 | L87: $4.38 | M87: $18.96 | N87: $7.09 | O87: wzrost | P87: spadek | Q87: wzrost | R87: wzrost | S87: =AVERAGE(G$8:G87)/STDEV(G$8:G87) -> -0.07 | T87: =AVERAGE(H$8:H87)/STDEV(H$8:H87) -> 0.21 | U87: =AVERAGE(I$8:I87)/STDEV(I$8:I87) -> -0.19 | V87: =AVERAGE(J$8:J87)/STDEV(J$8:J87) -> 0.19 | Y87: kup | Z87: kup | AM87: -11.4% | AN87: -1.1% | AO87: 3.2% | AP87: 3.2%
A88: 1323302400 | B88: 2011-12-03 | C88: $2.93 | D88: $4.27 | E88: $20.93 | F88: $7.44 | G88: -3.6% | H88: -0.7% | I88: 7.7% | J88: 0.3% | K88: $2.74 | L88: $4.39 | M88: $19.06 | N88: $7.12 | O88: wzrost | P88: spadek | Q88: wzrost | R88: wzrost | S88: =AVERAGE(G$8:G88)/STDEV(G$8:G88) -> -0.07 | T88: =AVERAGE(H$8:H88)/STDEV(H$8:H88) -> 0.21 | U88: =AVERAGE(I$8:I88)/STDEV(I$8:I88) -> -0.16 | V88: =AVERAGE(J$8:J88)/STDEV(J$8:J88) -> 0.20 | AM88: -4.0% | AN88: -0.8% | AO88: 7.6% | AP88: 0.2%
A89: 1323475200 | B89: 2011-12-05 | C89: $2.93 | D89: $4.47 | E89: $20.71 | F89: $7.35 | G89: 0.0% | H89: 4.8% | I89: -1.0% | J89: -1.2% | K89: $2.77 | L89: $4.41 | M89: $19.15 | N89: $7.14 | O89: wzrost | P89: wzrost | Q89: wzrost | R89: wzrost | S89: =AVERAGE(G$8:G89)/STDEV(G$8:G89) -> -0.07 | T89: =AVERAGE(H$8:H89)/STDEV(H$8:H89) -> 0.22 | U89: =AVERAGE(I$8:I89)/STDEV(I$8:I89) -> -0.17 | V89: =AVERAGE(J$8:J89)/STDEV(J$8:J89) -> 0.19 | X89: kup | Y89: kup | Z89: kup | AM89: -0.3% | AN89: 4.7% | AO89: -1.2% | AP89: -1.2%
A90: 1323561600 | B90: 2011-12-06 | C90: $2.98 | D90: $4.50 | E90: $22.00 | F90: $7.32 | G90: 1.7% | H90: 0.6% | I90: 6.2% | J90: -0.4% | K90: $2.81 | L90: $4.42 | M90: $19.32 | N90: $7.16 | O90: wzrost | P90: wzrost | Q90: wzrost | R90: wzrost | S90: =AVERAGE(G$8:G90)/STDEV(G$8:G90) -> -0.07 | T90: =AVERAGE(H$8:H90)/STDEV(H$8:H90) -> 0.22 | U90: =AVERAGE(I$8:I90)/STDEV(I$8:I90) -> -0.14 | V90: =AVERAGE(J$8:J90)/STDEV(J$8:J90) -> 0.18 | W90: kup | X90: kup | Z90: kup | AM90: 1.4% | AN90: 0.5% | AO90: 6.1% | AP90: -0.5%
A91: 1323648000 | B91: 2011-12-07 | C91: $3.30 | D91: $4.42 | E91: $21.52 | F91: $7.31 | G91: 10.7% | H91: -1.8% | I91: -2.2% | J91: -0.1% | K91: $2.88 | L91: $4.42 | M91: $19.48 | N91: $7.18 | O91: wzrost | P91: wzrost | Q91: wzrost | R91: wzrost | S91: =AVERAGE(G$8:G91)/STDEV(G$8:G91) -> -0.06 | T91: =AVERAGE(H$8:H91)/STDEV(H$8:H91) -> 0.21 | U91: =AVERAGE(I$8:I91)/STDEV(I$8:I91) -> -0.15 | V91: =AVERAGE(J$8:J91)/STDEV(J$8:J91) -> 0.18 | W91: kup | Y91: kup | AM91: 10.4% | AN91: -2.0% | AO91: -2.3% | AP91: -0.2%
A92: 1323734400 | B92: 2011-12-08 | C92: $3.30 | D92: $4.51 | E92: $21.87 | F92: $7.30 | G92: 0.0% | H92: 2.0% | I92: 1.6% | J92: -0.2% | K92: $2.96 | L92: $4.41 | M92: $19.65 | N92: $7.19 | O92: wzrost | P92: wzrost | Q92: wzrost | R92: wzrost | S92: =AVERAGE(G$8:G92)/STDEV(G$8:G92) -> -0.06 | T92: =AVERAGE(H$8:H92)/STDEV(H$8:H92) -> 0.22 | U92: =AVERAGE(I$8:I92)/STDEV(I$8:I92) -> -0.14 | V92: =AVERAGE(J$8:J92)/STDEV(J$8:J92) -> 0.18 | AM92: -0.3% | AN92: 1.9% | AO92: 1.5% | AP92: -0.3%
A93: 1323820800 | B93: 2011-12-10 | C93: $3.20 | D93: $4.63 | E93: $23.29 | F93: $7.20 | G93: -3.0% | H93: 2.7% | I93: 6.5% | J93: -1.4% | K93: $3.00 | L93: $4.42 | M93: $19.93 | N93: $7.19 | O93: wzrost | P93: wzrost | Q93: wzrost | R93: wzrost | S93: =AVERAGE(G$8:G93)/STDEV(G$8:G93) -> -0.06 | T93: =AVERAGE(H$8:H93)/STDEV(H$8:H93) -> 0.23 | U93: =AVERAGE(I$8:I93)/STDEV(I$8:I93) -> -0.12 | V93: =AVERAGE(J$8:J93)/STDEV(J$8:J93) -> 0.16 | W93: kup | X93: kup | Z93: kup | AM93: -3.4% | AN93: 2.6% | AO93: 6.4% | AP93: -1.5%
A94: 1323907200 | B94: 2011-12-11 | C94: $3.27 | D94: $4.60 | E94: $22.59 | F94: $7.30 | G94: 2.2% | H94: -0.7% | I94: -3.0% | J94: 1.5% | K94: $3.02 | L94: $4.43 | M94: $20.17 | N94: $7.21 | O94: wzrost | P94: wzrost | Q94: wzrost | R94: wzrost | S94: =AVERAGE(G$8:G94)/STDEV(G$8:G94) -> -0.06 | T94: =AVERAGE(H$8:H94)/STDEV(H$8:H94) -> 0.22 | U94: =AVERAGE(I$8:I94)/STDEV(I$8:I94) -> -0.13 | V94: =AVERAGE(J$8:J94)/STDEV(J$8:J94) -> 0.17 | Y94: kup | Z94: kup | AM94: 1.9% | AN94: -0.8% | AO94: -3.1% | AP94: 1.4%
A95: 1323993600 | B95: 2011-12-12 | C95: $3.48 | D95: $4.66 | E95: $22.86 | F95: $7.41 | G95: 6.4% | H95: 1.4% | I95: 1.2% | J95: 1.4% | K95: $3.07 | L95: $4.44 | M95: $20.52 | N95: $7.25 | O95: wzrost | P95: wzrost | Q95: wzrost | R95: wzrost | S95: =AVERAGE(G$8:G95)/STDEV(G$8:G95) -> -0.05 | T95: =AVERAGE(H$8:H95)/STDEV(H$8:H95) -> 0.23 | U95: =AVERAGE(I$8:I95)/STDEV(I$8:I95) -> -0.12 | V95: =AVERAGE(J$8:J95)/STDEV(J$8:J95) -> 0.18 | W95: kup | Y95: kup | Z95: kup | AM95: 6.1% | AN95: 1.3% | AO95: 1.1% | AP95: 1.3%
A96: 1324166400 | B96: 2011-12-13 | C96: $3.56 | D96: $4.70 | E96: $20.79 | F96: $7.41 | G96: 2.3% | H96: 0.9% | I96: -9.1% | J96: 0.0% | K96: $3.13 | L96: $4.45 | M96: $20.75 | N96: $7.28 | O96: wzrost | P96: wzrost | Q96: wzrost | R96: wzrost | S96: =AVERAGE(G$8:G96)/STDEV(G$8:G96) -> -0.05 | T96: =AVERAGE(H$8:H96)/STDEV(H$8:H96) -> 0.23 | U96: =AVERAGE(I$8:I96)/STDEV(I$8:I96) -> -0.15 | V96: =AVERAGE(J$8:J96)/STDEV(J$8:J96) -> 0.18 | W96: kup | Y96: kup | AM96: 2.0% | AN96: 0.7% | AO96: -9.2% | AP96: -0.1%
A97: 1324252800 | B97: 2011-12-14 | C97: $3.47 | D97: $4.80 | E97: $20.28 | F97: $7.33 | G97: -2.5% | H97: 2.1% | I97: -2.5% | J97: -1.1% | K97: $3.19 | L97: $4.48 | M97: $20.88 | N97: $7.30 | O97: wzrost | P97: wzrost | Q97: spadek | R97: wzrost | S97: =AVERAGE(G$8:G97)/STDEV(G$8:G97) -> -0.05 | T97: =AVERAGE(H$8:H97)/STDEV(H$8:H97) -> 0.23 | U97: =AVERAGE(I$8:I97)/STDEV(I$8:I97) -> -0.15 | V97: =AVERAGE(J$8:J97)/STDEV(J$8:J97) -> 0.17 | W97: kup | X97: kup | Y97: sprzedaj | Z97: kup | AM97: -2.9% | AN97: 2.0% | AO97: -2.6% | AP97: -1.1%
A98: 1324339200 | B98: 2011-12-15 | C98: $3.45 | D98: $4.82 | E98: $20.62 | F98: $7.32 | G98: -0.6% | H98: 0.4% | I98: 1.7% | J98: -0.1% | K98: $3.24 | L98: $4.52 | M98: $21.01 | N98: $7.31 | O98: wzrost | P98: wzrost | Q98: spadek | R98: wzrost | S98: =AVERAGE(G$8:G98)/STDEV(G$8:G98) -> -0.05 | T98: =AVERAGE(H$8:H98)/STDEV(H$8:H98) -> 0.23 | U98: =AVERAGE(I$8:I98)/STDEV(I$8:I98) -> -0.15 | V98: =AVERAGE(J$8:J98)/STDEV(J$8:J98) -> 0.17 | Z98: kup | AM98: -0.9% | AN98: 0.3% | AO98: 1.6% | AP98: -0.2%
A99: 1324425600 | B99: 2011-12-16 | C99: $3.44 | D99: $4.83 | E99: $20.32 | F99: $7.39 | G99: -0.3% | H99: 0.1% | I99: -1.5% | J99: 1.0% | K99: $3.26 | L99: $4.56 | M99: $21.11 | N99: $7.33 | O99: wzrost | P99: wzrost | Q99: spadek | R99: wzrost | S99: =AVERAGE(G$8:G99)/STDEV(G$8:G99) -> -0.05 | T99: =AVERAGE(H$8:H99)/STDEV(H$8:H99) -> 0.23 | U99: =AVERAGE(I$8:I99)/STDEV(I$8:I99) -> -0.15 | V99: =AVERAGE(J$8:J99)/STDEV(J$8:J99) -> 0.18 | Z99: kup | AM99: -0.6% | AN99: -0.0% | AO99: -1.6% | AP99: 0.9%
A100: 1324512000 | B100: 2011-12-18 | C100: $3.50 | D100: $4.94 | E100: $21.66 | F100: $7.42 | G100: 1.7% | H100: 2.4% | I100: 6.6% | J100: 0.4% | K100: $3.27 | L100: $4.60 | M100: $21.32 | N100: $7.35 | O100: wzrost | P100: wzrost | Q100: wzrost | R100: wzrost | S100: =AVERAGE(G$8:G100)/STDEV(G$8:G100) -> -0.05 | T100: =AVERAGE(H$8:H100)/STDEV(H$8:H100) -> 0.24 | U100: =AVERAGE(I$8:I100)/STDEV(I$8:I100) -> -0.13 | V100: =AVERAGE(J$8:J100)/STDEV(J$8:J100) -> 0.18 | W100: kup | X100: kup | AM100: 1.4% | AN100: 2.3% | AO100: 6.5% | AP100: 0.3%
A101: 1324598400 | B101: 2011-12-19 | C101: $3.85 | D101: $4.82 | E101: $21.99 | F101: $7.40 | G101: 10.0% | H101: -2.4% | I101: 1.5% | J101: -0.3% | K101: $3.32 | L101: $4.64 | M101: $21.51 | N101: $7.35 | O101: wzrost | P101: wzrost | Q101: wzrost | R101: wzrost | S101: =AVERAGE(G$8:G101)/STDEV(G$8:G101) -> -0.04 | T101: =AVERAGE(H$8:H101)/STDEV(H$8:H101) -> 0.23 | U101: =AVERAGE(I$8:I101)/STDEV(I$8:I101) -> -0.12 | V101: =AVERAGE(J$8:J101)/STDEV(J$8:J101) -> 0.17 | W101: kup | X101: kup | Y101: kup | AM101: 9.7% | AN101: -2.5% | AO101: 1.4% | AP101: -0.4%
A102: 1324684800 | B102: 2011-12-20 | C102: $4.55 | D102: $5.07 | E102: $22.27 | F102: $7.37 | G102: 18.2% | H102: 5.1% | I102: 1.3% | J102: -0.4% | K102: $3.43 | L102: $4.69 | M102: $21.61 | N102: $7.34 | O102: wzrost | P102: wzrost | Q102: wzrost | R102: wzrost | S102: =AVERAGE(G$8:G102)/STDEV(G$8:G102) -> -0.02 | T102: =AVERAGE(H$8:H102)/STDEV(H$8:H102) -> 0.24 | U102: =AVERAGE(I$8:I102)/STDEV(I$8:I102) -> -0.12 | V102: =AVERAGE(J$8:J102)/STDEV(J$8:J102) -> 0.17 | W102: kup | AM102: 17.8% | AN102: 5.0% | AO102: 1.2% | AP102: -0.5%
A103: 1324771200 | B103: 2011-12-21 | C103: $4.38 | D103: $4.87 | E103: $21.83 | F103: $7.55 | G103: -3.7% | H103: -4.1% | I103: -2.0% | J103: 2.5% | K103: $3.53 | L103: $4.72 | M103: $21.69 | N103: $7.36 | O103: wzrost | P103: wzrost | Q103: wzrost | R103: wzrost | S103: =AVERAGE(G$8:G103)/STDEV(G$8:G103) -> -0.03 | T103: =AVERAGE(H$8:H103)/STDEV(H$8:H103) -> 0.23 | U103: =AVERAGE(I$8:I103)/STDEV(I$8:I103) -> -0.12 | V103: =AVERAGE(J$8:J103)/STDEV(J$8:J103) -> 0.18 | W103: kup | X103: kup | Y103: kup | AM103: -4.1% | AN103: -4.2% | AO103: -2.1% | AP103: 2.5%
A104: 1324857600 | B104: 2011-12-22 | C104: $4.17 | D104: $4.84 | E104: $21.95 | F104: $7.49 | G104: -4.8% | H104: -0.5% | I104: 0.5% | J104: -0.9% | K104: $3.62 | L104: $4.75 | M104: $21.68 | N104: $7.37 | O104: wzrost | P104: wzrost | Q104: wzrost | R104: wzrost | S104: =AVERAGE(G$8:G104)/STDEV(G$8:G104) -> -0.03 | T104: =AVERAGE(H$8:H104)/STDEV(H$8:H104) -> 0.22 | U104: =AVERAGE(I$8:I104)/STDEV(I$8:I104) -> -0.12 | V104: =AVERAGE(J$8:J104)/STDEV(J$8:J104) -> 0.18 | X104: kup | Y104: kup | AM104: -5.1% | AN104: -0.6% | AO104: 0.4% | AP104: -1.0%
A105: 1324944000 | B105: 2011-12-23 | C105: $4.22 | D105: $4.72 | E105: $20.91 | F105: $7.58 | G105: 1.2% | H105: -2.6% | I105: -4.7% | J105: 1.2% | K105: $3.68 | L105: $4.77 | M105: $21.64 | N105: $7.39 | O105: wzrost | P105: spadek | Q105: spadek | R105: wzrost | S105: =AVERAGE(G$8:G105)/STDEV(G$8:G105) -> -0.03 | T105: =AVERAGE(H$8:H105)/STDEV(H$8:H105) -> 0.21 | U105: =AVERAGE(I$8:I105)/STDEV(I$8:I105) -> -0.13 | V105: =AVERAGE(J$8:J105)/STDEV(J$8:J105) -> 0.18 | W105: kup | X105: sprzedaj | Y105: sprzedaj | Z105: kup | AM105: 0.9% | AN105: -2.7% | AO105: -4.8% | AP105: 1.1%
A106: 1325030400 | B106: 2011-12-24 | C106: $4.33 | D106: $4.85 | E106: $20.40 | F106: $7.54 | G106: 2.6% | H106: 2.8% | I106: -2.4% | J106: -0.5% | K106: $3.75 | L106: $4.80 | M106: $21.53 | N106: $7.41 | O106: wzrost | P106: wzrost | Q106: spadek | R106: wzrost | S106: =AVERAGE(G$8:G106)/STDEV(G$8:G106) -> -0.03 | T106: =AVERAGE(H$8:H106)/STDEV(H$8:H106) -> 0.22 | U106: =AVERAGE(I$8:I106)/STDEV(I$8:I106) -> -0.14 | V106: =AVERAGE(J$8:J106)/STDEV(J$8:J106) -> 0.18 | W106: kup | X106: kup | Z106: kup | AM106: 2.3% | AN106: 2.7% | AO106: -2.6% | AP106: -0.6%
A107: 1325116800 | B107: 2011-12-25 | C107: $4.27 | D107: $4.88 | E107: $20.23 | F107: $7.63 | G107: -1.4% | H107: 0.6% | I107: -0.8% | J107: 1.2% | K107: $3.83 | L107: $4.81 | M107: $21.32 | N107: $7.44 | O107: wzrost | P107: wzrost | Q107: spadek | R107: wzrost | S107: =AVERAGE(G$8:G107)/STDEV(G$8:G107) -> -0.03 | T107: =AVERAGE(H$8:H107)/STDEV(H$8:H107) -> 0.22 | U107: =AVERAGE(I$8:I107)/STDEV(I$8:I107) -> -0.14 | V107: =AVERAGE(J$8:J107)/STDEV(J$8:J107) -> 0.19 | W107: kup | X107: kup | Y107: sprzedaj | AM107: -1.7% | AN107: 0.5% | AO107: -1.0% | AP107: 1.2%
A108: 1325203200 | B108: 2011-12-26 | C108: $4.33 | D108: $4.84 | E108: $19.64 | F108: $7.81 | G108: 1.4% | H108: -0.8% | I108: -2.9% | J108: 2.4% | K108: $3.91 | L108: $4.83 | M108: $21.10 | N108: $7.47 | O108: wzrost | P108: wzrost | Q108: spadek | R108: wzrost | S108: =AVERAGE(G$8:G108)/STDEV(G$8:G108) -> -0.03 | T108: =AVERAGE(H$8:H108)/STDEV(H$8:H108) -> 0.22 | U108: =AVERAGE(I$8:I108)/STDEV(I$8:I108) -> -0.15 | V108: =AVERAGE(J$8:J108)/STDEV(J$8:J108) -> 0.20 | X108: kup | Y108: sprzedaj | AM108: 1.1% | AN108: -0.9% | AO108: -3.0% | AP108: 2.3%
A109: 1325289600 | B109: 2011-12-27 | C109: $4.29 | D109: $4.89 | E109: $19.75 | F109: $7.79 | G109: -0.9% | H109: 1.0% | I109: 0.6% | J109: -0.3% | K109: $3.97 | L109: $4.85 | M109: $20.89 | N109: =GEOMEAN(F96:F109) -> $7.50 | O109: wzrost | P109: wzrost | Q109: spadek | R109: =IF(N109<=F109,"wzrost","spadek") -> wzrost | S109: =AVERAGE(G$8:G109)/STDEV(G$8:G109) -> -0.03 | T109: =AVERAGE(H$8:H109)/STDEV(H$8:H109) -> 0.22 | U109: =AVERAGE(I$8:I109)/STDEV(I$8:I109) -> -0.14 | V109: =AVERAGE(J$8:J109)/STDEV(J$8:J109) -> 0.20 | X109: kup | AM109: -1.3% | AN109: 0.8% | AO109: 0.4% | AP109: -0.4%
A110: 1325376000 | B110: 2011-12-28 | C110: $4.30 | D110: $4.89 | E110: $19.52 | F110: $7.69 | G110: 0.2% | H110: -0.0% | I110: -1.2% | J110: -1.3% | K110: =GEOMEAN(C97:C110) -> $4.02 | L110: $4.86 | M110: $20.79 | N110: $7.52 | O110: =IF(K110<=C110,"wzrost","spadek") -> wzrost | P110: wzrost | Q110: spadek | R110: wzrost | S110: =AVERAGE(G$8:G110)/STDEV(G$8:G110) -> -0.03 | T110: =AVERAGE(H$8:H110)/STDEV(H$8:H110) -> 0.22 | U110: =AVERAGE(I$8:I110)/STDEV(I$8:I110) -> -0.15 | V110: =AVERAGE(J$8:J110)/STDEV(J$8:J110) -> 0.19 | W110: kup | Y110: sprzedaj | Z110: kup | AM110: -0.1% | AN110: -0.1% | AO110: -1.3% | AP110: -1.4%
A111: 1325462400 | B111: 2011-12-29 | C111: $4.50 | D111: $5.00 | E111: $19.52 | F111: $7.79 | G111: 4.7% | H111: 2.4% | I111: 0.0% | J111: 1.3% | K111: $4.09 | L111: $4.88 | M111: $20.73 | N111: $7.55 | O111: wzrost | P111: wzrost | Q111: spadek | R111: wzrost | S111: =AVERAGE(G$8:G111)/STDEV(G$8:G111) -> -0.02 | T111: =AVERAGE(H$8:H111)/STDEV(H$8:H111) -> 0.22 | U111: =AVERAGE(I$8:I111)/STDEV(I$8:I111) -> -0.14 | V111: =AVERAGE(J$8:J111)/STDEV(J$8:J111) -> 0.19 | W111: kup | X111: kup | Z111: kup | AM111: 4.3% | AN111: 2.3% | AO111: -0.1% | AP111: 1.2%
A112: 1325548800 | B112: 2011-12-30 | C112: $4.21 | D112: $5.10 | E112: $19.48 | F112: $7.65 | G112: -6.4% | H112: 2.0% | I112: -0.2% | J112: -1.8% | K112: $4.15 | L112: $4.90 | M112: $20.65 | N112: $7.58 | O112: wzrost | P112: wzrost | Q112: spadek | R112: wzrost | S112: =AVERAGE(G$8:G112)/STDEV(G$8:G112) -> -0.03 | T112: =AVERAGE(H$8:H112)/STDEV(H$8:H112) -> 0.23 | U112: =AVERAGE(I$8:I112)/STDEV(I$8:I112) -> -0.14 | V112: =AVERAGE(J$8:J112)/STDEV(J$8:J112) -> 0.18 | W112: kup | AM112: -6.8% | AN112: 1.9% | AO112: -0.3% | AP112: -1.9%
A113: 1325635200 | B113: 2011-12-31 | C113: $4.58 | D113: $4.94 | E113: $19.88 | F113: $7.61 | G113: 8.8% | H113: -3.2% | I113: 2.1% | J113: -0.5% | K113: $4.24 | L113: $4.90 | M113: $20.62 | N113: $7.59 | O113: wzrost | P113: wzrost | Q113: spadek | R113: wzrost | S113: =AVERAGE(G$8:G113)/STDEV(G$8:G113) -> -0.02 | T113: =AVERAGE(H$8:H113)/STDEV(H$8:H113) -> 0.22 | U113: =AVERAGE(I$8:I113)/STDEV(I$8:I113) -> -0.14 | V113: =AVERAGE(J$8:J113)/STDEV(J$8:J113) -> 0.17 | W113: kup | X113: kup | AM113: 8.5% | AN113: -3.3% | AO113: 1.9% | AP113: -0.6%
A114: 1325721600 | B114: 2012-01-01 | C114: $5.00 | D114: $4.85 | E114: $18.98 | F114: $7.61 | G114: 9.2% | H114: -1.7% | I114: -4.6% | J114: 0.0% | K114: $4.35 | L114: $4.90 | M114: $20.42 | N114: $7.61 | O114: wzrost | P114: spadek | Q114: spadek | R114: wzrost | S114: =AVERAGE(G$8:G114)/STDEV(G$8:G114) -> -0.01 | T114: =AVERAGE(H$8:H114)/STDEV(H$8:H114) -> 0.21 | U114: =AVERAGE(I$8:I114)/STDEV(I$8:I114) -> -0.15 | V114: =AVERAGE(J$8:J114)/STDEV(J$8:J114) -> 0.17 | X114: sprzedaj | Y114: sprzedaj | Z114: kup | AM114: 8.8% | AN114: -1.8% | AO114: -4.7% | AP114: -0.1%
A115: 1325808000 | B115: 2012-01-02 | C115: $5.00 | D115: $4.71 | E115: $19.00 | F115: $7.74 | G115: 0.0% | H115: -2.9% | I115: 0.1% | J115: 1.7% | K115: $4.43 | L115: $4.89 | M115: $20.21 | N115: $7.63 | O115: wzrost | P115: spadek | Q115: spadek | R115: wzrost | S115: =AVERAGE(G$8:G115)/STDEV(G$8:G115) -> -0.01 | T115: =AVERAGE(H$8:H115)/STDEV(H$8:H115) -> 0.20 | U115: =AVERAGE(I$8:I115)/STDEV(I$8:I115) -> -0.15 | V115: =AVERAGE(J$8:J115)/STDEV(J$8:J115) -> 0.18 | X115: sprzedaj | AM115: -0.3% | AN115: -3.0% | AO115: 0.0% | AP115: 1.7%
A116: 1325894400 | B116: 2012-01-03 | C116: $5.29 | D116: $4.52 | E116: $19.32 | F116: $7.76 | G116: 5.8% | H116: -4.0% | I116: 1.7% | J116: 0.2% | K116: $4.48 | L116: $4.85 | M116: $20.01 | N116: $7.66 | O116: wzrost | P116: spadek | Q116: spadek | R116: wzrost | S116: =AVERAGE(G$8:G116)/STDEV(G$8:G116) -> -0.01 | T116: =AVERAGE(H$8:H116)/STDEV(H$8:H116) -> 0.18 | U116: =AVERAGE(I$8:I116)/STDEV(I$8:I116) -> -0.14 | V116: =AVERAGE(J$8:J116)/STDEV(J$8:J116) -> 0.18 | W116: kup | X116: sprzedaj | Y116: sprzedaj | Z116: kup | AM116: 5.5% | AN116: -4.1% | AO116: 1.6% | AP116: 0.1%
A117: 1325980800 | B117: 2012-01-04 | C117: $5.57 | D117: $4.43 | E117: $19.50 | F117: $7.63 | G117: 5.3% | H117: -2.0% | I117: 0.9% | J117: -1.7% | K117: $4.56 | L117: $4.82 | M117: $19.85 | N117: $7.66 | O117: wzrost | P117: spadek | Q117: spadek | R117: spadek | S117: =AVERAGE(G$8:G117)/STDEV(G$8:G117) -> -0.00 | T117: =AVERAGE(H$8:H117)/STDEV(H$8:H117) -> 0.18 | U117: =AVERAGE(I$8:I117)/STDEV(I$8:I117) -> -0.14 | V117: =AVERAGE(J$8:J117)/STDEV(J$8:J117) -> 0.17 | W117: kup | Y117: sprzedaj | Z117: sprzedaj | AM117: 5.0% | AN117: -2.1% | AO117: 0.8% | AP117: -1.8%
A118: 1326067200 | B118: 2012-01-05 | C118: $6.65 | D118: $4.74 | E118: $23.23 | F118: $7.53 | G118: 19.4% | H118: 6.8% | I118: 19.1% | J118: -1.2% | K118: $4.71 | L118: $4.81 | M118: $19.93 | N118: $7.67 | O118: wzrost | P118: spadek | Q118: wzrost | R118: spadek | S118: =AVERAGE(G$8:G118)/STDEV(G$8:G118) -> 0.01 | T118: =AVERAGE(H$8:H118)/STDEV(H$8:H118) -> 0.19 | U118: =AVERAGE(I$8:I118)/STDEV(I$8:I118) -> -0.08 | V118: =AVERAGE(J$8:J118)/STDEV(J$8:J118) -> 0.16 | AM118: 19.1% | AN118: 6.7% | AO118: 19.0% | AP118: -1.3%
A119: 1326153600 | B119: 2012-01-06 | C119: $6.00 | D119: $4.71 | E119: $22.56 | F119: $7.50 | G119: -9.8% | H119: -0.6% | I119: -2.9% | J119: -0.5% | K119: $4.83 | L119: $4.81 | M119: $20.04 | N119: $7.66 | O119: wzrost | P119: spadek | Q119: wzrost | R119: spadek | S119: =AVERAGE(G$8:G119)/STDEV(G$8:G119) -> 0.00 | T119: =AVERAGE(H$8:H119)/STDEV(H$8:H119) -> 0.19 | U119: =AVERAGE(I$8:I119)/STDEV(I$8:I119) -> -0.09 | V119: =AVERAGE(J$8:J119)/STDEV(J$8:J119) -> 0.16 | W119: kup | X119: sprzedaj | AM119: -10.1% | AN119: -0.7% | AO119: -3.0% | AP119: -0.5%
A120: 1326240000 | B120: 2012-01-07 | C120: $6.80 | D120: $4.76 | E120: $21.94 | F120: $7.51 | G120: 13.3% | H120: 1.2% | I120: -2.7% | J120: 0.2% | K120: $4.99 | L120: $4.80 | M120: $20.14 | N120: $7.66 | O120: wzrost | P120: spadek | Q120: wzrost | R120: spadek | S120: =AVERAGE(G$8:G120)/STDEV(G$8:G120) -> 0.02 | T120: =AVERAGE(H$8:H120)/STDEV(H$8:H120) -> 0.19 | U120: =AVERAGE(I$8:I120)/STDEV(I$8:I120) -> -0.09 | V120: =AVERAGE(J$8:J120)/STDEV(J$8:J120) -> 0.16 | Y120: kup | Z120: sprzedaj | AM120: 13.0% | AN120: 1.1% | AO120: -2.9% | AP120: 0.1%
A121: 1326326400 | B121: 2012-01-08 | C121: $7.00 | D121: $4.90 | E121: $21.11 | F121: $7.64 | G121: 2.9% | H121: 2.8% | I121: -3.8% | J121: 1.8% | K121: $5.17 | L121: $4.80 | M121: $20.20 | N121: $7.66 | O121: wzrost | P121: wzrost | Q121: wzrost | R121: spadek | S121: =AVERAGE(G$8:G121)/STDEV(G$8:G121) -> 0.02 | T121: =AVERAGE(H$8:H121)/STDEV(H$8:H121) -> 0.20 | U121: =AVERAGE(I$8:I121)/STDEV(I$8:I121) -> -0.10 | V121: =AVERAGE(J$8:J121)/STDEV(J$8:J121) -> 0.17 | W121: kup | Z121: sprzedaj | AM121: 2.6% | AN121: 2.7% | AO121: -3.9% | AP121: 1.7%
A122: 1326412800 | B122: 2012-01-09 | C122: $6.30 | D122: $4.80 | E122: $21.21 | F122: $7.60 | G122: -10.0% | H122: -1.9% | I122: 0.5% | J122: -0.6% | K122: $5.31 | L122: $4.80 | M122: $20.31 | N122: $7.65 | O122: wzrost | P122: wzrost | Q122: wzrost | R122: spadek | S122: =AVERAGE(G$8:G122)/STDEV(G$8:G122) -> 0.01 | T122: =AVERAGE(H$8:H122)/STDEV(H$8:H122) -> 0.19 | U122: =AVERAGE(I$8:I122)/STDEV(I$8:I122) -> -0.10 | V122: =AVERAGE(J$8:J122)/STDEV(J$8:J122) -> 0.16 | W122: kup | X122: kup | Y122: kup | AM122: -10.3% | AN122: -2.0% | AO122: 0.4% | AP122: -0.6%
A123: 1326499200 | B123: 2012-01-10 | C123: $7.14 | D123: $5.15 | E123: $21.18 | F123: $7.57 | G123: 13.3% | H123: 7.3% | I123: -0.1% | J123: -0.4% | K123: $5.51 | L123: $4.82 | M123: $20.42 | N123: $7.63 | O123: wzrost | P123: wzrost | Q123: wzrost | R123: spadek | S123: =AVERAGE(G$8:G123)/STDEV(G$8:G123) -> 0.02 | T123: =AVERAGE(H$8:H123)/STDEV(H$8:H123) -> 0.21 | U123: =AVERAGE(I$8:I123)/STDEV(I$8:I123) -> -0.10 | V123: =AVERAGE(J$8:J123)/STDEV(J$8:J123) -> 0.16 | X123: kup | Y123: kup | Z123: sprzedaj | AM123: 13.0% | AN123: 7.2% | AO123: -0.3% | AP123: -0.5%
A124: 1326585600 | B124: 2012-01-11 | C124: $7.00 | D124: $5.28 | E124: $21.25 | F124: $7.40 | G124: -2.0% | H124: 2.4% | I124: 0.3% | J124: -2.3% | K124: $5.70 | L124: $4.84 | M124: $20.54 | N124: $7.61 | O124: wzrost | P124: wzrost | Q124: wzrost | R124: spadek | S124: =AVERAGE(G$8:G124)/STDEV(G$8:G124) -> 0.02 | T124: =AVERAGE(H$8:H124)/STDEV(H$8:H124) -> 0.21 | U124: =AVERAGE(I$8:I124)/STDEV(I$8:I124) -> -0.10 | V124: =AVERAGE(J$8:J124)/STDEV(J$8:J124) -> 0.15 | W124: kup | Y124: kup | Z124: sprzedaj | AM124: -2.3% | AN124: 2.3% | AO124: 0.2% | AP124: -2.3%
A125: 1326672000 | B125: 2012-01-12 | C125: $6.51 | D125: $5.11 | E125: $21.17 | F125: $7.52 | G125: -7.0% | H125: -3.1% | I125: -0.4% | J125: 1.6% | K125: $5.85 | L125: $4.85 | M125: $20.66 | N125: $7.59 | O125: wzrost | P125: wzrost | Q125: wzrost | R125: spadek | S125: =AVERAGE(G$8:G125)/STDEV(G$8:G125) -> 0.01 | T125: =AVERAGE(H$8:H125)/STDEV(H$8:H125) -> 0.20 | U125: =AVERAGE(I$8:I125)/STDEV(I$8:I125) -> -0.10 | V125: =AVERAGE(J$8:J125)/STDEV(J$8:J125) -> 0.15 | W125: kup | Z125: sprzedaj | AM125: -7.3% | AN125: -3.2% | AO125: -0.5% | AP125: 1.6%
A126: 1326758400 | B126: 2012-01-13 | C126: $6.60 | D126: $4.91 | E126: $20.47 | F126: $7.50 | G126: 1.4% | H126: -4.1% | I126: -3.3% | J126: -0.3% | K126: $6.04 | L126: $4.84 | M126: $20.73 | N126: $7.58 | O126: wzrost | P126: wzrost | Q126: spadek | R126: spadek | S126: =AVERAGE(G$8:G126)/STDEV(G$8:G126) -> 0.01 | T126: =AVERAGE(H$8:H126)/STDEV(H$8:H126) -> 0.19 | U126: =AVERAGE(I$8:I126)/STDEV(I$8:I126) -> -0.11 | V126: =AVERAGE(J$8:J126)/STDEV(J$8:J126) -> 0.15 | W126: kup | AM126: 1.0% | AN126: -4.2% | AO126: -3.4% | AP126: -0.3%
A127: 1326844800 | B127: 2012-01-14 | C127: $6.30 | D127: $4.97 | E127: $19.99 | F127: $7.47 | G127: -4.5% | H127: 1.3% | I127: -2.3% | J127: -0.4% | K127: $6.18 | L127: $4.84 | M127: $20.74 | N127: $7.57 | O127: wzrost | P127: wzrost | Q127: spadek | R127: spadek | S127: =AVERAGE(G$8:G127)/STDEV(G$8:G127) -> 0.01 | T127: =AVERAGE(H$8:H127)/STDEV(H$8:H127) -> 0.19 | U127: =AVERAGE(I$8:I127)/STDEV(I$8:I127) -> -0.11 | V127: =AVERAGE(J$8:J127)/STDEV(J$8:J127) -> 0.15 | W127: kup | AM127: -4.9% | AN127: 1.2% | AO127: -2.5% | AP127: -0.5%
A128: 1326931200 | B128: 2012-01-15 | C128: $7.15 | D128: $4.79 | E128: $19.21 | F128: $7.16 | G128: 13.5% | H128: -3.6% | I128: -3.9% | J128: -4.2% | K128: $6.34 | L128: $4.84 | M128: $20.76 | N128: $7.54 | O128: wzrost | P128: spadek | Q128: spadek | R128: spadek | S128: =AVERAGE(G$8:G128)/STDEV(G$8:G128) -> 0.02 | T128: =AVERAGE(H$8:H128)/STDEV(H$8:H128) -> 0.18 | U128: =AVERAGE(I$8:I128)/STDEV(I$8:I128) -> -0.12 | V128: =AVERAGE(J$8:J128)/STDEV(J$8:J128) -> 0.12 | W128: kup | X128: sprzedaj | Z128: sprzedaj | AM128: 13.2% | AN128: -3.7% | AO128: -4.0% | AP128: -4.3%
A129: 1327017600 | B129: 2012-01-16 | C129: $7.10 | D129: $4.70 | E129: $20.07 | F129: $7.02 | G129: -0.7% | H129: -1.9% | I129: 4.5% | J129: -1.9% | K129: $6.50 | L129: $4.84 | M129: $20.84 | N129: $7.48 | O129: wzrost | P129: spadek | Q129: spadek | R129: spadek | S129: =AVERAGE(G$8:G129)/STDEV(G$8:G129) -> 0.02 | T129: =AVERAGE(H$8:H129)/STDEV(H$8:H129) -> 0.17 | U129: =AVERAGE(I$8:I129)/STDEV(I$8:I129) -> -0.11 | V129: =AVERAGE(J$8:J129)/STDEV(J$8:J129) -> 0.11 | W129: kup | Z129: sprzedaj | AM129: -1.0% | AN129: -2.0% | AO129: 4.4% | AP129: -1.9%
A130: 1327104000 | B130: 2012-01-17 | C130: $6.00 | D130: $4.69 | E130: $19.86 | F130: $6.91 | G130: -15.5% | H130: -0.3% | I130: -1.0% | J130: -1.6% | K130: $6.56 | L130: $4.85 | M130: $20.88 | N130: $7.42 | O130: spadek | P130: spadek | Q130: spadek | R130: spadek | S130: =AVERAGE(G$8:G130)/STDEV(G$8:G130) -> 0.01 | T130: =AVERAGE(H$8:H130)/STDEV(H$8:H130) -> 0.17 | U130: =AVERAGE(I$8:I130)/STDEV(I$8:I130) -> -0.11 | V130: =AVERAGE(J$8:J130)/STDEV(J$8:J130) -> 0.10 | W130: sprzedaj | X130: sprzedaj | Y130: sprzedaj | Z130: sprzedaj | AM130: -15.8% | AN130: -0.4% | AO130: -1.2% | AP130: -1.6%
A131: 1327190400 | B131: 2012-01-18 | C131: $7.10 | D131: $4.83 | E131: $22.36 | F131: $7.21 | G131: 18.3% | H131: 3.0% | I131: 12.6% | J131: 4.3% | K131: $6.68 | L131: $4.88 | M131: $21.09 | N131: $7.39 | O131: wzrost | P131: spadek | Q131: wzrost | R131: spadek | S131: =AVERAGE(G$8:G131)/STDEV(G$8:G131) -> 0.02 | T131: =AVERAGE(H$8:H131)/STDEV(H$8:H131) -> 0.18 | U131: =AVERAGE(I$8:I131)/STDEV(I$8:I131) -> -0.08 | V131: =AVERAGE(J$8:J131)/STDEV(J$8:J131) -> 0.12 | W131: kup | AM131: 18.0% | AN131: 2.9% | AO131: 12.5% | AP131: 4.2%
A132: 1327276800 | B132: 2012-01-19 | C132: $6.22 | D132: $4.89 | E132: $22.17 | F132: $7.32 | G132: -12.4% | H132: 1.2% | I132: -0.8% | J132: 1.5% | K132: $6.65 | L132: $4.89 | M132: $21.02 | N132: $7.38 | O132: spadek | P132: spadek | Q132: wzrost | R132: spadek | S132: =AVERAGE(G$8:G132)/STDEV(G$8:G132) -> 0.01 | T132: =AVERAGE(H$8:H132)/STDEV(H$8:H132) -> 0.18 | U132: =AVERAGE(I$8:I132)/STDEV(I$8:I132) -> -0.08 | V132: =AVERAGE(J$8:J132)/STDEV(J$8:J132) -> 0.13 | AM132: -12.7% | AN132: 1.1% | AO132: -1.0% | AP132: 1.4%
A133: 1327363200 | B133: 2012-01-20 | C133: $6.95 | D133: $4.97 | E133: $23.56 | F133: $7.49 | G133: 11.7% | H133: 1.6% | I133: 6.3% | J133: 2.3% | K133: $6.72 | L133: $4.91 | M133: $21.08 | N133: $7.38 | O133: wzrost | P133: wzrost | Q133: wzrost | R133: wzrost | S133: =AVERAGE(G$8:G133)/STDEV(G$8:G133) -> 0.02 | T133: =AVERAGE(H$8:H133)/STDEV(H$8:H133) -> 0.18 | U133: =AVERAGE(I$8:I133)/STDEV(I$8:I133) -> -0.07 | V133: =AVERAGE(J$8:J133)/STDEV(J$8:J133) -> 0.14 | Y133: kup | AM133: 11.4% | AN133: 1.5% | AO133: 6.2% | AP133: 2.3%
A134: 1327449600 | B134: 2012-01-21 | C134: $6.77 | D134: $4.95 | E134: $22.92 | F134: $7.56 | G134: -2.6% | H134: -0.3% | I134: -2.7% | J134: 0.9% | K134: $6.71 | L134: $4.92 | M134: $21.15 | N134: $7.38 | O134: wzrost | P134: wzrost | Q134: wzrost | R134: wzrost | S134: =AVERAGE(G$8:G134)/STDEV(G$8:G134) -> 0.02 | T134: =AVERAGE(H$8:H134)/STDEV(H$8:H134) -> 0.18 | U134: =AVERAGE(I$8:I134)/STDEV(I$8:I134) -> -0.07 | V134: =AVERAGE(J$8:J134)/STDEV(J$8:J134) -> 0.14 | W134: kup | X134: kup | Y134: kup | AM134: -2.9% | AN134: -0.4% | AO134: -2.8% | AP134: 0.9%
A135: 1327536000 | B135: 2012-01-22 | C135: $6.79 | D135: $4.95 | E135: $23.10 | F135: $7.48 | G135: 0.3% | H135: 0.0% | I135: 0.8% | J135: -1.0% | K135: $6.70 | L135: $4.93 | M135: $21.28 | N135: $7.37 | O135: wzrost | P135: wzrost | Q135: wzrost | R135: wzrost | S135: =AVERAGE(G$8:G135)/STDEV(G$8:G135) -> 0.02 | T135: =AVERAGE(H$8:H135)/STDEV(H$8:H135) -> 0.18 | U135: =AVERAGE(I$8:I135)/STDEV(I$8:I135) -> -0.07 | V135: =AVERAGE(J$8:J135)/STDEV(J$8:J135) -> 0.13 | X135: kup | Y135: kup | AM135: -0.0% | AN135: -0.1% | AO135: 0.7% | AP135: -1.1%
A136: 1327622400 | B136: =(A132/86400)+DATE(1970,1,1) -> 2012-01-23 | C136: $6.52 | D136: $4.79 | E136: $24.32 | F136: $7.01 | G136: -4.0% | H136: -3.3% | I136: 5.3% | J136: -6.4% | K136: $6.72 | L136: $4.92 | M136: $21.49 | N136: $7.33 | O136: spadek | P136: spadek | Q136: wzrost | R136: spadek | S136: =AVERAGE(G$8:G136)/STDEV(G$8:G136) -> 0.02 | T136: =AVERAGE(H$8:H136)/STDEV(H$8:H136) -> 0.17 | U136: =AVERAGE(I$8:I136)/STDEV(I$8:I136) -> -0.06 | V136: =AVERAGE(J$8:J136)/STDEV(J$8:J136) -> 0.10 | W136: sprzedaj | X136: sprzedaj | AM136: -4.3% | AN136: -3.4% | AO136: 5.2% | AP136: =J136-AJ$8 -> -6.4%
A137: 1327708800 | B137: 2012-01-24 | C137: $6.55 | D137: $4.85 | E137: $24.00 | F137: $7.17 | G137: =C137/C136 - 1 -> 0.5% | H137: 1.3% | I137: -1.3% | J137: 2.3% | K137: $6.67 | L137: $4.90 | M137: $21.69 | N137: $7.30 | O137: spadek | P137: spadek | Q137: wzrost | R137: spadek | S137: =AVERAGE(G$8:G137)/STDEV(G$8:G137) -> 0.02 | T137: =AVERAGE(H$8:H137)/STDEV(H$8:H137) -> 0.18 | U137: =AVERAGE(I$8:I137)/STDEV(I$8:I137) -> -0.06 | V137: =AVERAGE(J$8:J137)/STDEV(J$8:J137) -> 0.11 | X137: sprzedaj | Z137: sprzedaj | AM137: =G137-AG$8 -> 0.1% | AN137: 1.2% | AO137: -1.4% | AP137: 2.3%
A138: 1327795200 | B138: 2012-01-25 | C138: $6.31 | D138: $4.73 | E138: $25.94 | F138: $7.41 | G138: -3.7% | H138: -2.6% | I138: 8.1% | J138: 3.3% | K138: $6.62 | L138: $4.87 | M138: $22.00 | N138: $7.30 | O138: spadek | P138: spadek | Q138: wzrost | R138: wzrost | S138: =AVERAGE(G$8:G138)/STDEV(G$8:G138) -> 0.01 | T138: =AVERAGE(H$8:H138)/STDEV(H$8:H138) -> 0.17 | U138: =AVERAGE(I$8:I138)/STDEV(I$8:I138) -> -0.05 | V138: =AVERAGE(J$8:J138)/STDEV(J$8:J138) -> 0.12 | W138: sprzedaj | AM138: -4.0% | AN138: -2.7% | AO138: 8.0% | AP138: 3.2%
A139: 1327881600 | B139: 2012-01-26 | C139: $5.50 | D139: $4.65 | E139: $26.15 | F139: $7.45 | G139: -12.8% | H139: -1.6% | I139: 0.8% | J139: 0.5% | K139: $6.55 | L139: $4.83 | M139: $22.33 | N139: $7.29 | O139: spadek | P139: spadek | Q139: wzrost | R139: wzrost | S139: =AVERAGE(G$8:G139)/STDEV(G$8:G139) -> 0.00 | T139: =AVERAGE(H$8:H139)/STDEV(H$8:H139) -> 0.16 | U139: =AVERAGE(I$8:I139)/STDEV(I$8:I139) -> -0.05 | V139: =AVERAGE(J$8:J139)/STDEV(J$8:J139) -> 0.12 | X139: sprzedaj | AM139: -13.2% | AN139: -1.7% | AO139: 0.7% | AP139: 0.5%
A140: 1327968000 | B140: 2012-01-27 | C140: $5.88 | D140: $4.70 | E140: $26.36 | F140: $7.30 | G140: 6.9% | H140: 1.1% | I140: 0.8% | J140: -1.9% | K140: $6.49 | L140: $4.82 | M140: $22.74 | N140: $7.28 | O140: spadek | P140: spadek | Q140: wzrost | R140: wzrost | S140: =AVERAGE(G$8:G140)/STDEV(G$8:G140) -> 0.01 | T140: =AVERAGE(H$8:H140)/STDEV(H$8:H140) -> 0.17 | U140: =AVERAGE(I$8:I140)/STDEV(I$8:I140) -> -0.04 | V140: =AVERAGE(J$8:J140)/STDEV(J$8:J140) -> 0.11 | W140: sprzedaj | X140: sprzedaj | Y140: kup | AM140: 6.6% | AN140: 1.0% | AO140: 0.7% | AP140: -2.0%
A141: 1328054400 | B141: 2012-01-28 | C141: $4.91 | D141: $4.66 | E141: $27.32 | F141: $7.41 | G141: -16.5% | H141: -1.0% | I141: 3.6% | J141: 1.5% | K141: $6.38 | L141: $4.80 | M141: $23.25 | N141: $7.28 | O141: spadek | P141: spadek | Q141: wzrost | R141: wzrost | S141: =AVERAGE(G$8:G141)/STDEV(G$8:G141) -> -0.00 | T141: =AVERAGE(H$8:H141)/STDEV(H$8:H141) -> 0.16 | U141: =AVERAGE(I$8:I141)/STDEV(I$8:I141) -> -0.04 | V141: =AVERAGE(J$8:J141)/STDEV(J$8:J141) -> 0.12 | W141: sprzedaj | X141: sprzedaj | AM141: -16.8% | AN141: -1.1% | AO141: 3.5% | AP141: 1.4%
A142: 1328140800 | B142: 2012-01-29 | C142: $5.50 | D142: $4.63 | E142: $28.00 | F142: $7.37 | G142: 12.0% | H142: -0.5% | I142: 2.5% | J142: -0.6% | K142: $6.26 | L142: $4.78 | M142: $23.89 | N142: $7.29 | O142: spadek | P142: spadek | Q142: wzrost | R142: wzrost | S142: =AVERAGE(G$8:G142)/STDEV(G$8:G142) -> 0.01 | T142: =AVERAGE(H$8:H142)/STDEV(H$8:H142) -> 0.16 | U142: =AVERAGE(I$8:I142)/STDEV(I$8:I142) -> -0.03 | V142: =AVERAGE(J$8:J142)/STDEV(J$8:J142) -> 0.12 | Y142: kup | Z142: kup | AM142: 11.7% | AN142: -0.6% | AO142: 2.4% | AP142: -0.7%
A143: 1328227200 | B143: 2012-01-30 | C143: $5.58 | D143: $4.68 | E143: $27.04 | F143: $7.54 | G143: 1.5% | H143: 1.0% | I143: -3.4% | J143: 2.3% | K143: $6.15 | L143: $4.78 | M143: $24.40 | N143: $7.33 | O143: spadek | P143: spadek | Q143: wzrost | R143: wzrost | S143: =AVERAGE(G$8:G143)/STDEV(G$8:G143) -> 0.01 | T143: =AVERAGE(H$8:H143)/STDEV(H$8:H143) -> 0.16 | U143: =AVERAGE(I$8:I143)/STDEV(I$8:I143) -> -0.04 | V143: =AVERAGE(J$8:J143)/STDEV(J$8:J143) -> 0.12 | W143: sprzedaj | Z143: kup | AM143: 1.1% | AN143: 0.9% | AO143: -3.5% | AP143: 2.3%
A144: 1328313600 | B144: 2012-01-31 | C144: $5.30 | D144: $4.65 | E144: $27.46 | F144: $7.71 | G144: -5.0% | H144: -0.6% | I144: 1.6% | J144: 2.3% | K144: $6.10 | L144: $4.78 | M144: $24.97 | N144: $7.39 | O144: spadek | P144: spadek | Q144: wzrost | R144: wzrost | S144: =AVERAGE(G$8:G144)/STDEV(G$8:G144) -> 0.00 | T144: =AVERAGE(H$8:H144)/STDEV(H$8:H144) -> 0.16 | U144: =AVERAGE(I$8:I144)/STDEV(I$8:I144) -> -0.04 | V144: =AVERAGE(J$8:J144)/STDEV(J$8:J144) -> 0.13 | Y144: kup | Z144: kup | AM144: -5.4% | AN144: -0.7% | AO144: 1.4% | AP144: 2.2%
A145: 1328400000 | B145: 2012-02-01 | C145: $5.88 | D145: $4.72 | E145: $27.71 | F145: $7.61 | G145: 10.9% | H145: 1.6% | I145: 0.9% | J145: -1.3% | K145: $6.02 | L145: $4.77 | M145: $25.36 | N145: $7.41 | O145: spadek | P145: spadek | Q145: wzrost | R145: wzrost | S145: =AVERAGE(G$8:G145)/STDEV(G$8:G145) -> 0.01 | T145: =AVERAGE(H$8:H145)/STDEV(H$8:H145) -> 0.16 | U145: =AVERAGE(I$8:I145)/STDEV(I$8:I145) -> -0.03 | V145: =AVERAGE(J$8:J145)/STDEV(J$8:J145) -> 0.13 | W145: sprzedaj | X145: sprzedaj | Z145: kup | AM145: 10.6% | AN145: 1.5% | AO145: 0.8% | AP145: -1.4%
A146: 1328486400 | B146: 2012-02-02 | C146: $6.28 | D146: $4.63 | E146: $26.97 | F146: $7.75 | G146: 6.8% | H146: -1.9% | I146: -2.7% | J146: 1.8% | K146: $6.02 | L146: $4.75 | M146: $25.71 | N146: $7.44 | O146: wzrost | P146: spadek | Q146: wzrost | R146: wzrost | S146: =AVERAGE(G$8:G146)/STDEV(G$8:G146) -> 0.02 | T146: =AVERAGE(H$8:H146)/STDEV(H$8:H146) -> 0.16 | U146: =AVERAGE(I$8:I146)/STDEV(I$8:I146) -> -0.04 | V146: =AVERAGE(J$8:J146)/STDEV(J$8:J146) -> 0.13 | W146: kup | X146: sprzedaj | Y146: kup | AM146: 6.5% | AN146: -2.0% | AO146: -2.8% | AP146: 1.8%
A147: 1328572800 | B147: 2012-02-03 | C147: $6.30 | D147: $4.54 | E147: $27.49 | F147: $7.80 | G147: 0.3% | H147: -2.1% | I147: 1.9% | J147: 0.6% | K147: $5.98 | L147: $4.72 | M147: $26.00 | N147: $7.47 | O147: wzrost | P147: spadek | Q147: wzrost | R147: wzrost | S147: =AVERAGE(G$8:G147)/STDEV(G$8:G147) -> 0.02 | T147: =AVERAGE(H$8:H147)/STDEV(H$8:H147) -> 0.15 | U147: =AVERAGE(I$8:I147)/STDEV(I$8:I147) -> -0.04 | V147: =AVERAGE(J$8:J147)/STDEV(J$8:J147) -> 0.13 | X147: sprzedaj | Y147: kup | AM147: -0.0% | AN147: -2.2% | AO147: 1.8% | AP147: 0.5%
A148: 1328659200 | B148: 2012-02-04 | C148: $5.94 | D148: $4.50 | E148: $27.84 | F148: $7.83 | G148: -5.7% | H148: -0.8% | I148: 1.3% | J148: 0.4% | K148: $5.92 | L148: $4.69 | M148: $26.36 | N148: $7.48 | O148: wzrost | P148: spadek | Q148: wzrost | R148: wzrost | S148: =AVERAGE(G$8:G148)/STDEV(G$8:G148) -> 0.01 | T148: =AVERAGE(H$8:H148)/STDEV(H$8:H148) -> 0.15 | U148: =AVERAGE(I$8:I148)/STDEV(I$8:I148) -> -0.03 | V148: =AVERAGE(J$8:J148)/STDEV(J$8:J148) -> 0.14 | W148: kup | Z148: kup | AM148: -6.0% | AN148: -0.9% | AO148: 1.2% | AP148: 0.3%
A149: 1328745600 | B149: 2012-02-05 | C149: $5.60 | D149: $4.45 | E149: $27.98 | F149: $7.78 | G149: -5.7% | H149: -1.2% | I149: 0.5% | J149: -0.6% | K149: $5.84 | L149: $4.66 | M149: $26.73 | N149: $7.51 | O149: spadek | P149: spadek | Q149: wzrost | R149: wzrost | S149: =AVERAGE(G$8:G149)/STDEV(G$8:G149) -> 0.01 | T149: =AVERAGE(H$8:H149)/STDEV(H$8:H149) -> 0.15 | U149: =AVERAGE(I$8:I149)/STDEV(I$8:I149) -> -0.03 | V149: =AVERAGE(J$8:J149)/STDEV(J$8:J149) -> 0.13 | W149: sprzedaj | X149: sprzedaj | Y149: kup | Z149: =IF(AND(V138>V137, R149 = "wzrost"),"kup", IF(AND(V138<V137, R149 = "spadek"), "sprzedaj", "")) -> kup | AM149: -6.1% | AN149: -1.3% | AO149: 0.4% | AP149: -0.7%
A150: 1328832000 | B150: 2012-02-06 | C150: $5.60 | D150: $4.38 | E150: $27.58 | F150: $7.83 | G150: 0.0% | H150: -1.6% | I150: -1.4% | J150: 0.6% | K150: $5.78 | L150: $4.63 | M150: $26.97 | N150: $7.57 | O150: spadek | P150: spadek | Q150: wzrost | R150: wzrost | S150: =AVERAGE(G$8:G150)/STDEV(G$8:G150) -> 0.01 | T150: =AVERAGE(H$8:H150)/STDEV(H$8:H150) -> 0.14 | U150: =AVERAGE(I$8:I150)/STDEV(I$8:I150) -> -0.03 | V150: =AVERAGE(J$8:J150)/STDEV(J$8:J150) -> 0.13 | W150: =IF(AND(S139>S138, O150 = "wzrost"),"kup", IF(AND(S139<S138, O150 = "spadek"), "sprzedaj", "")) -> sprzedaj | X150: sprzedaj | Y150: kup | Z150: kup | AM150: -0.3% | AN150: -1.7% | AO150: -1.5% | AP150: 0.5%
A151: 1328918400 | B151: 2012-02-07 | C151: $5.69 | D151: $4.47 | E151: $28.24 | F151: $7.72 | G151: 1.6% | H151: 2.1% | I151: 2.4% | J151: -1.4% | K151: $5.72 | L151: $4.60 | M151: $27.28 | N151: $7.60 | O151: spadek | P151: spadek | Q151: wzrost | R151: wzrost | S151: =AVERAGE(G$8:G151)/STDEV(G$8:G151) -> 0.01 | T151: =AVERAGE(H$8:H151)/STDEV(H$8:H151) -> 0.15 | U151: =AVERAGE(I$8:I151)/STDEV(I$8:I151) -> -0.03 | V151: =AVERAGE(J$8:J151)/STDEV(J$8:J151) -> 0.13 | Y151: kup | AM151: 1.3% | AN151: 2.0% | AO151: 2.3% | AP151: -1.5%
A152: 1329004800 | B152: 2012-02-08 | C152: $5.87 | D152: $4.39 | E152: $26.81 | F152: $7.80 | G152: 3.2% | H152: -1.7% | I152: -5.1% | J152: 1.1% | K152: $5.69 | L152: $4.58 | M152: $27.35 | N152: $7.63 | O152: wzrost | P152: spadek | Q152: spadek | R152: wzrost | S152: =AVERAGE(G$8:G152)/STDEV(G$8:G152) -> 0.01 | T152: =AVERAGE(H$8:H152)/STDEV(H$8:H152) -> 0.14 | U152: =AVERAGE(I$8:I152)/STDEV(I$8:I152) -> -0.04 | V152: =AVERAGE(J$8:J152)/STDEV(J$8:J152) -> 0.13 | X152: sprzedaj | Z152: kup | AM152: 2.8% | AN152: -1.8% | AO152: -5.2% | AP152: 1.0%
A153: 1329091200 | B153: 2012-02-09 | C153: $5.89 | D153: $4.49 | E153: $26.75 | F153: $7.82 | G153: 0.3% | H153: 2.1% | I153: -0.2% | J153: 0.2% | K153: $5.72 | L153: $4.56 | M153: $27.39 | N153: $7.66 | O153: wzrost | P153: spadek | Q153: spadek | R153: wzrost | S153: =AVERAGE(G$8:G153)/STDEV(G$8:G153) -> 0.01 | T153: =AVERAGE(H$8:H153)/STDEV(H$8:H153) -> 0.15 | U153: =AVERAGE(I$8:I153)/STDEV(I$8:I153) -> -0.04 | V153: =AVERAGE(J$8:J153)/STDEV(J$8:J153) -> 0.13 | W153: kup | X153: sprzedaj | AM153: 0.0% | AN153: 2.0% | AO153: -0.4% | AP153: 0.1%
A154: 1329177600 | B154: 2012-02-10 | C154: $5.88 | D154: $4.51 | E154: $27.71 | F154: $7.77 | G154: -0.2% | H154: 0.4% | I154: 3.6% | J154: -0.7% | K154: $5.72 | L154: $4.55 | M154: $27.49 | N154: $7.69 | O154: wzrost | P154: spadek | Q154: wzrost | R154: wzrost | S154: =AVERAGE(G$8:G154)/STDEV(G$8:G154) -> 0.01 | T154: =AVERAGE(H$8:H154)/STDEV(H$8:H154) -> 0.15 | U154: =AVERAGE(I$8:I154)/STDEV(I$8:I154) -> -0.03 | V154: =AVERAGE(J$8:J154)/STDEV(J$8:J154) -> 0.13 | W154: kup | Z154: kup | AM154: -0.5% | AN154: 0.3% | AO154: 3.5% | AP154: -0.8%
A155: 1329264000 | B155: 2012-02-11 | C155: $5.50 | D155: $4.53 | E155: $27.41 | F155: $7.72 | G155: -6.5% | H155: 0.5% | I155: -1.1% | J155: -0.6% | K155: $5.77 | L155: $4.54 | M155: $27.50 | N155: $7.72 | O155: spadek | P155: spadek | Q155: spadek | R155: wzrost | S155: =AVERAGE(G$8:G155)/STDEV(G$8:G155) -> 0.01 | T155: =AVERAGE(H$8:H155)/STDEV(H$8:H155) -> 0.15 | U155: =AVERAGE(I$8:I155)/STDEV(I$8:I155) -> -0.03 | V155: =AVERAGE(J$8:J155)/STDEV(J$8:J155) -> 0.13 | W155: sprzedaj | X155: sprzedaj | Z155: kup | AM155: -6.8% | AN155: 0.4% | AO155: -1.2% | AP155: -0.7%
A156: 1329350400 | B156: 2012-02-12 | C156: $5.67 | D156: $4.47 | E156: $27.36 | F156: $7.71 | G156: 3.1% | H156: -1.3% | I156: -0.2% | J156: -0.1% | K156: $5.78 | L156: $4.53 | M156: $27.45 | N156: $7.74 | O156: spadek | P156: spadek | Q156: spadek | R156: spadek | S156: =AVERAGE(G$8:G156)/STDEV(G$8:G156) -> 0.01 | T156: =AVERAGE(H$8:H156)/STDEV(H$8:H156) -> 0.14 | U156: =AVERAGE(I$8:I156)/STDEV(I$8:I156) -> -0.03 | V156: =AVERAGE(J$8:J156)/STDEV(J$8:J156) -> 0.13 | Z156: sprzedaj | AM156: 2.8% | AN156: -1.4% | AO156: -0.3% | AP156: -0.2%
A157: 1329436800 | B157: 2012-02-13 | C157: $5.79 | D157: $4.48 | E157: $26.26 | F157: $7.72 | G157: 2.1% | H157: 0.2% | I157: -4.0% | J157: 0.1% | K157: $5.79 | L157: $4.51 | M157: $27.39 | N157: $7.75 | O157: spadek | P157: spadek | Q157: spadek | R157: spadek | S157: =AVERAGE(G$8:G157)/STDEV(G$8:G157) -> 0.01 | T157: =AVERAGE(H$8:H157)/STDEV(H$8:H157) -> 0.14 | U157: =AVERAGE(I$8:I157)/STDEV(I$8:I157) -> -0.04 | V157: =AVERAGE(J$8:J157)/STDEV(J$8:J157) -> 0.13 | X157: sprzedaj | Y157: sprzedaj | AM157: 1.8% | AN157: 0.1% | AO157: -4.1% | AP157: 0.0%
A158: 1329523200 | B158: 2012-02-14 | C158: $4.89 | D158: $4.49 | E158: $26.93 | F158: $7.81 | G158: -15.5% | H158: 0.2% | I158: 2.6% | J158: 1.2% | K158: $5.76 | L158: $4.50 | M158: $27.35 | N158: $7.76 | O158: spadek | P158: spadek | Q158: spadek | R158: wzrost | S158: =AVERAGE(G$8:G158)/STDEV(G$8:G158) -> -0.00 | T158: =AVERAGE(H$8:H158)/STDEV(H$8:H158) -> 0.14 | U158: =AVERAGE(I$8:I158)/STDEV(I$8:I158) -> -0.04 | V158: =AVERAGE(J$8:J158)/STDEV(J$8:J158) -> 0.13 | X158: sprzedaj | Z158: kup | AM158: -15.9% | AN158: 0.0% | AO158: 2.4% | AP158: 1.1%
A159: 1329609600 | B159: 2012-02-15 | C159: $4.69 | D159: $4.54 | E159: $26.51 | F159: $7.70 | G159: -4.1% | H159: 1.2% | I159: -1.6% | J159: -1.4% | K159: $5.67 | L159: $4.49 | M159: $27.27 | N159: $7.77 | O159: spadek | P159: wzrost | Q159: spadek | R159: spadek | S159: =AVERAGE(G$8:G159)/STDEV(G$8:G159) -> -0.00 | T159: =AVERAGE(H$8:H159)/STDEV(H$8:H159) -> 0.14 | U159: =AVERAGE(I$8:I159)/STDEV(I$8:I159) -> -0.04 | V159: =AVERAGE(J$8:J159)/STDEV(J$8:J159) -> 0.12 | W159: sprzedaj | AM159: -4.4% | AN159: 1.1% | AO159: -1.7% | AP159: -1.5%
